Workbook

Sheet Summary
B1: Ctrl+Shft+S
B4: =Pivots!A4 -> Date | C4: =Pivots!B4 -> Opposition | D4: =Pivots!C4 -> Home/Away | E4: =Pivots!D4 -> Match Status | G4: Overall Match Summary | J4: Home Fixtures | N4: Top Run Scorers | AC4: Top Averages
B5: =Pivots!A5 -> 2012-04-22 | C5: =Pivots!B5 -> Penn Street | D5: =Pivots!C5 -> Away | E5: =Pivots!D5 -> Cancelled (Rain) | G5: =Pivots!M4 -> Win | H5: =GETPIVOTDATA("Opposition",Pivots!$M$3,"Match Status",G5) -> 12 | J5: =Pivots!M15 -> Win | K5: =GETPIVOTDATA("Opposition",Pivots!$M$14,"Match Status",J5) -> 6 | N5: =VLOOKUP(O5,Bat!A:E,5,0) -> J. Hunt | O5: =LARGE(Bat!A:A,1) -> 566 | AC5: =VLOOKUP(AD5,Bat!B:E,4,0) -> J. Hancock | AD5: =LARGE(Bat!B:B,1) -> 63.5
B6: =Pivots!A6 -> 2012-04-29 | C6: =Pivots!B6 -> White Waltham | D6: =Pivots!C6 -> Home | E6: =Pivots!D6 -> Cancelled (Rain) | G6: =Pivots!M5 -> Loss | H6: =GETPIVOTDATA("Opposition",Pivots!$M$3,"Match Status",G6) -> 4 | J6: =Pivots!M16 -> Loss | K6: =GETPIVOTDATA("Opposition",Pivots!$M$14,"Match Status",J6) -> 1 | N6: =VLOOKUP(O6,Bat!A:E,5,0) -> S. Beardall | O6: =LARGE(Bat!A:A,2) -> 507 | AC6: =VLOOKUP(AD6,Bat!B:E,4,0) -> O. Thornton | AD6: =LARGE(Bat!B:B,2) -> 55.3
B7: =Pivots!A7 -> 2012-05-06 | C7: =Pivots!B7 -> Brightwell-Cum-Sotwell | D7: =Pivots!C7 -> Away | E7: =Pivots!D7 -> Cancelled (Rain) | G7: =Pivots!M6 -> Draw | H7: =GETPIVOTDATA("Opposition",Pivots!$M$3,"Match Status",G7) -> 7 | J7: =Pivots!M17 -> Draw | K7: =GETPIVOTDATA("Opposition",Pivots!$M$14,"Match Status",J7) -> 7 | N7: =VLOOKUP(O7,Bat!A:E,5,0) -> O. Thornton | O7: =LARGE(Bat!A:A,3) -> 442 | AC7: =VLOOKUP(AD7,Bat!B:E,4,0) -> J. Hunt | AD7: =LARGE(Bat!B:B,3) -> 51.5
B8: =Pivots!A8 -> 2012-05-12 | C8: =Pivots!B8 -> Greys Green (1) | D8: =Pivots!C8 -> Home | E8: =Pivots!D8 -> Cancelled (Rain) | G8: =Pivots!M7 -> Cancelled (Turville) | H8: =GETPIVOTDATA("Opposition",Pivots!$M$3,"Match Status",G8) -> 2 | J8: =Pivots!M18 -> Cancelled (Turville) | K8: =GETPIVOTDATA("Opposition",Pivots!$M$14,"Match Status",J8) -> 1 | N8: =VLOOKUP(O8,Bat!A:E,5,0) -> J. Hancock | O8: =LARGE(Bat!A:A,4) -> 381 | AC8: =VLOOKUP(AD8,Bat!B:E,4,0) -> S. Beardall | AD8: =LARGE(Bat!B:B,4) -> 46.1
B9: =Pivots!A9 -> 2012-05-19 | C9: =Pivots!B9 -> Crazies Hill | D9: =Pivots!C9 -> Home | E9: =Pivots!D9 -> Win | G9: =Pivots!M8 -> Cancelled (Rain) | H9: =GETPIVOTDATA("Opposition",Pivots!$M$3,"Match Status",G9) -> 7 | J9: =Pivots!M19 -> Cancelled (Rain) | K9: =GETPIVOTDATA("Opposition",Pivots!$M$14,"Match Status",J9) -> 5 | N9: =VLOOKUP(O9,Bat!A:E,5,0) -> C. Beardall | O9: =LARGE(Bat!A:A,5) -> 295 | AC9: =VLOOKUP(AD9,Bat!B:E,4,0) -> J. Thornton | AD9: =LARGE(Bat!B:B,5) -> 41.0
B10: =Pivots!A10 -> 2012-05-20 | C10: =Pivots!B10 -> Britwell Salome | D10: =Pivots!C10 -> Home | E10: =Pivots!D10 -> Draw | G10: =Pivots!M9 -> Cancelled (Opposition) | H10: =GETPIVOTDATA("Opposition",Pivots!$M$3,"Match Status",G10) -> 1 | J10: =Pivots!M20 -> Cancelled (Opposition) | K10: =GETPIVOTDATA("Opposition",Pivots!$M$14,"Match Status",J10) -> 1 | N10: =VLOOKUP(O10,Bat!A:E,5,0) -> T. Wade | O10: =LARGE(Bat!A:A,6) -> 191
B11: =Pivots!A11 -> 2012-05-26 | C11: =Pivots!B11 -> Harpsden (1) | D11: =Pivots!C11 -> Away | E11: =Pivots!D11 -> Loss | G11: =Pivots!M10 -> Grand Total | H11: =SUM(H5:H10) -> 33 | J11: =Pivots!M21 -> Grand Total | K11: =SUM(K5:K10) -> 21 | N11: =VLOOKUP(O11,Bat!A:E,5,0) -> P. Briffett | O11: =LARGE(Bat!A:A,7) -> 124 | AC11: 100s
B12: =Pivots!A12 -> 2012-05-27 | C12: =Pivots!B12 -> Checkendon (1) | D12: =Pivots!C12 -> Home | E12: =Pivots!D12 -> Win | N12: =VLOOKUP(O12,Bat!A:E,5,0) -> J. Thornton | O12: =LARGE(Bat!A:A,8) -> 123 | AC12: =VLOOKUP(AD12,Bat!C:E,3,0) -> O. Thornton | AD12: =LARGE(Bat!C:C,1) -> 2
B13: =Pivots!A13 -> 2012-06-03 | C13: =Pivots!B13 -> Cuxham | D13: =Pivots!C13 -> Home | E13: =Pivots!D13 -> Cancelled (Rain) | N13: =VLOOKUP(O13,Bat!A:E,5,0) -> J. Moberly | O13: =LARGE(Bat!A:A,9) -> 121 | AC13: =VLOOKUP(AD13,Bat!C:E,3,0) -> J. Hancock | AD13: =LARGE(Bat!C:C,2) -> 1
B14: =Pivots!A14 -> 2012-06-09 | C14: =Pivots!B14 -> Privateers | D14: =Pivots!C14 -> Home | E14: =Pivots!D14 -> Draw | N14: =VLOOKUP(O14,Bat!A:E,5,0) -> Ro. Dickie | O14: =LARGE(Bat!A:A,10) -> 108
B15: =Pivots!A15 -> 2012-06-16 | C15: =Pivots!B15 -> Invalids | D15: =Pivots!C15 -> Home | E15: =Pivots!D15 -> Draw | N15: Other | O15: =SUM(Bat!A:A)-SUM(Summary!O5:O14) -> 799 | AC15: Most 50s
B16: =Pivots!A16 -> 2012-06-17 | C16: =Pivots!B16 -> Stonor (1) | D16: =Pivots!C16 -> Away | E16: =Pivots!D16 -> Win | AC16: =VLOOKUP(AD16,Bat!D:E,2,0) -> S. Beardall | AD16: =LARGE(Bat!D:D,1) -> 6
B17: =Pivots!A17 -> 2012-06-24 | C17: =Pivots!B17 -> Theberton | D17: =Pivots!C17 -> Home | E17: =Pivots!D17 -> Win | AC17: =VLOOKUP(AD17,Bat!D:E,2,0) -> J. Hunt | AD17: =LARGE(Bat!D:D,2) -> 5
B18: =Pivots!A18 -> 2012-06-30 | C18: =Pivots!B18 -> Oporto | D18: =Pivots!C18 -> Tour | E18: =Pivots!D18 -> Win | AC18: =VLOOKUP(AD18,Bat!D:E,2,0) -> O. Thornton | AD18: =LARGE(Bat!D:D,3) -> 3
B19: =Pivots!A19 -> 2012-07-01 | C19: =Pivots!B19 -> Oporto (2) | D19: =Pivots!C19 -> Tour | E19: =Pivots!D19 -> Win | AC19: Other | AD19: =SUM(Bat!D:D)-SUM(Summary!AD16:AD18) -> 6
B20: =Pivots!A20 -> 2012-07-06 | C20: =Pivots!B20 -> Woodcote | D20: =Pivots!C20 -> Away | E20: =Pivots!D20 -> Cancelled (Turville)
B21: =Pivots!A21 -> 2012-07-08 | C21: =Pivots!B21 -> Flycatchers | D21: =Pivots!C21 -> Home | E21: =Pivots!D21 -> Cancelled (Rain)
B22: =Pivots!A22 -> 2012-07-15 | C22: =Pivots!B22 -> Ibstone | D22: =Pivots!C22 -> Away | E22: =Pivots!D22 -> Win | G22: Away Fixtures | J22: Tour Fixtures | N22: Top Wicket Takers | AC22: Best Averages
B23: =Pivots!A23 -> 2012-07-21 | C23: =Pivots!B23 -> Crossbatters | D23: =Pivots!C23 -> Home | E23: =Pivots!D23 -> Loss | G23: =Pivots!M26 -> Win | H23: =GETPIVOTDATA("Opposition",Pivots!$M$25,"Match Status",G23) -> 4 | J23: =Pivots!M37 -> Win | K23: =GETPIVOTDATA("Opposition",Pivots!$M$36,"Match Status",J23) -> 2 | N23: N. Runkel | O23: =LARGE(Bowl!A:A,1) -> 22 | AC23: =VLOOKUP(AD23,Bowl!B:F,5,0) -> N. Runkel | AD23: =SMALL(Bowl!B:B,1) -> 11.0
B24: =Pivots!A24 -> 2012-07-22 | C24: =Pivots!B24 -> Warborough | D24: =Pivots!C24 -> Home | E24: =Pivots!D24 -> Draw | G24: =Pivots!M27 -> Loss | H24: =GETPIVOTDATA("Opposition",Pivots!$M$25,"Match Status",G24) -> 3 | J24: =Pivots!M38 -> Grand Total | K24: =SUM(K23) -> 2 | N24: =VLOOKUP(O24,Bowl!A:F,6,0) -> J. Hunt | O24: =LARGE(Bowl!A:A,2) -> 22 | AC24: =VLOOKUP(AD24,Bowl!B:F,5,0) -> J. Hunt | AD24: =SMALL(Bowl!B:B,2) -> 11.8
B25: =Pivots!A25 -> 2012-07-29 | C25: =Pivots!B25 -> Ipsden | D25: =Pivots!C25 -> Home | E25: =Pivots!D25 -> Win | G25: =Pivots!M28 -> Cancelled (Turville) | H25: =GETPIVOTDATA("Opposition",Pivots!$M$25,"Match Status",G25) -> 1 | N25: T. White | O25: =LARGE(Bowl!A:A,3) -> 15 | AC25: =VLOOKUP(AD25,Bowl!B:F,5,0) -> J. Hancock | AD25: =SMALL(Bowl!B:B,3) -> 13.6
B26: =Pivots!A26 -> 2012-08-05 | C26: =Pivots!B26 -> Henley | D26: =Pivots!C26 -> Away | E26: =Pivots!D26 -> Win | G26: =Pivots!M29 -> Cancelled (Rain) | H26: =GETPIVOTDATA("Opposition",Pivots!$M$25,"Match Status",G26) -> 2 | N26: =VLOOKUP(O26,Bowl!A:F,6,0) -> N. Henry | O26: =LARGE(Bowl!A:A,4) -> 15
B27: =Pivots!A27 -> 2012-08-11 | C27: =Pivots!B27 -> West Wycombe | D27: =Pivots!C27 -> Home | E27: =Pivots!D27 -> Cancelled (Opposition) | G27: =Pivots!M30 -> Grand Total | H27: =SUM(H23:H26) -> 10 | N27: =VLOOKUP(O27,Bowl!A:F,6,0) -> J. Hancock | O27: =LARGE(Bowl!A:A,5) -> 13 | AC27: Best Economies
B28: =Pivots!A28 -> 2012-08-12 | C28: =Pivots!B28 -> Dorchester | D28: =Pivots!C28 -> Home | E28: =Pivots!D28 -> Win | N28: =VLOOKUP(O28,Bowl!A:F,6,0) -> J. Leefe | O28: =LARGE(Bowl!A:A,6) -> 10 | AC28: =VLOOKUP(AD28,Bowl!C:F,4,0) -> K. Haig | AD28: =SMALL(Bowl!C:C,1) -> 2.3
B29: =Pivots!A29 -> 2012-08-19 | C29: =Pivots!B29 -> Odney | D29: =Pivots!C29 -> Home | E29: =Pivots!D29 -> Draw | N29: =VLOOKUP(O29,Bowl!A:F,6,0) -> J. Thornton | O29: =LARGE(Bowl!A:A,7) -> 9 | AC29: =VLOOKUP(AD29,Bowl!C:F,4,0) -> A. Bignell | AD29: =SMALL(Bowl!C:C,2) -> 2.4
B30: =Pivots!A30 -> 2012-08-25 | C30: =Pivots!B30 -> Stonor (2) | D30: =Pivots!C30 -> Home | E30: =Pivots!D30 -> Cancelled (Rain) | N30: =VLOOKUP(O30,Bowl!A:F,6,0) -> S. Beardall | O30: =LARGE(Bowl!A:A,8) -> 8 | AC30: =VLOOKUP(AD30,Bowl!C:F,4,0) -> J. Hunt | AD30: =SMALL(Bowl!C:C,3) -> 2.6
B31: =Pivots!A31 -> 2012-09-01 | C31: =Pivots!B31 -> VPs | D31: =Pivots!C31 -> Away | E31: =Pivots!D31 -> Loss | N31: =VLOOKUP(O31,Bowl!A:F,6,0) -> O. Thornton | O31: =LARGE(Bowl!A:A,9) -> 6
B32: =Pivots!A32 -> 2012-09-02 | C32: =Pivots!B32 -> Medmenham | D32: =Pivots!C32 -> Home | E32: =Pivots!D32 -> Cancelled (Turville) | N32: =VLOOKUP(O32,Bowl!A:F,6,0) -> C. Beardall | O32: =LARGE(Bowl!A:A,10) -> 4 | AC32: Best Strike Rates
B33: =Pivots!A33 -> 2012-09-08 | C33: =Pivots!B33 -> Wylde Oats | D33: =Pivots!C33 -> Home | E33: =Pivots!D33 -> Draw | N33: Other | O33: =SUM(Bowl!G:G)-SUM(Summary!O23:O32) -> 47 | AC33: =VLOOKUP(AD33,Bowl!D:F,3,0) -> N. Runkel | AD33: =SMALL(Bowl!D:D,1) -> 20.2
B34: =Pivots!A34 -> 2012-09-09 | C34: =Pivots!B34 -> Middleton Stoney | D34: =Pivots!C34 -> Home | E34: =Pivots!D34 -> Draw | AC34: =VLOOKUP(AD34,Bowl!D:F,3,0) -> S. Beardall | AD34: =SMALL(Bowl!D:D,2) -> 22.5
B35: =Pivots!A35 -> 2012-09-15 | C35: =Pivots!B35 -> Harpsden (2) | D35: =Pivots!C35 -> Home | E35: =Pivots!D35 -> Win | N35: Most Maidens | AC35: =VLOOKUP(AD35,Bowl!D:F,3,0) -> J. Hunt | AD35: =SMALL(Bowl!D:D,3) -> 27.5
B36: =Pivots!A36 -> 2012-09-22 | C36: =Pivots!B36 -> Checkendon (2) | D36: =Pivots!C36 -> Away | E36: =Pivots!D36 -> Loss | N36: =VLOOKUP(O36,Bowl!E:F,2,0) -> T. White | O36: =LARGE(Bowl!E:E,1) -> 21 | AB36: Batting Avg. calculated for >99 runs Bowling Avg. & SR calculated for > 4 wkts Bowling Economy calculated for > 9 overs
B37: =Pivots!A37 -> 2012-09-29 | C37: =Pivots!B37 -> Greys Green (2) | D37: =Pivots!C37 -> Away | E37: =Pivots!D37 -> Win | N37: =VLOOKUP(O37,Bowl!E:F,2,0) -> J. Hunt | O37: =LARGE(Bowl!E:E,2) -> 18

Sheet Bat
A1: Ctrl+Shft+O
A3: Runs | B3: Average | C3: 100s | D3: 50s | E3: Batsmen Name | F3: Sum of Batsmen Runs | G3: Sum of Batsmen Out | H3: Sum of 50 | I3: Sum of 100
A4: =F4 -> 51 | B4: =IF(F4>100,F4/G4,"") ->  | C4: =I4 -> 0 | D4: =H4 -> 0 | E4: A. Bignell | F4: 51 | G4: 1 | H4: 0 | I4: 0
A5: 22 | C5: 0 | D5: 0 | E5: B. Bazell | F5: 22 | G5: 2 | H5: 0 | I5: 0
A6: 1 | C6: 0 | D6: 0 | E6: B. Bucknill | F6: 1 | G6: 1 | H6: 0 | I6: 0
A7: 19 | C7: 0 | D7: 0 | E7: B. Watson | F7: 19 | G7: 1 | H7: 0 | I7: 0
A8: 295 | B8: 32.77777778 | C8: 0 | D8: 2 | E8: C. Beardall | F8: 295 | G8: 9 | H8: 2 | I8: 0
A9: 10 | C9: 0 | D9: 0 | E9: C. Henry | F9: 10 | G9: 2 | H9: 0 | I9: 0
A10: 12 | C10: 0 | D10: 0 | E10: C. Rogers | F10: 12 | G10: 2 | H10: 0 | I10: 0
A11: 57 | C11: 0 | D11: 0 | E11: C. Simon | F11: 57 | G11: 5 | H11: 0 | I11: 0
A12: 0 | C12: 0 | D12: 0 | E12: C. Wellbelove | F12: 0 | G12: 1 | H12: 0 | I12: 0
A13: 1 | C13: 0 | D13: 0 | E13: D. Bradman | F13: 1 | G13: 1 | H13: 0 | I13: 0
A14: 0 | C14: 0 | D14: 0 | E14: D. Mackey | F14: 0 | G14: 1 | H14: 0 | I14: 0
A15: 49 | C15: 0 | D15: 0 | E15: D. Stockings | F15: 49 | G15: 2 | H15: 0 | I15: 0
A16: 34 | C16: 0 | D16: 0 | E16: H. De Zulueta | F16: 34 | G16: 2 | H16: 0 | I16: 0
A17: 0 | C17: 0 | D17: 0 | E17: J. Crook | F17: 0 | G17: 1 | H17: 0 | I17: 0
A18: 381 | B18: 63.5 | C18: 1 | D18: 2 | E18: J. Hancock | F18: 381 | G18: 6 | H18: 2 | I18: 1
A19: 566 | B19: 51.45454545 | C19: 0 | D19: 5 | E19: J. Hunt | F19: 566 | G19: 11 | H19: 5 | I19: 0
A20: 1 | C20: 0 | D20: 0 | E20: J. Kleiner-Mann | F20: 1 | G20: 1 | H20: 0 | I20: 0
A21: 51 | C21: 0 | D21: 0 | E21: J. Leefe | F21: 51 | G21: 3 | H21: 0 | I21: 0
A22: 0 | C22: 0 | D22: 0 | E22: J. Reid | F22: 0 | G22: 1 | H22: 0 | I22: 0
A23: 33 | C23: 0 | D23: 0 | E23: J. Rogers | F23: 33 | G23: 3 | H23: 0 | I23: 0
A24: 123 | B24: 41 | C24: 0 | D24: 1 | E24: J. Thornton | F24: 123 | G24: 3 | H24: 1 | I24: 0
A25: 5 | C25: 0 | D25: 0 | E25: M. Kemp | F25: 5 | G25: 0 | H25: 0 | I25: 0
A26: 102 | B26: 12.75 | C26: 0 | D26: 0 | E26: N. Henry | F26: 102 | G26: 8 | H26: 0 | I26: 0
A27: 1 | C27: 0 | D27: 0 | E27: N. Phillips | F27: 1 | G27: 1 | H27: 0 | I27: 0
A28: 7 | C28: 0 | D28: 0 | E28: N. Runkel | F28: 7 | G28: 1 | H28: 0 | I28: 0
A29: 3 | C29: 0 | D29: 0 | E29: O. Brett | F29: 3 | G29: 1 | H29: 0 | I29: 0
A30: 442 | B30: 55.25 | C30: 2 | D30: 3 | E30: O. Thornton | F30: 442 | G30: 8 | H30: 3 | I30: 2
A31: 124 | B31: 9.538461538 | C31: 0 | D31: 1 | E31: P. Briffett | F31: 124 | G31: 13 | H31: 1 | I31: 0
A32: 43 | C32: 0 | D32: 0 | E32: P. De Zulueta | F32: 43 | G32: 3 | H32: 0 | I32: 0
A33: 8 | C33: 0 | D33: 0 | E33: P. Girdler | F33: 8 | G33: 0 | H33: 0 | I33: 0
A34: 12 | C34: 0 | D34: 0 | E34: P. Sheriff | F34: 12 | G34: 1 | H34: 0 | I34: 0
A35: 0 | C35: 0 | D35: 0 | E35: R. Beardall | F35: 0 | G35: 1 | H35: 0 | I35: 0
A36: 6 | C36: 0 | D36: 0 | E36: R. Dickie | F36: 6 | G36: 1 | H36: 0 | I36: 0
A37: 29 | C37: 0 | D37: 0 | E37: R. Gunn | F37: 29 | G37: 2 | H37: 0 | I37: 0
A38: 15 | C38: 0 | D38: 0 | E38: R. Hunt | F38: 15 | G38: 1 | H38: 0 | I38: 0
A39: 4 | C39: 0 | D39: 0 | E39: Ra. Dickie | F39: 4 | G39: 1 | H39: 0 | I39: 0
A40: 108 | B40: 10.8 | C40: 0 | D40: 0 | E40: Ro. Dickie | F40: 108 | G40: 10 | H40: 0 | I40: 0
A41: 507 | B41: 46.09090909 | C41: 0 | D41: 6 | E41: S. Beardall | F41: 507 | G41: 11 | H41: 6 | I41: 0
A42: 52 | C42: 0 | D42: 0 | E42: S. Bucknill | F42: 52 | G42: 2 | H42: 0 | I42: 0
A43: 44 | C43: 0 | D43: 0 | E43: S. Flakelar | F43: 44 | G43: 1 | H43: 0 | I43: 0
A44: 75 | C44: 0 | D44: 0 | E44: S. Halfhead | F44: 75 | G44: 5 | H44: 0 | I44: 0
A45: 10 | C45: 0 | D45: 0 | E45: T. Farley | F45: 10 | G45: 1 | H45: 0 | I45: 0
A46: 3 | C46: 0 | D46: 0 | E46: T. Greenwood | F46: 3 | G46: 1 | H46: 0 | I46: 0
A47: 191 | B47: 19.1 | C47: 0 | D47: 0 | E47: T. Wade | F47: 191 | G47: 10 | H47: 0 | I47: 0
A48: 20 | C48: 0 | D48: 0 | E48: T. White | F48: 20 | G48: 2 | H48: 0 | I48: 0
A49: 11 | C49: 0 | D49: 0 | E49: V. Haig | F49: 11 | G49: 1 | H49: 0 | I49: 0
A50: 8 | C50: 0 | D50: 0 | E50: W. Strickland | F50: 8 | G50: 2 | H50: 0 | I50: 0
A51: 121 | B51: 10.08333333 | C51: 0 | D51: 0 | E51: J. Moberly | F51: 121 | G51: 12 | H51: 0 | I51: 0
A52: 0 | C52: 0 | D52: 0
A53: 0 | C53: 0 | D53: 0
A54: 0 | C54: 0 | D54: 0
A55: 0 | C55: 0 | D55: 0
A56: 0 | C56: 0 | D56: 0
A57: 0 | C57: 0 | D57: 0
A58: 0 | C58: 0 | D58: 0
A59: 0 | C59: 0 | D59: 0
A60: 0 | C60: 0 | D60: 0
A61: 0 | C61: 0 | D61: 0
A62: 0 | C62: 0 | D62: 0
A63: 0 | C63: 0 | D63: 0
A64: 0 | C64: 0 | D64: 0
A65: 0 | C65: 0 | D65: 0
A66: 0 | C66: 0 | D66: 0
A67: 0 | C67: 0 | D67: 0
A68: =F68 -> 0 | B68: =IF(F68>100,F68/G68,"") ->  | C68: =I68 -> 0 | D68: =H68 -> 0
A69: 0 | C69: 0 | D69: 0
A70: 0 | C70: 0 | D70: 0
A71: 0 | C71: 0 | D71: 0
A72: 0 | C72: 0 | D72: 0
A73: 0 | C73: 0 | D73: 0
A74: 0 | C74: 0 | D74: 0
A75: 0 | C75: 0 | D75: 0
A76: 0 | C76: 0 | D76: 0
A77: 0 | C77: 0 | D77: 0
A78: 0 | C78: 0 | D78: 0
A79: 0 | C79: 0 | D79: 0
A80: 0 | C80: 0 | D80: 0
A81: 0 | C81: 0 | D81: 0
A82: 0 | C82: 0 | D82: 0
A83: 0 | C83: 0 | D83: 0
A84: 0 | C84: 0 | D84: 0
A85: 0 | C85: 0 | D85: 0
A86: 0 | C86: 0 | D86: 0
A87: 0 | C87: 0 | D87: 0
A88: 0 | C88: 0 | D88: 0
A89: 0 | C89: 0 | D89: 0
A90: 0 | C90: 0 | D90: 0
A91: 0 | C91: 0 | D91: 0
A92: 0 | C92: 0 | D92: 0
A93: 0 | C93: 0 | D93: 0
A94: 0 | C94: 0 | D94: 0
A95: 0 | C95: 0 | D95: 0
A96: 0 | C96: 0 | D96: 0
A97: 0 | C97: 0 | D97: 0
A98: 0 | C98: 0 | D98: 0
A99: 0 | C99: 0 | D99: 0
A100: 0 | C100: 0 | D100: 0
A101: 0 | C101: 0 | D101: 0
A102: 0 | C102: 0 | D102: 0
A103: 0 | C103: 0 | D103: 0
A104: 0 | C104: 0 | D104: 0
A105: 0 | C105: 0 | D105: 0
A106: 0 | C106: 0 | D106: 0
A107: 0 | C107: 0 | D107: 0
A108: 0 | C108: 0 | D108: 0
A109: 0 | C109: 0 | D109: 0
A110: 0 | C110: 0 | D110: 0
A111: 0 | C111: 0 | D111: 0
A112: 0 | C112: 0 | D112: 0
A113: 0 | C113: 0 | D113: 0
A114: 0 | C114: 0 | D114: 0
A115: 0 | C115: 0 | D115: 0
A116: 0 | C116: 0 | D116: 0
A117: 0 | C117: 0 | D117: 0
A118: 0 | C118: 0 | D118: 0
A119: 0 | C119: 0 | D119: 0
A120: 0 | C120: 0 | D120: 0
A121: 0 | C121: 0 | D121: 0
A122: 0 | C122: 0 | D122: 0
A123: 0 | C123: 0 | D123: 0
A124: 0 | C124: 0 | D124: 0
A125: 0 | C125: 0 | D125: 0
A126: 0 | C126: 0 | D126: 0
A127: 0 | C127: 0 | D127: 0
A128: 0 | C128: 0 | D128: 0
A129: 0 | C129: 0 | D129: 0
A130: 0 | C130: 0 | D130: 0
A131: 0 | C131: 0 | D131: 0
A132: =F132 -> 0 | B132: =IF(F132>100,F132/G132,"") ->  | C132: =I132 -> 0 | D132: =H132 -> 0
A133: 0 | C133: 0 | D133: 0
A134: 0 | C134: 0 | D134: 0
A135: 0 | C135: 0 | D135: 0
A136: 0 | C136: 0 | D136: 0
A137: 0 | C137: 0 | D137: 0
A138: 0 | C138: 0 | D138: 0
A139: 0 | C139: 0 | D139: 0
A140: 0 | C140: 0 | D140: 0
A141: 0 | C141: 0 | D141: 0
A142: 0 | C142: 0 | D142: 0
A143: 0 | C143: 0 | D143: 0
A144: 0 | C144: 0 | D144: 0
A145: 0 | C145: 0 | D145: 0
A146: 0 | C146: 0 | D146: 0
A147: 0 | C147: 0 | D147: 0
A148: 0 | C148: 0 | D148: 0
A149: 0 | C149: 0 | D149: 0
A150: 0 | C150: 0 | D150: 0
A151: 0 | C151: 0 | D151: 0
A152: 0 | C152: 0 | D152: 0
A153: 0 | C153: 0 | D153: 0
A154: 0 | C154: 0 | D154: 0
A155: 0 | C155: 0 | D155: 0
A156: 0 | C156: 0 | D156: 0
A157: 0 | C157: 0 | D157: 0
A158: 0 | C158: 0 | D158: 0
A159: 0 | C159: 0 | D159: 0
A160: 0 | C160: 0 | D160: 0
A161: 0 | C161: 0 | D161: 0
A162: 0 | C162: 0 | D162: 0
A163: 0 | C163: 0 | D163: 0
A164: 0 | C164: 0 | D164: 0
A165: 0 | C165: 0 | D165: 0
A166: 0 | C166: 0 | D166: 0
A167: 0 | C167: 0 | D167: 0
A168: 0 | C168: 0 | D168: 0
A169: 0 | C169: 0 | D169: 0
A170: 0 | C170: 0 | D170: 0
A171: 0 | C171: 0 | D171: 0
A172: 0 | C172: 0 | D172: 0
A173: 0 | C173: 0 | D173: 0
A174: 0 | C174: 0 | D174: 0
A175: 0 | C175: 0 | D175: 0
A176: 0 | C176: 0 | D176: 0
A177: 0 | C177: 0 | D177: 0
A178: 0 | C178: 0 | D178: 0
A179: 0 | C179: 0 | D179: 0
A180: 0 | C180: 0 | D180: 0
A181: 0 | C181: 0 | D181: 0
A182: 0 | C182: 0 | D182: 0
A183: 0 | C183: 0 | D183: 0
A184: 0 | C184: 0 | D184: 0
A185: 0 | C185: 0 | D185: 0
A186: 0 | C186: 0 | D186: 0
A187: 0 | C187: 0 | D187: 0
A188: 0 | C188: 0 | D188: 0
A189: 0 | C189: 0 | D189: 0
A190: 0 | C190: 0 | D190: 0
A191: 0 | C191: 0 | D191: 0
A192: 0 | C192: 0 | D192: 0
A193: 0 | C193: 0 | D193: 0
A194: 0 | C194: 0 | D194: 0
A195: 0 | C195: 0 | D195: 0
A196: =F196 -> 0 | B196: =IF(F196>100,F196/G196,"") ->  | C196: =I196 -> 0 | D196: =H196 -> 0
A197: 0 | C197: 0 | D197: 0
A198: 0 | C198: 0 | D198: 0
A199: 0 | C199: 0 | D199: 0
A200: 0 | C200: 0 | D200: 0
A201: 0 | C201: 0 | D201: 0
... 9 more rows

Sheet Bowl
A1: Ctrl+Shft+I | C1: Need to resolve macro issue with deleting run out - deletes row 31 instead
A3: Wickets | B3: Average | C3: Economy | D3: Strike Rate | E3: Maidens | F3: Bowler Name | G3: Sum of Bowler Wickets | H3: Sum of Bowler Overs | I3: Sum of Bowler Maidens | J3: Sum of Bowler Runs
A4: =G4 -> 2 | B4: =IF(G4>4,J4/G4,"") ->  | C4: =IF(H4>9,J4/H4,"") -> 2.409090909 | D4: =IF(G4>4,(H4*6)/G4,"") ->  | E4: =I4 -> 8 | F4: A. Bignell | G4: 2 | H4: 22 | I4: 8 | J4: 53
A5: =G5 -> 3 | B5: =IF(G5>4,J5/G5,"") ->  | C5: =IF(H5>9,J5/H5,"") ->  | D5: =IF(G5>4,(H5*6)/G5,"") ->  | E5: =I5 -> 1 | F5: B. Bucknill | G5: 3 | H5: 5 | I5: 1 | J5: 20
A6: 1 | E6: 2 | F6: B. Watson | G6: 1 | H6: 5 | I6: 2 | J6: 24
A7: 4 | C7: 3.666666667 | E7: 2 | F7: C. Beardall | G7: 4 | H7: 12 | I7: 2 | J7: 44
A8: 3 | C8: 4.692307692 | E8: 3 | F8: C. Henry | G8: 3 | H8: 39 | I8: 3 | J8: 183
A9: 0 | C9: 4.7 | E9: 3 | F9: C. Rogers | G9: 0 | H9: 10 | I9: 3 | J9: 47
A10: 2 | E10: 0 | F10: D. Bradman | G10: 2 | H10: 4 | I10: 0 | J10: 8
A11: 2 | E11: 0 | F11: D. Stockings | G11: 2 | H11: 6 | I11: 0 | J11: 52
A12: 3 | C12: 5.875 | E12: 0 | F12: H. De Zulueta | G12: 3 | H12: 16 | I12: 0 | J12: 94
A13: 1 | E13: 0 | F13: J. Crook | G13: 1 | H13: 7 | I13: 0 | J13: 49
A14: 13 | B14: 13.61538462 | C14: 2.85483871 | D14: 28.61538462 | E14: 13 | F14: J. Hancock | G14: 13 | H14: 62 | I14: 13 | J14: 177
A15: 22 | B15: 11.77272727 | C15: 2.564356436 | D15: 27.54545455 | E15: 18 | F15: J. Hunt | G15: 22 | H15: 101 | I15: 18 | J15: 259
A16: 1 | E16: 0 | F16: J. Kleiner-Mann | G16: 1 | H16: 3 | I16: 0 | J16: 6
A17: 10 | B17: 20.6 | C17: 3.678571429 | D17: 33.6 | E17: 4 | F17: J. Leefe | G17: 10 | H17: 56 | I17: 4 | J17: 206
A18: 0 | E18: 0 | F18: J. Reid | G18: 0 | H18: 2 | I18: 0 | J18: 19
A19: 4 | C19: 3.6 | E19: 3 | F19: J. Rogers | G19: 4 | H19: 20 | I19: 3 | J19: 72
A20: 9 | B20: 18.55555556 | C20: 3.711111111 | D20: 30 | E20: 6 | F20: J. Thornton | G20: 9 | H20: 45 | I20: 6 | J20: 167
A21: 1 | C21: 2.3 | E21: 1 | F21: K. Haig | G21: 1 | H21: 10 | I21: 1 | J21: 23
A22: 1 | C22: 5.166666667 | E22: 1 | F22: M. Kemp | G22: 1 | H22: 12 | I22: 1 | J22: 62
A23: 15 | B23: 40.8 | C23: 4.340425532 | D23: 56.4 | E23: 17 | F23: N. Henry | G23: 15 | H23: 141 | I23: 17 | J23: 612
A24: 22 | B24: 11.04545455 | C24: 3.283783784 | D24: 20.18181818 | E24: 9 | F24: N. Runkel | G24: 22 | H24: 74 | I24: 9 | J24: 243
A25: 1 | E25: 0 | F25: O. Brett | G25: 1 | H25: 5 | I25: 0 | J25: 40
A26: 6 | B26: 15.33333333 | C26: 2.787878788 | D26: 33 | E26: 8 | F26: O. Thornton | G26: 6 | H26: 33 | I26: 8 | J26: 92
A27: 3 | C27: 6.25 | E27: 0 | F27: P. Briffett | G27: 3 | H27: 12 | I27: 0 | J27: 75
A28: 3 | C28: 3.32 | E28: 6 | F28: P. Girdler | G28: 3 | H28: 25 | I28: 6 | J28: 83
A29: 0 | E29: 1 | F29: Ra. Dickie | G29: 0 | H29: 7 | I29: 1 | J29: 23
A30: 2 | E30: 0 | F30: Ro. Dickie | G30: 2 | H30: 5 | I30: 0 | J30: 44
F31: Run Out | G31: 6 | H31: 0 | I31: 0 | J31: 0
A32: 8 | B32: 15.875 | C32: 4.233333333 | D32: 22.5 | E32: 4 | F32: S. Beardall | G32: 8 | H32: 30 | I32: 4 | J32: 127
A33: 1 | C33: 3.857142857 | E33: 0 | F33: S. Flakelar | G33: 1 | H33: 14 | I33: 0 | J33: 54
A34: 3 | C34: 4.125 | E34: 2 | F34: S. Halfhead | G34: 3 | H34: 16 | I34: 2 | J34: 66
A35: 1 | E35: 0 | F35: T. Farley | G35: 1 | H35: 4 | I35: 0 | J35: 23
A36: 0 | E36: 0 | F36: T. Greenwood | G36: 0 | H36: 1 | I36: 0 | J36: 5
A37: 15 | B37: 16.13333333 | C37: 2.880952381 | D37: 33.6 | E37: 21 | F37: T. White | G37: 15 | H37: 84 | I37: 21 | J37: 242
A38: 3 | C38: 4.916666667 | E38: 2 | F38: J. Moberly | G38: 3 | H38: 12 | I38: 2 | J38: 59
A39: 0 | E39: 0
A40: 0 | E40: 0
A41: 0 | E41: 0
A42: 0 | E42: 0
A43: 0 | E43: 0
A44: 0 | E44: 0
A45: 0 | E45: 0
A46: 0 | E46: 0
A47: 0 | E47: 0
A48: 0 | E48: 0
A49: 0 | E49: 0
A50: 0 | E50: 0
A51: 0 | E51: 0
A52: 0 | E52: 0
A53: 0 | E53: 0
A54: 0 | E54: 0
A55: 0 | E55: 0
A56: 0 | E56: 0
A57: 0 | E57: 0
A58: 0 | E58: 0
A59: 0 | E59: 0
A60: 0 | E60: 0
A61: 0 | E61: 0
A62: 0 | E62: 0
A63: 0 | E63: 0
A64: 0 | E64: 0
A65: 0 | E65: 0
A66: 0 | E66: 0
A67: 0 | E67: 0
A68: 0 | E68: 0
A69: =G69 -> 0 | B69: =IF(G69>4,J69/G69,"") ->  | C69: =IF(H69>9,J69/H69,"") ->  | D69: =IF(G69>4,(H69*6)/G69,"") ->  | E69: =I69 -> 0
A70: 0 | E70: 0
A71: 0 | E71: 0
A72: 0 | E72: 0
A73: 0 | E73: 0
A74: 0 | E74: 0
A75: 0 | E75: 0
A76: 0 | E76: 0
A77: 0 | E77: 0
A78: 0 | E78: 0
A79: 0 | E79: 0
A80: 0 | E80: 0
A81: 0 | E81: 0
A82: 0 | E82: 0
A83: 0 | E83: 0
A84: 0 | E84: 0
A85: 0 | E85: 0
A86: 0 | E86: 0
A87: 0 | E87: 0
A88: 0 | E88: 0
A89: 0 | E89: 0
A90: 0 | E90: 0
A91: 0 | E91: 0
A92: 0 | E92: 0
A93: 0 | E93: 0
A94: 0 | E94: 0
A95: 0 | E95: 0
A96: 0 | E96: 0
A97: 0 | E97: 0
A98: 0 | E98: 0
A99: 0 | E99: 0
A100: 0 | E100: 0
A101: 0 | E101: 0
A102: 0 | E102: 0
A103: 0 | E103: 0
A104: 0 | E104: 0
A105: 0 | E105: 0
A106: 0 | E106: 0
A107: 0 | E107: 0
A108: 0 | E108: 0
A109: 0 | E109: 0
A110: 0 | E110: 0
A111: 0 | E111: 0
A112: 0 | E112: 0
A113: 0 | E113: 0
A114: 0 | E114: 0
A115: 0 | E115: 0
A116: 0 | E116: 0
A117: 0 | E117: 0
A118: 0 | E118: 0
A119: 0 | E119: 0
A120: 0 | E120: 0
A121: 0 | E121: 0
A122: 0 | E122: 0
A123: 0 | E123: 0
A124: 0 | E124: 0
A125: 0 | E125: 0
A126: 0 | E126: 0
A127: 0 | E127: 0
A128: 0 | E128: 0
A129: 0 | E129: 0
A130: 0 | E130: 0
A131: 0 | E131: 0
A132: 0 | E132: 0
A133: =G133 -> 0 | B133: =IF(G133>4,J133/G133,"") ->  | C133: =IF(H133>9,J133/H133,"") ->  | D133: =IF(G133>4,(H133*6)/G133,"") ->  | E133: =I133 -> 0
A134: 0 | E134: 0
A135: 0 | E135: 0
A136: 0 | E136: 0
A137: 0 | E137: 0
A138: 0 | E138: 0
A139: 0 | E139: 0
A140: 0 | E140: 0
A141: 0 | E141: 0
A142: 0 | E142: 0
A143: 0 | E143: 0
A144: 0 | E144: 0
A145: 0 | E145: 0
A146: 0 | E146: 0
A147: 0 | E147: 0
A148: 0 | E148: 0
A149: 0 | E149: 0
A150: 0 | E150: 0
A151: 0 | E151: 0
A152: 0 | E152: 0
A153: 0 | E153: 0
A154: 0 | E154: 0
A155: 0 | E155: 0
A156: 0 | E156: 0
A157: 0 | E157: 0
A158: 0 | E158: 0
A159: 0 | E159: 0
A160: 0 | E160: 0
A161: 0 | E161: 0
A162: 0 | E162: 0
A163: 0 | E163: 0
A164: 0 | E164: 0
A165: 0 | E165: 0
A166: 0 | E166: 0
A167: 0 | E167: 0
A168: 0 | E168: 0
A169: 0 | E169: 0
A170: 0 | E170: 0
A171: 0 | E171: 0
A172: 0 | E172: 0
A173: 0 | E173: 0
A174: 0 | E174: 0
A175: 0 | E175: 0
A176: 0 | E176: 0
A177: 0 | E177: 0
A178: 0 | E178: 0
A179: 0 | E179: 0
A180: 0 | E180: 0

Sheet Pivots
A1: Ctrl+Shft+W | M1: Ctrl+Shft+E
M3: Row Labels | N3: Count of Opposition
A4: Date | B4: Opposition | C4: Home/Away | D4: Match Status | M4: Win | N4: 12
A5: 2012-04-22 | B5: Penn Street | C5: Away | D5: Cancelled (Rain) | M5: Loss | N5: 4
A6: 2012-04-29 | B6: White Waltham | C6: Home | D6: Cancelled (Rain) | M6: Draw | N6: 7
A7: 2012-05-06 | B7: Brightwell-Cum-Sotwell | C7: Away | D7: Cancelled (Rain) | M7: Cancelled (Turville) | N7: 2
A8: 2012-05-12 | B8: Greys Green (1) | C8: Home | D8: Cancelled (Rain) | M8: Cancelled (Rain) | N8: 7
A9: 2012-05-19 | B9: Crazies Hill | C9: Home | D9: Win | M9: Cancelled (Opposition) | N9: 1
A10: 2012-05-20 | B10: Britwell Salome | C10: Home | D10: Draw | M10: Grand Total | N10: 33
A11: 2012-05-26 | B11: Harpsden (1) | C11: Away | D11: Loss
A12: 2012-05-27 | B12: Checkendon (1) | C12: Home | D12: Win | M12: Home/Away | N12: Home
A13: 2012-06-03 | B13: Cuxham | C13: Home | D13: Cancelled (Rain)
A14: 2012-06-09 | B14: Privateers | C14: Home | D14: Draw | M14: Row Labels | N14: Count of Opposition
A15: 2012-06-16 | B15: Invalids | C15: Home | D15: Draw | M15: Win | N15: 6
A16: 2012-06-17 | B16: Stonor (1) | C16: Away | D16: Win | M16: Loss | N16: 1
A17: 2012-06-24 | B17: Theberton | C17: Home | D17: Win | M17: Draw | N17: 7
A18: 2012-06-30 | B18: Oporto | C18: Tour | D18: Win | M18: Cancelled (Turville) | N18: 1
A19: 2012-07-01 | B19: Oporto (2) | C19: Tour | D19: Win | M19: Cancelled (Rain) | N19: 5
A20: 2012-07-06 | B20: Woodcote | C20: Away | D20: Cancelled (Turville) | M20: Cancelled (Opposition) | N20: 1
A21: 2012-07-08 | B21: Flycatchers | C21: Home | D21: Cancelled (Rain) | M21: Grand Total | N21: 21
A22: 2012-07-15 | B22: Ibstone | C22: Away | D22: Win
A23: 2012-07-21 | B23: Crossbatters | C23: Home | D23: Loss | M23: Home/Away | N23: Away
A24: 2012-07-22 | B24: Warborough | C24: Home | D24: Draw
A25: 2012-07-29 | B25: Ipsden | C25: Home | D25: Win | M25: Row Labels | N25: Count of Opposition
A26: 2012-08-05 | B26: Henley | C26: Away | D26: Win | M26: Win | N26: 4
A27: 2012-08-11 | B27: West Wycombe | C27: Home | D27: Cancelled (Opposition) | M27: Loss | N27: 3
A28: 2012-08-12 | B28: Dorchester | C28: Home | D28: Win | M28: Cancelled (Turville) | N28: 1
A29: 2012-08-19 | B29: Odney | C29: Home | D29: Draw | M29: Cancelled (Rain) | N29: 2
A30: 2012-08-25 | B30: Stonor (2) | C30: Home | D30: Cancelled (Rain) | M30: Grand Total | N30: 10
A31: 2012-09-01 | B31: VPs | C31: Away | D31: Loss
A32: 2012-09-02 | B32: Medmenham | C32: Home | D32: Cancelled (Turville)
A33: 2012-09-08 | B33: Wylde Oats | C33: Home | D33: Draw
A34: 2012-09-09 | B34: Middleton Stoney | C34: Home | D34: Draw | M34: Home/Away | N34: Tour
A35: 2012-09-15 | B35: Harpsden (2) | C35: Home | D35: Win
A36: 2012-09-22 | B36: Checkendon (2) | C36: Away | D36: Loss | M36: Row Labels | N36: Count of Opposition
A37: 2012-09-29 | B37: Greys Green (2) | C37: Away | D37: Win | M37: Win | N37: 2
A38: Grand Total | M38: Grand Total | N38: 2
A42: Ctrl+Shft+R
B46: Values | I46: Values
A47: Batsmen Name | B47: Sum of Batsmen Runs | C47: Sum of Batsmen Out | D47: Sum of 50 | E47: Sum of 100 | H47: Bowler Name | I47: Sum of Bowler Wickets | J47: Sum of Bowler Overs | K47: Sum of Bowler Maidens | L47: Sum of Bowler Runs
A48: A. Bignell | B48: 51 | C48: 1 | D48: 0 | E48: 0 | H48: A. Bignell | I48: 2 | J48: 22 | K48: 8 | L48: 53
A49: B. Bazell | B49: 22 | C49: 2 | D49: 0 | E49: 0 | H49: B. Bucknill | I49: 3 | J49: 5 | K49: 1 | L49: 20
A50: B. Bucknill | B50: 1 | C50: 1 | D50: 0 | E50: 0 | H50: B. Watson | I50: 1 | J50: 5 | K50: 2 | L50: 24
A51: B. Watson | B51: 19 | C51: 1 | D51: 0 | E51: 0 | H51: C. Beardall | I51: 4 | J51: 12 | K51: 2 | L51: 44
A52: C. Beardall | B52: 295 | C52: 9 | D52: 2 | E52: 0 | H52: C. Henry | I52: 3 | J52: 39 | K52: 3 | L52: 183
A53: C. Henry | B53: 10 | C53: 2 | D53: 0 | E53: 0 | H53: C. Rogers | I53: 0 | J53: 10 | K53: 3 | L53: 47
A54: C. Rogers | B54: 12 | C54: 2 | D54: 0 | E54: 0 | H54: D. Bradman | I54: 2 | J54: 4 | K54: 0 | L54: 8
A55: C. Simon | B55: 57 | C55: 5 | D55: 0 | E55: 0 | H55: D. Stockings | I55: 2 | J55: 6 | K55: 0 | L55: 52
A56: C. Wellbelove | B56: 0 | C56: 1 | D56: 0 | E56: 0 | H56: H. De Zulueta | I56: 3 | J56: 16 | K56: 0 | L56: 94
A57: D. Bradman | B57: 1 | C57: 1 | D57: 0 | E57: 0 | H57: J. Crook | I57: 1 | J57: 7 | K57: 0 | L57: 49
A58: D. Mackey | B58: 0 | C58: 1 | D58: 0 | E58: 0 | H58: J. Hancock | I58: 13 | J58: 62 | K58: 13 | L58: 177
A59: D. Stockings | B59: 49 | C59: 2 | D59: 0 | E59: 0 | H59: J. Hunt | I59: 22 | J59: 101 | K59: 18 | L59: 259
A60: H. De Zulueta | B60: 34 | C60: 2 | D60: 0 | E60: 0 | H60: J. Kleiner-Mann | I60: 1 | J60: 3 | K60: 0 | L60: 6
A61: J. Crook | B61: 0 | C61: 1 | D61: 0 | E61: 0 | H61: J. Leefe | I61: 10 | J61: 56 | K61: 4 | L61: 206
A62: J. Hancock | B62: 381 | C62: 6 | D62: 2 | E62: 1 | H62: J. Reid | I62: 0 | J62: 2 | K62: 0 | L62: 19
A63: J. Hunt | B63: 566 | C63: 11 | D63: 5 | E63: 0 | H63: J. Rogers | I63: 4 | J63: 20 | K63: 3 | L63: 72
A64: J. Kleiner-Mann | B64: 1 | C64: 1 | D64: 0 | E64: 0 | H64: J. Thornton | I64: 9 | J64: 45 | K64: 6 | L64: 167
A65: J. Leefe | B65: 51 | C65: 3 | D65: 0 | E65: 0 | H65: K. Haig | I65: 1 | J65: 10 | K65: 1 | L65: 23
A66: J. Reid | B66: 0 | C66: 1 | D66: 0 | E66: 0 | H66: M. Kemp | I66: 1 | J66: 12 | K66: 1 | L66: 62
A67: J. Rogers | B67: 33 | C67: 3 | D67: 0 | E67: 0 | H67: N. Henry | I67: 15 | J67: 141 | K67: 17 | L67: 612
A68: J. Thornton | B68: 123 | C68: 3 | D68: 1 | E68: 0 | H68: N. Runkel | I68: 22 | J68: 74 | K68: 9 | L68: 243
A69: M. Kemp | B69: 5 | C69: 0 | D69: 0 | E69: 0 | H69: O. Brett | I69: 1 | J69: 5 | K69: 0 | L69: 40
A70: N. Henry | B70: 102 | C70: 8 | D70: 0 | E70: 0 | H70: O. Thornton | I70: 6 | J70: 33 | K70: 8 | L70: 92
A71: N. Phillips | B71: 1 | C71: 1 | D71: 0 | E71: 0 | H71: P. Briffett | I71: 3 | J71: 12 | K71: 0 | L71: 75
A72: N. Runkel | B72: 7 | C72: 1 | D72: 0 | E72: 0 | H72: P. Girdler | I72: 3 | J72: 25 | K72: 6 | L72: 83
A73: O. Brett | B73: 3 | C73: 1 | D73: 0 | E73: 0 | H73: Ra. Dickie | I73: 0 | J73: 7 | K73: 1 | L73: 23
A74: O. Thornton | B74: 442 | C74: 8 | D74: 3 | E74: 2 | H74: Ro. Dickie | I74: 2 | J74: 5 | K74: 0 | L74: 44
A75: P. Briffett | B75: 124 | C75: 13 | D75: 1 | E75: 0 | H75: Run Out | I75: 6 | J75: 0 | K75: 0 | L75: 0
A76: P. De Zulueta | B76: 43 | C76: 3 | D76: 0 | E76: 0 | H76: S. Beardall | I76: 8 | J76: 30 | K76: 4 | L76: 127
A77: P. Girdler | B77: 8 | C77: 0 | D77: 0 | E77: 0 | H77: S. Flakelar | I77: 1 | J77: 14 | K77: 0 | L77: 54
A78: P. Sheriff | B78: 12 | C78: 1 | D78: 0 | E78: 0 | H78: S. Halfhead | I78: 3 | J78: 16 | K78: 2 | L78: 66
A79: R. Beardall | B79: 0 | C79: 1 | D79: 0 | E79: 0 | H79: T. Farley | I79: 1 | J79: 4 | K79: 0 | L79: 23
A80: R. Dickie | B80: 6 | C80: 1 | D80: 0 | E80: 0 | H80: T. Greenwood | I80: 0 | J80: 1 | K80: 0 | L80: 5
A81: R. Gunn | B81: 29 | C81: 2 | D81: 0 | E81: 0 | H81: T. White | I81: 15 | J81: 84 | K81: 21 | L81: 242
A82: R. Hunt | B82: 15 | C82: 1 | D82: 0 | E82: 0 | H82: J. Moberly | I82: 3 | J82: 12 | K82: 2 | L82: 59
A83: Ra. Dickie | B83: 4 | C83: 1 | D83: 0 | E83: 0 | H83: Grand Total | I83: 171 | J83: 900 | K83: 135 | L83: 3353
A84: Ro. Dickie | B84: 108 | C84: 10 | D84: 0 | E84: 0
A85: S. Beardall | B85: 507 | C85: 11 | D85: 6 | E85: 0
A86: S. Bucknill | B86: 52 | C86: 2 | D86: 0 | E86: 0
A87: S. Flakelar | B87: 44 | C87: 1 | D87: 0 | E87: 0
A88: S. Halfhead | B88: 75 | C88: 5 | D88: 0 | E88: 0
A89: T. Farley | B89: 10 | C89: 1 | D89: 0 | E89: 0
A90: T. Greenwood | B90: 3 | C90: 1 | D90: 0 | E90: 0
A91: T. Wade | B91: 191 | C91: 10 | D91: 0 | E91: 0
A92: T. White | B92: 20 | C92: 2 | D92: 0 | E92: 0
A93: V. Haig | B93: 11 | C93: 1 | D93: 0 | E93: 0
A94: W. Strickland | B94: 8 | C94: 2 | D94: 0 | E94: 0
A95: J. Moberly | B95: 121 | C95: 12 | D95: 0 | E95: 0
A96: Grand Total | B96: 3657 | C96: 159 | D96: 20 | E96: 3

Sheet Combined Data
A1: Ctrl+q
A4: Date | B4: Opposition | C4: Match Status | D4: Home/Away | E4: Captain | F4: TPCC Batting First | G4: TPCC Team Score | H4: TPCC Team Wickets | I4: Opposition Team Score | J4: Opposition Team Wickets | K4: TPCC Overs Bowled | L4: TPCC Overs Faced | M4: Batting Extras | N4: Bowling Extras | O4: Batsmen Position | P4: Batsmen Name | Q4: Batsmen Runs | R4: Batsmen Out | S4: 50 | T4: 100 | U4: Bowler Position | V4: Bowler Name | W4: Bowler Overs | X4: Bowler Maidens | Y4: Bowler Wickets | Z4: Bowler Runs
A5: 41021 | B5: Penn Street | C5: Cancelled (Rain) | D5: Away | E5: 0 | F5: 0 | G5: 0 | H5: 0 | I5: 0 | J5: 0 | K5: 0 | L5: 0 | M5: 0 | N5: 0 | O5: 1 | P5: 0 | Q5: 0 | R5: 0 | S5: 0 | T5: 0 | U5: 1 | V5: 0 | W5: 0 | X5: 0 | Y5: 0 | Z5: 0
A6: 41021 | B6: Penn Street | C6: Cancelled (Rain) | D6: Away | E6: 0 | F6: 0 | G6: 0 | H6: 0 | I6: 0 | J6: 0 | K6: 0 | L6: 0 | M6: 0 | N6: 0 | O6: 2 | P6: 0 | Q6: 0 | R6: 0 | S6: 0 | T6: 0 | U6: 2 | V6: 0 | W6: 0 | X6: 0 | Y6: 0 | Z6: 0
A7: 41021 | B7: Penn Street | C7: Cancelled (Rain) | D7: Away | E7: 0 | F7: 0 | G7: 0 | H7: 0 | I7: 0 | J7: 0 | K7: 0 | L7: 0 | M7: 0 | N7: 0 | O7: 3 | P7: 0 | Q7: 0 | R7: 0 | S7: 0 | T7: 0 | U7: 3 | V7: 0 | W7: 0 | X7: 0 | Y7: 0 | Z7: 0
A8: 41021 | B8: Penn Street | C8: Cancelled (Rain) | D8: Away | E8: 0 | F8: 0 | G8: 0 | H8: 0 | I8: 0 | J8: 0 | K8: 0 | L8: 0 | M8: 0 | N8: 0 | O8: 4 | P8: 0 | Q8: 0 | R8: 0 | S8: 0 | T8: 0 | U8: 4 | V8: 0 | W8: 0 | X8: 0 | Y8: 0 | Z8: 0
A9: 41021 | B9: Penn Street | C9: Cancelled (Rain) | D9: Away | E9: 0 | F9: 0 | G9: 0 | H9: 0 | I9: 0 | J9: 0 | K9: 0 | L9: 0 | M9: 0 | N9: 0 | O9: 5 | P9: 0 | Q9: 0 | R9: 0 | S9: 0 | T9: 0 | U9: 5 | V9: 0 | W9: 0 | X9: 0 | Y9: 0 | Z9: 0
A10: 41021 | B10: Penn Street | C10: Cancelled (Rain) | D10: Away | E10: 0 | F10: 0 | G10: 0 | H10: 0 | I10: 0 | J10: 0 | K10: 0 | L10: 0 | M10: 0 | N10: 0 | O10: 6 | P10: 0 | Q10: 0 | R10: 0 | S10: 0 | T10: 0 | U10: 6 | V10: 0 | W10: 0 | X10: 0 | Y10: 0 | Z10: 0
A11: 41021 | B11: Penn Street | C11: Cancelled (Rain) | D11: Away | E11: 0 | F11: 0 | G11: 0 | H11: 0 | I11: 0 | J11: 0 | K11: 0 | L11: 0 | M11: 0 | N11: 0 | O11: 7 | P11: 0 | Q11: 0 | R11: 0 | S11: 0 | T11: 0 | U11: 7 | V11: 0 | W11: 0 | X11: 0 | Y11: 0 | Z11: 0
A12: 41021 | B12: Penn Street | C12: Cancelled (Rain) | D12: Away | E12: 0 | F12: 0 | G12: 0 | H12: 0 | I12: 0 | J12: 0 | K12: 0 | L12: 0 | M12: 0 | N12: 0 | O12: 8 | P12: 0 | Q12: 0 | R12: 0 | S12: 0 | T12: 0 | U12: 8 | V12: 0 | W12: 0 | X12: 0 | Y12: 0 | Z12: 0
A13: 41021 | B13: Penn Street | C13: Cancelled (Rain) | D13: Away | E13: 0 | F13: 0 | G13: 0 | H13: 0 | I13: 0 | J13: 0 | K13: 0 | L13: 0 | M13: 0 | N13: 0 | O13: 9 | P13: 0 | Q13: 0 | R13: 0 | S13: 0 | T13: 0 | U13: 9 | V13: 0 | W13: 0 | X13: 0 | Y13: 0 | Z13: 0
A14: 41021 | B14: Penn Street | C14: Cancelled (Rain) | D14: Away | E14: 0 | F14: 0 | G14: 0 | H14: 0 | I14: 0 | J14: 0 | K14: 0 | L14: 0 | M14: 0 | N14: 0 | O14: 10 | P14: 0 | Q14: 0 | R14: 0 | S14: 0 | T14: 0 | U14: 10 | V14: 0 | W14: 0 | X14: 0 | Y14: 0 | Z14: 0
A15: 41021 | B15: Penn Street | C15: Cancelled (Rain) | D15: Away | E15: 0 | F15: 0 | G15: 0 | H15: 0 | I15: 0 | J15: 0 | K15: 0 | L15: 0 | M15: 0 | N15: 0 | O15: 11 | P15: 0 | Q15: 0 | R15: 0 | S15: 0 | T15: 0 | U15: 11 | V15: 0 | W15: 0 | X15: 0 | Y15: 0 | Z15: 0
A16: 41028 | B16: White Waltham | C16: Cancelled (Rain) | D16: Home | E16: 0 | F16: 0 | G16: 0 | H16: 0 | I16: 0 | J16: 0 | K16: 0 | L16: 0 | M16: 0 | N16: 0 | O16: 1 | P16: 0 | Q16: 0 | R16: 0 | S16: 0 | T16: 0 | U16: 1 | V16: 0 | W16: 0 | X16: 0 | Y16: 0 | Z16: 0
A17: 41028 | B17: White Waltham | C17: Cancelled (Rain) | D17: Home | E17: 0 | F17: 0 | G17: 0 | H17: 0 | I17: 0 | J17: 0 | K17: 0 | L17: 0 | M17: 0 | N17: 0 | O17: 2 | P17: 0 | Q17: 0 | R17: 0 | S17: 0 | T17: 0 | U17: 2 | V17: 0 | W17: 0 | X17: 0 | Y17: 0 | Z17: 0
A18: 41028 | B18: White Waltham | C18: Cancelled (Rain) | D18: Home | E18: 0 | F18: 0 | G18: 0 | H18: 0 | I18: 0 | J18: 0 | K18: 0 | L18: 0 | M18: 0 | N18: 0 | O18: 3 | P18: 0 | Q18: 0 | R18: 0 | S18: 0 | T18: 0 | U18: 3 | V18: 0 | W18: 0 | X18: 0 | Y18: 0 | Z18: 0
A19: 41028 | B19: White Waltham | C19: Cancelled (Rain) | D19: Home | E19: 0 | F19: 0 | G19: 0 | H19: 0 | I19: 0 | J19: 0 | K19: 0 | L19: 0 | M19: 0 | N19: 0 | O19: 4 | P19: 0 | Q19: 0 | R19: 0 | S19: 0 | T19: 0 | U19: 4 | V19: 0 | W19: 0 | X19: 0 | Y19: 0 | Z19: 0
A20: 41028 | B20: White Waltham | C20: Cancelled (Rain) | D20: Home | E20: 0 | F20: 0 | G20: 0 | H20: 0 | I20: 0 | J20: 0 | K20: 0 | L20: 0 | M20: 0 | N20: 0 | O20: 5 | P20: 0 | Q20: 0 | R20: 0 | S20: 0 | T20: 0 | U20: 5 | V20: 0 | W20: 0 | X20: 0 | Y20: 0 | Z20: 0
A21: 41028 | B21: White Waltham | C21: Cancelled (Rain) | D21: Home | E21: 0 | F21: 0 | G21: 0 | H21: 0 | I21: 0 | J21: 0 | K21: 0 | L21: 0 | M21: 0 | N21: 0 | O21: 6 | P21: 0 | Q21: 0 | R21: 0 | S21: 0 | T21: 0 | U21: 6 | V21: 0 | W21: 0 | X21: 0 | Y21: 0 | Z21: 0
A22: 41028 | B22: White Waltham | C22: Cancelled (Rain) | D22: Home | E22: 0 | F22: 0 | G22: 0 | H22: 0 | I22: 0 | J22: 0 | K22: 0 | L22: 0 | M22: 0 | N22: 0 | O22: 7 | P22: 0 | Q22: 0 | R22: 0 | S22: 0 | T22: 0 | U22: 7 | V22: 0 | W22: 0 | X22: 0 | Y22: 0 | Z22: 0
A23: 41028 | B23: White Waltham | C23: Cancelled (Rain) | D23: Home | E23: 0 | F23: 0 | G23: 0 | H23: 0 | I23: 0 | J23: 0 | K23: 0 | L23: 0 | M23: 0 | N23: 0 | O23: 8 | P23: 0 | Q23: 0 | R23: 0 | S23: 0 | T23: 0 | U23: 8 | V23: 0 | W23: 0 | X23: 0 | Y23: 0 | Z23: 0
A24: 41028 | B24: White Waltham | C24: Cancelled (Rain) | D24: Home | E24: 0 | F24: 0 | G24: 0 | H24: 0 | I24: 0 | J24: 0 | K24: 0 | L24: 0 | M24: 0 | N24: 0 | O24: 9 | P24: 0 | Q24: 0 | R24: 0 | S24: 0 | T24: 0 | U24: 9 | V24: 0 | W24: 0 | X24: 0 | Y24: 0 | Z24: 0
A25: 41028 | B25: White Waltham | C25: Cancelled (Rain) | D25: Home | E25: 0 | F25: 0 | G25: 0 | H25: 0 | I25: 0 | J25: 0 | K25: 0 | L25: 0 | M25: 0 | N25: 0 | O25: 10 | P25: 0 | Q25: 0 | R25: 0 | S25: 0 | T25: 0 | U25: 10 | V25: 0 | W25: 0 | X25: 0 | Y25: 0 | Z25: 0
A26: 41028 | B26: White Waltham | C26: Cancelled (Rain) | D26: Home | E26: 0 | F26: 0 | G26: 0 | H26: 0 | I26: 0 | J26: 0 | K26: 0 | L26: 0 | M26: 0 | N26: 0 | O26: 11 | P26: 0 | Q26: 0 | R26: 0 | S26: 0 | T26: 0 | U26: 11 | V26: 0 | W26: 0 | X26: 0 | Y26: 0 | Z26: 0
A27: 41035 | B27: Brightwell-Cum-Sotwell | C27: Cancelled (Rain) | D27: Away | E27: 0 | F27: 0 | G27: 0 | H27: 0 | I27: 0 | J27: 0 | K27: 0 | L27: 0 | M27: 0 | N27: 0 | O27: 1 | P27: 0 | Q27: 0 | R27: 0 | S27: 0 | T27: 0 | U27: 1 | V27: 0 | W27: 0 | X27: 0 | Y27: 0 | Z27: 0
A28: 41035 | B28: Brightwell-Cum-Sotwell | C28: Cancelled (Rain) | D28: Away | E28: 0 | F28: 0 | G28: 0 | H28: 0 | I28: 0 | J28: 0 | K28: 0 | L28: 0 | M28: 0 | N28: 0 | O28: 2 | P28: 0 | Q28: 0 | R28: 0 | S28: 0 | T28: 0 | U28: 2 | V28: 0 | W28: 0 | X28: 0 | Y28: 0 | Z28: 0
A29: 41035 | B29: Brightwell-Cum-Sotwell | C29: Cancelled (Rain) | D29: Away | E29: 0 | F29: 0 | G29: 0 | H29: 0 | I29: 0 | J29: 0 | K29: 0 | L29: 0 | M29: 0 | N29: 0 | O29: 3 | P29: 0 | Q29: 0 | R29: 0 | S29: 0 | T29: 0 | U29: 3 | V29: 0 | W29: 0 | X29: 0 | Y29: 0 | Z29: 0
A30: 41035 | B30: Brightwell-Cum-Sotwell | C30: Cancelled (Rain) | D30: Away | E30: 0 | F30: 0 | G30: 0 | H30: 0 | I30: 0 | J30: 0 | K30: 0 | L30: 0 | M30: 0 | N30: 0 | O30: 4 | P30: 0 | Q30: 0 | R30: 0 | S30: 0 | T30: 0 | U30: 4 | V30: 0 | W30: 0 | X30: 0 | Y30: 0 | Z30: 0
A31: 41035 | B31: Brightwell-Cum-Sotwell | C31: Cancelled (Rain) | D31: Away | E31: 0 | F31: 0 | G31: 0 | H31: 0 | I31: 0 | J31: 0 | K31: 0 | L31: 0 | M31: 0 | N31: 0 | O31: 5 | P31: 0 | Q31: 0 | R31: 0 | S31: 0 | T31: 0 | U31: 5 | V31: 0 | W31: 0 | X31: 0 | Y31: 0 | Z31: 0
A32: 41035 | B32: Brightwell-Cum-Sotwell | C32: Cancelled (Rain) | D32: Away | E32: 0 | F32: 0 | G32: 0 | H32: 0 | I32: 0 | J32: 0 | K32: 0 | L32: 0 | M32: 0 | N32: 0 | O32: 6 | P32: 0 | Q32: 0 | R32: 0 | S32: 0 | T32: 0 | U32: 6 | V32: 0 | W32: 0 | X32: 0 | Y32: 0 | Z32: 0
A33: 41035 | B33: Brightwell-Cum-Sotwell | C33: Cancelled (Rain) | D33: Away | E33: 0 | F33: 0 | G33: 0 | H33: 0 | I33: 0 | J33: 0 | K33: 0 | L33: 0 | M33: 0 | N33: 0 | O33: 7 | P33: 0 | Q33: 0 | R33: 0 | S33: 0 | T33: 0 | U33: 7 | V33: 0 | W33: 0 | X33: 0 | Y33: 0 | Z33: 0
A34: 41035 | B34: Brightwell-Cum-Sotwell | C34: Cancelled (Rain) | D34: Away | E34: 0 | F34: 0 | G34: 0 | H34: 0 | I34: 0 | J34: 0 | K34: 0 | L34: 0 | M34: 0 | N34: 0 | O34: 8 | P34: 0 | Q34: 0 | R34: 0 | S34: 0 | T34: 0 | U34: 8 | V34: 0 | W34: 0 | X34: 0 | Y34: 0 | Z34: 0
A35: 41035 | B35: Brightwell-Cum-Sotwell | C35: Cancelled (Rain) | D35: Away | E35: 0 | F35: 0 | G35: 0 | H35: 0 | I35: 0 | J35: 0 | K35: 0 | L35: 0 | M35: 0 | N35: 0 | O35: 9 | P35: 0 | Q35: 0 | R35: 0 | S35: 0 | T35: 0 | U35: 9 | V35: 0 | W35: 0 | X35: 0 | Y35: 0 | Z35: 0
A36: 41035 | B36: Brightwell-Cum-Sotwell | C36: Cancelled (Rain) | D36: Away | E36: 0 | F36: 0 | G36: 0 | H36: 0 | I36: 0 | J36: 0 | K36: 0 | L36: 0 | M36: 0 | N36: 0 | O36: 10 | P36: 0 | Q36: 0 | R36: 0 | S36: 0 | T36: 0 | U36: 10 | V36: 0 | W36: 0 | X36: 0 | Y36: 0 | Z36: 0
A37: 41035 | B37: Brightwell-Cum-Sotwell | C37: Cancelled (Rain) | D37: Away | E37: 0 | F37: 0 | G37: 0 | H37: 0 | I37: 0 | J37: 0 | K37: 0 | L37: 0 | M37: 0 | N37: 0 | O37: 11 | P37: 0 | Q37: 0 | R37: 0 | S37: 0 | T37: 0 | U37: 11 | V37: 0 | W37: 0 | X37: 0 | Y37: 0 | Z37: 0
A38: 41041 | B38: Greys Green (1) | C38: Cancelled (Rain) | D38: Home | E38: 0 | F38: 0 | G38: 0 | H38: 0 | I38: 0 | J38: 0 | K38: 0 | L38: 0 | M38: 0 | N38: 0 | O38: 1 | P38: 0 | Q38: 0 | R38: 0 | S38: 0 | T38: 0 | U38: 1 | V38: 0 | W38: 0 | X38: 0 | Y38: 0 | Z38: 0
A39: 41041 | B39: Greys Green (1) | C39: Cancelled (Rain) | D39: Home | E39: 0 | F39: 0 | G39: 0 | H39: 0 | I39: 0 | J39: 0 | K39: 0 | L39: 0 | M39: 0 | N39: 0 | O39: 2 | P39: 0 | Q39: 0 | R39: 0 | S39: 0 | T39: 0 | U39: 2 | V39: 0 | W39: 0 | X39: 0 | Y39: 0 | Z39: 0
A40: 41041 | B40: Greys Green (1) | C40: Cancelled (Rain) | D40: Home | E40: 0 | F40: 0 | G40: 0 | H40: 0 | I40: 0 | J40: 0 | K40: 0 | L40: 0 | M40: 0 | N40: 0 | O40: 3 | P40: 0 | Q40: 0 | R40: 0 | S40: 0 | T40: 0 | U40: 3 | V40: 0 | W40: 0 | X40: 0 | Y40: 0 | Z40: 0
A41: 41041 | B41: Greys Green (1) | C41: Cancelled (Rain) | D41: Home | E41: 0 | F41: 0 | G41: 0 | H41: 0 | I41: 0 | J41: 0 | K41: 0 | L41: 0 | M41: 0 | N41: 0 | O41: 4 | P41: 0 | Q41: 0 | R41: 0 | S41: 0 | T41: 0 | U41: 4 | V41: 0 | W41: 0 | X41: 0 | Y41: 0 | Z41: 0
A42: 41041 | B42: Greys Green (1) | C42: Cancelled (Rain) | D42: Home | E42: 0 | F42: 0 | G42: 0 | H42: 0 | I42: 0 | J42: 0 | K42: 0 | L42: 0 | M42: 0 | N42: 0 | O42: 5 | P42: 0 | Q42: 0 | R42: 0 | S42: 0 | T42: 0 | U42: 5 | V42: 0 | W42: 0 | X42: 0 | Y42: 0 | Z42: 0
A43: 41041 | B43: Greys Green (1) | C43: Cancelled (Rain) | D43: Home | E43: 0 | F43: 0 | G43: 0 | H43: 0 | I43: 0 | J43: 0 | K43: 0 | L43: 0 | M43: 0 | N43: 0 | O43: 6 | P43: 0 | Q43: 0 | R43: 0 | S43: 0 | T43: 0 | U43: 6 | V43: 0 | W43: 0 | X43: 0 | Y43: 0 | Z43: 0
A44: 41041 | B44: Greys Green (1) | C44: Cancelled (Rain) | D44: Home | E44: 0 | F44: 0 | G44: 0 | H44: 0 | I44: 0 | J44: 0 | K44: 0 | L44: 0 | M44: 0 | N44: 0 | O44: 7 | P44: 0 | Q44: 0 | R44: 0 | S44: 0 | T44: 0 | U44: 7 | V44: 0 | W44: 0 | X44: 0 | Y44: 0 | Z44: 0
A45: 41041 | B45: Greys Green (1) | C45: Cancelled (Rain) | D45: Home | E45: 0 | F45: 0 | G45: 0 | H45: 0 | I45: 0 | J45: 0 | K45: 0 | L45: 0 | M45: 0 | N45: 0 | O45: 8 | P45: 0 | Q45: 0 | R45: 0 | S45: 0 | T45: 0 | U45: 8 | V45: 0 | W45: 0 | X45: 0 | Y45: 0 | Z45: 0
A46: 41041 | B46: Greys Green (1) | C46: Cancelled (Rain) | D46: Home | E46: 0 | F46: 0 | G46: 0 | H46: 0 | I46: 0 | J46: 0 | K46: 0 | L46: 0 | M46: 0 | N46: 0 | O46: 9 | P46: 0 | Q46: 0 | R46: 0 | S46: 0 | T46: 0 | U46: 9 | V46: 0 | W46: 0 | X46: 0 | Y46: 0 | Z46: 0
A47: 41041 | B47: Greys Green (1) | C47: Cancelled (Rain) | D47: Home | E47: 0 | F47: 0 | G47: 0 | H47: 0 | I47: 0 | J47: 0 | K47: 0 | L47: 0 | M47: 0 | N47: 0 | O47: 10 | P47: 0 | Q47: 0 | R47: 0 | S47: 0 | T47: 0 | U47: 10 | V47: 0 | W47: 0 | X47: 0 | Y47: 0 | Z47: 0
A48: 41041 | B48: Greys Green (1) | C48: Cancelled (Rain) | D48: Home | E48: 0 | F48: 0 | G48: 0 | H48: 0 | I48: 0 | J48: 0 | K48: 0 | L48: 0 | M48: 0 | N48: 0 | O48: 11 | P48: 0 | Q48: 0 | R48: 0 | S48: 0 | T48: 0 | U48: 11 | V48: 0 | W48: 0 | X48: 0 | Y48: 0 | Z48: 0
A49: 41048 | B49: Crazies Hill | C49: Win | D49: Home | E49: T. White | F49: Second | G49: 178 | H49: 6 | I49: 177 | J49: 3 | K49: 49 | L49: 36 | M49: 6 | N49: 6 | O49: 1 | P49: C. Simon | Q49: 5 | R49: 1 | S49: 0 | T49: 0 | U49: 1 | V49: N. Henry | W49: 9 | X49: 3 | Y49: 0 | Z49: 19
A50: 41048 | B50: Crazies Hill | C50: Win | D50: Home | E50: T. White | F50: Second | G50: 178 | H50: 6 | I50: 177 | J50: 3 | K50: 49 | L50: 36 | M50: 6 | N50: 6 | O50: 2 | P50: S. Halfhead | Q50: 13 | R50: 1 | S50: 0 | T50: 0 | U50: 2 | V50: T. White | W50: 7 | X50: 2 | Y50: 0 | Z50: 10
A51: 41048 | B51: Crazies Hill | C51: Win | D51: Home | E51: T. White | F51: Second | G51: 178 | H51: 6 | I51: 177 | J51: 3 | K51: 49 | L51: 36 | M51: 6 | N51: 6 | O51: 3 | P51: J. Hunt | Q51: 80 | R51: 0 | S51: 1 | T51: 0 | U51: 3 | V51: J. Hunt | W51: 11 | X51: 2 | Y51: 0 | Z51: 26
A52: 41048 | B52: Crazies Hill | C52: Win | D52: Home | E52: T. White | F52: Second | G52: 178 | H52: 6 | I52: 177 | J52: 3 | K52: 49 | L52: 36 | M52: 6 | N52: 6 | O52: 4 | P52: R. Gunn | Q52: 16 | R52: 1 | S52: 0 | T52: 0 | U52: 4 | V52: M. Kemp | W52: 12 | X52: 1 | Y52: 1 | Z52: 62
A53: 41048 | B53: Crazies Hill | C53: Win | D53: Home | E53: T. White | F53: Second | G53: 178 | H53: 6 | I53: 177 | J53: 3 | K53: 49 | L53: 36 | M53: 6 | N53: 6 | O53: 5 | P53: Ro. Dickie | Q53: 33 | R53: 1 | S53: 0 | T53: 0 | U53: 5 | V53: J. Reid | W53: 2 | X53: 0 | Y53: 0 | Z53: 19
A54: 41048 | B54: Crazies Hill | C54: Win | D54: Home | E54: T. White | F54: Second | G54: 178 | H54: 6 | I54: 177 | J54: 3 | K54: 49 | L54: 36 | M54: 6 | N54: 6 | O54: 6 | P54: J. Reid | Q54: 0 | R54: 1 | S54: 0 | T54: 0 | U54: 6 | V54: S. Halfhead | W54: 6 | X54: 0 | Y54: 1 | Z54: 21
A55: 41048 | B55: Crazies Hill | C55: Win | D55: Home | E55: T. White | F55: Second | G55: 178 | H55: 6 | I55: 177 | J55: 3 | K55: 49 | L55: 36 | M55: 6 | N55: 6 | O55: 7 | P55: N. Henry | Q55: 20 | R55: 1 | S55: 0 | T55: 0 | U55: 7 | V55: Ro. Dickie | W55: 2 | X55: 0 | Y55: 1 | Z55: 14
A56: 41048 | B56: Crazies Hill | C56: Win | D56: Home | E56: T. White | F56: Second | G56: 178 | H56: 6 | I56: 177 | J56: 3 | K56: 49 | L56: 36 | M56: 6 | N56: 6 | O56: 8 | P56: M. Kemp | Q56: 5 | R56: 0 | S56: 0 | T56: 0 | U56: 8 | V56: 0 | W56: 0 | X56: 0 | Y56: 0 | Z56: 0
A57: 41048 | B57: Crazies Hill | C57: Win | D57: Home | E57: T. White | F57: Second | G57: 178 | H57: 6 | I57: 177 | J57: 3 | K57: 49 | L57: 36 | M57: 6 | N57: 6 | O57: 9 | P57: 0 | Q57: 0 | R57: 0 | S57: 0 | T57: 0 | U57: 9 | V57: 0 | W57: 0 | X57: 0 | Y57: 0 | Z57: 0
A58: 41048 | B58: Crazies Hill | C58: Win | D58: Home | E58: T. White | F58: Second | G58: 178 | H58: 6 | I58: 177 | J58: 3 | K58: 49 | L58: 36 | M58: 6 | N58: 6 | O58: 10 | P58: 0 | Q58: 0 | R58: 0 | S58: 0 | T58: 0 | U58: 10 | V58: 0 | W58: 0 | X58: 0 | Y58: 0 | Z58: 0
A59: 41048 | B59: Crazies Hill | C59: Win | D59: Home | E59: T. White | F59: Second | G59: 178 | H59: 6 | I59: 177 | J59: 3 | K59: 49 | L59: 36 | M59: 6 | N59: 6 | O59: 11 | P59: 0 | Q59: 0 | R59: 0 | S59: 0 | T59: 0 | U59: 11 | V59: 0 | W59: 0 | X59: 0 | Y59: 0 | Z59: 0
A60: 41049 | B60: Britwell Salome | C60: Draw | D60: Home | E60: S. Beardall | F60: First | G60: 217 | H60: 3 | I60: 163 | J60: 3 | K60: 39 | L60: 34 | M60: 7 | N60: 1 | O60: 1 | P60: S. Beardall | Q60: 60 | R60: 1 | S60: 1 | T60: 0 | U60: 1 | V60: T. White | W60: 9 | X60: 2 | Y60: 1 | Z60: 22
A61: 41049 | B61: Britwell Salome | C61: Draw | D61: Home | E61: S. Beardall | F61: First | G61: 217 | H61: 3 | I61: 163 | J61: 3 | K61: 39 | L61: 34 | M61: 7 | N61: 1 | O61: 2 | P61: J. Moberly | Q61: 3 | R61: 1 | S61: 0 | T61: 0 | U61: 2 | V61: P. Girdler | W61: 5 | X61: 3 | Y61: 1 | Z61: 3
A62: 41049 | B62: Britwell Salome | C62: Draw | D62: Home | E62: S. Beardall | F62: First | G62: 217 | H62: 3 | I62: 163 | J62: 3 | K62: 39 | L62: 34 | M62: 7 | N62: 1 | O62: 3 | P62: J. Hancock | Q62: 99 | R62: 0 | S62: 1 | T62: 0 | U62: 3 | V62: N. Henry | W62: 7 | X62: 0 | Y62: 0 | Z62: 45
A63: 41049 | B63: Britwell Salome | C63: Draw | D63: Home | E63: S. Beardall | F63: First | G63: 217 | H63: 3 | I63: 163 | J63: 3 | K63: 39 | L63: 34 | M63: 7 | N63: 1 | O63: 4 | P63: D. Stockings | Q63: 41 | R63: 1 | S63: 0 | T63: 0 | U63: 4 | V63: J. Hunt | W63: 6 | X63: 1 | Y63: 0 | Z63: 34
A64: 41049 | B64: Britwell Salome | C64: Draw | D64: Home | E64: S. Beardall | F64: First | G64: 217 | H64: 3 | I64: 163 | J64: 3 | K64: 39 | L64: 34 | M64: 7 | N64: 1 | O64: 5 | P64: P. Girdler | Q64: 7 | R64: 0 | S64: 0 | T64: 0 | U64: 5 | V64: J. Hancock | W64: 4 | X64: 0 | Y64: 1 | Z64: 18
A65: 41049 | B65: Britwell Salome | C65: Draw | D65: Home | E65: S. Beardall | F65: First | G65: 217 | H65: 3 | I65: 163 | J65: 3 | K65: 39 | L65: 34 | M65: 7 | N65: 1 | O65: 6 | P65: 0 | Q65: 0 | R65: 0 | S65: 0 | T65: 0 | U65: 6 | V65: C. Henry | W65: 5 | X65: 0 | Y65: 0 | Z65: 21
A66: 41049 | B66: Britwell Salome | C66: Draw | D66: Home | E66: S. Beardall | F66: First | G66: 217 | H66: 3 | I66: 163 | J66: 3 | K66: 39 | L66: 34 | M66: 7 | N66: 1 | O66: 7 | P66: 0 | Q66: 0 | R66: 0 | S66: 0 | T66: 0 | U66: 7 | V66: D. Stockings | W66: 2 | X66: 0 | Y66: 0 | Z66: 19
A67: 41049 | B67: Britwell Salome | C67: Draw | D67: Home | E67: S. Beardall | F67: First | G67: 217 | H67: 3 | I67: 163 | J67: 3 | K67: 39 | L67: 34 | M67: 7 | N67: 1 | O67: 8 | P67: 0 | Q67: 0 | R67: 0 | S67: 0 | T67: 0 | U67: 8 | V67: J. Moberly | W67: 1 | X67: 1 | Y67: 0 | Z67: 0
A68: 41049 | B68: Britwell Salome | C68: Draw | D68: Home | E68: S. Beardall | F68: First | G68: 217 | H68: 3 | I68: 163 | J68: 3 | K68: 39 | L68: 34 | M68: 7 | N68: 1 | O68: 9 | P68: 0 | Q68: 0 | R68: 0 | S68: 0 | T68: 0 | U68: 9 | V68: 0 | W68: 0 | X68: 0 | Y68: 0 | Z68: 0
A69: 41049 | B69: Britwell Salome | C69: Draw | D69: Home | E69: S. Beardall | F69: First | G69: 217 | H69: 3 | I69: 163 | J69: 3 | K69: 39 | L69: 34 | M69: 7 | N69: 1 | O69: 10 | P69: 0 | Q69: 0 | R69: 0 | S69: 0 | T69: 0 | U69: 10 | V69: 0 | W69: 0 | X69: 0 | Y69: 0 | Z69: 0
A70: 41049 | B70: Britwell Salome | C70: Draw | D70: Home | E70: S. Beardall | F70: First | G70: 217 | H70: 3 | I70: 163 | J70: 3 | K70: 39 | L70: 34 | M70: 7 | N70: 1 | O70: 11 | P70: 0 | Q70: 0 | R70: 0 | S70: 0 | T70: 0 | U70: 11 | V70: 0 | W70: 0 | X70: 0 | Y70: 0 | Z70: 0
A71: 41055 | B71: Harpsden (1) | C71: Loss | D71: Away | E71: J. Hunt | F71: First | G71: 150 | H71: 10 | I71: 151 | J71: 7 | K71: 33 | L71: 38 | M71: 16 | N71: 25 | O71: 1 | P71: C. Simon | Q71: 21 | R71: 1 | S71: 0 | T71: 0 | U71: 1 | V71: N. Henry | W71: 9 | X71: 2 | Y71: 0 | Z71: 36
A72: 41055 | B72: Harpsden (1) | C72: Loss | D72: Away | E72: J. Hunt | F72: First | G72: 150 | H72: 10 | I72: 151 | J72: 7 | K72: 33 | L72: 38 | M72: 16 | N72: 25 | O72: 2 | P72: Ro. Dickie | Q72: 26 | R72: 1 | S72: 0 | T72: 0 | U72: 2 | V72: J. Hunt | W72: 8 | X72: 0 | Y72: 2 | Z72: 27
A73: 41055 | B73: Harpsden (1) | C73: Loss | D73: Away | E73: J. Hunt | F73: First | G73: 150 | H73: 10 | I73: 151 | J73: 7 | K73: 33 | L73: 38 | M73: 16 | N73: 25 | O73: 3 | P73: S. Bucknill | Q73: 5 | R73: 1 | S73: 0 | T73: 0 | U73: 3 | V73: N. Runkel | W73: 6 | X73: 0 | Y73: 3 | Z73: 21
A74: 41055 | B74: Harpsden (1) | C74: Loss | D74: Away | E74: J. Hunt | F74: First | G74: 150 | H74: 10 | I74: 151 | J74: 7 | K74: 33 | L74: 38 | M74: 16 | N74: 25 | O74: 4 | P74: J. Hunt | Q74: 53 | R74: 1 | S74: 1 | T74: 0 | U74: 4 | V74: C. Henry | W74: 7 | X74: 0 | Y74: 2 | Z74: 28
A75: 41055 | B75: Harpsden (1) | C75: Loss | D75: Away | E75: J. Hunt | F75: First | G75: 150 | H75: 10 | I75: 151 | J75: 7 | K75: 33 | L75: 38 | M75: 16 | N75: 25 | O75: 5 | P75: P. Briffett | Q75: 0 | R75: 1 | S75: 0 | T75: 0 | U75: 5 | V75: Ra. Dickie | W75: 2 | X75: 0 | Y75: 0 | Z75: 5
A76: 41055 | B76: Harpsden (1) | C76: Loss | D76: Away | E76: J. Hunt | F76: First | G76: 150 | H76: 10 | I76: 151 | J76: 7 | K76: 33 | L76: 38 | M76: 16 | N76: 25 | O76: 6 | P76: J. Moberly | Q76: 4 | R76: 1 | S76: 0 | T76: 0 | U76: 6 | V76: P. Briffett | W76: 1 | X76: 0 | Y76: 0 | Z76: 9
A77: 41055 | B77: Harpsden (1) | C77: Loss | D77: Away | E77: J. Hunt | F77: First | G77: 150 | H77: 10 | I77: 151 | J77: 7 | K77: 33 | L77: 38 | M77: 16 | N77: 25 | O77: 7 | P77: D. Mackey | Q77: 0 | R77: 1 | S77: 0 | T77: 0 | U77: 7 | V77: 0 | W77: 0 | X77: 0 | Y77: 0 | Z77: 0
A78: 41055 | B78: Harpsden (1) | C78: Loss | D78: Away | E78: J. Hunt | F78: First | G78: 150 | H78: 10 | I78: 151 | J78: 7 | K78: 33 | L78: 38 | M78: 16 | N78: 25 | O78: 8 | P78: N. Runkel | Q78: 7 | R78: 1 | S78: 0 | T78: 0 | U78: 8 | V78: 0 | W78: 0 | X78: 0 | Y78: 0 | Z78: 0
A79: 41055 | B79: Harpsden (1) | C79: Loss | D79: Away | E79: J. Hunt | F79: First | G79: 150 | H79: 10 | I79: 151 | J79: 7 | K79: 33 | L79: 38 | M79: 16 | N79: 25 | O79: 9 | P79: C. Henry | Q79: 5 | R79: 0 | S79: 0 | T79: 0 | U79: 9 | V79: 0 | W79: 0 | X79: 0 | Y79: 0 | Z79: 0
A80: 41055 | B80: Harpsden (1) | C80: Loss | D80: Away | E80: J. Hunt | F80: First | G80: 150 | H80: 10 | I80: 151 | J80: 7 | K80: 33 | L80: 38 | M80: 16 | N80: 25 | O80: 10 | P80: Ra. Dickie | Q80: 4 | R80: 1 | S80: 0 | T80: 0 | U80: 10 | V80: 0 | W80: 0 | X80: 0 | Y80: 0 | Z80: 0
A81: 41055 | B81: Harpsden (1) | C81: Loss | D81: Away | E81: J. Hunt | F81: First | G81: 150 | H81: 10 | I81: 151 | J81: 7 | K81: 33 | L81: 38 | M81: 16 | N81: 25 | O81: 11 | P81: N. Henry | Q81: 9 | R81: 1 | S81: 0 | T81: 0 | U81: 11 | V81: 0 | W81: 0 | X81: 0 | Y81: 0 | Z81: 0
A82: 41056 | B82: Checkendon (1) | C82: Win | D82: Home | E82: J. Hancock | F82: Second | G82: 174 | H82: 8 | I82: 173 | J82: 9 | K82: 45 | L82: 40 | M82: 16 | N82: 7 | O82: 1 | P82: O. Brett | Q82: 3 | R82: 1 | S82: 0 | T82: 0 | U82: 1 | V82: N. Henry | W82: 18 | X82: 6 | Y82: 3 | Z82: 52
A83: 41056 | B83: Checkendon (1) | C83: Win | D83: Home | E83: J. Hancock | F83: Second | G83: 174 | H83: 8 | I83: 173 | J83: 9 | K83: 45 | L83: 40 | M83: 16 | N83: 7 | O83: 2 | P83: T. Wade | Q83: 0 | R83: 1 | S83: 0 | T83: 0 | U83: 2 | V83: H. De Zulueta | W83: 5 | X83: 0 | Y83: 2 | Z83: 29
A84: 41056 | B84: Checkendon (1) | C84: Win | D84: Home | E84: J. Hancock | F84: Second | G84: 174 | H84: 8 | I84: 173 | J84: 9 | K84: 45 | L84: 40 | M84: 16 | N84: 7 | O84: 3 | P84: R. Gunn | Q84: 13 | R84: 1 | S84: 0 | T84: 0 | U84: 3 | V84: J. Kleiner-Mann | W84: 3 | X84: 0 | Y84: 1 | Z84: 6
A85: 41056 | B85: Checkendon (1) | C85: Win | D85: Home | E85: J. Hancock | F85: Second | G85: 174 | H85: 8 | I85: 173 | J85: 9 | K85: 45 | L85: 40 | M85: 16 | N85: 7 | O85: 4 | P85: J. Kleiner-Mann | Q85: 1 | R85: 1 | S85: 0 | T85: 0 | U85: 4 | V85: C. Henry | W85: 7 | X85: 0 | Y85: 0 | Z85: 25
A86: 41056 | B86: Checkendon (1) | C86: Win | D86: Home | E86: J. Hancock | F86: Second | G86: 174 | H86: 8 | I86: 173 | J86: 9 | K86: 45 | L86: 40 | M86: 16 | N86: 7 | O86: 5 | P86: J. Hancock | Q86: 101 | R86: 0 | S86: 0 | T86: 1 | U86: 5 | V86: J. Leefe | W86: 6 | X86: 0 | Y86: 1 | Z86: 14
A87: 41056 | B87: Checkendon (1) | C87: Win | D87: Home | E87: J. Hancock | F87: Second | G87: 174 | H87: 8 | I87: 173 | J87: 9 | K87: 45 | L87: 40 | M87: 16 | N87: 7 | O87: 6 | P87: J. Leefe | Q87: 13 | R87: 1 | S87: 0 | T87: 0 | U87: 6 | V87: O. Brett | W87: 3 | X87: 0 | Y87: 1 | Z87: 31
A88: 41056 | B88: Checkendon (1) | C88: Win | D88: Home | E88: J. Hancock | F88: Second | G88: 174 | H88: 8 | I88: 173 | J88: 9 | K88: 45 | L88: 40 | M88: 16 | N88: 7 | O88: 7 | P88: J. Moberly | Q88: 14 | R88: 1 | S88: 0 | T88: 0 | U88: 7 | V88: J. Moberly | W88: 3 | X88: 0 | Y88: 1 | Z88: 9
A89: 41056 | B89: Checkendon (1) | C89: Win | D89: Home | E89: J. Hancock | F89: Second | G89: 174 | H89: 8 | I89: 173 | J89: 9 | K89: 45 | L89: 40 | M89: 16 | N89: 7 | O89: 8 | P89: H. De Zulueta | Q89: 6 | R89: 1 | S89: 0 | T89: 0 | U89: 8 | V89: 0 | W89: 0 | X89: 0 | Y89: 0 | Z89: 0
A90: 41056 | B90: Checkendon (1) | C90: Win | D90: Home | E90: J. Hancock | F90: Second | G90: 174 | H90: 8 | I90: 173 | J90: 9 | K90: 45 | L90: 40 | M90: 16 | N90: 7 | O90: 9 | P90: C. Henry | Q90: 2 | R90: 1 | S90: 0 | T90: 0 | U90: 9 | V90: 0 | W90: 0 | X90: 0 | Y90: 0 | Z90: 0
A91: 41056 | B91: Checkendon (1) | C91: Win | D91: Home | E91: J. Hancock | F91: Second | G91: 174 | H91: 8 | I91: 173 | J91: 9 | K91: 45 | L91: 40 | M91: 16 | N91: 7 | O91: 10 | P91: N. Henry | Q91: 5 | R91: 0 | S91: 0 | T91: 0 | U91: 10 | V91: 0 | W91: 0 | X91: 0 | Y91: 0 | Z91: 0
A92: 41056 | B92: Checkendon (1) | C92: Win | D92: Home | E92: J. Hancock | F92: Second | G92: 174 | H92: 8 | I92: 173 | J92: 9 | K92: 45 | L92: 40 | M92: 16 | N92: 7 | O92: 11 | P92: 0 | Q92: 0 | R92: 0 | S92: 0 | T92: 0 | U92: 11 | V92: 0 | W92: 0 | X92: 0 | Y92: 0 | Z92: 0
A93: 41063 | B93: Cuxham | C93: Cancelled (Rain) | D93: Home | E93: 0 | F93: 0 | G93: 0 | H93: 0 | I93: 0 | J93: 0 | K93: 0 | L93: 0 | M93: 0 | N93: 0 | O93: 1 | P93: 0 | Q93: 0 | R93: 0 | S93: 0 | T93: 0 | U93: 1 | V93: 0 | W93: 0 | X93: 0 | Y93: 0 | Z93: 0
A94: 41063 | B94: Cuxham | C94: Cancelled (Rain) | D94: Home | E94: 0 | F94: 0 | G94: 0 | H94: 0 | I94: 0 | J94: 0 | K94: 0 | L94: 0 | M94: 0 | N94: 0 | O94: 2 | P94: 0 | Q94: 0 | R94: 0 | S94: 0 | T94: 0 | U94: 2 | V94: 0 | W94: 0 | X94: 0 | Y94: 0 | Z94: 0
A95: 41063 | B95: Cuxham | C95: Cancelled (Rain) | D95: Home | E95: 0 | F95: 0 | G95: 0 | H95: 0 | I95: 0 | J95: 0 | K95: 0 | L95: 0 | M95: 0 | N95: 0 | O95: 3 | P95: 0 | Q95: 0 | R95: 0 | S95: 0 | T95: 0 | U95: 3 | V95: 0 | W95: 0 | X95: 0 | Y95: 0 | Z95: 0
A96: 41063 | B96: Cuxham | C96: Cancelled (Rain) | D96: Home | E96: 0 | F96: 0 | G96: 0 | H96: 0 | I96: 0 | J96: 0 | K96: 0 | L96: 0 | M96: 0 | N96: 0 | O96: 4 | P96: 0 | Q96: 0 | R96: 0 | S96: 0 | T96: 0 | U96: 4 | V96: 0 | W96: 0 | X96: 0 | Y96: 0 | Z96: 0
A97: 41063 | B97: Cuxham | C97: Cancelled (Rain) | D97: Home | E97: 0 | F97: 0 | G97: 0 | H97: 0 | I97: 0 | J97: 0 | K97: 0 | L97: 0 | M97: 0 | N97: 0 | O97: 5 | P97: 0 | Q97: 0 | R97: 0 | S97: 0 | T97: 0 | U97: 5 | V97: 0 | W97: 0 | X97: 0 | Y97: 0 | Z97: 0
A98: 41063 | B98: Cuxham | C98: Cancelled (Rain) | D98: Home | E98: 0 | F98: 0 | G98: 0 | H98: 0 | I98: 0 | J98: 0 | K98: 0 | L98: 0 | M98: 0 | N98: 0 | O98: 6 | P98: 0 | Q98: 0 | R98: 0 | S98: 0 | T98: 0 | U98: 6 | V98: 0 | W98: 0 | X98: 0 | Y98: 0 | Z98: 0
A99: 41063 | B99: Cuxham | C99: Cancelled (Rain) | D99: Home | E99: 0 | F99: 0 | G99: 0 | H99: 0 | I99: 0 | J99: 0 | K99: 0 | L99: 0 | M99: 0 | N99: 0 | O99: 7 | P99: 0 | Q99: 0 | R99: 0 | S99: 0 | T99: 0 | U99: 7 | V99: 0 | W99: 0 | X99: 0 | Y99: 0 | Z99: 0
A100: 41063 | B100: Cuxham | C100: Cancelled (Rain) | D100: Home | E100: 0 | F100: 0 | G100: 0 | H100: 0 | I100: 0 | J100: 0 | K100: 0 | L100: 0 | M100: 0 | N100: 0 | O100: 8 | P100: 0 | Q100: 0 | R100: 0 | S100: 0 | T100: 0 | U100: 8 | V100: 0 | W100: 0 | X100: 0 | Y100: 0 | Z100: 0
A101: 41063 | B101: Cuxham | C101: Cancelled (Rain) | D101: Home | E101: 0 | F101: 0 | G101: 0 | H101: 0 | I101: 0 | J101: 0 | K101: 0 | L101: 0 | M101: 0 | N101: 0 | O101: 9 | P101: 0 | Q101: 0 | R101: 0 | S101: 0 | T101: 0 | U101: 9 | V101: 0 | W101: 0 | X101: 0 | Y101: 0 | Z101: 0
A102: 41063 | B102: Cuxham | C102: Cancelled (Rain) | D102: Home | E102: 0 | F102: 0 | G102: 0 | H102: 0 | I102: 0 | J102: 0 | K102: 0 | L102: 0 | M102: 0 | N102: 0 | O102: 10 | P102: 0 | Q102: 0 | R102: 0 | S102: 0 | T102: 0 | U102: 10 | V102: 0 | W102: 0 | X102: 0 | Y102: 0 | Z102: 0
A103: 41063 | B103: Cuxham | C103: Cancelled (Rain) | D103: Home | E103: 0 | F103: 0 | G103: 0 | H103: 0 | I103: 0 | J103: 0 | K103: 0 | L103: 0 | M103: 0 | N103: 0 | O103: 11 | P103: 0 | Q103: 0 | R103: 0 | S103: 0 | T103: 0 | U103: 11 | V103: 0 | W103: 0 | X103: 0 | Y103: 0 | Z103: 0
A104: 41069 | B104: Privateers | C104: Draw | D104: Home | E104: J. Hunt | F104: Second | G104: 113 | H104: 8 | I104: 163 | J104: 7 | K104: 49 | L104: 41 | M104: 8 | N104: 9 | O104: 1 | P104: Ro. Dickie | Q104: 2 | R104: 1 | S104: 0 | T104: 0 | U104: 1 | V104: N. Henry | W104: 8 | X104: 2 | Y104: 1 | Z104: 27
A105: 41069 | B105: Privateers | C105: Draw | D105: Home | E105: J. Hunt | F105: Second | G105: 113 | H105: 8 | I105: 163 | J105: 7 | K105: 49 | L105: 41 | M105: 8 | N105: 9 | O105: 2 | P105: J. Moberly | Q105: 9 | R105: 1 | S105: 0 | T105: 0 | U105: 2 | V105: J. Hunt | W105: 6 | X105: 4 | Y105: 1 | Z105: 6
A106: 41069 | B106: Privateers | C106: Draw | D106: Home | E106: J. Hunt | F106: Second | G106: 113 | H106: 8 | I106: 163 | J106: 7 | K106: 49 | L106: 41 | M106: 8 | N106: 9 | O106: 3 | P106: J. Hancock | Q106: 11 | R106: 1 | S106: 0 | T106: 0 | U106: 3 | V106: O. Thornton | W106: 7 | X106: 0 | Y106: 1 | Z106: 24
A107: 41069 | B107: Privateers | C107: Draw | D107: Home | E107: J. Hunt | F107: Second | G107: 113 | H107: 8 | I107: 163 | J107: 7 | K107: 49 | L107: 41 | M107: 8 | N107: 9 | O107: 4 | P107: O. Thornton | Q107: 5 | R107: 1 | S107: 0 | T107: 0 | U107: 4 | V107: N. Runkel | W107: 12 | X107: 2 | Y107: 2 | Z107: 40
A108: 41069 | B108: Privateers | C108: Draw | D108: Home | E108: J. Hunt | F108: Second | G108: 113 | H108: 8 | I108: 163 | J108: 7 | K108: 49 | L108: 41 | M108: 8 | N108: 9 | O108: 5 | P108: P. Briffett | Q108: 2 | R108: 1 | S108: 0 | T108: 0 | U108: 5 | V108: J. Thornton | W108: 7 | X108: 2 | Y108: 1 | Z108: 18
A109: 41069 | B109: Privateers | C109: Draw | D109: Home | E109: J. Hunt | F109: Second | G109: 113 | H109: 8 | I109: 163 | J109: 7 | K109: 49 | L109: 41 | M109: 8 | N109: 9 | O109: 6 | P109: J. Hunt | Q109: 32 | R109: 1 | S109: 0 | T109: 0 | U109: 6 | V109: C. Henry | W109: 5 | X109: 0 | Y109: 0 | Z109: 20
A110: 41069 | B110: Privateers | C110: Draw | D110: Home | E110: J. Hunt | F110: Second | G110: 113 | H110: 8 | I110: 163 | J110: 7 | K110: 49 | L110: 41 | M110: 8 | N110: 9 | O110: 7 | P110: J. Thornton | Q110: 2 | R110: 1 | S110: 0 | T110: 0 | U110: 7 | V110: J. Hancock | W110: 4 | X110: 1 | Y110: 1 | Z110: 19
A111: 41069 | B111: Privateers | C111: Draw | D111: Home | E111: J. Hunt | F111: Second | G111: 113 | H111: 8 | I111: 163 | J111: 7 | K111: 49 | L111: 41 | M111: 8 | N111: 9 | O111: 8 | P111: N. Henry | Q111: 40 | R111: 1 | S111: 0 | T111: 0 | U111: 8 | V111: 0 | W111: 0 | X111: 0 | Y111: 0 | Z111: 0
A112: 41069 | B112: Privateers | C112: Draw | D112: Home | E112: J. Hunt | F112: Second | G112: 113 | H112: 8 | I112: 163 | J112: 7 | K112: 49 | L112: 41 | M112: 8 | N112: 9 | O112: 9 | P112: N. Runkel | Q112: 0 | R112: 0 | S112: 0 | T112: 0 | U112: 9 | V112: 0 | W112: 0 | X112: 0 | Y112: 0 | Z112: 0
A113: 41069 | B113: Privateers | C113: Draw | D113: Home | E113: J. Hunt | F113: Second | G113: 113 | H113: 8 | I113: 163 | J113: 7 | K113: 49 | L113: 41 | M113: 8 | N113: 9 | O113: 10 | P113: C. Henry | Q113: 2 | R113: 0 | S113: 0 | T113: 0 | U113: 10 | V113: 0 | W113: 0 | X113: 0 | Y113: 0 | Z113: 0
A114: 41069 | B114: Privateers | C114: Draw | D114: Home | E114: J. Hunt | F114: Second | G114: 113 | H114: 8 | I114: 163 | J114: 7 | K114: 49 | L114: 41 | M114: 8 | N114: 9 | O114: 11 | P114: 0 | Q114: 0 | R114: 0 | S114: 0 | T114: 0 | U114: 11 | V114: 0 | W114: 0 | X114: 0 | Y114: 0 | Z114: 0
A115: 41076 | B115: Invalids | C115: Draw | D115: Home | E115: S. Beardall | F115: Second | G115: 130 | H115: 6 | I115: 130 | J115: 7 | K115: 44 | L115: 30 | M115: 8 | N115: 11 | O115: 1 | P115: S. Beardall | Q115: 42 | R115: 1 | S115: 0 | T115: 0 | U115: 1 | V115: J. Leefe | W115: 6 | X115: 0 | Y115: 0 | Z115: 25
A116: 41076 | B116: Invalids | C116: Draw | D116: Home | E116: S. Beardall | F116: Second | G116: 130 | H116: 6 | I116: 130 | J116: 7 | K116: 44 | L116: 30 | M116: 8 | N116: 11 | O116: 2 | P116: P. Briffett | Q116: 6 | R116: 1 | S116: 0 | T116: 0 | U116: 2 | V116: J. Hunt | W116: 4 | X116: 1 | Y116: 1 | Z116: 5
A117: 41076 | B117: Invalids | C117: Draw | D117: Home | E117: S. Beardall | F117: Second | G117: 130 | H117: 6 | I117: 130 | J117: 7 | K117: 44 | L117: 30 | M117: 8 | N117: 11 | O117: 3 | P117: T. Wade | Q117: 18 | R117: 1 | S117: 0 | T117: 0 | U117: 3 | V117: N. Henry | W117: 8 | X117: 0 | Y117: 0 | Z117: 30
A118: 41076 | B118: Invalids | C118: Draw | D118: Home | E118: S. Beardall | F118: Second | G118: 130 | H118: 6 | I118: 130 | J118: 7 | K118: 44 | L118: 30 | M118: 8 | N118: 11 | O118: 4 | P118: W. Strickland | Q118: 8 | R118: 1 | S118: 0 | T118: 0 | U118: 4 | V118: J. Hancock | W118: 9 | X118: 2 | Y118: 1 | Z118: 8
A119: 41076 | B119: Invalids | C119: Draw | D119: Home | E119: S. Beardall | F119: Second | G119: 130 | H119: 6 | I119: 130 | J119: 7 | K119: 44 | L119: 30 | M119: 8 | N119: 11 | O119: 5 | P119: J. Hunt | Q119: 13 | R119: 1 | S119: 0 | T119: 0 | U119: 5 | V119: N. Runkel | W119: 9 | X119: 1 | Y119: 2 | Z119: 18
A120: 41076 | B120: Invalids | C120: Draw | D120: Home | E120: S. Beardall | F120: Second | G120: 130 | H120: 6 | I120: 130 | J120: 7 | K120: 44 | L120: 30 | M120: 8 | N120: 11 | O120: 6 | P120: C. Simon | Q120: 7 | R120: 1 | S120: 0 | T120: 0 | U120: 6 | V120: S. Halfhead | W120: 8 | X120: 1 | Y120: 2 | Z120: 33
A121: 41076 | B121: Invalids | C121: Draw | D121: Home | E121: S. Beardall | F121: Second | G121: 130 | H121: 6 | I121: 130 | J121: 7 | K121: 44 | L121: 30 | M121: 8 | N121: 11 | O121: 7 | P121: J. Hancock | Q121: 21 | R121: 0 | S121: 0 | T121: 0 | U121: 7 | V121: Run Out | W121: 0 | X121: 0 | Y121: 1 | Z121: 0
A122: 41076 | B122: Invalids | C122: Draw | D122: Home | E122: S. Beardall | F122: Second | G122: 130 | H122: 6 | I122: 130 | J122: 7 | K122: 44 | L122: 30 | M122: 8 | N122: 11 | O122: 8 | P122: J. Leefe | Q122: 7 | R122: 0 | S122: 0 | T122: 0 | U122: 8 | V122: 0 | W122: 0 | X122: 0 | Y122: 0 | Z122: 0
A123: 41076 | B123: Invalids | C123: Draw | D123: Home | E123: S. Beardall | F123: Second | G123: 130 | H123: 6 | I123: 130 | J123: 7 | K123: 44 | L123: 30 | M123: 8 | N123: 11 | O123: 9 | P123: 0 | Q123: 0 | R123: 0 | S123: 0 | T123: 0 | U123: 9 | V123: 0 | W123: 0 | X123: 0 | Y123: 0 | Z123: 0
A124: 41076 | B124: Invalids | C124: Draw | D124: Home | E124: S. Beardall | F124: Second | G124: 130 | H124: 6 | I124: 130 | J124: 7 | K124: 44 | L124: 30 | M124: 8 | N124: 11 | O124: 10 | P124: 0 | Q124: 0 | R124: 0 | S124: 0 | T124: 0 | U124: 10 | V124: 0 | W124: 0 | X124: 0 | Y124: 0 | Z124: 0
A125: 41076 | B125: Invalids | C125: Draw | D125: Home | E125: S. Beardall | F125: Second | G125: 130 | H125: 6 | I125: 130 | J125: 7 | K125: 44 | L125: 30 | M125: 8 | N125: 11 | O125: 11 | P125: 0 | Q125: 0 | R125: 0 | S125: 0 | T125: 0 | U125: 11 | V125: 0 | W125: 0 | X125: 0 | Y125: 0 | Z125: 0
A126: 41077 | B126: Stonor (1) | C126: Win | D126: Away | E126: S. Beardall | F126: Second | G126: 130 | H126: 4 | I126: 129 | J126: 10 | K126: 37 | L126: 25 | M126: 12 | N126: 3 | O126: 1 | P126: R. Dickie | Q126: 6 | R126: 1 | S126: 0 | T126: 0 | U126: 1 | V126: T. White | W126: 5 | X126: 0 | Y126: 0 | Z126: 19
A127: 41077 | B127: Stonor (1) | C127: Win | D127: Away | E127: S. Beardall | F127: Second | G127: 130 | H127: 4 | I127: 129 | J127: 10 | K127: 37 | L127: 25 | M127: 12 | N127: 3 | O127: 2 | P127: J. Moberly | Q127: 5 | R127: 1 | S127: 0 | T127: 0 | U127: 2 | V127: J. Hunt | W127: 10 | X127: 2 | Y127: 2 | Z127: 29
A128: 41077 | B128: Stonor (1) | C128: Win | D128: Away | E128: S. Beardall | F128: Second | G128: 130 | H128: 4 | I128: 129 | J128: 10 | K128: 37 | L128: 25 | M128: 12 | N128: 3 | O128: 3 | P128: T. Wade | Q128: 5 | R128: 1 | S128: 0 | T128: 0 | U128: 3 | V128: J. Hancock | W128: 12 | X128: 2 | Y128: 5 | Z128: 35
A129: 41077 | B129: Stonor (1) | C129: Win | D129: Away | E129: S. Beardall | F129: Second | G129: 130 | H129: 4 | I129: 129 | J129: 10 | K129: 37 | L129: 25 | M129: 12 | N129: 3 | O129: 4 | P129: J. Hunt | Q129: 45 | R129: 0 | S129: 0 | T129: 0 | U129: 4 | V129: N. Henry | W129: 7 | X129: 0 | Y129: 1 | Z129: 28
A130: 41077 | B130: Stonor (1) | C130: Win | D130: Away | E130: S. Beardall | F130: Second | G130: 130 | H130: 4 | I130: 129 | J130: 10 | K130: 37 | L130: 25 | M130: 12 | N130: 3 | O130: 5 | P130: P. Briffett | Q130: 15 | R130: 1 | S130: 0 | T130: 0 | U130: 5 | V130: D. Stockings | W130: 3 | X130: 0 | Y130: 2 | Z130: 15
A131: 41077 | B131: Stonor (1) | C131: Win | D131: Away | E131: S. Beardall | F131: Second | G131: 130 | H131: 4 | I131: 129 | J131: 10 | K131: 37 | L131: 25 | M131: 12 | N131: 3 | O131: 6 | P131: J. Hancock | Q131: 42 | R131: 0 | S131: 0 | T131: 0 | U131: 6 | V131: 0 | W131: 0 | X131: 0 | Y131: 0 | Z131: 0
A132: 41077 | B132: Stonor (1) | C132: Win | D132: Away | E132: S. Beardall | F132: Second | G132: 130 | H132: 4 | I132: 129 | J132: 10 | K132: 37 | L132: 25 | M132: 12 | N132: 3 | O132: 7 | P132: 0 | Q132: 0 | R132: 0 | S132: 0 | T132: 0 | U132: 7 | V132: 0 | W132: 0 | X132: 0 | Y132: 0 | Z132: 0
A133: 41077 | B133: Stonor (1) | C133: Win | D133: Away | E133: S. Beardall | F133: Second | G133: 130 | H133: 4 | I133: 129 | J133: 10 | K133: 37 | L133: 25 | M133: 12 | N133: 3 | O133: 8 | P133: 0 | Q133: 0 | R133: 0 | S133: 0 | T133: 0 | U133: 8 | V133: 0 | W133: 0 | X133: 0 | Y133: 0 | Z133: 0
A134: 41077 | B134: Stonor (1) | C134: Win | D134: Away | E134: S. Beardall | F134: Second | G134: 130 | H134: 4 | I134: 129 | J134: 10 | K134: 37 | L134: 25 | M134: 12 | N134: 3 | O134: 9 | P134: 0 | Q134: 0 | R134: 0 | S134: 0 | T134: 0 | U134: 9 | V134: 0 | W134: 0 | X134: 0 | Y134: 0 | Z134: 0
A135: 41077 | B135: Stonor (1) | C135: Win | D135: Away | E135: S. Beardall | F135: Second | G135: 130 | H135: 4 | I135: 129 | J135: 10 | K135: 37 | L135: 25 | M135: 12 | N135: 3 | O135: 10 | P135: 0 | Q135: 0 | R135: 0 | S135: 0 | T135: 0 | U135: 10 | V135: 0 | W135: 0 | X135: 0 | Y135: 0 | Z135: 0
A136: 41077 | B136: Stonor (1) | C136: Win | D136: Away | E136: S. Beardall | F136: Second | G136: 130 | H136: 4 | I136: 129 | J136: 10 | K136: 37 | L136: 25 | M136: 12 | N136: 3 | O136: 11 | P136: 0 | Q136: 0 | R136: 0 | S136: 0 | T136: 0 | U136: 11 | V136: 0 | W136: 0 | X136: 0 | Y136: 0 | Z136: 0
A137: 41084 | B137: Theberton | C137: Win | D137: Home | E137: S. Beardall | F137: First | G137: 191 | H137: 8 | I137: 126 | J137: 10 | K137: 21 | L137: 35 | M137: 5 | N137: 2 | O137: 1 | P137: S. Beardall | Q137: 8 | R137: 1 | S137: 0 | T137: 0 | U137: 1 | V137: J. Leefe | W137: 7 | X137: 0 | Y137: 3 | Z137: 25
A138: 41084 | B138: Theberton | C138: Win | D138: Home | E138: S. Beardall | F138: First | G138: 191 | H138: 8 | I138: 126 | J138: 10 | K138: 21 | L138: 35 | M138: 5 | N138: 2 | O138: 2 | P138: O. Thornton | Q138: 100 | R138: 1 | S138: 0 | T138: 1 | U138: 2 | V138: J. Thornton | W138: 7 | X138: 0 | Y138: 3 | Z138: 34
A139: 41084 | B139: Theberton | C139: Win | D139: Home | E139: S. Beardall | F139: First | G139: 191 | H139: 8 | I139: 126 | J139: 10 | K139: 21 | L139: 35 | M139: 5 | N139: 2 | O139: 3 | P139: P. Briffett | Q139: 5 | R139: 1 | S139: 0 | T139: 0 | U139: 3 | V139: N. Runkel | W139: 4 | X139: 0 | Y139: 3 | Z139: 27
A140: 41084 | B140: Theberton | C140: Win | D140: Home | E140: S. Beardall | F140: First | G140: 191 | H140: 8 | I140: 126 | J140: 10 | K140: 21 | L140: 35 | M140: 5 | N140: 2 | O140: 4 | P140: C. Beardall | Q140: 0 | R140: 1 | S140: 0 | T140: 0 | U140: 4 | V140: N. Henry | W140: 3 | X140: 0 | Y140: 1 | Z140: 38
A141: 41084 | B141: Theberton | C141: Win | D141: Home | E141: S. Beardall | F141: First | G141: 191 | H141: 8 | I141: 126 | J141: 10 | K141: 21 | L141: 35 | M141: 5 | N141: 2 | O141: 5 | P141: T. Wade | Q141: 49 | R141: 1 | S141: 0 | T141: 0 | U141: 5 | V141: 0 | W141: 0 | X141: 0 | Y141: 0 | Z141: 0
A142: 41084 | B142: Theberton | C142: Win | D142: Home | E142: S. Beardall | F142: First | G142: 191 | H142: 8 | I142: 126 | J142: 10 | K142: 21 | L142: 35 | M142: 5 | N142: 2 | O142: 6 | P142: S. Halfhead | Q142: 0 | R142: 1 | S142: 0 | T142: 0 | U142: 6 | V142: 0 | W142: 0 | X142: 0 | Y142: 0 | Z142: 0
A143: 41084 | B143: Theberton | C143: Win | D143: Home | E143: S. Beardall | F143: First | G143: 191 | H143: 8 | I143: 126 | J143: 10 | K143: 21 | L143: 35 | M143: 5 | N143: 2 | O143: 7 | P143: C. Simon | Q143: 7 | R143: 1 | S143: 0 | T143: 0 | U143: 7 | V143: 0 | W143: 0 | X143: 0 | Y143: 0 | Z143: 0
A144: 41084 | B144: Theberton | C144: Win | D144: Home | E144: S. Beardall | F144: First | G144: 191 | H144: 8 | I144: 126 | J144: 10 | K144: 21 | L144: 35 | M144: 5 | N144: 2 | O144: 8 | P144: J. Thornton | Q144: 10 | R144: 0 | S144: 0 | T144: 0 | U144: 8 | V144: 0 | W144: 0 | X144: 0 | Y144: 0 | Z144: 0
A145: 41084 | B145: Theberton | C145: Win | D145: Home | E145: S. Beardall | F145: First | G145: 191 | H145: 8 | I145: 126 | J145: 10 | K145: 21 | L145: 35 | M145: 5 | N145: 2 | O145: 9 | P145: N. Henry | Q145: 5 | R145: 1 | S145: 0 | T145: 0 | U145: 9 | V145: 0 | W145: 0 | X145: 0 | Y145: 0 | Z145: 0
A146: 41084 | B146: Theberton | C146: Win | D146: Home | E146: S. Beardall | F146: First | G146: 191 | H146: 8 | I146: 126 | J146: 10 | K146: 21 | L146: 35 | M146: 5 | N146: 2 | O146: 10 | P146: J. Leefe | Q146: 2 | R146: 0 | S146: 0 | T146: 0 | U146: 10 | V146: 0 | W146: 0 | X146: 0 | Y146: 0 | Z146: 0
A147: 41084 | B147: Theberton | C147: Win | D147: Home | E147: S. Beardall | F147: First | G147: 191 | H147: 8 | I147: 126 | J147: 10 | K147: 21 | L147: 35 | M147: 5 | N147: 2 | O147: 11 | P147: 0 | Q147: 0 | R147: 0 | S147: 0 | T147: 0 | U147: 11 | V147: 0 | W147: 0 | X147: 0 | Y147: 0 | Z147: 0
A148: 41090 | B148: Oporto | C148: Win | D148: Tour | E148: S. Beardall | F148: Second | G148: 168 | H148: 6 | I148: 166 | J148: 10 | K148: 45 | L148: 41 | M148: 33 | N148: 1 | O148: 1 | P148: O. Thornton | Q148: 17 | R148: 1 | S148: 0 | T148: 0 | U148: 1 | V148: P. Girdler | W148: 6 | X148: 0 | Y148: 1 | Z148: 30
A149: 41090 | B149: Oporto | C149: Win | D149: Tour | E149: S. Beardall | F149: Second | G149: 168 | H149: 6 | I149: 166 | J149: 10 | K149: 45 | L149: 41 | M149: 33 | N149: 1 | O149: 2 | P149: S. Halfhead | Q149: 7 | R149: 1 | S149: 0 | T149: 0 | U149: 2 | V149: T. White | W149: 4 | X149: 0 | Y149: 0 | Z149: 12
A150: 41090 | B150: Oporto | C150: Win | D150: Tour | E150: S. Beardall | F150: Second | G150: 168 | H150: 6 | I150: 166 | J150: 10 | K150: 45 | L150: 41 | M150: 33 | N150: 1 | O150: 3 | P150: Ro. Dickie | Q150: 3 | R150: 1 | S150: 0 | T150: 0 | U150: 3 | V150: J. Thornton | W150: 7 | X150: 0 | Y150: 1 | Z150: 45
A151: 41090 | B151: Oporto | C151: Win | D151: Tour | E151: S. Beardall | F151: Second | G151: 168 | H151: 6 | I151: 166 | J151: 10 | K151: 45 | L151: 41 | M151: 33 | N151: 1 | O151: 4 | P151: P. Briffett | Q151: 9 | R151: 1 | S151: 0 | T151: 0 | U151: 4 | V151: J. Hunt | W151: 4 | X151: 0 | Y151: 0 | Z151: 14
A152: 41090 | B152: Oporto | C152: Win | D152: Tour | E152: S. Beardall | F152: Second | G152: 168 | H152: 6 | I152: 166 | J152: 10 | K152: 45 | L152: 41 | M152: 33 | N152: 1 | O152: 5 | P152: S. Beardall | Q152: 4 | R152: 1 | S152: 0 | T152: 0 | U152: 5 | V152: O. Thornton | W152: 5 | X152: 2 | Y152: 2 | Z152: 9
A153: 41090 | B153: Oporto | C153: Win | D153: Tour | E153: S. Beardall | F153: Second | G153: 168 | H153: 6 | I153: 166 | J153: 10 | K153: 45 | L153: 41 | M153: 33 | N153: 1 | O153: 6 | P153: B. Bazell | Q153: 9 | R153: 1 | S153: 0 | T153: 0 | U153: 6 | V153: N. Runkel | W153: 11 | X153: 3 | Y153: 2 | Z153: 17
A154: 41090 | B154: Oporto | C154: Win | D154: Tour | E154: S. Beardall | F154: Second | G154: 168 | H154: 6 | I154: 166 | J154: 10 | K154: 45 | L154: 41 | M154: 33 | N154: 1 | O154: 7 | P154: J. Hunt | Q154: 57 | R154: 0 | S154: 1 | T154: 0 | U154: 7 | V154: S. Halfhead | W154: 2 | X154: 1 | Y154: 0 | Z154: 12
A155: 41090 | B155: Oporto | C155: Win | D155: Tour | E155: S. Beardall | F155: Second | G155: 168 | H155: 6 | I155: 166 | J155: 10 | K155: 45 | L155: 41 | M155: 33 | N155: 1 | O155: 8 | P155: J. Thornton | Q155: 29 | R155: 0 | S155: 0 | T155: 0 | U155: 8 | V155: P. Briffett | W155: 5 | X155: 0 | Y155: 2 | Z155: 25
A156: 41090 | B156: Oporto | C156: Win | D156: Tour | E156: S. Beardall | F156: Second | G156: 168 | H156: 6 | I156: 166 | J156: 10 | K156: 45 | L156: 41 | M156: 33 | N156: 1 | O156: 9 | P156: 0 | Q156: 0 | R156: 0 | S156: 0 | T156: 0 | U156: 9 | V156: Ro. Dickie | W156: 1 | X156: 0 | Y156: 1 | Z156: 1
A157: 41090 | B157: Oporto | C157: Win | D157: Tour | E157: S. Beardall | F157: Second | G157: 168 | H157: 6 | I157: 166 | J157: 10 | K157: 45 | L157: 41 | M157: 33 | N157: 1 | O157: 10 | P157: 0 | Q157: 0 | R157: 0 | S157: 0 | T157: 0 | U157: 10 | V157: Run Out | W157: 0 | X157: 0 | Y157: 1 | Z157: 0
A158: 41090 | B158: Oporto | C158: Win | D158: Tour | E158: S. Beardall | F158: Second | G158: 168 | H158: 6 | I158: 166 | J158: 10 | K158: 45 | L158: 41 | M158: 33 | N158: 1 | O158: 11 | P158: 0 | Q158: 0 | R158: 0 | S158: 0 | T158: 0 | U158: 11 | V158: 0 | W158: 0 | X158: 0 | Y158: 0 | Z158: 0
A159: 41091 | B159: Oporto (2) | C159: Win | D159: Tour | E159: S. Beardall | F159: Second | G159: 184 | H159: 10 | I159: 136 | J159: 10 | K159: 39 | L159: 41 | M159: 41 | N159: 15 | O159: 1 | P159: C. Simon | Q159: 17 | R159: 1 | S159: 0 | T159: 0 | U159: 1 | V159: P. Girdler | W159: 7 | X159: 1 | Y159: 0 | Z159: 22
A160: 41091 | B160: Oporto (2) | C160: Win | D160: Tour | E160: S. Beardall | F160: Second | G160: 184 | H160: 10 | I160: 136 | J160: 10 | K160: 39 | L160: 41 | M160: 41 | N160: 15 | O160: 2 | P160: T. Farley | Q160: 10 | R160: 1 | S160: 0 | T160: 0 | U160: 2 | V160: J. Hunt | W160: 5 | X160: 0 | Y160: 2 | Z160: 15
A161: 41091 | B161: Oporto (2) | C161: Win | D161: Tour | E161: S. Beardall | F161: Second | G161: 184 | H161: 10 | I161: 136 | J161: 10 | K161: 39 | L161: 41 | M161: 41 | N161: 15 | O161: 3 | P161: J. Hunt | Q161: 11 | R161: 1 | S161: 0 | T161: 0 | U161: 3 | V161: T. Farley | W161: 4 | X161: 0 | Y161: 1 | Z161: 23
A162: 41091 | B162: Oporto (2) | C162: Win | D162: Tour | E162: S. Beardall | F162: Second | G162: 184 | H162: 10 | I162: 136 | J162: 10 | K162: 39 | L162: 41 | M162: 41 | N162: 15 | O162: 4 | P162: D. Stockings | Q162: 8 | R162: 1 | S162: 0 | T162: 0 | U162: 4 | V162: D. Stockings | W162: 1 | X162: 0 | Y162: 0 | Z162: 18
A163: 41091 | B163: Oporto (2) | C163: Win | D163: Tour | E163: S. Beardall | F163: Second | G163: 184 | H163: 10 | I163: 136 | J163: 10 | K163: 39 | L163: 41 | M163: 41 | N163: 15 | O163: 5 | P163: T. Greenwood | Q163: 2 | R163: 1 | S163: 0 | T163: 0 | U163: 5 | V163: T. White | W163: 11 | X163: 4 | Y163: 1 | Z163: 23
A164: 41091 | B164: Oporto (2) | C164: Win | D164: Tour | E164: S. Beardall | F164: Second | G164: 184 | H164: 10 | I164: 136 | J164: 10 | K164: 39 | L164: 41 | M164: 41 | N164: 15 | O164: 6 | P164: O. Thornton | Q164: 56 | R164: 1 | S164: 1 | T164: 0 | U164: 6 | V164: S. Beardall | W164: 6 | X164: 2 | Y164: 1 | Z164: 15
A165: 41091 | B165: Oporto (2) | C165: Win | D165: Tour | E165: S. Beardall | F165: Second | G165: 184 | H165: 10 | I165: 136 | J165: 10 | K165: 39 | L165: 41 | M165: 41 | N165: 15 | O165: 7 | P165: S. Beardall | Q165: 9 | R165: 1 | S165: 0 | T165: 0 | U165: 7 | V165: J. Thornton | W165: 5 | X165: 1 | Y165: 3 | Z165: 5
A166: 41091 | B166: Oporto (2) | C166: Win | D166: Tour | E166: S. Beardall | F166: Second | G166: 184 | H166: 10 | I166: 136 | J166: 10 | K166: 39 | L166: 41 | M166: 41 | N166: 15 | O166: 8 | P166: J. Thornton | Q166: 18 | R166: 1 | S166: 0 | T166: 0 | U166: 8 | V166: Run Out | W166: 0 | X166: 0 | Y166: 2 | Z166: 0
A167: 41091 | B167: Oporto (2) | C167: Win | D167: Tour | E167: S. Beardall | F167: Second | G167: 184 | H167: 10 | I167: 136 | J167: 10 | K167: 39 | L167: 41 | M167: 41 | N167: 15 | O167: 9 | P167: P. Briffett | Q167: 3 | R167: 1 | S167: 0 | T167: 0 | U167: 9 | V167: 0 | W167: 0 | X167: 0 | Y167: 0 | Z167: 0
A168: 41091 | B168: Oporto (2) | C168: Win | D168: Tour | E168: S. Beardall | F168: Second | G168: 184 | H168: 10 | I168: 136 | J168: 10 | K168: 39 | L168: 41 | M168: 41 | N168: 15 | O168: 10 | P168: T. White | Q168: 8 | R168: 1 | S168: 0 | T168: 0 | U168: 10 | V168: 0 | W168: 0 | X168: 0 | Y168: 0 | Z168: 0
A169: 41091 | B169: Oporto (2) | C169: Win | D169: Tour | E169: S. Beardall | F169: Second | G169: 184 | H169: 10 | I169: 136 | J169: 10 | K169: 39 | L169: 41 | M169: 41 | N169: 15 | O169: 11 | P169: P. Girdler | Q169: 1 | R169: 0 | S169: 0 | T169: 0 | U169: 11 | V169: 0 | W169: 0 | X169: 0 | Y169: 0 | Z169: 0
A170: 41096 | B170: Woodcote | C170: Cancelled (Turville) | D170: Away | E170: 0 | F170: 0 | G170: 0 | H170: 0 | I170: 0 | J170: 0 | K170: 0 | L170: 0 | M170: 0 | N170: 0 | O170: 1 | P170: 0 | Q170: 0 | R170: 0 | S170: 0 | T170: 0 | U170: 1 | V170: 0 | W170: 0 | X170: 0 | Y170: 0 | Z170: 0
A171: 41096 | B171: Woodcote | C171: Cancelled (Turville) | D171: Away | E171: 0 | F171: 0 | G171: 0 | H171: 0 | I171: 0 | J171: 0 | K171: 0 | L171: 0 | M171: 0 | N171: 0 | O171: 2 | P171: 0 | Q171: 0 | R171: 0 | S171: 0 | T171: 0 | U171: 2 | V171: 0 | W171: 0 | X171: 0 | Y171: 0 | Z171: 0
A172: 41096 | B172: Woodcote | C172: Cancelled (Turville) | D172: Away | E172: 0 | F172: 0 | G172: 0 | H172: 0 | I172: 0 | J172: 0 | K172: 0 | L172: 0 | M172: 0 | N172: 0 | O172: 3 | P172: 0 | Q172: 0 | R172: 0 | S172: 0 | T172: 0 | U172: 3 | V172: 0 | W172: 0 | X172: 0 | Y172: 0 | Z172: 0
A173: 41096 | B173: Woodcote | C173: Cancelled (Turville) | D173: Away | E173: 0 | F173: 0 | G173: 0 | H173: 0 | I173: 0 | J173: 0 | K173: 0 | L173: 0 | M173: 0 | N173: 0 | O173: 4 | P173: 0 | Q173: 0 | R173: 0 | S173: 0 | T173: 0 | U173: 4 | V173: 0 | W173: 0 | X173: 0 | Y173: 0 | Z173: 0
A174: 41096 | B174: Woodcote | C174: Cancelled (Turville) | D174: Away | E174: 0 | F174: 0 | G174: 0 | H174: 0 | I174: 0 | J174: 0 | K174: 0 | L174: 0 | M174: 0 | N174: 0 | O174: 5 | P174: 0 | Q174: 0 | R174: 0 | S174: 0 | T174: 0 | U174: 5 | V174: 0 | W174: 0 | X174: 0 | Y174: 0 | Z174: 0
A175: 41096 | B175: Woodcote | C175: Cancelled (Turville) | D175: Away | E175: 0 | F175: 0 | G175: 0 | H175: 0 | I175: 0 | J175: 0 | K175: 0 | L175: 0 | M175: 0 | N175: 0 | O175: 6 | P175: 0 | Q175: 0 | R175: 0 | S175: 0 | T175: 0 | U175: 6 | V175: 0 | W175: 0 | X175: 0 | Y175: 0 | Z175: 0
A176: 41096 | B176: Woodcote | C176: Cancelled (Turville) | D176: Away | E176: 0 | F176: 0 | G176: 0 | H176: 0 | I176: 0 | J176: 0 | K176: 0 | L176: 0 | M176: 0 | N176: 0 | O176: 7 | P176: 0 | Q176: 0 | R176: 0 | S176: 0 | T176: 0 | U176: 7 | V176: 0 | W176: 0 | X176: 0 | Y176: 0 | Z176: 0
A177: 41096 | B177: Woodcote | C177: Cancelled (Turville) | D177: Away | E177: 0 | F177: 0 | G177: 0 | H177: 0 | I177: 0 | J177: 0 | K177: 0 | L177: 0 | M177: 0 | N177: 0 | O177: 8 | P177: 0 | Q177: 0 | R177: 0 | S177: 0 | T177: 0 | U177: 8 | V177: 0 | W177: 0 | X177: 0 | Y177: 0 | Z177: 0
A178: 41096 | B178: Woodcote | C178: Cancelled (Turville) | D178: Away | E178: 0 | F178: 0 | G178: 0 | H178: 0 | I178: 0 | J178: 0 | K178: 0 | L178: 0 | M178: 0 | N178: 0 | O178: 9 | P178: 0 | Q178: 0 | R178: 0 | S178: 0 | T178: 0 | U178: 9 | V178: 0 | W178: 0 | X178: 0 | Y178: 0 | Z178: 0
A179: 41096 | B179: Woodcote | C179: Cancelled (Turville) | D179: Away | E179: 0 | F179: 0 | G179: 0 | H179: 0 | I179: 0 | J179: 0 | K179: 0 | L179: 0 | M179: 0 | N179: 0 | O179: 10 | P179: 0 | Q179: 0 | R179: 0 | S179: 0 | T179: 0 | U179: 10 | V179: 0 | W179: 0 | X179: 0 | Y179: 0 | Z179: 0
A180: 41096 | B180: Woodcote | C180: Cancelled (Turville) | D180: Away | E180: 0 | F180: 0 | G180: 0 | H180: 0 | I180: 0 | J180: 0 | K180: 0 | L180: 0 | M180: 0 | N180: 0 | O180: 11 | P180: 0 | Q180: 0 | R180: 0 | S180: 0 | T180: 0 | U180: 11 | V180: 0 | W180: 0 | X180: 0 | Y180: 0 | Z180: 0
A181: 41098 | B181: Flycatchers | C181: Cancelled (Rain) | D181: Home | E181: 0 | F181: 0 | G181: 0 | H181: 0 | I181: 0 | J181: 0 | K181: 0 | L181: 0 | M181: 0 | N181: 0 | O181: 1 | P181: 0 | Q181: 0 | R181: 0 | S181: 0 | T181: 0 | U181: 1 | V181: 0 | W181: 0 | X181: 0 | Y181: 0 | Z181: 0
A182: 41098 | B182: Flycatchers | C182: Cancelled (Rain) | D182: Home | E182: 0 | F182: 0 | G182: 0 | H182: 0 | I182: 0 | J182: 0 | K182: 0 | L182: 0 | M182: 0 | N182: 0 | O182: 2 | P182: 0 | Q182: 0 | R182: 0 | S182: 0 | T182: 0 | U182: 2 | V182: 0 | W182: 0 | X182: 0 | Y182: 0 | Z182: 0
A183: 41098 | B183: Flycatchers | C183: Cancelled (Rain) | D183: Home | E183: 0 | F183: 0 | G183: 0 | H183: 0 | I183: 0 | J183: 0 | K183: 0 | L183: 0 | M183: 0 | N183: 0 | O183: 3 | P183: 0 | Q183: 0 | R183: 0 | S183: 0 | T183: 0 | U183: 3 | V183: 0 | W183: 0 | X183: 0 | Y183: 0 | Z183: 0
A184: 41098 | B184: Flycatchers | C184: Cancelled (Rain) | D184: Home | E184: 0 | F184: 0 | G184: 0 | H184: 0 | I184: 0 | J184: 0 | K184: 0 | L184: 0 | M184: 0 | N184: 0 | O184: 4 | P184: 0 | Q184: 0 | R184: 0 | S184: 0 | T184: 0 | U184: 4 | V184: 0 | W184: 0 | X184: 0 | Y184: 0 | Z184: 0
A185: 41098 | B185: Flycatchers | C185: Cancelled (Rain) | D185: Home | E185: 0 | F185: 0 | G185: 0 | H185: 0 | I185: 0 | J185: 0 | K185: 0 | L185: 0 | M185: 0 | N185: 0 | O185: 5 | P185: 0 | Q185: 0 | R185: 0 | S185: 0 | T185: 0 | U185: 5 | V185: 0 | W185: 0 | X185: 0 | Y185: 0 | Z185: 0
A186: 41098 | B186: Flycatchers | C186: Cancelled (Rain) | D186: Home | E186: 0 | F186: 0 | G186: 0 | H186: 0 | I186: 0 | J186: 0 | K186: 0 | L186: 0 | M186: 0 | N186: 0 | O186: 6 | P186: 0 | Q186: 0 | R186: 0 | S186: 0 | T186: 0 | U186: 6 | V186: 0 | W186: 0 | X186: 0 | Y186: 0 | Z186: 0
A187: 41098 | B187: Flycatchers | C187: Cancelled (Rain) | D187: Home | E187: 0 | F187: 0 | G187: 0 | H187: 0 | I187: 0 | J187: 0 | K187: 0 | L187: 0 | M187: 0 | N187: 0 | O187: 7 | P187: 0 | Q187: 0 | R187: 0 | S187: 0 | T187: 0 | U187: 7 | V187: 0 | W187: 0 | X187: 0 | Y187: 0 | Z187: 0
A188: 41098 | B188: Flycatchers | C188: Cancelled (Rain) | D188: Home | E188: 0 | F188: 0 | G188: 0 | H188: 0 | I188: 0 | J188: 0 | K188: 0 | L188: 0 | M188: 0 | N188: 0 | O188: 8 | P188: 0 | Q188: 0 | R188: 0 | S188: 0 | T188: 0 | U188: 8 | V188: 0 | W188: 0 | X188: 0 | Y188: 0 | Z188: 0
A189: 41098 | B189: Flycatchers | C189: Cancelled (Rain) | D189: Home | E189: 0 | F189: 0 | G189: 0 | H189: 0 | I189: 0 | J189: 0 | K189: 0 | L189: 0 | M189: 0 | N189: 0 | O189: 9 | P189: 0 | Q189: 0 | R189: 0 | S189: 0 | T189: 0 | U189: 9 | V189: 0 | W189: 0 | X189: 0 | Y189: 0 | Z189: 0
A190: 41098 | B190: Flycatchers | C190: Cancelled (Rain) | D190: Home | E190: 0 | F190: 0 | G190: 0 | H190: 0 | I190: 0 | J190: 0 | K190: 0 | L190: 0 | M190: 0 | N190: 0 | O190: 10 | P190: 0 | Q190: 0 | R190: 0 | S190: 0 | T190: 0 | U190: 10 | V190: 0 | W190: 0 | X190: 0 | Y190: 0 | Z190: 0
A191: 41098 | B191: Flycatchers | C191: Cancelled (Rain) | D191: Home | E191: 0 | F191: 0 | G191: 0 | H191: 0 | I191: 0 | J191: 0 | K191: 0 | L191: 0 | M191: 0 | N191: 0 | O191: 11 | P191: 0 | Q191: 0 | R191: 0 | S191: 0 | T191: 0 | U191: 11 | V191: 0 | W191: 0 | X191: 0 | Y191: 0 | Z191: 0
A192: 41105 | B192: Ibstone | C192: Win | D192: Away | E192: S. Beardall | F192: First | G192: 200 | H192: 9 | I192: 61 | J192: 10 | K192: 32 | L192: 42 | M192: 1 | N192: 7 | O192: 1 | P192: S. Halfhead | Q192: 9 | R192: 1 | S192: 0 | T192: 0 | U192: 1 | V192: T. White | W192: 8 | X192: 7 | Y192: 8 | Z192: 4
A193: 41105 | B193: Ibstone | C193: Win | D193: Away | E193: S. Beardall | F193: First | G193: 200 | H193: 9 | I193: 61 | J193: 10 | K193: 32 | L193: 42 | M193: 1 | N193: 7 | O193: 2 | P193: J. Rogers | Q193: 1 | R193: 1 | S193: 0 | T193: 0 | U193: 2 | V193: S. Beardall | W193: 2 | X193: 0 | Y193: 0 | Z193: 17
A194: 41105 | B194: Ibstone | C194: Win | D194: Away | E194: S. Beardall | F194: First | G194: 200 | H194: 9 | I194: 61 | J194: 10 | K194: 32 | L194: 42 | M194: 1 | N194: 7 | O194: 3 | P194: J. Hunt | Q194: 64 | R194: 1 | S194: 1 | T194: 0 | U194: 3 | V194: J. Rogers | W194: 10 | X194: 2 | Y194: 2 | Z194: 27
A195: 41105 | B195: Ibstone | C195: Win | D195: Away | E195: S. Beardall | F195: First | G195: 200 | H195: 9 | I195: 61 | J195: 10 | K195: 32 | L195: 42 | M195: 1 | N195: 7 | O195: 4 | P195: C. Beardall | Q195: 19 | R195: 1 | S195: 0 | T195: 0 | U195: 4 | V195: C. Rogers | W195: 4 | X195: 2 | Y195: 0 | Z195: 3
A196: 41105 | B196: Ibstone | C196: Win | D196: Away | E196: S. Beardall | F196: First | G196: 200 | H196: 9 | I196: 61 | J196: 10 | K196: 32 | L196: 42 | M196: 1 | N196: 7 | O196: 5 | P196: T. Wade | Q196: 27 | R196: 1 | S196: 0 | T196: 0 | U196: 5 | V196: J. Hancock | W196: 5 | X196: 4 | Y196: 0 | Z196: 2
A197: 41105 | B197: Ibstone | C197: Win | D197: Away | E197: S. Beardall | F197: First | G197: 200 | H197: 9 | I197: 61 | J197: 10 | K197: 32 | L197: 42 | M197: 1 | N197: 7 | O197: 6 | P197: W. Strickland | Q197: 0 | R197: 1 | S197: 0 | T197: 0 | U197: 6 | V197: J. Hunt | W197: 3 | X197: 2 | Y197: 0 | Z197: 1
A198: 41105 | B198: Ibstone | C198: Win | D198: Away | E198: S. Beardall | F198: First | G198: 200 | H198: 9 | I198: 61 | J198: 10 | K198: 32 | L198: 42 | M198: 1 | N198: 7 | O198: 7 | P198: J. Hancock | Q198: 7 | R198: 1 | S198: 0 | T198: 0 | U198: 7 | V198: 0 | W198: 0 | X198: 0 | Y198: 0 | Z198: 0
A199: 41105 | B199: Ibstone | C199: Win | D199: Away | E199: S. Beardall | F199: First | G199: 200 | H199: 9 | I199: 61 | J199: 10 | K199: 32 | L199: 42 | M199: 1 | N199: 7 | O199: 8 | P199: S. Beardall | Q199: 55 | R199: 0 | S199: 1 | T199: 0 | U199: 8 | V199: 0 | W199: 0 | X199: 0 | Y199: 0 | Z199: 0
A200: 41105 | B200: Ibstone | C200: Win | D200: Away | E200: S. Beardall | F200: First | G200: 200 | H200: 9 | I200: 61 | J200: 10 | K200: 32 | L200: 42 | M200: 1 | N200: 7 | O200: 9 | P200: B. Bazell | Q200: 8 | R200: 1 | S200: 0 | T200: 0 | U200: 9 | V200: 0 | W200: 0 | X200: 0 | Y200: 0 | Z200: 0
A201: 41105 | B201: Ibstone | C201: Win | D201: Away | E201: S. Beardall | F201: First | G201: 200 | H201: 9 | I201: 61 | J201: 10 | K201: 32 | L201: 42 | M201: 1 | N201: 7 | O201: 10 | P201: C. Rogers | Q201: 9 | R201: 1 | S201: 0 | T201: 0 | U201: 10 | V201: 0 | W201: 0 | X201: 0 | Y201: 0 | Z201: 0
A202: 41105 | B202: Ibstone | C202: Win | D202: Away | E202: S. Beardall | F202: First | G202: 200 | H202: 9 | I202: 61 | J202: 10 | K202: 32 | L202: 42 | M202: 1 | N202: 7 | O202: 11 | P202: T. White | Q202: 0 | R202: 0 | S202: 0 | T202: 0 | U202: 11 | V202: 0 | W202: 0 | X202: 0 | Y202: 0 | Z202: 0
... 165 more rows

Sheet Penn Street
N2: Date | O2: Opposition | P2: Match Status | Q2: Home/Away | R2: Captain | S2: TPCC Batting First | T2: TPCC Team Score | U2: TPCC Team Wickets | V2: Opposition Team Score | W2: Opposition Team Wickets | X2: TPCC Overs Bowled | Y2: TPCC Overs Faced | Z2: Batting Extras | AA2: Bowling Extras | AB2: Batsmen Position | AC2: Batsmen Name | AD2: Batsmen Runs | AE2: Batsmen Out | AF2: 50 | AG2: 100 | AH2: Bowler Position | AI2: Bowler Name | AJ2: Bowler Overs | AK2: Bowler Maidens | AL2: Bowler Wickets | AM2: Bowler Runs
C3: Match Overview | N3: =$D$5 -> 41021 | O3: =$D$7 -> Penn Street | P3: =$D$9 -> Cancelled (Rain) | Q3: =$D$11 -> Away | R3: =$D$24 -> 0 | S3: =$D$13 -> 0 | T3: =$D$15 -> 0 | U3: =$D$16 -> 0 | V3: =$D$18 -> 0 | W3: =$D$19 -> 0 | X3: =$D$21 -> 0 | Y3: =$D$22 -> 0 | Z3: =$H$19 -> 0 | AA3: =$H$36 -> 0 | AB3: =F7 -> 1 | AC3: =G7 -> 0 | AD3: =H7 -> 0 | AE3: =I7 -> 0 | AF3: =(IF(AD3>49,1,0))-AG3 -> 0 | AG3: =IF(AD3>99,1,0) -> 0 | AH3: =F24 -> 1 | AI3: =G24 -> 0 | AJ3: 0 | AK3: 0 | AL3: 0 | AM3: 0
N4: 41021 | O4: Penn Street | P4: Cancelled (Rain) | Q4: Away | R4: =$D$24 -> 0 | S4: 0 | T4: 0 | U4: 0 | V4: 0 | W4: 0 | X4: 0 | Y4: 0 | Z4: 0 | AA4: 0 | AB4: =F8 -> 2 | AC4: 0 | AD4: 0 | AE4: 0 | AF4: =(IF(AD4>49,1,0))-AG4 -> 0 | AG4: =IF(AD4>99,1,0) -> 0 | AH4: =F25 -> 2 | AI4: 0 | AJ4: 0 | AK4: 0 | AL4: 0 | AM4: 0
C5: Date | D5: 2012-04-22 | F5: Batting | N5: 41021 | O5: Penn Street | P5: Cancelled (Rain) | Q5: Away | R5: 0 | S5: 0 | T5: 0 | U5: 0 | V5: 0 | W5: 0 | X5: 0 | Y5: 0 | Z5: 0 | AA5: 0 | AB5: 3 | AC5: 0 | AD5: 0 | AE5: 0 | AF5: 0 | AG5: 0 | AH5: 3 | AI5: 0 | AJ5: 0 | AK5: 0 | AL5: 0 | AM5: 0
F6: Position | G6: Name | H6: Runs | I6: Out | N6: 41021 | O6: Penn Street | P6: Cancelled (Rain) | Q6: Away | R6: 0 | S6: 0 | T6: 0 | U6: 0 | V6: 0 | W6: 0 | X6: 0 | Y6: 0 | Z6: 0 | AA6: 0 | AB6: 4 | AC6: 0 | AD6: 0 | AE6: 0 | AF6: 0 | AG6: 0 | AH6: 4 | AI6: 0 | AJ6: 0 | AK6: 0 | AL6: 0 | AM6: 0
C7: Opposition | D7: Penn Street | F7: 1 | N7: 41021 | O7: Penn Street | P7: Cancelled (Rain) | Q7: Away | R7: 0 | S7: 0 | T7: 0 | U7: 0 | V7: 0 | W7: 0 | X7: 0 | Y7: 0 | Z7: 0 | AA7: 0 | AB7: 5 | AC7: 0 | AD7: 0 | AE7: 0 | AF7: 0 | AG7: 0 | AH7: 5 | AI7: 0 | AJ7: 0 | AK7: 0 | AL7: 0 | AM7: 0
F8: 2 | N8: 41021 | O8: Penn Street | P8: Cancelled (Rain) | Q8: Away | R8: 0 | S8: 0 | T8: 0 | U8: 0 | V8: 0 | W8: 0 | X8: 0 | Y8: 0 | Z8: 0 | AA8: 0 | AB8: 6 | AC8: 0 | AD8: 0 | AE8: 0 | AF8: 0 | AG8: 0 | AH8: 6 | AI8: 0 | AJ8: 0 | AK8: 0 | AL8: 0 | AM8: 0
C9: Match Status | D9: Cancelled (Rain) | F9: 3 | N9: 41021 | O9: Penn Street | P9: Cancelled (Rain) | Q9: Away | R9: 0 | S9: 0 | T9: 0 | U9: 0 | V9: 0 | W9: 0 | X9: 0 | Y9: 0 | Z9: 0 | AA9: 0 | AB9: 7 | AC9: 0 | AD9: 0 | AE9: 0 | AF9: 0 | AG9: 0 | AH9: 7 | AI9: 0 | AJ9: 0 | AK9: 0 | AL9: 0 | AM9: 0
F10: 4 | N10: 41021 | O10: Penn Street | P10: Cancelled (Rain) | Q10: Away | R10: 0 | S10: 0 | T10: 0 | U10: 0 | V10: 0 | W10: 0 | X10: 0 | Y10: 0 | Z10: 0 | AA10: 0 | AB10: 8 | AC10: 0 | AD10: 0 | AE10: 0 | AF10: 0 | AG10: 0 | AH10: 8 | AI10: 0 | AJ10: 0 | AK10: 0 | AL10: 0 | AM10: 0
C11: Home / Away | D11: Away | F11: 5 | N11: 41021 | O11: Penn Street | P11: Cancelled (Rain) | Q11: Away | R11: 0 | S11: 0 | T11: 0 | U11: 0 | V11: 0 | W11: 0 | X11: 0 | Y11: 0 | Z11: 0 | AA11: 0 | AB11: 9 | AC11: 0 | AD11: 0 | AE11: 0 | AF11: 0 | AG11: 0 | AH11: 9 | AI11: 0 | AJ11: 0 | AK11: 0 | AL11: 0 | AM11: 0
F12: 6 | N12: 41021 | O12: Penn Street | P12: Cancelled (Rain) | Q12: Away | R12: 0 | S12: 0 | T12: 0 | U12: 0 | V12: 0 | W12: 0 | X12: 0 | Y12: 0 | Z12: 0 | AA12: 0 | AB12: 10 | AC12: 0 | AD12: 0 | AE12: 0 | AF12: 0 | AG12: 0 | AH12: 10 | AI12: 0 | AJ12: 0 | AK12: 0 | AL12: 0 | AM12: 0
C13: TPCC Batting First | F13: 7 | N13: 41021 | O13: Penn Street | P13: Cancelled (Rain) | Q13: Away | R13: 0 | S13: 0 | T13: 0 | U13: 0 | V13: 0 | W13: 0 | X13: 0 | Y13: 0 | Z13: 0 | AA13: 0 | AB13: 11 | AC13: 0 | AD13: 0 | AE13: 0 | AF13: 0 | AG13: 0 | AH13: 11 | AI13: 0 | AJ13: 0 | AK13: 0 | AL13: 0 | AM13: 0
F14: 8
C15: TPCC Team Score | D15: =SUM(H7:H17)+H19 -> 0 | F15: 9
C16: TPCC Team Wickets | D16: =SUM(I7:I17) -> 0 | F16: 10
F17: 11
C18: Opposition Team Score | D18: =SUM(K24:K34)+H36 -> 0
C19: Opposition Team Wickets | D19: =SUM(J24:J34) -> 0 | F19: Total Extras
C21: TPCC Overs Bowled | D21: =SUM(H24:H34) -> 0
C22: Opposition Overs Bowled | F22: Bowling
F23: Position | G23: Name | H23: Overs | I23: Maidens | J23: Wickets | K23: Runs
C24: TPCC Captain | F24: 1
F25: 2
F26: 3
F27: 4
F28: 5
F29: 6
F30: 7
F31: 8
F32: 9
F33: 10
F34: 11
F36: Bowling Extras

Sheet White Waltham
N2: Date | O2: Opposition | P2: Match Status | Q2: Home/Away | R2: Captain | S2: TPCC Batting First | T2: TPCC Team Score | U2: TPCC Team Wickets | V2: Opposition Team Score | W2: Opposition Team Wickets | X2: TPCC Overs Bowled | Y2: TPCC Overs Faced | Z2: Batting Extras | AA2: Bowling Extras | AB2: Batsmen Position | AC2: Batsmen Name | AD2: Batsmen Runs | AE2: Batsmen Out | AF2: 50 | AG2: 100 | AH2: Bowler Position | AI2: Bowler Name | AJ2: Bowler Overs | AK2: Bowler Maidens | AL2: Bowler Wickets | AM2: Bowler Runs
C3: Match Overview | N3: =$D$5 -> 41028 | O3: =$D$7 -> White Waltham | P3: =$D$9 -> Cancelled (Rain) | Q3: =$D$11 -> Home | R3: =$D$24 -> 0 | S3: =$D$13 -> 0 | T3: =$D$15 -> 0 | U3: =$D$16 -> 0 | V3: =$D$18 -> 0 | W3: =$D$19 -> 0 | X3: =$D$21 -> 0 | Y3: =$D$22 -> 0 | Z3: =$H$19 -> 0 | AA3: =$H$36 -> 0 | AB3: =F7 -> 1 | AC3: =G7 -> 0 | AD3: =H7 -> 0 | AE3: =I7 -> 0 | AF3: =(IF(AD3>49,1,0))-AG3 -> 0 | AG3: =IF(AD3>99,1,0) -> 0 | AH3: =F24 -> 1 | AI3: =G24 -> 0 | AJ3: 0 | AK3: 0 | AL3: 0 | AM3: 0
N4: 41028 | O4: White Waltham | P4: Cancelled (Rain) | Q4: Home | R4: =$D$24 -> 0 | S4: 0 | T4: 0 | U4: 0 | V4: 0 | W4: 0 | X4: 0 | Y4: 0 | Z4: 0 | AA4: 0 | AB4: =F8 -> 2 | AC4: 0 | AD4: 0 | AE4: 0 | AF4: =(IF(AD4>49,1,0))-AG4 -> 0 | AG4: =IF(AD4>99,1,0) -> 0 | AH4: =F25 -> 2 | AI4: 0 | AJ4: 0 | AK4: 0 | AL4: 0 | AM4: 0
C5: Date | D5: 2012-04-29 | F5: Batting | N5: 41028 | O5: White Waltham | P5: Cancelled (Rain) | Q5: Home | R5: 0 | S5: 0 | T5: 0 | U5: 0 | V5: 0 | W5: 0 | X5: 0 | Y5: 0 | Z5: 0 | AA5: 0 | AB5: 3 | AC5: 0 | AD5: 0 | AE5: 0 | AF5: 0 | AG5: 0 | AH5: 3 | AI5: 0 | AJ5: 0 | AK5: 0 | AL5: 0 | AM5: 0
F6: Position | G6: Name | H6: Runs | I6: Out | N6: 41028 | O6: White Waltham | P6: Cancelled (Rain) | Q6: Home | R6: 0 | S6: 0 | T6: 0 | U6: 0 | V6: 0 | W6: 0 | X6: 0 | Y6: 0 | Z6: 0 | AA6: 0 | AB6: 4 | AC6: 0 | AD6: 0 | AE6: 0 | AF6: 0 | AG6: 0 | AH6: 4 | AI6: 0 | AJ6: 0 | AK6: 0 | AL6: 0 | AM6: 0
C7: Opposition | D7: White Waltham | F7: 1 | N7: 41028 | O7: White Waltham | P7: Cancelled (Rain) | Q7: Home | R7: 0 | S7: 0 | T7: 0 | U7: 0 | V7: 0 | W7: 0 | X7: 0 | Y7: 0 | Z7: 0 | AA7: 0 | AB7: 5 | AC7: 0 | AD7: 0 | AE7: 0 | AF7: 0 | AG7: 0 | AH7: 5 | AI7: 0 | AJ7: 0 | AK7: 0 | AL7: 0 | AM7: 0
F8: 2 | N8: 41028 | O8: White Waltham | P8: Cancelled (Rain) | Q8: Home | R8: 0 | S8: 0 | T8: 0 | U8: 0 | V8: 0 | W8: 0 | X8: 0 | Y8: 0 | Z8: 0 | AA8: 0 | AB8: 6 | AC8: 0 | AD8: 0 | AE8: 0 | AF8: 0 | AG8: 0 | AH8: 6 | AI8: 0 | AJ8: 0 | AK8: 0 | AL8: 0 | AM8: 0
C9: Match Status | D9: Cancelled (Rain) | F9: 3 | N9: 41028 | O9: White Waltham | P9: Cancelled (Rain) | Q9: Home | R9: 0 | S9: 0 | T9: 0 | U9: 0 | V9: 0 | W9: 0 | X9: 0 | Y9: 0 | Z9: 0 | AA9: 0 | AB9: 7 | AC9: 0 | AD9: 0 | AE9: 0 | AF9: 0 | AG9: 0 | AH9: 7 | AI9: 0 | AJ9: 0 | AK9: 0 | AL9: 0 | AM9: 0
F10: 4 | N10: 41028 | O10: White Waltham | P10: Cancelled (Rain) | Q10: Home | R10: 0 | S10: 0 | T10: 0 | U10: 0 | V10: 0 | W10: 0 | X10: 0 | Y10: 0 | Z10: 0 | AA10: 0 | AB10: 8 | AC10: 0 | AD10: 0 | AE10: 0 | AF10: 0 | AG10: 0 | AH10: 8 | AI10: 0 | AJ10: 0 | AK10: 0 | AL10: 0 | AM10: 0
C11: Home / Away | D11: Home | F11: 5 | N11: 41028 | O11: White Waltham | P11: Cancelled (Rain) | Q11: Home | R11: 0 | S11: 0 | T11: 0 | U11: 0 | V11: 0 | W11: 0 | X11: 0 | Y11: 0 | Z11: 0 | AA11: 0 | AB11: 9 | AC11: 0 | AD11: 0 | AE11: 0 | AF11: 0 | AG11: 0 | AH11: 9 | AI11: 0 | AJ11: 0 | AK11: 0 | AL11: 0 | AM11: 0
F12: 6 | N12: 41028 | O12: White Waltham | P12: Cancelled (Rain) | Q12: Home | R12: 0 | S12: 0 | T12: 0 | U12: 0 | V12: 0 | W12: 0 | X12: 0 | Y12: 0 | Z12: 0 | AA12: 0 | AB12: 10 | AC12: 0 | AD12: 0 | AE12: 0 | AF12: 0 | AG12: 0 | AH12: 10 | AI12: 0 | AJ12: 0 | AK12: 0 | AL12: 0 | AM12: 0
C13: TPCC Batting First | F13: 7 | N13: 41028 | O13: White Waltham | P13: Cancelled (Rain) | Q13: Home | R13: 0 | S13: 0 | T13: 0 | U13: 0 | V13: 0 | W13: 0 | X13: 0 | Y13: 0 | Z13: 0 | AA13: 0 | AB13: 11 | AC13: 0 | AD13: 0 | AE13: 0 | AF13: 0 | AG13: 0 | AH13: 11 | AI13: 0 | AJ13: 0 | AK13: 0 | AL13: 0 | AM13: 0
F14: 8
C15: TPCC Team Score | D15: =SUM(H7:H17)+H19 -> 0 | F15: 9
C16: TPCC Team Wickets | D16: =SUM(I7:I17) -> 0 | F16: 10
F17: 11
C18: Opposition Team Score | D18: =SUM(K24:K34)+H36 -> 0
C19: Opposition Team Wickets | D19: =SUM(J24:J34) -> 0 | F19: Batting Extras
C21: TPCC Overs Bowled | D21: =SUM(H24:H34) -> 0
C22: Opposition Overs Bowled | F22: Bowling
F23: Position | G23: Name | H23: Overs | I23: Maidens | J23: Wickets | K23: Runs
C24: TPCC Captain | F24: 1
F25: 2
F26: 3
F27: 4
F28: 5
F29: 6
F30: 7
F31: 8
F32: 9
F33: 10
F34: 11
F36: Bowling Extras

Sheet Brightwell-Cum-Sotwell
N2: Date | O2: Opposition | P2: Match Status | Q2: Home/Away | R2: Captain | S2: TPCC Batting First | T2: TPCC Team Score | U2: TPCC Team Wickets | V2: Opposition Team Score | W2: Opposition Team Wickets | X2: TPCC Overs Bowled | Y2: TPCC Overs Faced | Z2: Batting Extras | AA2: Bowling Extras | AB2: Batsmen Position | AC2: Batsmen Name | AD2: Batsmen Runs | AE2: Batsmen Out | AF2: 50 | AG2: 100 | AH2: Bowler Position | AI2: Bowler Name | AJ2: Bowler Overs | AK2: Bowler Maidens | AL2: Bowler Wickets | AM2: Bowler Runs
C3: Match Overview | N3: =$D$5 -> 41035 | O3: =$D$7 -> Brightwell-Cum-Sotwell | P3: =$D$9 -> Cancelled (Rain) | Q3: =$D$11 -> Away | R3: =$D$24 -> 0 | S3: =$D$13 -> 0 | T3: =$D$15 -> 0 | U3: =$D$16 -> 0 | V3: =$D$18 -> 0 | W3: =$D$19 -> 0 | X3: =$D$21 -> 0 | Y3: =$D$22 -> 0 | Z3: =$H$19 -> 0 | AA3: =$H$36 -> 0 | AB3: =F7 -> 1 | AC3: =G7 -> 0 | AD3: =H7 -> 0 | AE3: =I7 -> 0 | AF3: =(IF(AD3>49,1,0))-AG3 -> 0 | AG3: =IF(AD3>99,1,0) -> 0 | AH3: =F24 -> 1 | AI3: =G24 -> 0 | AJ3: 0 | AK3: 0 | AL3: 0 | AM3: 0
N4: 41035 | O4: Brightwell-Cum-Sotwell | P4: Cancelled (Rain) | Q4: Away | R4: =$D$24 -> 0 | S4: 0 | T4: 0 | U4: 0 | V4: 0 | W4: 0 | X4: 0 | Y4: 0 | Z4: 0 | AA4: 0 | AB4: =F8 -> 2 | AC4: 0 | AD4: 0 | AE4: 0 | AF4: =(IF(AD4>49,1,0))-AG4 -> 0 | AG4: =IF(AD4>99,1,0) -> 0 | AH4: =F25 -> 2 | AI4: 0 | AJ4: 0 | AK4: 0 | AL4: 0 | AM4: 0
C5: Date | D5: 2012-05-06 | F5: Batting | N5: 41035 | O5: Brightwell-Cum-Sotwell | P5: Cancelled (Rain) | Q5: Away | R5: 0 | S5: 0 | T5: 0 | U5: 0 | V5: 0 | W5: 0 | X5: 0 | Y5: 0 | Z5: 0 | AA5: 0 | AB5: 3 | AC5: 0 | AD5: 0 | AE5: 0 | AF5: 0 | AG5: 0 | AH5: 3 | AI5: 0 | AJ5: 0 | AK5: 0 | AL5: 0 | AM5: 0
F6: Position | G6: Name | H6: Runs | I6: Out | N6: 41035 | O6: Brightwell-Cum-Sotwell | P6: Cancelled (Rain) | Q6: Away | R6: 0 | S6: 0 | T6: 0 | U6: 0 | V6: 0 | W6: 0 | X6: 0 | Y6: 0 | Z6: 0 | AA6: 0 | AB6: 4 | AC6: 0 | AD6: 0 | AE6: 0 | AF6: 0 | AG6: 0 | AH6: 4 | AI6: 0 | AJ6: 0 | AK6: 0 | AL6: 0 | AM6: 0
C7: Opposition | D7: Brightwell-Cum-Sotwell | F7: 1 | N7: 41035 | O7: Brightwell-Cum-Sotwell | P7: Cancelled (Rain) | Q7: Away | R7: 0 | S7: 0 | T7: 0 | U7: 0 | V7: 0 | W7: 0 | X7: 0 | Y7: 0 | Z7: 0 | AA7: 0 | AB7: 5 | AC7: 0 | AD7: 0 | AE7: 0 | AF7: 0 | AG7: 0 | AH7: 5 | AI7: 0 | AJ7: 0 | AK7: 0 | AL7: 0 | AM7: 0
F8: 2 | N8: 41035 | O8: Brightwell-Cum-Sotwell | P8: Cancelled (Rain) | Q8: Away | R8: 0 | S8: 0 | T8: 0 | U8: 0 | V8: 0 | W8: 0 | X8: 0 | Y8: 0 | Z8: 0 | AA8: 0 | AB8: 6 | AC8: 0 | AD8: 0 | AE8: 0 | AF8: 0 | AG8: 0 | AH8: 6 | AI8: 0 | AJ8: 0 | AK8: 0 | AL8: 0 | AM8: 0
C9: Match Status | D9: Cancelled (Rain) | F9: 3 | N9: 41035 | O9: Brightwell-Cum-Sotwell | P9: Cancelled (Rain) | Q9: Away | R9: 0 | S9: 0 | T9: 0 | U9: 0 | V9: 0 | W9: 0 | X9: 0 | Y9: 0 | Z9: 0 | AA9: 0 | AB9: 7 | AC9: 0 | AD9: 0 | AE9: 0 | AF9: 0 | AG9: 0 | AH9: 7 | AI9: 0 | AJ9: 0 | AK9: 0 | AL9: 0 | AM9: 0
F10: 4 | N10: 41035 | O10: Brightwell-Cum-Sotwell | P10: Cancelled (Rain) | Q10: Away | R10: 0 | S10: 0 | T10: 0 | U10: 0 | V10: 0 | W10: 0 | X10: 0 | Y10: 0 | Z10: 0 | AA10: 0 | AB10: 8 | AC10: 0 | AD10: 0 | AE10: 0 | AF10: 0 | AG10: 0 | AH10: 8 | AI10: 0 | AJ10: 0 | AK10: 0 | AL10: 0 | AM10: 0
C11: Home / Away | D11: Away | F11: 5 | N11: 41035 | O11: Brightwell-Cum-Sotwell | P11: Cancelled (Rain) | Q11: Away | R11: 0 | S11: 0 | T11: 0 | U11: 0 | V11: 0 | W11: 0 | X11: 0 | Y11: 0 | Z11: 0 | AA11: 0 | AB11: 9 | AC11: 0 | AD11: 0 | AE11: 0 | AF11: 0 | AG11: 0 | AH11: 9 | AI11: 0 | AJ11: 0 | AK11: 0 | AL11: 0 | AM11: 0
F12: 6 | N12: 41035 | O12: Brightwell-Cum-Sotwell | P12: Cancelled (Rain) | Q12: Away | R12: 0 | S12: 0 | T12: 0 | U12: 0 | V12: 0 | W12: 0 | X12: 0 | Y12: 0 | Z12: 0 | AA12: 0 | AB12: 10 | AC12: 0 | AD12: 0 | AE12: 0 | AF12: 0 | AG12: 0 | AH12: 10 | AI12: 0 | AJ12: 0 | AK12: 0 | AL12: 0 | AM12: 0
C13: TPCC Batting First | F13: 7 | N13: 41035 | O13: Brightwell-Cum-Sotwell | P13: Cancelled (Rain) | Q13: Away | R13: 0 | S13: 0 | T13: 0 | U13: 0 | V13: 0 | W13: 0 | X13: 0 | Y13: 0 | Z13: 0 | AA13: 0 | AB13: 11 | AC13: 0 | AD13: 0 | AE13: 0 | AF13: 0 | AG13: 0 | AH13: 11 | AI13: 0 | AJ13: 0 | AK13: 0 | AL13: 0 | AM13: 0
F14: 8
C15: TPCC Team Score | D15: =SUM(H7:H17)+H19 -> 0 | F15: 9
C16: TPCC Team Wickets | D16: =SUM(I7:I17) -> 0 | F16: 10
F17: 11
C18: Opposition Team Score | D18: =SUM(K24:K34)+H36 -> 0
C19: Opposition Team Wickets | D19: =SUM(J24:J34) -> 0 | F19: Batting Extras
C21: TPCC Overs Bowled | D21: =SUM(H24:H34) -> 0
C22: Opposition Overs Bowled | F22: Bowling
F23: Position | G23: Name | H23: Overs | I23: Maidens | J23: Wickets | K23: Runs
C24: TPCC Captain | F24: 1
F25: 2
F26: 3
F27: 4
F28: 5
F29: 6
F30: 7
F31: 8
F32: 9
F33: 10
F34: 11
F36: Bowling Extras

Sheet Greys Green (1)
N2: Date | O2: Opposition | P2: Match Status | Q2: Home/Away | R2: Captain | S2: TPCC Batting First | T2: TPCC Team Score | U2: TPCC Team Wickets | V2: Opposition Team Score | W2: Opposition Team Wickets | X2: TPCC Overs Bowled | Y2: TPCC Overs Faced | Z2: Batting Extras | AA2: Bowling Extras | AB2: Batsmen Position | AC2: Batsmen Name | AD2: Batsmen Runs | AE2: Batsmen Out | AF2: 50 | AG2: 100 | AH2: Bowler Position | AI2: Bowler Name | AJ2: Bowler Overs | AK2: Bowler Maidens | AL2: Bowler Wickets | AM2: Bowler Runs
C3: Match Overview | N3: =$D$5 -> 41041 | O3: =$D$7 -> Greys Green (1) | P3: =$D$9 -> Cancelled (Rain) | Q3: =$D$11 -> Home | R3: =$D$24 -> 0 | S3: =$D$13 -> 0 | T3: =$D$15 -> 0 | U3: =$D$16 -> 0 | V3: =$D$18 -> 0 | W3: =$D$19 -> 0 | X3: =$D$21 -> 0 | Y3: =$D$22 -> 0 | Z3: =$H$19 -> 0 | AA3: =$H$36 -> 0 | AB3: =F7 -> 1 | AC3: =G7 -> 0 | AD3: =H7 -> 0 | AE3: =I7 -> 0 | AF3: =(IF(AD3>49,1,0))-AG3 -> 0 | AG3: =IF(AD3>99,1,0) -> 0 | AH3: =F24 -> 1 | AI3: =G24 -> 0 | AJ3: 0 | AK3: 0 | AL3: 0 | AM3: 0
N4: 41041 | O4: Greys Green (1) | P4: Cancelled (Rain) | Q4: Home | R4: =$D$24 -> 0 | S4: 0 | T4: 0 | U4: 0 | V4: 0 | W4: 0 | X4: 0 | Y4: 0 | Z4: 0 | AA4: 0 | AB4: =F8 -> 2 | AC4: 0 | AD4: 0 | AE4: 0 | AF4: =(IF(AD4>49,1,0))-AG4 -> 0 | AG4: =IF(AD4>99,1,0) -> 0 | AH4: =F25 -> 2 | AI4: 0 | AJ4: 0 | AK4: 0 | AL4: 0 | AM4: 0
C5: Date | D5: 2012-05-12 | F5: Batting | N5: 41041 | O5: Greys Green (1) | P5: Cancelled (Rain) | Q5: Home | R5: 0 | S5: 0 | T5: 0 | U5: 0 | V5: 0 | W5: 0 | X5: 0 | Y5: 0 | Z5: 0 | AA5: 0 | AB5: 3 | AC5: 0 | AD5: 0 | AE5: 0 | AF5: 0 | AG5: 0 | AH5: 3 | AI5: 0 | AJ5: 0 | AK5: 0 | AL5: 0 | AM5: 0
F6: Position | G6: Name | H6: Runs | I6: Out | N6: 41041 | O6: Greys Green (1) | P6: Cancelled (Rain) | Q6: Home | R6: 0 | S6: 0 | T6: 0 | U6: 0 | V6: 0 | W6: 0 | X6: 0 | Y6: 0 | Z6: 0 | AA6: 0 | AB6: 4 | AC6: 0 | AD6: 0 | AE6: 0 | AF6: 0 | AG6: 0 | AH6: 4 | AI6: 0 | AJ6: 0 | AK6: 0 | AL6: 0 | AM6: 0
C7: Opposition | D7: Greys Green (1) | F7: 1 | N7: 41041 | O7: Greys Green (1) | P7: Cancelled (Rain) | Q7: Home | R7: 0 | S7: 0 | T7: 0 | U7: 0 | V7: 0 | W7: 0 | X7: 0 | Y7: 0 | Z7: 0 | AA7: 0 | AB7: 5 | AC7: 0 | AD7: 0 | AE7: 0 | AF7: 0 | AG7: 0 | AH7: 5 | AI7: 0 | AJ7: 0 | AK7: 0 | AL7: 0 | AM7: 0
F8: 2 | N8: 41041 | O8: Greys Green (1) | P8: Cancelled (Rain) | Q8: Home | R8: 0 | S8: 0 | T8: 0 | U8: 0 | V8: 0 | W8: 0 | X8: 0 | Y8: 0 | Z8: 0 | AA8: 0 | AB8: 6 | AC8: 0 | AD8: 0 | AE8: 0 | AF8: 0 | AG8: 0 | AH8: 6 | AI8: 0 | AJ8: 0 | AK8: 0 | AL8: 0 | AM8: 0
C9: Match Status | D9: Cancelled (Rain) | F9: 3 | N9: 41041 | O9: Greys Green (1) | P9: Cancelled (Rain) | Q9: Home | R9: 0 | S9: 0 | T9: 0 | U9: 0 | V9: 0 | W9: 0 | X9: 0 | Y9: 0 | Z9: 0 | AA9: 0 | AB9: 7 | AC9: 0 | AD9: 0 | AE9: 0 | AF9: 0 | AG9: 0 | AH9: 7 | AI9: 0 | AJ9: 0 | AK9: 0 | AL9: 0 | AM9: 0
F10: 4 | N10: 41041 | O10: Greys Green (1) | P10: Cancelled (Rain) | Q10: Home | R10: 0 | S10: 0 | T10: 0 | U10: 0 | V10: 0 | W10: 0 | X10: 0 | Y10: 0 | Z10: 0 | AA10: 0 | AB10: 8 | AC10: 0 | AD10: 0 | AE10: 0 | AF10: 0 | AG10: 0 | AH10: 8 | AI10: 0 | AJ10: 0 | AK10: 0 | AL10: 0 | AM10: 0
C11: Home / Away | D11: Home | F11: 5 | N11: 41041 | O11: Greys Green (1) | P11: Cancelled (Rain) | Q11: Home | R11: 0 | S11: 0 | T11: 0 | U11: 0 | V11: 0 | W11: 0 | X11: 0 | Y11: 0 | Z11: 0 | AA11: 0 | AB11: 9 | AC11: 0 | AD11: 0 | AE11: 0 | AF11: 0 | AG11: 0 | AH11: 9 | AI11: 0 | AJ11: 0 | AK11: 0 | AL11: 0 | AM11: 0
F12: 6 | N12: 41041 | O12: Greys Green (1) | P12: Cancelled (Rain) | Q12: Home | R12: 0 | S12: 0 | T12: 0 | U12: 0 | V12: 0 | W12: 0 | X12: 0 | Y12: 0 | Z12: 0 | AA12: 0 | AB12: 10 | AC12: 0 | AD12: 0 | AE12: 0 | AF12: 0 | AG12: 0 | AH12: 10 | AI12: 0 | AJ12: 0 | AK12: 0 | AL12: 0 | AM12: 0
C13: TPCC Batting First | F13: 7 | N13: 41041 | O13: Greys Green (1) | P13: Cancelled (Rain) | Q13: Home | R13: 0 | S13: 0 | T13: 0 | U13: 0 | V13: 0 | W13: 0 | X13: 0 | Y13: 0 | Z13: 0 | AA13: 0 | AB13: 11 | AC13: 0 | AD13: 0 | AE13: 0 | AF13: 0 | AG13: 0 | AH13: 11 | AI13: 0 | AJ13: 0 | AK13: 0 | AL13: 0 | AM13: 0
F14: 8
C15: TPCC Team Score | D15: =SUM(H7:H17)+H19 -> 0 | F15: 9
C16: TPCC Team Wickets | D16: =SUM(I7:I17) -> 0 | F16: 10
F17: 11
C18: Opposition Team Score | D18: =SUM(K24:K34)+H36 -> 0
C19: Opposition Team Wickets | D19: =SUM(J24:J34) -> 0 | F19: Batting Extras
C21: TPCC Overs Bowled | D21: =SUM(H24:H34) -> 0
C22: Opposition Overs Bowled | F22: Bowling
F23: Position | G23: Name | H23: Overs | I23: Maidens | J23: Wickets | K23: Runs
C24: TPCC Captain | F24: 1
F25: 2
F26: 3
F27: 4
F28: 5
F29: 6
F30: 7
F31: 8
F32: 9
F33: 10
F34: 11
F36: Bowling Extras

Sheet Crazies Hill & Cockpole Green
N2: Date | O2: Opposition | P2: Match Status | Q2: Home/Away | R2: Captain | S2: TPCC Batting First | T2: TPCC Team Score | U2: TPCC Team Wickets | V2: Opposition Team Score | W2: Opposition Team Wickets | X2: TPCC Overs Bowled | Y2: TPCC Overs Faced | Z2: Batting Extras | AA2: Bowling Extras | AB2: Batsmen Position | AC2: Batsmen Name | AD2: Batsmen Runs | AE2: Batsmen Out | AF2: 50 | AG2: 100 | AH2: Bowler Position | AI2: Bowler Name | AJ2: Bowler Overs | AK2: Bowler Maidens | AL2: Bowler Wickets | AM2: Bowler Runs
C3: Match Overview | N3: =$D$5 -> 41048 | O3: =$D$7 -> Crazies Hill | P3: =$D$9 -> Win | Q3: =$D$11 -> Home | R3: =$D$24 -> T. White | S3: =$D$13 -> Second | T3: =$D$15 -> 178 | U3: =$D$16 -> 6 | V3: =$D$18 -> 177 | W3: =$D$19 -> 3 | X3: =$D$21 -> 49 | Y3: =$D$22 -> 36 | Z3: =$H$19 -> 6 | AA3: =$H$36 -> 6 | AB3: =F7 -> 1 | AC3: =G7 -> C. Simon | AD3: =H7 -> 5 | AE3: =I7 -> 1 | AF3: =(IF(AD3>49,1,0))-AG3 -> 0 | AG3: =IF(AD3>99,1,0) -> 0 | AH3: =F24 -> 1 | AI3: =G24 -> N. Henry | AJ3: 9 | AK3: 3 | AL3: 0 | AM3: 19
N4: 41048 | O4: Crazies Hill | P4: Win | Q4: Home | R4: =$D$24 -> T. White | S4: Second | T4: 178 | U4: 6 | V4: 177 | W4: 3 | X4: 49 | Y4: 36 | Z4: 6 | AA4: 6 | AB4: =F8 -> 2 | AC4: S. Halfhead | AD4: 13 | AE4: 1 | AF4: =(IF(AD4>49,1,0))-AG4 -> 0 | AG4: =IF(AD4>99,1,0) -> 0 | AH4: =F25 -> 2 | AI4: T. White | AJ4: 7 | AK4: 2 | AL4: 0 | AM4: 10
C5: Date | D5: 2012-05-19 | F5: Batting | N5: 41048 | O5: Crazies Hill | P5: Win | Q5: Home | R5: T. White | S5: Second | T5: 178 | U5: 6 | V5: 177 | W5: 3 | X5: 49 | Y5: 36 | Z5: 6 | AA5: 6 | AB5: 3 | AC5: J. Hunt | AD5: 80 | AE5: 0 | AF5: 1 | AG5: 0 | AH5: 3 | AI5: J. Hunt | AJ5: 11 | AK5: 2 | AL5: 0 | AM5: 26
F6: Position | G6: Name | H6: Runs | I6: Out | N6: 41048 | O6: Crazies Hill | P6: Win | Q6: Home | R6: T. White | S6: Second | T6: 178 | U6: 6 | V6: 177 | W6: 3 | X6: 49 | Y6: 36 | Z6: 6 | AA6: 6 | AB6: 4 | AC6: R. Gunn | AD6: 16 | AE6: 1 | AF6: 0 | AG6: 0 | AH6: 4 | AI6: M. Kemp | AJ6: 12 | AK6: 1 | AL6: 1 | AM6: 62
C7: Opposition | D7: Crazies Hill | F7: 1 | G7: C. Simon | H7: 5 | I7: 1 | N7: 41048 | O7: Crazies Hill | P7: Win | Q7: Home | R7: T. White | S7: Second | T7: 178 | U7: 6 | V7: 177 | W7: 3 | X7: 49 | Y7: 36 | Z7: 6 | AA7: 6 | AB7: 5 | AC7: Ro. Dickie | AD7: 33 | AE7: 1 | AF7: 0 | AG7: 0 | AH7: 5 | AI7: J. Reid | AJ7: 2 | AK7: 0 | AL7: 0 | AM7: 19
F8: 2 | G8: S. Halfhead | H8: 13 | I8: 1 | N8: 41048 | O8: Crazies Hill | P8: Win | Q8: Home | R8: T. White | S8: Second | T8: 178 | U8: 6 | V8: 177 | W8: 3 | X8: 49 | Y8: 36 | Z8: 6 | AA8: 6 | AB8: 6 | AC8: J. Reid | AD8: 0 | AE8: 1 | AF8: 0 | AG8: 0 | AH8: 6 | AI8: S. Halfhead | AJ8: 6 | AK8: 0 | AL8: 1 | AM8: 21
C9: Match Status | D9: Win | F9: 3 | G9: J. Hunt | H9: 80 | I9: 0 | N9: 41048 | O9: Crazies Hill | P9: Win | Q9: Home | R9: T. White | S9: Second | T9: 178 | U9: 6 | V9: 177 | W9: 3 | X9: 49 | Y9: 36 | Z9: 6 | AA9: 6 | AB9: 7 | AC9: N. Henry | AD9: 20 | AE9: 1 | AF9: 0 | AG9: 0 | AH9: 7 | AI9: Ro. Dickie | AJ9: 2 | AK9: 0 | AL9: 1 | AM9: 14
F10: 4 | G10: R. Gunn | H10: 16 | I10: 1 | N10: 41048 | O10: Crazies Hill | P10: Win | Q10: Home | R10: T. White | S10: Second | T10: 178 | U10: 6 | V10: 177 | W10: 3 | X10: 49 | Y10: 36 | Z10: 6 | AA10: 6 | AB10: 8 | AC10: M. Kemp | AD10: 5 | AE10: 0 | AF10: 0 | AG10: 0 | AH10: 8 | AI10: 0 | AJ10: 0 | AK10: 0 | AL10: 0 | AM10: 0
C11: Home / Away | D11: Home | F11: 5 | G11: Ro. Dickie | H11: 33 | I11: 1 | N11: 41048 | O11: Crazies Hill | P11: Win | Q11: Home | R11: T. White | S11: Second | T11: 178 | U11: 6 | V11: 177 | W11: 3 | X11: 49 | Y11: 36 | Z11: 6 | AA11: 6 | AB11: 9 | AC11: 0 | AD11: 0 | AE11: 0 | AF11: 0 | AG11: 0 | AH11: 9 | AI11: 0 | AJ11: 0 | AK11: 0 | AL11: 0 | AM11: 0
F12: 6 | G12: J. Reid | H12: 0 | I12: 1 | N12: 41048 | O12: Crazies Hill | P12: Win | Q12: Home | R12: T. White | S12: Second | T12: 178 | U12: 6 | V12: 177 | W12: 3 | X12: 49 | Y12: 36 | Z12: 6 | AA12: 6 | AB12: 10 | AC12: 0 | AD12: 0 | AE12: 0 | AF12: 0 | AG12: 0 | AH12: 10 | AI12: 0 | AJ12: 0 | AK12: 0 | AL12: 0 | AM12: 0
C13: TPCC Batting First | D13: Second | F13: 7 | G13: N. Henry | H13: 20 | I13: 1 | N13: 41048 | O13: Crazies Hill | P13: Win | Q13: Home | R13: T. White | S13: Second | T13: 178 | U13: 6 | V13: 177 | W13: 3 | X13: 49 | Y13: 36 | Z13: 6 | AA13: 6 | AB13: 11 | AC13: 0 | AD13: 0 | AE13: 0 | AF13: 0 | AG13: 0 | AH13: 11 | AI13: 0 | AJ13: 0 | AK13: 0 | AL13: 0 | AM13: 0
F14: 8 | G14: M. Kemp | H14: 5 | I14: 0
C15: TPCC Team Score | D15: =SUM(H7:H17)+H19 -> 178 | F15: 9
C16: TPCC Team Wickets | D16: =SUM(I7:I17) -> 6 | F16: 10
F17: 11
C18: Opposition Team Score | D18: =SUM(K24:K34)+H36 -> 177
C19: Opposition Team Wickets | D19: =SUM(J24:J34) -> 3 | F19: Batting Extras | H19: 6
C21: TPCC Overs Bowled | D21: =SUM(H24:H34) -> 49
C22: Opposition Overs Bowled | D22: 36 | F22: Bowling
F23: Position | G23: Name | H23: Overs | I23: Maidens | J23: Wickets | K23: Runs
C24: TPCC Captain | D24: T. White | F24: 1 | G24: N. Henry | H24: 9 | I24: 3 | J24: 0 | K24: 19
F25: 2 | G25: T. White | H25: 7 | I25: 2 | J25: 0 | K25: 10
F26: 3 | G26: J. Hunt | H26: 11 | I26: 2 | J26: 0 | K26: 26
F27: 4 | G27: M. Kemp | H27: 12 | I27: 1 | J27: 1 | K27: 62
F28: 5 | G28: J. Reid | H28: 2 | I28: 0 | J28: 0 | K28: 19
F29: 6 | G29: S. Halfhead | H29: 6 | I29: 0 | J29: 1 | K29: 21
F30: 7 | G30: Ro. Dickie | H30: 2 | I30: 0 | J30: 1 | K30: 14
F31: 8
F32: 9
F33: 10
F34: 11
F36: Bowling Extras | H36: 6

Sheet Britwell Salome
N2: Date | O2: Opposition | P2: Match Status | Q2: Home/Away | R2: Captain | S2: TPCC Batting First | T2: TPCC Team Score | U2: TPCC Team Wickets | V2: Opposition Team Score | W2: Opposition Team Wickets | X2: TPCC Overs Bowled | Y2: TPCC Overs Faced | Z2: Batting Extras | AA2: Bowling Extras | AB2: Batsmen Position | AC2: Batsmen Name | AD2: Batsmen Runs | AE2: Batsmen Out | AF2: 50 | AG2: 100 | AH2: Bowler Position | AI2: Bowler Name | AJ2: Bowler Overs | AK2: Bowler Maidens | AL2: Bowler Wickets | AM2: Bowler Runs
C3: Match Overview | N3: =$D$5 -> 41049 | O3: =$D$7 -> Britwell Salome | P3: =$D$9 -> Draw | Q3: =$D$11 -> Home | R3: =$D$24 -> S. Beardall | S3: =$D$13 -> First | T3: =$D$15 -> 217 | U3: =$D$16 -> 3 | V3: =$D$18 -> 163 | W3: =$D$19 -> 3 | X3: =$D$21 -> 39 | Y3: =$D$22 -> 34 | Z3: =$H$19 -> 7 | AA3: =$H$36 -> 1 | AB3: =F7 -> 1 | AC3: =G7 -> S. Beardall | AD3: =H7 -> 60 | AE3: =I7 -> 1 | AF3: =(IF(AD3>49,1,0))-AG3 -> 1 | AG3: =IF(AD3>99,1,0) -> 0 | AH3: =F24 -> 1 | AI3: =G24 -> T. White | AJ3: 9 | AK3: 2 | AL3: 1 | AM3: 22
N4: 41049 | O4: Britwell Salome | P4: Draw | Q4: Home | R4: =$D$24 -> S. Beardall | S4: First | T4: 217 | U4: 3 | V4: 163 | W4: 3 | X4: 39 | Y4: 34 | Z4: 7 | AA4: 1 | AB4: =F8 -> 2 | AC4: J. Moberly | AD4: 3 | AE4: 1 | AF4: =(IF(AD4>49,1,0))-AG4 -> 0 | AG4: =IF(AD4>99,1,0) -> 0 | AH4: =F25 -> 2 | AI4: P. Girdler | AJ4: 5 | AK4: 3 | AL4: 1 | AM4: 3
C5: Date | D5: 2012-05-20 | F5: Batting | N5: 41049 | O5: Britwell Salome | P5: Draw | Q5: Home | R5: S. Beardall | S5: First | T5: 217 | U5: 3 | V5: 163 | W5: 3 | X5: 39 | Y5: 34 | Z5: 7 | AA5: 1 | AB5: 3 | AC5: J. Hancock | AD5: 99 | AE5: 0 | AF5: 1 | AG5: 0 | AH5: 3 | AI5: N. Henry | AJ5: 7 | AK5: 0 | AL5: 0 | AM5: 45
F6: Position | G6: Name | H6: Runs | I6: Out | N6: 41049 | O6: Britwell Salome | P6: Draw | Q6: Home | R6: S. Beardall | S6: First | T6: 217 | U6: 3 | V6: 163 | W6: 3 | X6: 39 | Y6: 34 | Z6: 7 | AA6: 1 | AB6: 4 | AC6: D. Stockings | AD6: 41 | AE6: 1 | AF6: 0 | AG6: 0 | AH6: 4 | AI6: J. Hunt | AJ6: 6 | AK6: 1 | AL6: 0 | AM6: 34
C7: Opposition | D7: Britwell Salome | F7: 1 | G7: S. Beardall | H7: 60 | I7: 1 | N7: 41049 | O7: Britwell Salome | P7: Draw | Q7: Home | R7: S. Beardall | S7: First | T7: 217 | U7: 3 | V7: 163 | W7: 3 | X7: 39 | Y7: 34 | Z7: 7 | AA7: 1 | AB7: 5 | AC7: P. Girdler | AD7: 7 | AE7: 0 | AF7: 0 | AG7: 0 | AH7: 5 | AI7: J. Hancock | AJ7: 4 | AK7: 0 | AL7: 1 | AM7: 18
F8: 2 | G8: J. Moberly | H8: 3 | I8: 1 | N8: 41049 | O8: Britwell Salome | P8: Draw | Q8: Home | R8: S. Beardall | S8: First | T8: 217 | U8: 3 | V8: 163 | W8: 3 | X8: 39 | Y8: 34 | Z8: 7 | AA8: 1 | AB8: 6 | AC8: 0 | AD8: 0 | AE8: 0 | AF8: 0 | AG8: 0 | AH8: 6 | AI8: C. Henry | AJ8: 5 | AK8: 0 | AL8: 0 | AM8: 21
C9: Match Status | D9: Draw | F9: 3 | G9: J. Hancock | H9: 99 | I9: 0 | N9: 41049 | O9: Britwell Salome | P9: Draw | Q9: Home | R9: S. Beardall | S9: First | T9: 217 | U9: 3 | V9: 163 | W9: 3 | X9: 39 | Y9: 34 | Z9: 7 | AA9: 1 | AB9: 7 | AC9: 0 | AD9: 0 | AE9: 0 | AF9: 0 | AG9: 0 | AH9: 7 | AI9: D. Stockings | AJ9: 2 | AK9: 0 | AL9: 0 | AM9: 19
F10: 4 | G10: D. Stockings | H10: 41 | I10: 1 | N10: 41049 | O10: Britwell Salome | P10: Draw | Q10: Home | R10: S. Beardall | S10: First | T10: 217 | U10: 3 | V10: 163 | W10: 3 | X10: 39 | Y10: 34 | Z10: 7 | AA10: 1 | AB10: 8 | AC10: 0 | AD10: 0 | AE10: 0 | AF10: 0 | AG10: 0 | AH10: 8 | AI10: J. Moberly | AJ10: 1 | AK10: 1 | AL10: 0 | AM10: 0
C11: Home / Away | D11: Home | F11: 5 | G11: P. Girdler | H11: 7 | I11: 0 | N11: 41049 | O11: Britwell Salome | P11: Draw | Q11: Home | R11: S. Beardall | S11: First | T11: 217 | U11: 3 | V11: 163 | W11: 3 | X11: 39 | Y11: 34 | Z11: 7 | AA11: 1 | AB11: 9 | AC11: 0 | AD11: 0 | AE11: 0 | AF11: 0 | AG11: 0 | AH11: 9 | AI11: 0 | AJ11: 0 | AK11: 0 | AL11: 0 | AM11: 0
F12: 6 | N12: 41049 | O12: Britwell Salome | P12: Draw | Q12: Home | R12: S. Beardall | S12: First | T12: 217 | U12: 3 | V12: 163 | W12: 3 | X12: 39 | Y12: 34 | Z12: 7 | AA12: 1 | AB12: 10 | AC12: 0 | AD12: 0 | AE12: 0 | AF12: 0 | AG12: 0 | AH12: 10 | AI12: 0 | AJ12: 0 | AK12: 0 | AL12: 0 | AM12: 0
C13: TPCC Batting First | D13: First | F13: 7 | N13: 41049 | O13: Britwell Salome | P13: Draw | Q13: Home | R13: S. Beardall | S13: First | T13: 217 | U13: 3 | V13: 163 | W13: 3 | X13: 39 | Y13: 34 | Z13: 7 | AA13: 1 | AB13: 11 | AC13: 0 | AD13: 0 | AE13: 0 | AF13: 0 | AG13: 0 | AH13: 11 | AI13: 0 | AJ13: 0 | AK13: 0 | AL13: 0 | AM13: 0
F14: 8
C15: TPCC Team Score | D15: =SUM(H7:H17)+H19 -> 217 | F15: 9
C16: TPCC Team Wickets | D16: =SUM(I7:I17) -> 3 | F16: 10
F17: 11
C18: Opposition Team Score | D18: =SUM(K24:K34)+H36 -> 163
C19: Opposition Team Wickets | D19: =SUM(J24:J34) -> 3 | F19: Batting Extras | H19: 7
C21: TPCC Overs Bowled | D21: =SUM(H24:H34) -> 39
C22: Opposition Overs Bowled | D22: 34 | F22: Bowling
F23: Position | G23: Name | H23: Overs | I23: Maidens | J23: Wickets | K23: Runs
C24: TPCC Captain | D24: S. Beardall | F24: 1 | G24: T. White | H24: 9 | I24: 2 | J24: 1 | K24: 22
F25: 2 | G25: P. Girdler | H25: 5 | I25: 3 | J25: 1 | K25: 3
F26: 3 | G26: N. Henry | H26: 7 | I26: 0 | J26: 0 | K26: 45
F27: 4 | G27: J. Hunt | H27: 6 | I27: 1 | J27: 0 | K27: 34
F28: 5 | G28: J. Hancock | H28: 4 | I28: 0 | J28: 1 | K28: 18
F29: 6 | G29: C. Henry | H29: 5 | I29: 0 | J29: 0 | K29: 21
F30: 7 | G30: D. Stockings | H30: 2 | I30: 0 | J30: 0 | K30: 19
F31: 8 | G31: J. Moberly | H31: 1 | I31: 1 | J31: 0 | K31: 0
F32: 9
F33: 10
F34: 11
F36: Bowling Extras | H36: 1

Sheet Harpsden (1)
N2: Date | O2: Opposition | P2: Match Status | Q2: Home/Away | R2: Captain | S2: TPCC Batting First | T2: TPCC Team Score | U2: TPCC Team Wickets | V2: Opposition Team Score | W2: Opposition Team Wickets | X2: TPCC Overs Bowled | Y2: TPCC Overs Faced | Z2: Batting Extras | AA2: Bowling Extras | AB2: Batsmen Position | AC2: Batsmen Name | AD2: Batsmen Runs | AE2: Batsmen Out | AF2: 50 | AG2: 100 | AH2: Bowler Position | AI2: Bowler Name | AJ2: Bowler Overs | AK2: Bowler Maidens | AL2: Bowler Wickets | AM2: Bowler Runs
C3: Match Overview | N3: =$D$5 -> 41055 | O3: =$D$7 -> Harpsden (1) | P3: =$D$9 -> Loss | Q3: =$D$11 -> Away | R3: =$D$24 -> J. Hunt | S3: =$D$13 -> First | T3: =$D$15 -> 150 | U3: =$D$16 -> 10 | V3: =$D$18 -> 151 | W3: =$D$19 -> 7 | X3: =$D$21 -> 33 | Y3: =$D$22 -> 38 | Z3: =$H$19 -> 16 | AA3: =$H$36 -> 25 | AB3: =F7 -> 1 | AC3: =G7 -> C. Simon | AD3: =H7 -> 21 | AE3: =I7 -> 1 | AF3: =(IF(AD3>49,1,0))-AG3 -> 0 | AG3: =IF(AD3>99,1,0) -> 0 | AH3: =F24 -> 1 | AI3: =G24 -> N. Henry | AJ3: 9 | AK3: 2 | AL3: 0 | AM3: 36
N4: 41055 | O4: Harpsden (1) | P4: Loss | Q4: Away | R4: =$D$24 -> J. Hunt | S4: First | T4: 150 | U4: 10 | V4: 151 | W4: 7 | X4: 33 | Y4: 38 | Z4: 16 | AA4: 25 | AB4: =F8 -> 2 | AC4: Ro. Dickie | AD4: 26 | AE4: 1 | AF4: =(IF(AD4>49,1,0))-AG4 -> 0 | AG4: =IF(AD4>99,1,0) -> 0 | AH4: =F25 -> 2 | AI4: J. Hunt | AJ4: 8 | AK4: 0 | AL4: 2 | AM4: 27
C5: Date | D5: 2012-05-26 | F5: Batting | N5: 41055 | O5: Harpsden (1) | P5: Loss | Q5: Away | R5: J. Hunt | S5: First | T5: 150 | U5: 10 | V5: 151 | W5: 7 | X5: 33 | Y5: 38 | Z5: 16 | AA5: 25 | AB5: 3 | AC5: S. Bucknill | AD5: 5 | AE5: 1 | AF5: 0 | AG5: 0 | AH5: 3 | AI5: N. Runkel | AJ5: 6 | AK5: 0 | AL5: 3 | AM5: 21
F6: Position | G6: Name | H6: Runs | I6: Out | N6: 41055 | O6: Harpsden (1) | P6: Loss | Q6: Away | R6: J. Hunt | S6: First | T6: 150 | U6: 10 | V6: 151 | W6: 7 | X6: 33 | Y6: 38 | Z6: 16 | AA6: 25 | AB6: 4 | AC6: J. Hunt | AD6: 53 | AE6: 1 | AF6: 1 | AG6: 0 | AH6: 4 | AI6: C. Henry | AJ6: 7 | AK6: 0 | AL6: 2 | AM6: 28
C7: Opposition | D7: Harpsden (1) | F7: 1 | G7: C. Simon | H7: 21 | I7: 1 | N7: 41055 | O7: Harpsden (1) | P7: Loss | Q7: Away | R7: J. Hunt | S7: First | T7: 150 | U7: 10 | V7: 151 | W7: 7 | X7: 33 | Y7: 38 | Z7: 16 | AA7: 25 | AB7: 5 | AC7: P. Briffett | AD7: 0 | AE7: 1 | AF7: 0 | AG7: 0 | AH7: 5 | AI7: Ra. Dickie | AJ7: 2 | AK7: 0 | AL7: 0 | AM7: 5
F8: 2 | G8: Ro. Dickie | H8: 26 | I8: 1 | N8: 41055 | O8: Harpsden (1) | P8: Loss | Q8: Away | R8: J. Hunt | S8: First | T8: 150 | U8: 10 | V8: 151 | W8: 7 | X8: 33 | Y8: 38 | Z8: 16 | AA8: 25 | AB8: 6 | AC8: J. Moberly | AD8: 4 | AE8: 1 | AF8: 0 | AG8: 0 | AH8: 6 | AI8: P. Briffett | AJ8: 1 | AK8: 0 | AL8: 0 | AM8: 9
C9: Match Status | D9: Loss | F9: 3 | G9: S. Bucknill | H9: 5 | I9: 1 | N9: 41055 | O9: Harpsden (1) | P9: Loss | Q9: Away | R9: J. Hunt | S9: First | T9: 150 | U9: 10 | V9: 151 | W9: 7 | X9: 33 | Y9: 38 | Z9: 16 | AA9: 25 | AB9: 7 | AC9: D. Mackey | AD9: 0 | AE9: 1 | AF9: 0 | AG9: 0 | AH9: 7 | AI9: 0 | AJ9: 0 | AK9: 0 | AL9: 0 | AM9: 0
F10: 4 | G10: J. Hunt | H10: 53 | I10: 1 | N10: 41055 | O10: Harpsden (1) | P10: Loss | Q10: Away | R10: J. Hunt | S10: First | T10: 150 | U10: 10 | V10: 151 | W10: 7 | X10: 33 | Y10: 38 | Z10: 16 | AA10: 25 | AB10: 8 | AC10: N. Runkel | AD10: 7 | AE10: 1 | AF10: 0 | AG10: 0 | AH10: 8 | AI10: 0 | AJ10: 0 | AK10: 0 | AL10: 0 | AM10: 0
C11: Home / Away | D11: Away | F11: 5 | G11: P. Briffett | H11: 0 | I11: 1 | N11: 41055 | O11: Harpsden (1) | P11: Loss | Q11: Away | R11: J. Hunt | S11: First | T11: 150 | U11: 10 | V11: 151 | W11: 7 | X11: 33 | Y11: 38 | Z11: 16 | AA11: 25 | AB11: 9 | AC11: C. Henry | AD11: 5 | AE11: 0 | AF11: 0 | AG11: 0 | AH11: 9 | AI11: 0 | AJ11: 0 | AK11: 0 | AL11: 0 | AM11: 0
F12: 6 | G12: J. Moberly | H12: 4 | I12: 1 | N12: 41055 | O12: Harpsden (1) | P12: Loss | Q12: Away | R12: J. Hunt | S12: First | T12: 150 | U12: 10 | V12: 151 | W12: 7 | X12: 33 | Y12: 38 | Z12: 16 | AA12: 25 | AB12: 10 | AC12: Ra. Dickie | AD12: 4 | AE12: 1 | AF12: 0 | AG12: 0 | AH12: 10 | AI12: 0 | AJ12: 0 | AK12: 0 | AL12: 0 | AM12: 0
C13: TPCC Batting First | D13: First | F13: 7 | G13: D. Mackey | H13: 0 | I13: 1 | N13: 41055 | O13: Harpsden (1) | P13: Loss | Q13: Away | R13: J. Hunt | S13: First | T13: 150 | U13: 10 | V13: 151 | W13: 7 | X13: 33 | Y13: 38 | Z13: 16 | AA13: 25 | AB13: 11 | AC13: N. Henry | AD13: 9 | AE13: 1 | AF13: 0 | AG13: 0 | AH13: 11 | AI13: 0 | AJ13: 0 | AK13: 0 | AL13: 0 | AM13: 0
F14: 8 | G14: N. Runkel | H14: 7 | I14: 1
C15: TPCC Team Score | D15: =SUM(H7:H17)+H19 -> 150 | F15: 9 | G15: C. Henry | H15: 5 | I15: 0
C16: TPCC Team Wickets | D16: =SUM(I7:I17) -> 10 | F16: 10 | G16: Ra. Dickie | H16: 4 | I16: 1
F17: 11 | G17: N. Henry | H17: 9 | I17: 1
C18: Opposition Team Score | D18: =SUM(K24:K34)+H36 -> 151
C19: Opposition Team Wickets | D19: =SUM(J24:J34) -> 7 | F19: Batting Extras | H19: 16
C21: TPCC Overs Bowled | D21: =SUM(H24:H34) -> 33
C22: Opposition Overs Bowled | D22: 38 | F22: Bowling
F23: Position | G23: Name | H23: Overs | I23: Maidens | J23: Wickets | K23: Runs
C24: TPCC Captain | D24: J. Hunt | F24: 1 | G24: N. Henry | H24: 9 | I24: 2 | J24: 0 | K24: 36
F25: 2 | G25: J. Hunt | H25: 8 | I25: 0 | J25: 2 | K25: 27
F26: 3 | G26: N. Runkel | H26: 6 | I26: 0 | J26: 3 | K26: 21
F27: 4 | G27: C. Henry | H27: 7 | I27: 0 | J27: 2 | K27: 28
F28: 5 | G28: Ra. Dickie | H28: 2 | I28: 0 | J28: 0 | K28: 5
F29: 6 | G29: P. Briffett | H29: 1 | I29: 0 | J29: 0 | K29: 9
F30: 7
F31: 8
F32: 9
F33: 10
F34: 11
F36: Bowling Extras | H36: 25

Sheet Checkendon (1)
N2: Date | O2: Opposition | P2: Match Status | Q2: Home/Away | R2: Captain | S2: TPCC Batting First | T2: TPCC Team Score | U2: TPCC Team Wickets | V2: Opposition Team Score | W2: Opposition Team Wickets | X2: TPCC Overs Bowled | Y2: TPCC Overs Faced | Z2: Batting Extras | AA2: Bowling Extras | AB2: Batsmen Position | AC2: Batsmen Name | AD2: Batsmen Runs | AE2: Batsmen Out | AF2: 50 | AG2: 100 | AH2: Bowler Position | AI2: Bowler Name | AJ2: Bowler Overs | AK2: Bowler Maidens | AL2: Bowler Wickets | AM2: Bowler Runs
C3: Match Overview | N3: =$D$5 -> 41056 | O3: =$D$7 -> Checkendon (1) | P3: =$D$9 -> Win | Q3: =$D$11 -> Home | R3: =$D$24 -> J. Hancock | S3: =$D$13 -> Second | T3: =$D$15 -> 174 | U3: =$D$16 -> 8 | V3: =$D$18 -> 173 | W3: =$D$19 -> 9 | X3: =$D$21 -> 45 | Y3: =$D$22 -> 40 | Z3: =$H$19 -> 16 | AA3: =$H$36 -> 7 | AB3: =F7 -> 1 | AC3: =G7 -> O. Brett | AD3: =H7 -> 3 | AE3: =I7 -> 1 | AF3: =(IF(AD3>49,1,0))-AG3 -> 0 | AG3: =IF(AD3>99,1,0) -> 0 | AH3: =F24 -> 1 | AI3: =G24 -> N. Henry | AJ3: 18 | AK3: 6 | AL3: 3 | AM3: 52
N4: 41056 | O4: Checkendon (1) | P4: Win | Q4: Home | R4: =$D$24 -> J. Hancock | S4: Second | T4: 174 | U4: 8 | V4: 173 | W4: 9 | X4: 45 | Y4: 40 | Z4: 16 | AA4: 7 | AB4: =F8 -> 2 | AC4: T. Wade | AD4: 0 | AE4: 1 | AF4: =(IF(AD4>49,1,0))-AG4 -> 0 | AG4: =IF(AD4>99,1,0) -> 0 | AH4: =F25 -> 2 | AI4: H. De Zulueta | AJ4: 5 | AK4: 0 | AL4: 2 | AM4: 29
C5: Date | D5: 2012-05-27 | F5: Batting | N5: 41056 | O5: Checkendon (1) | P5: Win | Q5: Home | R5: J. Hancock | S5: Second | T5: 174 | U5: 8 | V5: 173 | W5: 9 | X5: 45 | Y5: 40 | Z5: 16 | AA5: 7 | AB5: 3 | AC5: R. Gunn | AD5: 13 | AE5: 1 | AF5: 0 | AG5: 0 | AH5: 3 | AI5: J. Kleiner-Mann | AJ5: 3 | AK5: 0 | AL5: 1 | AM5: 6
F6: Position | G6: Name | H6: Runs | I6: Out | N6: 41056 | O6: Checkendon (1) | P6: Win | Q6: Home | R6: J. Hancock | S6: Second | T6: 174 | U6: 8 | V6: 173 | W6: 9 | X6: 45 | Y6: 40 | Z6: 16 | AA6: 7 | AB6: 4 | AC6: J. Kleiner-Mann | AD6: 1 | AE6: 1 | AF6: 0 | AG6: 0 | AH6: 4 | AI6: C. Henry | AJ6: 7 | AK6: 0 | AL6: 0 | AM6: 25
C7: Opposition | D7: Checkendon (1) | F7: 1 | G7: O. Brett | H7: 3 | I7: 1 | N7: 41056 | O7: Checkendon (1) | P7: Win | Q7: Home | R7: J. Hancock | S7: Second | T7: 174 | U7: 8 | V7: 173 | W7: 9 | X7: 45 | Y7: 40 | Z7: 16 | AA7: 7 | AB7: 5 | AC7: J. Hancock | AD7: 101 | AE7: 0 | AF7: 0 | AG7: 1 | AH7: 5 | AI7: J. Leefe | AJ7: 6 | AK7: 0 | AL7: 1 | AM7: 14
F8: 2 | G8: T. Wade | H8: 0 | I8: 1 | N8: 41056 | O8: Checkendon (1) | P8: Win | Q8: Home | R8: J. Hancock | S8: Second | T8: 174 | U8: 8 | V8: 173 | W8: 9 | X8: 45 | Y8: 40 | Z8: 16 | AA8: 7 | AB8: 6 | AC8: J. Leefe | AD8: 13 | AE8: 1 | AF8: 0 | AG8: 0 | AH8: 6 | AI8: O. Brett | AJ8: 3 | AK8: 0 | AL8: 1 | AM8: 31
C9: Match Status | D9: Win | F9: 3 | G9: R. Gunn | H9: 13 | I9: 1 | N9: 41056 | O9: Checkendon (1) | P9: Win | Q9: Home | R9: J. Hancock | S9: Second | T9: 174 | U9: 8 | V9: 173 | W9: 9 | X9: 45 | Y9: 40 | Z9: 16 | AA9: 7 | AB9: 7 | AC9: J. Moberly | AD9: 14 | AE9: 1 | AF9: 0 | AG9: 0 | AH9: 7 | AI9: J. Moberly | AJ9: 3 | AK9: 0 | AL9: 1 | AM9: 9
F10: 4 | G10: J. Kleiner-Mann | H10: 1 | I10: 1 | N10: 41056 | O10: Checkendon (1) | P10: Win | Q10: Home | R10: J. Hancock | S10: Second | T10: 174 | U10: 8 | V10: 173 | W10: 9 | X10: 45 | Y10: 40 | Z10: 16 | AA10: 7 | AB10: 8 | AC10: H. De Zulueta | AD10: 6 | AE10: 1 | AF10: 0 | AG10: 0 | AH10: 8 | AI10: 0 | AJ10: 0 | AK10: 0 | AL10: 0 | AM10: 0
C11: Home / Away | D11: Home | F11: 5 | G11: J. Hancock | H11: 101 | I11: 0 | N11: 41056 | O11: Checkendon (1) | P11: Win | Q11: Home | R11: J. Hancock | S11: Second | T11: 174 | U11: 8 | V11: 173 | W11: 9 | X11: 45 | Y11: 40 | Z11: 16 | AA11: 7 | AB11: 9 | AC11: C. Henry | AD11: 2 | AE11: 1 | AF11: 0 | AG11: 0 | AH11: 9 | AI11: 0 | AJ11: 0 | AK11: 0 | AL11: 0 | AM11: 0
F12: 6 | G12: J. Leefe | H12: 13 | I12: 1 | N12: 41056 | O12: Checkendon (1) | P12: Win | Q12: Home | R12: J. Hancock | S12: Second | T12: 174 | U12: 8 | V12: 173 | W12: 9 | X12: 45 | Y12: 40 | Z12: 16 | AA12: 7 | AB12: 10 | AC12: N. Henry | AD12: 5 | AE12: 0 | AF12: 0 | AG12: 0 | AH12: 10 | AI12: 0 | AJ12: 0 | AK12: 0 | AL12: 0 | AM12: 0
C13: TPCC Batting First | D13: Second | F13: 7 | G13: J. Moberly | H13: 14 | I13: 1 | N13: 41056 | O13: Checkendon (1) | P13: Win | Q13: Home | R13: J. Hancock | S13: Second | T13: 174 | U13: 8 | V13: 173 | W13: 9 | X13: 45 | Y13: 40 | Z13: 16 | AA13: 7 | AB13: 11 | AC13: 0 | AD13: 0 | AE13: 0 | AF13: 0 | AG13: 0 | AH13: 11 | AI13: 0 | AJ13: 0 | AK13: 0 | AL13: 0 | AM13: 0
F14: 8 | G14: H. De Zulueta | H14: 6 | I14: 1
C15: TPCC Team Score | D15: =SUM(H7:H17)+H19 -> 174 | F15: 9 | G15: C. Henry | H15: 2 | I15: 1
C16: TPCC Team Wickets | D16: =SUM(I7:I17) -> 8 | F16: 10 | G16: N. Henry | H16: 5 | I16: 0
F17: 11
C18: Opposition Team Score | D18: =SUM(K24:K34)+H36 -> 173
C19: Opposition Team Wickets | D19: =SUM(J24:J34) -> 9 | F19: Batting Extras | H19: 16
C21: TPCC Overs Bowled | D21: =SUM(H24:H34) -> 45
C22: Opposition Overs Bowled | D22: 40 | F22: Bowling
F23: Position | G23: Name | H23: Overs | I23: Maidens | J23: Wickets | K23: Runs
C24: TPCC Captain | D24: J. Hancock | F24: 1 | G24: N. Henry | H24: 18 | I24: 6 | J24: 3 | K24: 52
F25: 2 | G25: H. De Zulueta | H25: 5 | I25: 0 | J25: 2 | K25: 29
F26: 3 | G26: J. Kleiner-Mann | H26: 3 | I26: 0 | J26: 1 | K26: 6
F27: 4 | G27: C. Henry | H27: 7 | I27: 0 | J27: 0 | K27: 25
F28: 5 | G28: J. Leefe | H28: 6 | I28: 0 | J28: 1 | K28: 14
F29: 6 | G29: O. Brett | H29: 3 | I29: 0 | J29: 1 | K29: 31
F30: 7 | G30: J. Moberly | H30: 3 | I30: 0 | J30: 1 | K30: 9
F31: 8
F32: 9
F33: 10
F34: 11
F36: Bowling Extras | H36: 7

Sheet Cuxham
N2: Date | O2: Opposition | P2: Match Status | Q2: Home/Away | R2: Captain | S2: TPCC Batting First | T2: TPCC Team Score | U2: TPCC Team Wickets | V2: Opposition Team Score | W2: Opposition Team Wickets | X2: TPCC Overs Bowled | Y2: TPCC Overs Faced | Z2: Batting Extras | AA2: Bowling Extras | AB2: Batsmen Position | AC2: Batsmen Name | AD2: Batsmen Runs | AE2: Batsmen Out | AF2: 50 | AG2: 100 | AH2: Bowler Position | AI2: Bowler Name | AJ2: Bowler Overs | AK2: Bowler Maidens | AL2: Bowler Wickets | AM2: Bowler Runs
C3: Match Overview | N3: =$D$5 -> 41063 | O3: =$D$7 -> Cuxham | P3: =$D$9 -> Cancelled (Rain) | Q3: =$D$11 -> Home | R3: =$D$24 -> 0 | S3: =$D$13 -> 0 | T3: =$D$15 -> 0 | U3: =$D$16 -> 0 | V3: =$D$18 -> 0 | W3: =$D$19 -> 0 | X3: =$D$21 -> 0 | Y3: =$D$22 -> 0 | Z3: =$H$19 -> 0 | AA3: =$H$36 -> 0 | AB3: =F7 -> 1 | AC3: =G7 -> 0 | AD3: =H7 -> 0 | AE3: =I7 -> 0 | AF3: =(IF(AD3>49,1,0))-AG3 -> 0 | AG3: =IF(AD3>99,1,0) -> 0 | AH3: =F24 -> 1 | AI3: =G24 -> 0 | AJ3: 0 | AK3: 0 | AL3: 0 | AM3: 0
N4: 41063 | O4: Cuxham | P4: Cancelled (Rain) | Q4: Home | R4: =$D$24 -> 0 | S4: 0 | T4: 0 | U4: 0 | V4: 0 | W4: 0 | X4: 0 | Y4: 0 | Z4: 0 | AA4: 0 | AB4: =F8 -> 2 | AC4: 0 | AD4: 0 | AE4: 0 | AF4: =(IF(AD4>49,1,0))-AG4 -> 0 | AG4: =IF(AD4>99,1,0) -> 0 | AH4: =F25 -> 2 | AI4: 0 | AJ4: 0 | AK4: 0 | AL4: 0 | AM4: 0
C5: Date | D5: 2012-06-03 | F5: Batting | N5: 41063 | O5: Cuxham | P5: Cancelled (Rain) | Q5: Home | R5: 0 | S5: 0 | T5: 0 | U5: 0 | V5: 0 | W5: 0 | X5: 0 | Y5: 0 | Z5: 0 | AA5: 0 | AB5: 3 | AC5: 0 | AD5: 0 | AE5: 0 | AF5: 0 | AG5: 0 | AH5: 3 | AI5: 0 | AJ5: 0 | AK5: 0 | AL5: 0 | AM5: 0
F6: Position | G6: Name | H6: Runs | I6: Out | N6: 41063 | O6: Cuxham | P6: Cancelled (Rain) | Q6: Home | R6: 0 | S6: 0 | T6: 0 | U6: 0 | V6: 0 | W6: 0 | X6: 0 | Y6: 0 | Z6: 0 | AA6: 0 | AB6: 4 | AC6: 0 | AD6: 0 | AE6: 0 | AF6: 0 | AG6: 0 | AH6: 4 | AI6: 0 | AJ6: 0 | AK6: 0 | AL6: 0 | AM6: 0
C7: Opposition | D7: Cuxham | F7: 1 | N7: 41063 | O7: Cuxham | P7: Cancelled (Rain) | Q7: Home | R7: 0 | S7: 0 | T7: 0 | U7: 0 | V7: 0 | W7: 0 | X7: 0 | Y7: 0 | Z7: 0 | AA7: 0 | AB7: 5 | AC7: 0 | AD7: 0 | AE7: 0 | AF7: 0 | AG7: 0 | AH7: 5 | AI7: 0 | AJ7: 0 | AK7: 0 | AL7: 0 | AM7: 0
F8: 2 | N8: 41063 | O8: Cuxham | P8: Cancelled (Rain) | Q8: Home | R8: 0 | S8: 0 | T8: 0 | U8: 0 | V8: 0 | W8: 0 | X8: 0 | Y8: 0 | Z8: 0 | AA8: 0 | AB8: 6 | AC8: 0 | AD8: 0 | AE8: 0 | AF8: 0 | AG8: 0 | AH8: 6 | AI8: 0 | AJ8: 0 | AK8: 0 | AL8: 0 | AM8: 0
C9: Match Status | D9: Cancelled (Rain) | F9: 3 | N9: 41063 | O9: Cuxham | P9: Cancelled (Rain) | Q9: Home | R9: 0 | S9: 0 | T9: 0 | U9: 0 | V9: 0 | W9: 0 | X9: 0 | Y9: 0 | Z9: 0 | AA9: 0 | AB9: 7 | AC9: 0 | AD9: 0 | AE9: 0 | AF9: 0 | AG9: 0 | AH9: 7 | AI9: 0 | AJ9: 0 | AK9: 0 | AL9: 0 | AM9: 0
F10: 4 | N10: 41063 | O10: Cuxham | P10: Cancelled (Rain) | Q10: Home | R10: 0 | S10: 0 | T10: 0 | U10: 0 | V10: 0 | W10: 0 | X10: 0 | Y10: 0 | Z10: 0 | AA10: 0 | AB10: 8 | AC10: 0 | AD10: 0 | AE10: 0 | AF10: 0 | AG10: 0 | AH10: 8 | AI10: 0 | AJ10: 0 | AK10: 0 | AL10: 0 | AM10: 0
C11: Home / Away | D11: Home | F11: 5 | N11: 41063 | O11: Cuxham | P11: Cancelled (Rain) | Q11: Home | R11: 0 | S11: 0 | T11: 0 | U11: 0 | V11: 0 | W11: 0 | X11: 0 | Y11: 0 | Z11: 0 | AA11: 0 | AB11: 9 | AC11: 0 | AD11: 0 | AE11: 0 | AF11: 0 | AG11: 0 | AH11: 9 | AI11: 0 | AJ11: 0 | AK11: 0 | AL11: 0 | AM11: 0
F12: 6 | N12: 41063 | O12: Cuxham | P12: Cancelled (Rain) | Q12: Home | R12: 0 | S12: 0 | T12: 0 | U12: 0 | V12: 0 | W12: 0 | X12: 0 | Y12: 0 | Z12: 0 | AA12: 0 | AB12: 10 | AC12: 0 | AD12: 0 | AE12: 0 | AF12: 0 | AG12: 0 | AH12: 10 | AI12: 0 | AJ12: 0 | AK12: 0 | AL12: 0 | AM12: 0
C13: TPCC Batting First | F13: 7 | N13: 41063 | O13: Cuxham | P13: Cancelled (Rain) | Q13: Home | R13: 0 | S13: 0 | T13: 0 | U13: 0 | V13: 0 | W13: 0 | X13: 0 | Y13: 0 | Z13: 0 | AA13: 0 | AB13: 11 | AC13: 0 | AD13: 0 | AE13: 0 | AF13: 0 | AG13: 0 | AH13: 11 | AI13: 0 | AJ13: 0 | AK13: 0 | AL13: 0 | AM13: 0
F14: 8
C15: TPCC Team Score | D15: =SUM(H7:H17)+H19 -> 0 | F15: 9
C16: TPCC Team Wickets | D16: =SUM(I7:I17) -> 0 | F16: 10
F17: 11
C18: Opposition Team Score | D18: =SUM(K24:K34)+H36 -> 0
C19: Opposition Team Wickets | D19: =SUM(J24:J34) -> 0 | F19: Batting Extras
C21: TPCC Overs Bowled | D21: =SUM(H24:H34) -> 0
C22: Opposition Overs Bowled | F22: Bowling
F23: Position | G23: Name | H23: Overs | I23: Maidens | J23: Wickets | K23: Runs
C24: TPCC Captain | F24: 1
F25: 2
F26: 3
F27: 4
F28: 5
F29: 6
F30: 7
F31: 8
F32: 9
F33: 10
F34: 11
F36: Bowling Extras

Sheet Privateers
N2: Date | O2: Opposition | P2: Match Status | Q2: Home/Away | R2: Captain | S2: TPCC Batting First | T2: TPCC Team Score | U2: TPCC Team Wickets | V2: Opposition Team Score | W2: Opposition Team Wickets | X2: TPCC Overs Bowled | Y2: TPCC Overs Faced | Z2: Batting Extras | AA2: Bowling Extras | AB2: Batsmen Position | AC2: Batsmen Name | AD2: Batsmen Runs | AE2: Batsmen Out | AF2: 50 | AG2: 100 | AH2: Bowler Position | AI2: Bowler Name | AJ2: Bowler Overs | AK2: Bowler Maidens | AL2: Bowler Wickets | AM2: Bowler Runs
C3: Match Overview | N3: =$D$5 -> 41069 | O3: =$D$7 -> Privateers | P3: =$D$9 -> Draw | Q3: =$D$11 -> Home | R3: =$D$24 -> J. Hunt | S3: =$D$13 -> Second | T3: =$D$15 -> 113 | U3: =$D$16 -> 8 | V3: =$D$18 -> 163 | W3: =$D$19 -> 7 | X3: =$D$21 -> 49 | Y3: =$D$22 -> 41 | Z3: =$H$19 -> 8 | AA3: =$H$36 -> 9 | AB3: =F7 -> 1 | AC3: =G7 -> Ro. Dickie | AD3: =H7 -> 2 | AE3: =I7 -> 1 | AF3: =(IF(AD3>49,1,0))-AG3 -> 0 | AG3: =IF(AD3>99,1,0) -> 0 | AH3: =F24 -> 1 | AI3: =G24 -> N. Henry | AJ3: 8 | AK3: 2 | AL3: 1 | AM3: 27
N4: 41069 | O4: Privateers | P4: Draw | Q4: Home | R4: =$D$24 -> J. Hunt | S4: Second | T4: 113 | U4: 8 | V4: 163 | W4: 7 | X4: 49 | Y4: 41 | Z4: 8 | AA4: 9 | AB4: =F8 -> 2 | AC4: J. Moberly | AD4: 9 | AE4: 1 | AF4: =(IF(AD4>49,1,0))-AG4 -> 0 | AG4: =IF(AD4>99,1,0) -> 0 | AH4: =F25 -> 2 | AI4: J. Hunt | AJ4: 6 | AK4: 4 | AL4: 1 | AM4: 6
C5: Date | D5: 2012-06-09 | F5: Batting | N5: 41069 | O5: Privateers | P5: Draw | Q5: Home | R5: J. Hunt | S5: Second | T5: 113 | U5: 8 | V5: 163 | W5: 7 | X5: 49 | Y5: 41 | Z5: 8 | AA5: 9 | AB5: 3 | AC5: J. Hancock | AD5: 11 | AE5: 1 | AF5: 0 | AG5: 0 | AH5: 3 | AI5: O. Thornton | AJ5: 7 | AK5: 0 | AL5: 1 | AM5: 24
F6: Position | G6: Name | H6: Runs | I6: Out | N6: 41069 | O6: Privateers | P6: Draw | Q6: Home | R6: J. Hunt | S6: Second | T6: 113 | U6: 8 | V6: 163 | W6: 7 | X6: 49 | Y6: 41 | Z6: 8 | AA6: 9 | AB6: 4 | AC6: O. Thornton | AD6: 5 | AE6: 1 | AF6: 0 | AG6: 0 | AH6: 4 | AI6: N. Runkel | AJ6: 12 | AK6: 2 | AL6: 2 | AM6: 40
C7: Opposition | D7: Privateers | F7: 1 | G7: Ro. Dickie | H7: 2 | I7: 1 | N7: 41069 | O7: Privateers | P7: Draw | Q7: Home | R7: J. Hunt | S7: Second | T7: 113 | U7: 8 | V7: 163 | W7: 7 | X7: 49 | Y7: 41 | Z7: 8 | AA7: 9 | AB7: 5 | AC7: P. Briffett | AD7: 2 | AE7: 1 | AF7: 0 | AG7: 0 | AH7: 5 | AI7: J. Thornton | AJ7: 7 | AK7: 2 | AL7: 1 | AM7: 18
F8: 2 | G8: J. Moberly | H8: 9 | I8: 1 | N8: 41069 | O8: Privateers | P8: Draw | Q8: Home | R8: J. Hunt | S8: Second | T8: 113 | U8: 8 | V8: 163 | W8: 7 | X8: 49 | Y8: 41 | Z8: 8 | AA8: 9 | AB8: 6 | AC8: J. Hunt | AD8: 32 | AE8: 1 | AF8: 0 | AG8: 0 | AH8: 6 | AI8: C. Henry | AJ8: 5 | AK8: 0 | AL8: 0 | AM8: 20
C9: Match Status | D9: Draw | F9: 3 | G9: J. Hancock | H9: 11 | I9: 1 | N9: 41069 | O9: Privateers | P9: Draw | Q9: Home | R9: J. Hunt | S9: Second | T9: 113 | U9: 8 | V9: 163 | W9: 7 | X9: 49 | Y9: 41 | Z9: 8 | AA9: 9 | AB9: 7 | AC9: J. Thornton | AD9: 2 | AE9: 1 | AF9: 0 | AG9: 0 | AH9: 7 | AI9: J. Hancock | AJ9: 4 | AK9: 1 | AL9: 1 | AM9: 19
F10: 4 | G10: O. Thornton | H10: 5 | I10: 1 | N10: 41069 | O10: Privateers | P10: Draw | Q10: Home | R10: J. Hunt | S10: Second | T10: 113 | U10: 8 | V10: 163 | W10: 7 | X10: 49 | Y10: 41 | Z10: 8 | AA10: 9 | AB10: 8 | AC10: N. Henry | AD10: 40 | AE10: 1 | AF10: 0 | AG10: 0 | AH10: 8 | AI10: 0 | AJ10: 0 | AK10: 0 | AL10: 0 | AM10: 0
C11: Home / Away | D11: Home | F11: 5 | G11: P. Briffett | H11: 2 | I11: 1 | N11: 41069 | O11: Privateers | P11: Draw | Q11: Home | R11: J. Hunt | S11: Second | T11: 113 | U11: 8 | V11: 163 | W11: 7 | X11: 49 | Y11: 41 | Z11: 8 | AA11: 9 | AB11: 9 | AC11: N. Runkel | AD11: 0 | AE11: 0 | AF11: 0 | AG11: 0 | AH11: 9 | AI11: 0 | AJ11: 0 | AK11: 0 | AL11: 0 | AM11: 0
F12: 6 | G12: J. Hunt | H12: 32 | I12: 1 | N12: 41069 | O12: Privateers | P12: Draw | Q12: Home | R12: J. Hunt | S12: Second | T12: 113 | U12: 8 | V12: 163 | W12: 7 | X12: 49 | Y12: 41 | Z12: 8 | AA12: 9 | AB12: 10 | AC12: C. Henry | AD12: 2 | AE12: 0 | AF12: 0 | AG12: 0 | AH12: 10 | AI12: 0 | AJ12: 0 | AK12: 0 | AL12: 0 | AM12: 0
C13: TPCC Batting First | D13: Second | F13: 7 | G13: J. Thornton | H13: 2 | I13: 1 | N13: 41069 | O13: Privateers | P13: Draw | Q13: Home | R13: J. Hunt | S13: Second | T13: 113 | U13: 8 | V13: 163 | W13: 7 | X13: 49 | Y13: 41 | Z13: 8 | AA13: 9 | AB13: 11 | AC13: 0 | AD13: 0 | AE13: 0 | AF13: 0 | AG13: 0 | AH13: 11 | AI13: 0 | AJ13: 0 | AK13: 0 | AL13: 0 | AM13: 0
F14: 8 | G14: N. Henry | H14: 40 | I14: 1
C15: TPCC Team Score | D15: =SUM(H7:H17)+H19 -> 113 | F15: 9 | G15: N. Runkel | H15: 0 | I15: 0
C16: TPCC Team Wickets | D16: =SUM(I7:I17) -> 8 | F16: 10 | G16: C. Henry | H16: 2 | I16: 0
F17: 11
C18: Opposition Team Score | D18: =SUM(K24:K34)+H36 -> 163
C19: Opposition Team Wickets | D19: =SUM(J24:J34) -> 7 | F19: Batting Extras | H19: 8
C21: TPCC Overs Bowled | D21: =SUM(H24:H34) -> 49
C22: Opposition Overs Bowled | D22: 41 | F22: Bowling
F23: Position | G23: Name | H23: Overs | I23: Maidens | J23: Wickets | K23: Runs
C24: TPCC Captain | D24: J. Hunt | F24: 1 | G24: N. Henry | H24: 8 | I24: 2 | J24: 1 | K24: 27
F25: 2 | G25: J. Hunt | H25: 6 | I25: 4 | J25: 1 | K25: 6
F26: 3 | G26: O. Thornton | H26: 7 | I26: 0 | J26: 1 | K26: 24
F27: 4 | G27: N. Runkel | H27: 12 | I27: 2 | J27: 2 | K27: 40
F28: 5 | G28: J. Thornton | H28: 7 | I28: 2 | J28: 1 | K28: 18
F29: 6 | G29: C. Henry | H29: 5 | I29: 0 | J29: 0 | K29: 20
F30: 7 | G30: J. Hancock | H30: 4 | I30: 1 | J30: 1 | K30: 19
F31: 8
F32: 9
F33: 10
F34: 11
F36: Bowling Extras | H36: 9

Sheet Invalids
N2: Date | O2: Opposition | P2: Match Status | Q2: Home/Away | R2: Captain | S2: TPCC Batting First | T2: TPCC Team Score | U2: TPCC Team Wickets | V2: Opposition Team Score | W2: Opposition Team Wickets | X2: TPCC Overs Bowled | Y2: TPCC Overs Faced | Z2: Batting Extras | AA2: Bowling Extras | AB2: Batsmen Position | AC2: Batsmen Name | AD2: Batsmen Runs | AE2: Batsmen Out | AF2: 50 | AG2: 100 | AH2: Bowler Position | AI2: Bowler Name | AJ2: Bowler Overs | AK2: Bowler Maidens | AL2: Bowler Wickets | AM2: Bowler Runs
C3: Match Overview | N3: =$D$5 -> 41076 | O3: =$D$7 -> Invalids | P3: =$D$9 -> Draw | Q3: =$D$11 -> Home | R3: =$D$24 -> S. Beardall | S3: =$D$13 -> Second | T3: =$D$15 -> 130 | U3: =$D$16 -> 6 | V3: =$D$18 -> 130 | W3: =$D$19 -> 7 | X3: =$D$21 -> 44 | Y3: =$D$22 -> 30 | Z3: =$H$19 -> 8 | AA3: =$H$36 -> 11 | AB3: =F7 -> 1 | AC3: =G7 -> S. Beardall | AD3: =H7 -> 42 | AE3: =I7 -> 1 | AF3: =(IF(AD3>49,1,0))-AG3 -> 0 | AG3: =IF(AD3>99,1,0) -> 0 | AH3: =F24 -> 1 | AI3: =G24 -> J. Leefe | AJ3: 6 | AK3: 0 | AL3: 0 | AM3: 25
N4: 41076 | O4: Invalids | P4: Draw | Q4: Home | R4: =$D$24 -> S. Beardall | S4: Second | T4: 130 | U4: 6 | V4: 130 | W4: 7 | X4: 44 | Y4: 30 | Z4: 8 | AA4: 11 | AB4: =F8 -> 2 | AC4: P. Briffett | AD4: 6 | AE4: 1 | AF4: =(IF(AD4>49,1,0))-AG4 -> 0 | AG4: =IF(AD4>99,1,0) -> 0 | AH4: =F25 -> 2 | AI4: J. Hunt | AJ4: 4 | AK4: 1 | AL4: 1 | AM4: 5
C5: Date | D5: 2012-06-16 | F5: Batting | N5: 41076 | O5: Invalids | P5: Draw | Q5: Home | R5: S. Beardall | S5: Second | T5: 130 | U5: 6 | V5: 130 | W5: 7 | X5: 44 | Y5: 30 | Z5: 8 | AA5: 11 | AB5: 3 | AC5: T. Wade | AD5: 18 | AE5: 1 | AF5: 0 | AG5: 0 | AH5: 3 | AI5: N. Henry | AJ5: 8 | AK5: 0 | AL5: 0 | AM5: 30
F6: Position | G6: Name | H6: Runs | I6: Out | N6: 41076 | O6: Invalids | P6: Draw | Q6: Home | R6: S. Beardall | S6: Second | T6: 130 | U6: 6 | V6: 130 | W6: 7 | X6: 44 | Y6: 30 | Z6: 8 | AA6: 11 | AB6: 4 | AC6: W. Strickland | AD6: 8 | AE6: 1 | AF6: 0 | AG6: 0 | AH6: 4 | AI6: J. Hancock | AJ6: 9 | AK6: 2 | AL6: 1 | AM6: 8
C7: Opposition | D7: Invalids | F7: 1 | G7: S. Beardall | H7: 42 | I7: 1 | N7: 41076 | O7: Invalids | P7: Draw | Q7: Home | R7: S. Beardall | S7: Second | T7: 130 | U7: 6 | V7: 130 | W7: 7 | X7: 44 | Y7: 30 | Z7: 8 | AA7: 11 | AB7: 5 | AC7: J. Hunt | AD7: 13 | AE7: 1 | AF7: 0 | AG7: 0 | AH7: 5 | AI7: N. Runkel | AJ7: 9 | AK7: 1 | AL7: 2 | AM7: 18
F8: 2 | G8: P. Briffett | H8: 6 | I8: 1 | N8: 41076 | O8: Invalids | P8: Draw | Q8: Home | R8: S. Beardall | S8: Second | T8: 130 | U8: 6 | V8: 130 | W8: 7 | X8: 44 | Y8: 30 | Z8: 8 | AA8: 11 | AB8: 6 | AC8: C. Simon | AD8: 7 | AE8: 1 | AF8: 0 | AG8: 0 | AH8: 6 | AI8: S. Halfhead | AJ8: 8 | AK8: 1 | AL8: 2 | AM8: 33
C9: Match Status | D9: Draw | F9: 3 | G9: T. Wade | H9: 18 | I9: 1 | N9: 41076 | O9: Invalids | P9: Draw | Q9: Home | R9: S. Beardall | S9: Second | T9: 130 | U9: 6 | V9: 130 | W9: 7 | X9: 44 | Y9: 30 | Z9: 8 | AA9: 11 | AB9: 7 | AC9: J. Hancock | AD9: 21 | AE9: 0 | AF9: 0 | AG9: 0 | AH9: 7 | AI9: Run Out | AJ9: 0 | AK9: 0 | AL9: 1 | AM9: 0
F10: 4 | G10: W. Strickland | H10: 8 | I10: 1 | N10: 41076 | O10: Invalids | P10: Draw | Q10: Home | R10: S. Beardall | S10: Second | T10: 130 | U10: 6 | V10: 130 | W10: 7 | X10: 44 | Y10: 30 | Z10: 8 | AA10: 11 | AB10: 8 | AC10: J. Leefe | AD10: 7 | AE10: 0 | AF10: 0 | AG10: 0 | AH10: 8 | AI10: 0 | AJ10: 0 | AK10: 0 | AL10: 0 | AM10: 0
C11: Home / Away | D11: Home | F11: 5 | G11: J. Hunt | H11: 13 | I11: 1 | N11: 41076 | O11: Invalids | P11: Draw | Q11: Home | R11: S. Beardall | S11: Second | T11: 130 | U11: 6 | V11: 130 | W11: 7 | X11: 44 | Y11: 30 | Z11: 8 | AA11: 11 | AB11: 9 | AC11: 0 | AD11: 0 | AE11: 0 | AF11: 0 | AG11: 0 | AH11: 9 | AI11: 0 | AJ11: 0 | AK11: 0 | AL11: 0 | AM11: 0
F12: 6 | G12: C. Simon | H12: 7 | I12: 1 | N12: 41076 | O12: Invalids | P12: Draw | Q12: Home | R12: S. Beardall | S12: Second | T12: 130 | U12: 6 | V12: 130 | W12: 7 | X12: 44 | Y12: 30 | Z12: 8 | AA12: 11 | AB12: 10 | AC12: 0 | AD12: 0 | AE12: 0 | AF12: 0 | AG12: 0 | AH12: 10 | AI12: 0 | AJ12: 0 | AK12: 0 | AL12: 0 | AM12: 0
C13: TPCC Batting First | D13: Second | F13: 7 | G13: J. Hancock | H13: 21 | I13: 0 | N13: 41076 | O13: Invalids | P13: Draw | Q13: Home | R13: S. Beardall | S13: Second | T13: 130 | U13: 6 | V13: 130 | W13: 7 | X13: 44 | Y13: 30 | Z13: 8 | AA13: 11 | AB13: 11 | AC13: 0 | AD13: 0 | AE13: 0 | AF13: 0 | AG13: 0 | AH13: 11 | AI13: 0 | AJ13: 0 | AK13: 0 | AL13: 0 | AM13: 0
F14: 8 | G14: J. Leefe | H14: 7 | I14: 0
C15: TPCC Team Score | D15: =SUM(H7:H17)+H19 -> 130 | F15: 9
C16: TPCC Team Wickets | D16: =SUM(I7:I17) -> 6 | F16: 10
F17: 11
C18: Opposition Team Score | D18: =SUM(K24:K34)+H36 -> 130
C19: Opposition Team Wickets | D19: =SUM(J24:J34) -> 7 | F19: Batting Extras | H19: 8
C21: TPCC Overs Bowled | D21: =SUM(H24:H34) -> 44
C22: Opposition Overs Bowled | D22: 30 | F22: Bowling
F23: Position | G23: Name | H23: Overs | I23: Maidens | J23: Wickets | K23: Runs
C24: TPCC Captain | D24: S. Beardall | F24: 1 | G24: J. Leefe | H24: 6 | I24: 0 | J24: 0 | K24: 25
F25: 2 | G25: J. Hunt | H25: 4 | I25: 1 | J25: 1 | K25: 5
F26: 3 | G26: N. Henry | H26: 8 | I26: 0 | J26: 0 | K26: 30
F27: 4 | G27: J. Hancock | H27: 9 | I27: 2 | J27: 1 | K27: 8
F28: 5 | G28: N. Runkel | H28: 9 | I28: 1 | J28: 2 | K28: 18
F29: 6 | G29: S. Halfhead | H29: 8 | I29: 1 | J29: 2 | K29: 33
F30: 7 | G30: Run Out | H30: 0 | I30: 0 | J30: 1 | K30: 0
F31: 8
F32: 9
F33: 10
F34: 11
F36: Bowling Extras | H36: 11

Sheet Stonor (1)
N2: Date | O2: Opposition | P2: Match Status | Q2: Home/Away | R2: Captain | S2: TPCC Batting First | T2: TPCC Team Score | U2: TPCC Team Wickets | V2: Opposition Team Score | W2: Opposition Team Wickets | X2: TPCC Overs Bowled | Y2: TPCC Overs Faced | Z2: Batting Extras | AA2: Bowling Extras | AB2: Batsmen Position | AC2: Batsmen Name | AD2: Batsmen Runs | AE2: Batsmen Out | AF2: 50 | AG2: 100 | AH2: Bowler Position | AI2: Bowler Name | AJ2: Bowler Overs | AK2: Bowler Maidens | AL2: Bowler Wickets | AM2: Bowler Runs
C3: Match Overview | N3: =$D$5 -> 41077 | O3: =$D$7 -> Stonor (1) | P3: =$D$9 -> Win | Q3: =$D$11 -> Away | R3: =$D$24 -> S. Beardall | S3: =$D$13 -> Second | T3: =$D$15 -> 130 | U3: =$D$16 -> 4 | V3: =$D$18 -> 129 | W3: =$D$19 -> 10 | X3: =$D$21 -> 37 | Y3: =$D$22 -> 25 | Z3: =$H$19 -> 12 | AA3: =$H$36 -> 3 | AB3: =F7 -> 1 | AC3: =G7 -> R. Dickie | AD3: =H7 -> 6 | AE3: =I7 -> 1 | AF3: =(IF(AD3>49,1,0))-AG3 -> 0 | AG3: =IF(AD3>99,1,0) -> 0 | AH3: =F24 -> 1 | AI3: =G24 -> T. White | AJ3: 5 | AK3: 0 | AL3: 0 | AM3: 19
N4: 41077 | O4: Stonor (1) | P4: Win | Q4: Away | R4: =$D$24 -> S. Beardall | S4: Second | T4: 130 | U4: 4 | V4: 129 | W4: 10 | X4: 37 | Y4: 25 | Z4: 12 | AA4: 3 | AB4: =F8 -> 2 | AC4: J. Moberly | AD4: 5 | AE4: 1 | AF4: =(IF(AD4>49,1,0))-AG4 -> 0 | AG4: =IF(AD4>99,1,0) -> 0 | AH4: =F25 -> 2 | AI4: J. Hunt | AJ4: 10 | AK4: 2 | AL4: 2 | AM4: 29
C5: Date | D5: 2012-06-17 | F5: Batting | N5: 41077 | O5: Stonor (1) | P5: Win | Q5: Away | R5: S. Beardall | S5: Second | T5: 130 | U5: 4 | V5: 129 | W5: 10 | X5: 37 | Y5: 25 | Z5: 12 | AA5: 3 | AB5: 3 | AC5: T. Wade | AD5: 5 | AE5: 1 | AF5: 0 | AG5: 0 | AH5: 3 | AI5: J. Hancock | AJ5: 12 | AK5: 2 | AL5: 5 | AM5: 35
F6: Position | G6: Name | H6: Runs | I6: Out | N6: 41077 | O6: Stonor (1) | P6: Win | Q6: Away | R6: S. Beardall | S6: Second | T6: 130 | U6: 4 | V6: 129 | W6: 10 | X6: 37 | Y6: 25 | Z6: 12 | AA6: 3 | AB6: 4 | AC6: J. Hunt | AD6: 45 | AE6: 0 | AF6: 0 | AG6: 0 | AH6: 4 | AI6: N. Henry | AJ6: 7 | AK6: 0 | AL6: 1 | AM6: 28
C7: Opposition | D7: Stonor (1) | F7: 1 | G7: R. Dickie | H7: 6 | I7: 1 | N7: 41077 | O7: Stonor (1) | P7: Win | Q7: Away | R7: S. Beardall | S7: Second | T7: 130 | U7: 4 | V7: 129 | W7: 10 | X7: 37 | Y7: 25 | Z7: 12 | AA7: 3 | AB7: 5 | AC7: P. Briffett | AD7: 15 | AE7: 1 | AF7: 0 | AG7: 0 | AH7: 5 | AI7: D. Stockings | AJ7: 3 | AK7: 0 | AL7: 2 | AM7: 15
F8: 2 | G8: J. Moberly | H8: 5 | I8: 1 | N8: 41077 | O8: Stonor (1) | P8: Win | Q8: Away | R8: S. Beardall | S8: Second | T8: 130 | U8: 4 | V8: 129 | W8: 10 | X8: 37 | Y8: 25 | Z8: 12 | AA8: 3 | AB8: 6 | AC8: J. Hancock | AD8: 42 | AE8: 0 | AF8: 0 | AG8: 0 | AH8: 6 | AI8: 0 | AJ8: 0 | AK8: 0 | AL8: 0 | AM8: 0
C9: Match Status | D9: Win | F9: 3 | G9: T. Wade | H9: 5 | I9: 1 | N9: 41077 | O9: Stonor (1) | P9: Win | Q9: Away | R9: S. Beardall | S9: Second | T9: 130 | U9: 4 | V9: 129 | W9: 10 | X9: 37 | Y9: 25 | Z9: 12 | AA9: 3 | AB9: 7 | AC9: 0 | AD9: 0 | AE9: 0 | AF9: 0 | AG9: 0 | AH9: 7 | AI9: 0 | AJ9: 0 | AK9: 0 | AL9: 0 | AM9: 0
F10: 4 | G10: J. Hunt | H10: 45 | I10: 0 | N10: 41077 | O10: Stonor (1) | P10: Win | Q10: Away | R10: S. Beardall | S10: Second | T10: 130 | U10: 4 | V10: 129 | W10: 10 | X10: 37 | Y10: 25 | Z10: 12 | AA10: 3 | AB10: 8 | AC10: 0 | AD10: 0 | AE10: 0 | AF10: 0 | AG10: 0 | AH10: 8 | AI10: 0 | AJ10: 0 | AK10: 0 | AL10: 0 | AM10: 0
C11: Home / Away | D11: Away | F11: 5 | G11: P. Briffett | H11: 15 | I11: 1 | N11: 41077 | O11: Stonor (1) | P11: Win | Q11: Away | R11: S. Beardall | S11: Second | T11: 130 | U11: 4 | V11: 129 | W11: 10 | X11: 37 | Y11: 25 | Z11: 12 | AA11: 3 | AB11: 9 | AC11: 0 | AD11: 0 | AE11: 0 | AF11: 0 | AG11: 0 | AH11: 9 | AI11: 0 | AJ11: 0 | AK11: 0 | AL11: 0 | AM11: 0
F12: 6 | G12: J. Hancock | H12: 42 | I12: 0 | N12: 41077 | O12: Stonor (1) | P12: Win | Q12: Away | R12: S. Beardall | S12: Second | T12: 130 | U12: 4 | V12: 129 | W12: 10 | X12: 37 | Y12: 25 | Z12: 12 | AA12: 3 | AB12: 10 | AC12: 0 | AD12: 0 | AE12: 0 | AF12: 0 | AG12: 0 | AH12: 10 | AI12: 0 | AJ12: 0 | AK12: 0 | AL12: 0 | AM12: 0
C13: TPCC Batting First | D13: Second | F13: 7 | N13: 41077 | O13: Stonor (1) | P13: Win | Q13: Away | R13: S. Beardall | S13: Second | T13: 130 | U13: 4 | V13: 129 | W13: 10 | X13: 37 | Y13: 25 | Z13: 12 | AA13: 3 | AB13: 11 | AC13: 0 | AD13: 0 | AE13: 0 | AF13: 0 | AG13: 0 | AH13: 11 | AI13: 0 | AJ13: 0 | AK13: 0 | AL13: 0 | AM13: 0
F14: 8
C15: TPCC Team Score | D15: =SUM(H7:H17)+H19 -> 130 | F15: 9
C16: TPCC Team Wickets | D16: =SUM(I7:I17) -> 4 | F16: 10
F17: 11
C18: Opposition Team Score | D18: =SUM(K24:K34)+H36 -> 129
C19: Opposition Team Wickets | D19: =SUM(J24:J34) -> 10 | F19: Batting Extras | H19: 12
C21: TPCC Overs Bowled | D21: =SUM(H24:H34) -> 37
C22: Opposition Overs Bowled | D22: 25 | F22: Bowling
F23: Position | G23: Name | H23: Overs | I23: Maidens | J23: Wickets | K23: Runs
C24: TPCC Captain | D24: S. Beardall | F24: 1 | G24: T. White | H24: 5 | I24: 0 | J24: 0 | K24: 19
F25: 2 | G25: J. Hunt | H25: 10 | I25: 2 | J25: 2 | K25: 29
F26: 3 | G26: J. Hancock | H26: 12 | I26: 2 | J26: 5 | K26: 35
F27: 4 | G27: N. Henry | H27: 7 | I27: 0 | J27: 1 | K27: 28
F28: 5 | G28: D. Stockings | H28: 3 | I28: 0 | J28: 2 | K28: 15
F29: 6
F30: 7
F31: 8
F32: 9
F33: 10
F34: 11
F36: Bowling Extras | H36: 3

Sheet Theberton
N2: Date | O2: Opposition | P2: Match Status | Q2: Home/Away | R2: Captain | S2: TPCC Batting First | T2: TPCC Team Score | U2: TPCC Team Wickets | V2: Opposition Team Score | W2: Opposition Team Wickets | X2: TPCC Overs Bowled | Y2: TPCC Overs Faced | Z2: Batting Extras | AA2: Bowling Extras | AB2: Batsmen Position | AC2: Batsmen Name | AD2: Batsmen Runs | AE2: Batsmen Out | AF2: 50 | AG2: 100 | AH2: Bowler Position | AI2: Bowler Name | AJ2: Bowler Overs | AK2: Bowler Maidens | AL2: Bowler Wickets | AM2: Bowler Runs
C3: Match Overview | N3: =$D$5 -> 41084 | O3: =$D$7 -> Theberton | P3: =$D$9 -> Win | Q3: =$D$11 -> Home | R3: =$D$24 -> S. Beardall | S3: =$D$13 -> First | T3: =$D$15 -> 191 | U3: =$D$16 -> 8 | V3: =$D$18 -> 126 | W3: =$D$19 -> 10 | X3: =$D$21 -> 21 | Y3: =$D$22 -> 35 | Z3: =$H$19 -> 5 | AA3: =$H$36 -> 2 | AB3: =F7 -> 1 | AC3: =G7 -> S. Beardall | AD3: =H7 -> 8 | AE3: =I7 -> 1 | AF3: =(IF(AD3>49,1,0))-AG3 -> 0 | AG3: =IF(AD3>99,1,0) -> 0 | AH3: =F24 -> 1 | AI3: =G24 -> J. Leefe | AJ3: 7 | AK3: 0 | AL3: 3 | AM3: 25
N4: 41084 | O4: Theberton | P4: Win | Q4: Home | R4: =$D$24 -> S. Beardall | S4: First | T4: 191 | U4: 8 | V4: 126 | W4: 10 | X4: 21 | Y4: 35 | Z4: 5 | AA4: 2 | AB4: =F8 -> 2 | AC4: O. Thornton | AD4: 100 | AE4: 1 | AF4: =(IF(AD4>49,1,0))-AG4 -> 0 | AG4: =IF(AD4>99,1,0) -> 1 | AH4: =F25 -> 2 | AI4: J. Thornton | AJ4: 7 | AK4: 0 | AL4: 3 | AM4: 34
C5: Date | D5: 2012-06-24 | F5: Batting | N5: 41084 | O5: Theberton | P5: Win | Q5: Home | R5: S. Beardall | S5: First | T5: 191 | U5: 8 | V5: 126 | W5: 10 | X5: 21 | Y5: 35 | Z5: 5 | AA5: 2 | AB5: 3 | AC5: P. Briffett | AD5: 5 | AE5: 1 | AF5: 0 | AG5: 0 | AH5: 3 | AI5: N. Runkel | AJ5: 4 | AK5: 0 | AL5: 3 | AM5: 27
F6: Position | G6: Name | H6: Runs | I6: Out | N6: 41084 | O6: Theberton | P6: Win | Q6: Home | R6: S. Beardall | S6: First | T6: 191 | U6: 8 | V6: 126 | W6: 10 | X6: 21 | Y6: 35 | Z6: 5 | AA6: 2 | AB6: 4 | AC6: C. Beardall | AD6: 0 | AE6: 1 | AF6: 0 | AG6: 0 | AH6: 4 | AI6: N. Henry | AJ6: 3 | AK6: 0 | AL6: 1 | AM6: 38
C7: Opposition | D7: Theberton | F7: 1 | G7: S. Beardall | H7: 8 | I7: 1 | N7: 41084 | O7: Theberton | P7: Win | Q7: Home | R7: S. Beardall | S7: First | T7: 191 | U7: 8 | V7: 126 | W7: 10 | X7: 21 | Y7: 35 | Z7: 5 | AA7: 2 | AB7: 5 | AC7: T. Wade | AD7: 49 | AE7: 1 | AF7: 0 | AG7: 0 | AH7: 5 | AI7: 0 | AJ7: 0 | AK7: 0 | AL7: 0 | AM7: 0
F8: 2 | G8: O. Thornton | H8: 100 | I8: 1 | N8: 41084 | O8: Theberton | P8: Win | Q8: Home | R8: S. Beardall | S8: First | T8: 191 | U8: 8 | V8: 126 | W8: 10 | X8: 21 | Y8: 35 | Z8: 5 | AA8: 2 | AB8: 6 | AC8: S. Halfhead | AD8: 0 | AE8: 1 | AF8: 0 | AG8: 0 | AH8: 6 | AI8: 0 | AJ8: 0 | AK8: 0 | AL8: 0 | AM8: 0
C9: Match Status | D9: Win | F9: 3 | G9: P. Briffett | H9: 5 | I9: 1 | N9: 41084 | O9: Theberton | P9: Win | Q9: Home | R9: S. Beardall | S9: First | T9: 191 | U9: 8 | V9: 126 | W9: 10 | X9: 21 | Y9: 35 | Z9: 5 | AA9: 2 | AB9: 7 | AC9: C. Simon | AD9: 7 | AE9: 1 | AF9: 0 | AG9: 0 | AH9: 7 | AI9: 0 | AJ9: 0 | AK9: 0 | AL9: 0 | AM9: 0
F10: 4 | G10: C. Beardall | H10: 0 | I10: 1 | N10: 41084 | O10: Theberton | P10: Win | Q10: Home | R10: S. Beardall | S10: First | T10: 191 | U10: 8 | V10: 126 | W10: 10 | X10: 21 | Y10: 35 | Z10: 5 | AA10: 2 | AB10: 8 | AC10: J. Thornton | AD10: 10 | AE10: 0 | AF10: 0 | AG10: 0 | AH10: 8 | AI10: 0 | AJ10: 0 | AK10: 0 | AL10: 0 | AM10: 0
C11: Home / Away | D11: Home | F11: 5 | G11: T. Wade | H11: 49 | I11: 1 | N11: 41084 | O11: Theberton | P11: Win | Q11: Home | R11: S. Beardall | S11: First | T11: 191 | U11: 8 | V11: 126 | W11: 10 | X11: 21 | Y11: 35 | Z11: 5 | AA11: 2 | AB11: 9 | AC11: N. Henry | AD11: 5 | AE11: 1 | AF11: 0 | AG11: 0 | AH11: 9 | AI11: 0 | AJ11: 0 | AK11: 0 | AL11: 0 | AM11: 0
F12: 6 | G12: S. Halfhead | H12: 0 | I12: 1 | N12: 41084 | O12: Theberton | P12: Win | Q12: Home | R12: S. Beardall | S12: First | T12: 191 | U12: 8 | V12: 126 | W12: 10 | X12: 21 | Y12: 35 | Z12: 5 | AA12: 2 | AB12: 10 | AC12: J. Leefe | AD12: 2 | AE12: 0 | AF12: 0 | AG12: 0 | AH12: 10 | AI12: 0 | AJ12: 0 | AK12: 0 | AL12: 0 | AM12: 0
C13: TPCC Batting First | D13: First | F13: 7 | G13: C. Simon | H13: 7 | I13: 1 | N13: 41084 | O13: Theberton | P13: Win | Q13: Home | R13: S. Beardall | S13: First | T13: 191 | U13: 8 | V13: 126 | W13: 10 | X13: 21 | Y13: 35 | Z13: 5 | AA13: 2 | AB13: 11 | AC13: 0 | AD13: 0 | AE13: 0 | AF13: 0 | AG13: 0 | AH13: 11 | AI13: 0 | AJ13: 0 | AK13: 0 | AL13: 0 | AM13: 0
F14: 8 | G14: J. Thornton | H14: 10 | I14: 0
C15: TPCC Team Score | D15: =SUM(H7:H17)+H19 -> 191 | F15: 9 | G15: N. Henry | H15: 5 | I15: 1
C16: TPCC Team Wickets | D16: =SUM(I7:I17) -> 8 | F16: 10 | G16: J. Leefe | H16: 2 | I16: 0
F17: 11
C18: Opposition Team Score | D18: =SUM(K24:K34)+H36 -> 126
C19: Opposition Team Wickets | D19: =SUM(J24:J34) -> 10 | F19: Batting Extras | H19: 5
C21: TPCC Overs Bowled | D21: =SUM(H24:H34) -> 21
C22: Opposition Overs Bowled | D22: 35 | F22: Bowling
F23: Position | G23: Name | H23: Overs | I23: Maidens | J23: Wickets | K23: Runs
C24: TPCC Captain | D24: S. Beardall | F24: 1 | G24: J. Leefe | H24: 7 | I24: 0 | J24: 3 | K24: 25
F25: 2 | G25: J. Thornton | H25: 7 | I25: 0 | J25: 3 | K25: 34
F26: 3 | G26: N. Runkel | H26: 4 | I26: 0 | J26: 3 | K26: 27
F27: 4 | G27: N. Henry | H27: 3 | I27: 0 | J27: 1 | K27: 38
F28: 5
F29: 6
F30: 7
F31: 8
F32: 9
F33: 10
F34: 11
F36: Bowling Extras | H36: 2

Sheet Oporto (1)
N2: Date | O2: Opposition | P2: Match Status | Q2: Home/Away | R2: Captain | S2: TPCC Batting First | T2: TPCC Team Score | U2: TPCC Team Wickets | V2: Opposition Team Score | W2: Opposition Team Wickets | X2: TPCC Overs Bowled | Y2: TPCC Overs Faced | Z2: Batting Extras | AA2: Bowling Extras | AB2: Batsmen Position | AC2: Batsmen Name | AD2: Batsmen Runs | AE2: Batsmen Out | AF2: 50 | AG2: 100 | AH2: Bowler Position | AI2: Bowler Name | AJ2: Bowler Overs | AK2: Bowler Maidens | AL2: Bowler Wickets | AM2: Bowler Runs
C3: Match Overview | N3: =$D$5 -> 41090 | O3: =$D$7 -> Oporto | P3: =$D$9 -> Win | Q3: =$D$11 -> Tour | R3: =$D$24 -> S. Beardall | S3: =$D$13 -> Second | T3: =$D$15 -> 168 | U3: =$D$16 -> 6 | V3: =$D$18 -> 166 | W3: =$D$19 -> 10 | X3: =$D$21 -> 45 | Y3: =$D$22 -> 41 | Z3: =$H$19 -> 33 | AA3: =$H$36 -> 1 | AB3: =F7 -> 1 | AC3: =G7 -> O. Thornton | AD3: =H7 -> 17 | AE3: =I7 -> 1 | AF3: =(IF(AD3>49,1,0))-AG3 -> 0 | AG3: =IF(AD3>99,1,0) -> 0 | AH3: =F24 -> 1 | AI3: =G24 -> P. Girdler | AJ3: 6 | AK3: 0 | AL3: 1 | AM3: 30
N4: 41090 | O4: Oporto | P4: Win | Q4: Tour | R4: =$D$24 -> S. Beardall | S4: Second | T4: 168 | U4: 6 | V4: 166 | W4: 10 | X4: 45 | Y4: 41 | Z4: 33 | AA4: 1 | AB4: =F8 -> 2 | AC4: S. Halfhead | AD4: 7 | AE4: 1 | AF4: =(IF(AD4>49,1,0))-AG4 -> 0 | AG4: =IF(AD4>99,1,0) -> 0 | AH4: =F25 -> 2 | AI4: T. White | AJ4: 4 | AK4: 0 | AL4: 0 | AM4: 12
C5: Date | D5: 2012-06-30 | F5: Batting | N5: 41090 | O5: Oporto | P5: Win | Q5: Tour | R5: S. Beardall | S5: Second | T5: 168 | U5: 6 | V5: 166 | W5: 10 | X5: 45 | Y5: 41 | Z5: 33 | AA5: 1 | AB5: 3 | AC5: Ro. Dickie | AD5: 3 | AE5: 1 | AF5: 0 | AG5: 0 | AH5: 3 | AI5: J. Thornton | AJ5: 7 | AK5: 0 | AL5: 1 | AM5: 45
F6: Position | G6: Name | H6: Runs | I6: Out | N6: 41090 | O6: Oporto | P6: Win | Q6: Tour | R6: S. Beardall | S6: Second | T6: 168 | U6: 6 | V6: 166 | W6: 10 | X6: 45 | Y6: 41 | Z6: 33 | AA6: 1 | AB6: 4 | AC6: P. Briffett | AD6: 9 | AE6: 1 | AF6: 0 | AG6: 0 | AH6: 4 | AI6: J. Hunt | AJ6: 4 | AK6: 0 | AL6: 0 | AM6: 14
C7: Opposition | D7: Oporto | F7: 1 | G7: O. Thornton | H7: 17 | I7: 1 | N7: 41090 | O7: Oporto | P7: Win | Q7: Tour | R7: S. Beardall | S7: Second | T7: 168 | U7: 6 | V7: 166 | W7: 10 | X7: 45 | Y7: 41 | Z7: 33 | AA7: 1 | AB7: 5 | AC7: S. Beardall | AD7: 4 | AE7: 1 | AF7: 0 | AG7: 0 | AH7: 5 | AI7: O. Thornton | AJ7: 5 | AK7: 2 | AL7: 2 | AM7: 9
F8: 2 | G8: S. Halfhead | H8: 7 | I8: 1 | N8: 41090 | O8: Oporto | P8: Win | Q8: Tour | R8: S. Beardall | S8: Second | T8: 168 | U8: 6 | V8: 166 | W8: 10 | X8: 45 | Y8: 41 | Z8: 33 | AA8: 1 | AB8: 6 | AC8: B. Bazell | AD8: 9 | AE8: 1 | AF8: 0 | AG8: 0 | AH8: 6 | AI8: N. Runkel | AJ8: 11 | AK8: 3 | AL8: 2 | AM8: 17
C9: Match Status | D9: Win | F9: 3 | G9: Ro. Dickie | H9: 3 | I9: 1 | N9: 41090 | O9: Oporto | P9: Win | Q9: Tour | R9: S. Beardall | S9: Second | T9: 168 | U9: 6 | V9: 166 | W9: 10 | X9: 45 | Y9: 41 | Z9: 33 | AA9: 1 | AB9: 7 | AC9: J. Hunt | AD9: 57 | AE9: 0 | AF9: 1 | AG9: 0 | AH9: 7 | AI9: S. Halfhead | AJ9: 2 | AK9: 1 | AL9: 0 | AM9: 12
F10: 4 | G10: P. Briffett | H10: 9 | I10: 1 | N10: 41090 | O10: Oporto | P10: Win | Q10: Tour | R10: S. Beardall | S10: Second | T10: 168 | U10: 6 | V10: 166 | W10: 10 | X10: 45 | Y10: 41 | Z10: 33 | AA10: 1 | AB10: 8 | AC10: J. Thornton | AD10: 29 | AE10: 0 | AF10: 0 | AG10: 0 | AH10: 8 | AI10: P. Briffett | AJ10: 5 | AK10: 0 | AL10: 2 | AM10: 25
C11: Home / Away | D11: Tour | F11: 5 | G11: S. Beardall | H11: 4 | I11: 1 | N11: 41090 | O11: Oporto | P11: Win | Q11: Tour | R11: S. Beardall | S11: Second | T11: 168 | U11: 6 | V11: 166 | W11: 10 | X11: 45 | Y11: 41 | Z11: 33 | AA11: 1 | AB11: 9 | AC11: 0 | AD11: 0 | AE11: 0 | AF11: 0 | AG11: 0 | AH11: 9 | AI11: Ro. Dickie | AJ11: 1 | AK11: 0 | AL11: 1 | AM11: 1
F12: 6 | G12: B. Bazell | H12: 9 | I12: 1 | N12: 41090 | O12: Oporto | P12: Win | Q12: Tour | R12: S. Beardall | S12: Second | T12: 168 | U12: 6 | V12: 166 | W12: 10 | X12: 45 | Y12: 41 | Z12: 33 | AA12: 1 | AB12: 10 | AC12: 0 | AD12: 0 | AE12: 0 | AF12: 0 | AG12: 0 | AH12: 10 | AI12: Run Out | AJ12: 0 | AK12: 0 | AL12: 1 | AM12: 0
C13: TPCC Batting First | D13: Second | F13: 7 | G13: J. Hunt | H13: 57 | I13: 0 | N13: 41090 | O13: Oporto | P13: Win | Q13: Tour | R13: S. Beardall | S13: Second | T13: 168 | U13: 6 | V13: 166 | W13: 10 | X13: 45 | Y13: 41 | Z13: 33 | AA13: 1 | AB13: 11 | AC13: 0 | AD13: 0 | AE13: 0 | AF13: 0 | AG13: 0 | AH13: 11 | AI13: 0 | AJ13: 0 | AK13: 0 | AL13: 0 | AM13: 0
F14: 8 | G14: J. Thornton | H14: 29 | I14: 0
C15: TPCC Team Score | D15: =SUM(H7:H17)+H19 -> 168 | F15: 9
C16: TPCC Team Wickets | D16: =SUM(I7:I17) -> 6 | F16: 10
F17: 11
C18: Opposition Team Score | D18: =SUM(K24:K34)+H36 -> 166
C19: Opposition Team Wickets | D19: =SUM(J24:J34) -> 10 | F19: Batting Extras | H19: 33
C21: TPCC Overs Bowled | D21: =SUM(H24:H34) -> 45
C22: Opposition Overs Bowled | D22: 41 | F22: Bowling
F23: Position | G23: Name | H23: Overs | I23: Maidens | J23: Wickets | K23: Runs
C24: TPCC Captain | D24: S. Beardall | F24: 1 | G24: P. Girdler | H24: 6 | I24: 0 | J24: 1 | K24: 30
F25: 2 | G25: T. White | H25: 4 | I25: 0 | J25: 0 | K25: 12
F26: 3 | G26: J. Thornton | H26: 7 | I26: 0 | J26: 1 | K26: 45
F27: 4 | G27: J. Hunt | H27: 4 | I27: 0 | J27: 0 | K27: 14
F28: 5 | G28: O. Thornton | H28: 5 | I28: 2 | J28: 2 | K28: 9
F29: 6 | G29: N. Runkel | H29: 11 | I29: 3 | J29: 2 | K29: 17
F30: 7 | G30: S. Halfhead | H30: 2 | I30: 1 | J30: 0 | K30: 12
F31: 8 | G31: P. Briffett | H31: 5 | I31: 0 | J31: 2 | K31: 25
F32: 9 | G32: Ro. Dickie | H32: 1 | I32: 0 | J32: 1 | K32: 1
F33: 10 | G33: Run Out | H33: 0 | I33: 0 | J33: 1 | K33: 0
F34: 11
F36: Bowling Extras | H36: 1

Sheet Oporto (2)
N2: Date | O2: Opposition | P2: Match Status | Q2: Home/Away | R2: Captain | S2: TPCC Batting First | T2: TPCC Team Score | U2: TPCC Team Wickets | V2: Opposition Team Score | W2: Opposition Team Wickets | X2: TPCC Overs Bowled | Y2: TPCC Overs Faced | Z2: Batting Extras | AA2: Bowling Extras | AB2: Batsmen Position | AC2: Batsmen Name | AD2: Batsmen Runs | AE2: Batsmen Out | AF2: 50 | AG2: 100 | AH2: Bowler Position | AI2: Bowler Name | AJ2: Bowler Overs | AK2: Bowler Maidens | AL2: Bowler Wickets | AM2: Bowler Runs
C3: Match Overview | N3: =$D$5 -> 41091 | O3: =$D$7 -> Oporto (2) | P3: =$D$9 -> Win | Q3: =$D$11 -> Tour | R3: =$D$24 -> S. Beardall | S3: =$D$13 -> Second | T3: =$D$15 -> 184 | U3: =$D$16 -> 10 | V3: =$D$18 -> 136 | W3: =$D$19 -> 10 | X3: =$D$21 -> 39 | Y3: =$D$22 -> 41 | Z3: =$H$19 -> 41 | AA3: =$H$36 -> 15 | AB3: =F7 -> 1 | AC3: =G7 -> C. Simon | AD3: =H7 -> 17 | AE3: =I7 -> 1 | AF3: =(IF(AD3>49,1,0))-AG3 -> 0 | AG3: =IF(AD3>99,1,0) -> 0 | AH3: =F24 -> 1 | AI3: =G24 -> P. Girdler | AJ3: 7 | AK3: 1 | AL3: 0 | AM3: 22
N4: 41091 | O4: Oporto (2) | P4: Win | Q4: Tour | R4: =$D$24 -> S. Beardall | S4: Second | T4: 184 | U4: 10 | V4: 136 | W4: 10 | X4: 39 | Y4: 41 | Z4: 41 | AA4: 15 | AB4: =F8 -> 2 | AC4: T. Farley | AD4: 10 | AE4: 1 | AF4: =(IF(AD4>49,1,0))-AG4 -> 0 | AG4: =IF(AD4>99,1,0) -> 0 | AH4: =F25 -> 2 | AI4: J. Hunt | AJ4: 5 | AK4: 0 | AL4: 2 | AM4: 15
C5: Date | D5: 2012-07-01 | F5: Batting | N5: 41091 | O5: Oporto (2) | P5: Win | Q5: Tour | R5: S. Beardall | S5: Second | T5: 184 | U5: 10 | V5: 136 | W5: 10 | X5: 39 | Y5: 41 | Z5: 41 | AA5: 15 | AB5: 3 | AC5: J. Hunt | AD5: 11 | AE5: 1 | AF5: 0 | AG5: 0 | AH5: 3 | AI5: T. Farley | AJ5: 4 | AK5: 0 | AL5: 1 | AM5: 23
F6: Position | G6: Name | H6: Runs | I6: Out | N6: 41091 | O6: Oporto (2) | P6: Win | Q6: Tour | R6: S. Beardall | S6: Second | T6: 184 | U6: 10 | V6: 136 | W6: 10 | X6: 39 | Y6: 41 | Z6: 41 | AA6: 15 | AB6: 4 | AC6: D. Stockings | AD6: 8 | AE6: 1 | AF6: 0 | AG6: 0 | AH6: 4 | AI6: D. Stockings | AJ6: 1 | AK6: 0 | AL6: 0 | AM6: 18
C7: Opposition | D7: Oporto (2) | F7: 1 | G7: C. Simon | H7: 17 | I7: 1 | N7: 41091 | O7: Oporto (2) | P7: Win | Q7: Tour | R7: S. Beardall | S7: Second | T7: 184 | U7: 10 | V7: 136 | W7: 10 | X7: 39 | Y7: 41 | Z7: 41 | AA7: 15 | AB7: 5 | AC7: T. Greenwood | AD7: 2 | AE7: 1 | AF7: 0 | AG7: 0 | AH7: 5 | AI7: T. White | AJ7: 11 | AK7: 4 | AL7: 1 | AM7: 23
F8: 2 | G8: T. Farley | H8: 10 | I8: 1 | N8: 41091 | O8: Oporto (2) | P8: Win | Q8: Tour | R8: S. Beardall | S8: Second | T8: 184 | U8: 10 | V8: 136 | W8: 10 | X8: 39 | Y8: 41 | Z8: 41 | AA8: 15 | AB8: 6 | AC8: O. Thornton | AD8: 56 | AE8: 1 | AF8: 1 | AG8: 0 | AH8: 6 | AI8: S. Beardall | AJ8: 6 | AK8: 2 | AL8: 1 | AM8: 15
C9: Match Status | D9: Win | F9: 3 | G9: J. Hunt | H9: 11 | I9: 1 | N9: 41091 | O9: Oporto (2) | P9: Win | Q9: Tour | R9: S. Beardall | S9: Second | T9: 184 | U9: 10 | V9: 136 | W9: 10 | X9: 39 | Y9: 41 | Z9: 41 | AA9: 15 | AB9: 7 | AC9: S. Beardall | AD9: 9 | AE9: 1 | AF9: 0 | AG9: 0 | AH9: 7 | AI9: J. Thornton | AJ9: 5 | AK9: 1 | AL9: 3 | AM9: 5
F10: 4 | G10: D. Stockings | H10: 8 | I10: 1 | N10: 41091 | O10: Oporto (2) | P10: Win | Q10: Tour | R10: S. Beardall | S10: Second | T10: 184 | U10: 10 | V10: 136 | W10: 10 | X10: 39 | Y10: 41 | Z10: 41 | AA10: 15 | AB10: 8 | AC10: J. Thornton | AD10: 18 | AE10: 1 | AF10: 0 | AG10: 0 | AH10: 8 | AI10: Run Out | AJ10: 0 | AK10: 0 | AL10: 2 | AM10: 0
C11: Home / Away | D11: Tour | F11: 5 | G11: T. Greenwood | H11: 2 | I11: 1 | N11: 41091 | O11: Oporto (2) | P11: Win | Q11: Tour | R11: S. Beardall | S11: Second | T11: 184 | U11: 10 | V11: 136 | W11: 10 | X11: 39 | Y11: 41 | Z11: 41 | AA11: 15 | AB11: 9 | AC11: P. Briffett | AD11: 3 | AE11: 1 | AF11: 0 | AG11: 0 | AH11: 9 | AI11: 0 | AJ11: 0 | AK11: 0 | AL11: 0 | AM11: 0
F12: 6 | G12: O. Thornton | H12: 56 | I12: 1 | N12: 41091 | O12: Oporto (2) | P12: Win | Q12: Tour | R12: S. Beardall | S12: Second | T12: 184 | U12: 10 | V12: 136 | W12: 10 | X12: 39 | Y12: 41 | Z12: 41 | AA12: 15 | AB12: 10 | AC12: T. White | AD12: 8 | AE12: 1 | AF12: 0 | AG12: 0 | AH12: 10 | AI12: 0 | AJ12: 0 | AK12: 0 | AL12: 0 | AM12: 0
C13: TPCC Batting First | D13: Second | F13: 7 | G13: S. Beardall | H13: 9 | I13: 1 | N13: 41091 | O13: Oporto (2) | P13: Win | Q13: Tour | R13: S. Beardall | S13: Second | T13: 184 | U13: 10 | V13: 136 | W13: 10 | X13: 39 | Y13: 41 | Z13: 41 | AA13: 15 | AB13: 11 | AC13: P. Girdler | AD13: 1 | AE13: 0 | AF13: 0 | AG13: 0 | AH13: 11 | AI13: 0 | AJ13: 0 | AK13: 0 | AL13: 0 | AM13: 0
F14: 8 | G14: J. Thornton | H14: 18 | I14: 1
C15: TPCC Team Score | D15: =SUM(H7:H17)+H19 -> 184 | F15: 9 | G15: P. Briffett | H15: 3 | I15: 1
C16: TPCC Team Wickets | D16: =SUM(I7:I17) -> 10 | F16: 10 | G16: T. White | H16: 8 | I16: 1
F17: 11 | G17: P. Girdler | H17: 1 | I17: 0
C18: Opposition Team Score | D18: =SUM(K24:K34)+H36 -> 136
C19: Opposition Team Wickets | D19: =SUM(J24:J34) -> 10 | F19: Batting Extras | H19: 41
C21: TPCC Overs Bowled | D21: =SUM(H24:H34) -> 39
C22: Opposition Overs Bowled | D22: 41 | F22: Bowling
F23: Position | G23: Name | H23: Overs | I23: Maidens | J23: Wickets | K23: Runs
C24: TPCC Captain | D24: S. Beardall | F24: 1 | G24: P. Girdler | H24: 7 | I24: 1 | J24: 0 | K24: 22
F25: 2 | G25: J. Hunt | H25: 5 | I25: 0 | J25: 2 | K25: 15
F26: 3 | G26: T. Farley | H26: 4 | I26: 0 | J26: 1 | K26: 23
F27: 4 | G27: D. Stockings | H27: 1 | I27: 0 | J27: 0 | K27: 18
F28: 5 | G28: T. White | H28: 11 | I28: 4 | J28: 1 | K28: 23
F29: 6 | G29: S. Beardall | H29: 6 | I29: 2 | J29: 1 | K29: 15
F30: 7 | G30: J. Thornton | H30: 5 | I30: 1 | J30: 3 | K30: 5
F31: 8 | G31: Run Out | H31: 0 | I31: 0 | J31: 2 | K31: 0
F32: 9
F33: 10
F34: 11
F36: Bowling Extras | H36: 15

Sheet Woodcote
N2: Date | O2: Opposition | P2: Match Status | Q2: Home/Away | R2: Captain | S2: TPCC Batting First | T2: TPCC Team Score | U2: TPCC Team Wickets | V2: Opposition Team Score | W2: Opposition Team Wickets | X2: TPCC Overs Bowled | Y2: TPCC Overs Faced | Z2: Batting Extras | AA2: Bowling Extras | AB2: Batsmen Position | AC2: Batsmen Name | AD2: Batsmen Runs | AE2: Batsmen Out | AF2: 50 | AG2: 100 | AH2: Bowler Position | AI2: Bowler Name | AJ2: Bowler Overs | AK2: Bowler Maidens | AL2: Bowler Wickets | AM2: Bowler Runs
C3: Match Overview | N3: =$D$5 -> 41096 | O3: =$D$7 -> Woodcote | P3: =$D$9 -> Cancelled (Turville) | Q3: =$D$11 -> Away | R3: =$D$24 -> 0 | S3: =$D$13 -> 0 | T3: =$D$15 -> 0 | U3: =$D$16 -> 0 | V3: =$D$18 -> 0 | W3: =$D$19 -> 0 | X3: =$D$21 -> 0 | Y3: =$D$22 -> 0 | Z3: =$H$19 -> 0 | AA3: =$H$36 -> 0 | AB3: =F7 -> 1 | AC3: =G7 -> 0 | AD3: =H7 -> 0 | AE3: =I7 -> 0 | AF3: =(IF(AD3>49,1,0))-AG3 -> 0 | AG3: =IF(AD3>99,1,0) -> 0 | AH3: =F24 -> 1 | AI3: =G24 -> 0 | AJ3: 0 | AK3: 0 | AL3: 0 | AM3: 0
N4: 41096 | O4: Woodcote | P4: Cancelled (Turville) | Q4: Away | R4: =$D$24 -> 0 | S4: 0 | T4: 0 | U4: 0 | V4: 0 | W4: 0 | X4: 0 | Y4: 0 | Z4: 0 | AA4: 0 | AB4: =F8 -> 2 | AC4: 0 | AD4: 0 | AE4: 0 | AF4: =(IF(AD4>49,1,0))-AG4 -> 0 | AG4: =IF(AD4>99,1,0) -> 0 | AH4: =F25 -> 2 | AI4: 0 | AJ4: 0 | AK4: 0 | AL4: 0 | AM4: 0
C5: Date | D5: 2012-07-06 | F5: Batting | N5: 41096 | O5: Woodcote | P5: Cancelled (Turville) | Q5: Away | R5: 0 | S5: 0 | T5: 0 | U5: 0 | V5: 0 | W5: 0 | X5: 0 | Y5: 0 | Z5: 0 | AA5: 0 | AB5: 3 | AC5: 0 | AD5: 0 | AE5: 0 | AF5: 0 | AG5: 0 | AH5: 3 | AI5: 0 | AJ5: 0 | AK5: 0 | AL5: 0 | AM5: 0
F6: Position | G6: Name | H6: Runs | I6: Out | N6: 41096 | O6: Woodcote | P6: Cancelled (Turville) | Q6: Away | R6: 0 | S6: 0 | T6: 0 | U6: 0 | V6: 0 | W6: 0 | X6: 0 | Y6: 0 | Z6: 0 | AA6: 0 | AB6: 4 | AC6: 0 | AD6: 0 | AE6: 0 | AF6: 0 | AG6: 0 | AH6: 4 | AI6: 0 | AJ6: 0 | AK6: 0 | AL6: 0 | AM6: 0
C7: Opposition | D7: Woodcote | F7: 1 | N7: 41096 | O7: Woodcote | P7: Cancelled (Turville) | Q7: Away | R7: 0 | S7: 0 | T7: 0 | U7: 0 | V7: 0 | W7: 0 | X7: 0 | Y7: 0 | Z7: 0 | AA7: 0 | AB7: 5 | AC7: 0 | AD7: 0 | AE7: 0 | AF7: 0 | AG7: 0 | AH7: 5 | AI7: 0 | AJ7: 0 | AK7: 0 | AL7: 0 | AM7: 0
F8: 2 | N8: 41096 | O8: Woodcote | P8: Cancelled (Turville) | Q8: Away | R8: 0 | S8: 0 | T8: 0 | U8: 0 | V8: 0 | W8: 0 | X8: 0 | Y8: 0 | Z8: 0 | AA8: 0 | AB8: 6 | AC8: 0 | AD8: 0 | AE8: 0 | AF8: 0 | AG8: 0 | AH8: 6 | AI8: 0 | AJ8: 0 | AK8: 0 | AL8: 0 | AM8: 0
C9: Match Status | D9: Cancelled (Turville) | F9: 3 | N9: 41096 | O9: Woodcote | P9: Cancelled (Turville) | Q9: Away | R9: 0 | S9: 0 | T9: 0 | U9: 0 | V9: 0 | W9: 0 | X9: 0 | Y9: 0 | Z9: 0 | AA9: 0 | AB9: 7 | AC9: 0 | AD9: 0 | AE9: 0 | AF9: 0 | AG9: 0 | AH9: 7 | AI9: 0 | AJ9: 0 | AK9: 0 | AL9: 0 | AM9: 0
F10: 4 | N10: 41096 | O10: Woodcote | P10: Cancelled (Turville) | Q10: Away | R10: 0 | S10: 0 | T10: 0 | U10: 0 | V10: 0 | W10: 0 | X10: 0 | Y10: 0 | Z10: 0 | AA10: 0 | AB10: 8 | AC10: 0 | AD10: 0 | AE10: 0 | AF10: 0 | AG10: 0 | AH10: 8 | AI10: 0 | AJ10: 0 | AK10: 0 | AL10: 0 | AM10: 0
C11: Home / Away | D11: Away | F11: 5 | N11: 41096 | O11: Woodcote | P11: Cancelled (Turville) | Q11: Away | R11: 0 | S11: 0 | T11: 0 | U11: 0 | V11: 0 | W11: 0 | X11: 0 | Y11: 0 | Z11: 0 | AA11: 0 | AB11: 9 | AC11: 0 | AD11: 0 | AE11: 0 | AF11: 0 | AG11: 0 | AH11: 9 | AI11: 0 | AJ11: 0 | AK11: 0 | AL11: 0 | AM11: 0
F12: 6 | N12: 41096 | O12: Woodcote | P12: Cancelled (Turville) | Q12: Away | R12: 0 | S12: 0 | T12: 0 | U12: 0 | V12: 0 | W12: 0 | X12: 0 | Y12: 0 | Z12: 0 | AA12: 0 | AB12: 10 | AC12: 0 | AD12: 0 | AE12: 0 | AF12: 0 | AG12: 0 | AH12: 10 | AI12: 0 | AJ12: 0 | AK12: 0 | AL12: 0 | AM12: 0
C13: TPCC Batting First | F13: 7 | N13: 41096 | O13: Woodcote | P13: Cancelled (Turville) | Q13: Away | R13: 0 | S13: 0 | T13: 0 | U13: 0 | V13: 0 | W13: 0 | X13: 0 | Y13: 0 | Z13: 0 | AA13: 0 | AB13: 11 | AC13: 0 | AD13: 0 | AE13: 0 | AF13: 0 | AG13: 0 | AH13: 11 | AI13: 0 | AJ13: 0 | AK13: 0 | AL13: 0 | AM13: 0
F14: 8
C15: TPCC Team Score | D15: =SUM(H7:H17)+H19 -> 0 | F15: 9
C16: TPCC Team Wickets | D16: =SUM(I7:I17) -> 0 | F16: 10
F17: 11
C18: Opposition Team Score | D18: =SUM(K24:K34)+H36 -> 0
C19: Opposition Team Wickets | D19: =SUM(J24:J34) -> 0 | F19: Batting Extras
C21: TPCC Overs Bowled | D21: =SUM(H24:H34) -> 0
C22: Opposition Overs Bowled | F22: Bowling
F23: Position | G23: Name | H23: Overs | I23: Maidens | J23: Wickets | K23: Runs
C24: TPCC Captain | F24: 1
F25: 2
F26: 3
F27: 4
F28: 5
F29: 6
F30: 7
F31: 8
F32: 9
F33: 10
F34: 11
F36: Bowling Extras

Sheet Flycatchers
N2: Date | O2: Opposition | P2: Match Status | Q2: Home/Away | R2: Captain | S2: TPCC Batting First | T2: TPCC Team Score | U2: TPCC Team Wickets | V2: Opposition Team Score | W2: Opposition Team Wickets | X2: TPCC Overs Bowled | Y2: TPCC Overs Faced | Z2: Batting Extras | AA2: Bowling Extras | AB2: Batsmen Position | AC2: Batsmen Name | AD2: Batsmen Runs | AE2: Batsmen Out | AF2: 50 | AG2: 100 | AH2: Bowler Position | AI2: Bowler Name | AJ2: Bowler Overs | AK2: Bowler Maidens | AL2: Bowler Wickets | AM2: Bowler Runs
C3: Match Overview | N3: =$D$5 -> 41098 | O3: =$D$7 -> Flycatchers | P3: =$D$9 -> Cancelled (Rain) | Q3: =$D$11 -> Home | R3: =$D$24 -> 0 | S3: =$D$13 -> 0 | T3: =$D$15 -> 0 | U3: =$D$16 -> 0 | V3: =$D$18 -> 0 | W3: =$D$19 -> 0 | X3: =$D$21 -> 0 | Y3: =$D$22 -> 0 | Z3: =$H$19 -> 0 | AA3: =$H$36 -> 0 | AB3: =F7 -> 1 | AC3: =G7 -> 0 | AD3: =H7 -> 0 | AE3: =I7 -> 0 | AF3: =(IF(AD3>49,1,0))-AG3 -> 0 | AG3: =IF(AD3>99,1,0) -> 0 | AH3: =F24 -> 1 | AI3: =G24 -> 0 | AJ3: 0 | AK3: 0 | AL3: 0 | AM3: 0
N4: 41098 | O4: Flycatchers | P4: Cancelled (Rain) | Q4: Home | R4: =$D$24 -> 0 | S4: 0 | T4: 0 | U4: 0 | V4: 0 | W4: 0 | X4: 0 | Y4: 0 | Z4: 0 | AA4: 0 | AB4: =F8 -> 2 | AC4: 0 | AD4: 0 | AE4: 0 | AF4: =(IF(AD4>49,1,0))-AG4 -> 0 | AG4: =IF(AD4>99,1,0) -> 0 | AH4: =F25 -> 2 | AI4: 0 | AJ4: 0 | AK4: 0 | AL4: 0 | AM4: 0
C5: Date | D5: 2012-07-08 | F5: Batting | N5: 41098 | O5: Flycatchers | P5: Cancelled (Rain) | Q5: Home | R5: 0 | S5: 0 | T5: 0 | U5: 0 | V5: 0 | W5: 0 | X5: 0 | Y5: 0 | Z5: 0 | AA5: 0 | AB5: 3 | AC5: 0 | AD5: 0 | AE5: 0 | AF5: 0 | AG5: 0 | AH5: 3 | AI5: 0 | AJ5: 0 | AK5: 0 | AL5: 0 | AM5: 0
F6: Position | G6: Name | H6: Runs | I6: Out | N6: 41098 | O6: Flycatchers | P6: Cancelled (Rain) | Q6: Home | R6: 0 | S6: 0 | T6: 0 | U6: 0 | V6: 0 | W6: 0 | X6: 0 | Y6: 0 | Z6: 0 | AA6: 0 | AB6: 4 | AC6: 0 | AD6: 0 | AE6: 0 | AF6: 0 | AG6: 0 | AH6: 4 | AI6: 0 | AJ6: 0 | AK6: 0 | AL6: 0 | AM6: 0
C7: Opposition | D7: Flycatchers | F7: 1 | N7: 41098 | O7: Flycatchers | P7: Cancelled (Rain) | Q7: Home | R7: 0 | S7: 0 | T7: 0 | U7: 0 | V7: 0 | W7: 0 | X7: 0 | Y7: 0 | Z7: 0 | AA7: 0 | AB7: 5 | AC7: 0 | AD7: 0 | AE7: 0 | AF7: 0 | AG7: 0 | AH7: 5 | AI7: 0 | AJ7: 0 | AK7: 0 | AL7: 0 | AM7: 0
F8: 2 | N8: 41098 | O8: Flycatchers | P8: Cancelled (Rain) | Q8: Home | R8: 0 | S8: 0 | T8: 0 | U8: 0 | V8: 0 | W8: 0 | X8: 0 | Y8: 0 | Z8: 0 | AA8: 0 | AB8: 6 | AC8: 0 | AD8: 0 | AE8: 0 | AF8: 0 | AG8: 0 | AH8: 6 | AI8: 0 | AJ8: 0 | AK8: 0 | AL8: 0 | AM8: 0
C9: Match Status | D9: Cancelled (Rain) | F9: 3 | N9: 41098 | O9: Flycatchers | P9: Cancelled (Rain) | Q9: Home | R9: 0 | S9: 0 | T9: 0 | U9: 0 | V9: 0 | W9: 0 | X9: 0 | Y9: 0 | Z9: 0 | AA9: 0 | AB9: 7 | AC9: 0 | AD9: 0 | AE9: 0 | AF9: 0 | AG9: 0 | AH9: 7 | AI9: 0 | AJ9: 0 | AK9: 0 | AL9: 0 | AM9: 0
F10: 4 | N10: 41098 | O10: Flycatchers | P10: Cancelled (Rain) | Q10: Home | R10: 0 | S10: 0 | T10: 0 | U10: 0 | V10: 0 | W10: 0 | X10: 0 | Y10: 0 | Z10: 0 | AA10: 0 | AB10: 8 | AC10: 0 | AD10: 0 | AE10: 0 | AF10: 0 | AG10: 0 | AH10: 8 | AI10: 0 | AJ10: 0 | AK10: 0 | AL10: 0 | AM10: 0
C11: Home / Away | D11: Home | F11: 5 | N11: 41098 | O11: Flycatchers | P11: Cancelled (Rain) | Q11: Home | R11: 0 | S11: 0 | T11: 0 | U11: 0 | V11: 0 | W11: 0 | X11: 0 | Y11: 0 | Z11: 0 | AA11: 0 | AB11: 9 | AC11: 0 | AD11: 0 | AE11: 0 | AF11: 0 | AG11: 0 | AH11: 9 | AI11: 0 | AJ11: 0 | AK11: 0 | AL11: 0 | AM11: 0
F12: 6 | N12: 41098 | O12: Flycatchers | P12: Cancelled (Rain) | Q12: Home | R12: 0 | S12: 0 | T12: 0 | U12: 0 | V12: 0 | W12: 0 | X12: 0 | Y12: 0 | Z12: 0 | AA12: 0 | AB12: 10 | AC12: 0 | AD12: 0 | AE12: 0 | AF12: 0 | AG12: 0 | AH12: 10 | AI12: 0 | AJ12: 0 | AK12: 0 | AL12: 0 | AM12: 0
C13: TPCC Batting First | F13: 7 | N13: 41098 | O13: Flycatchers | P13: Cancelled (Rain) | Q13: Home | R13: 0 | S13: 0 | T13: 0 | U13: 0 | V13: 0 | W13: 0 | X13: 0 | Y13: 0 | Z13: 0 | AA13: 0 | AB13: 11 | AC13: 0 | AD13: 0 | AE13: 0 | AF13: 0 | AG13: 0 | AH13: 11 | AI13: 0 | AJ13: 0 | AK13: 0 | AL13: 0 | AM13: 0
F14: 8
C15: TPCC Team Score | D15: =SUM(H7:H17)+H19 -> 0 | F15: 9
C16: TPCC Team Wickets | D16: =SUM(I7:I17) -> 0 | F16: 10
F17: 11
C18: Opposition Team Score | D18: =SUM(K24:K34)+H36 -> 0
C19: Opposition Team Wickets | D19: =SUM(J24:J34) -> 0 | F19: Batting Extras
C21: TPCC Overs Bowled | D21: =SUM(H24:H34) -> 0
C22: Opposition Overs Bowled | F22: Bowling
F23: Position | G23: Name | H23: Overs | I23: Maidens | J23: Wickets | K23: Runs
C24: TPCC Captain | F24: 1
F25: 2
F26: 3
F27: 4
F28: 5
F29: 6
F30: 7
F31: 8
F32: 9
F33: 10
F34: 11
F36: Bowling Extras

Sheet Ibstone
N2: Date | O2: Opposition | P2: Match Status | Q2: Home/Away | R2: Captain | S2: TPCC Batting First | T2: TPCC Team Score | U2: TPCC Team Wickets | V2: Opposition Team Score | W2: Opposition Team Wickets | X2: TPCC Overs Bowled | Y2: TPCC Overs Faced | Z2: Batting Extras | AA2: Bowling Extras | AB2: Batsmen Position | AC2: Batsmen Name | AD2: Batsmen Runs | AE2: Batsmen Out | AF2: 50 | AG2: 100 | AH2: Bowler Position | AI2: Bowler Name | AJ2: Bowler Overs | AK2: Bowler Maidens | AL2: Bowler Wickets | AM2: Bowler Runs
C3: Match Overview | N3: =$D$5 -> 41105 | O3: =$D$7 -> Ibstone | P3: =$D$9 -> Win | Q3: =$D$11 -> Away | R3: =$D$24 -> S. Beardall | S3: =$D$13 -> First | T3: =$D$15 -> 200 | U3: =$D$16 -> 9 | V3: =$D$18 -> 61 | W3: =$D$19 -> 10 | X3: =$D$21 -> 32 | Y3: =$D$22 -> 42 | Z3: =$H$19 -> 1 | AA3: =$H$36 -> 7 | AB3: =F7 -> 1 | AC3: =G7 -> S. Halfhead | AD3: =H7 -> 9 | AE3: =I7 -> 1 | AF3: =(IF(AD3>49,1,0))-AG3 -> 0 | AG3: =IF(AD3>99,1,0) -> 0 | AH3: =F24 -> 1 | AI3: =G24 -> T. White | AJ3: 8 | AK3: 7 | AL3: 8 | AM3: 4
N4: 41105 | O4: Ibstone | P4: Win | Q4: Away | R4: =$D$24 -> S. Beardall | S4: First | T4: 200 | U4: 9 | V4: 61 | W4: 10 | X4: 32 | Y4: 42 | Z4: 1 | AA4: 7 | AB4: =F8 -> 2 | AC4: J. Rogers | AD4: 1 | AE4: 1 | AF4: =(IF(AD4>49,1,0))-AG4 -> 0 | AG4: =IF(AD4>99,1,0) -> 0 | AH4: =F25 -> 2 | AI4: S. Beardall | AJ4: 2 | AK4: 0 | AL4: 0 | AM4: 17
C5: Date | D5: 2012-07-15 | F5: Batting | N5: 41105 | O5: Ibstone | P5: Win | Q5: Away | R5: S. Beardall | S5: First | T5: 200 | U5: 9 | V5: 61 | W5: 10 | X5: 32 | Y5: 42 | Z5: 1 | AA5: 7 | AB5: 3 | AC5: J. Hunt | AD5: 64 | AE5: 1 | AF5: 1 | AG5: 0 | AH5: 3 | AI5: J. Rogers | AJ5: 10 | AK5: 2 | AL5: 2 | AM5: 27
F6: Position | G6: Name | H6: Runs | I6: Out | N6: 41105 | O6: Ibstone | P6: Win | Q6: Away | R6: S. Beardall | S6: First | T6: 200 | U6: 9 | V6: 61 | W6: 10 | X6: 32 | Y6: 42 | Z6: 1 | AA6: 7 | AB6: 4 | AC6: C. Beardall | AD6: 19 | AE6: 1 | AF6: 0 | AG6: 0 | AH6: 4 | AI6: C. Rogers | AJ6: 4 | AK6: 2 | AL6: 0 | AM6: 3
C7: Opposition | D7: Ibstone | F7: 1 | G7: S. Halfhead | H7: 9 | I7: 1 | N7: 41105 | O7: Ibstone | P7: Win | Q7: Away | R7: S. Beardall | S7: First | T7: 200 | U7: 9 | V7: 61 | W7: 10 | X7: 32 | Y7: 42 | Z7: 1 | AA7: 7 | AB7: 5 | AC7: T. Wade | AD7: 27 | AE7: 1 | AF7: 0 | AG7: 0 | AH7: 5 | AI7: J. Hancock | AJ7: 5 | AK7: 4 | AL7: 0 | AM7: 2
F8: 2 | G8: J. Rogers | H8: 1 | I8: 1 | N8: 41105 | O8: Ibstone | P8: Win | Q8: Away | R8: S. Beardall | S8: First | T8: 200 | U8: 9 | V8: 61 | W8: 10 | X8: 32 | Y8: 42 | Z8: 1 | AA8: 7 | AB8: 6 | AC8: W. Strickland | AD8: 0 | AE8: 1 | AF8: 0 | AG8: 0 | AH8: 6 | AI8: J. Hunt | AJ8: 3 | AK8: 2 | AL8: 0 | AM8: 1
C9: Match Status | D9: Win | F9: 3 | G9: J. Hunt | H9: 64 | I9: 1 | N9: 41105 | O9: Ibstone | P9: Win | Q9: Away | R9: S. Beardall | S9: First | T9: 200 | U9: 9 | V9: 61 | W9: 10 | X9: 32 | Y9: 42 | Z9: 1 | AA9: 7 | AB9: 7 | AC9: J. Hancock | AD9: 7 | AE9: 1 | AF9: 0 | AG9: 0 | AH9: 7 | AI9: 0 | AJ9: 0 | AK9: 0 | AL9: 0 | AM9: 0
F10: 4 | G10: C. Beardall | H10: 19 | I10: 1 | N10: 41105 | O10: Ibstone | P10: Win | Q10: Away | R10: S. Beardall | S10: First | T10: 200 | U10: 9 | V10: 61 | W10: 10 | X10: 32 | Y10: 42 | Z10: 1 | AA10: 7 | AB10: 8 | AC10: S. Beardall | AD10: 55 | AE10: 0 | AF10: 1 | AG10: 0 | AH10: 8 | AI10: 0 | AJ10: 0 | AK10: 0 | AL10: 0 | AM10: 0
C11: Home / Away | D11: Away | F11: 5 | G11: T. Wade | H11: 27 | I11: 1 | N11: 41105 | O11: Ibstone | P11: Win | Q11: Away | R11: S. Beardall | S11: First | T11: 200 | U11: 9 | V11: 61 | W11: 10 | X11: 32 | Y11: 42 | Z11: 1 | AA11: 7 | AB11: 9 | AC11: B. Bazell | AD11: 8 | AE11: 1 | AF11: 0 | AG11: 0 | AH11: 9 | AI11: 0 | AJ11: 0 | AK11: 0 | AL11: 0 | AM11: 0
F12: 6 | G12: W. Strickland | H12: 0 | I12: 1 | N12: 41105 | O12: Ibstone | P12: Win | Q12: Away | R12: S. Beardall | S12: First | T12: 200 | U12: 9 | V12: 61 | W12: 10 | X12: 32 | Y12: 42 | Z12: 1 | AA12: 7 | AB12: 10 | AC12: C. Rogers | AD12: 9 | AE12: 1 | AF12: 0 | AG12: 0 | AH12: 10 | AI12: 0 | AJ12: 0 | AK12: 0 | AL12: 0 | AM12: 0
C13: TPCC Batting First | D13: First | F13: 7 | G13: J. Hancock | H13: 7 | I13: 1 | N13: 41105 | O13: Ibstone | P13: Win | Q13: Away | R13: S. Beardall | S13: First | T13: 200 | U13: 9 | V13: 61 | W13: 10 | X13: 32 | Y13: 42 | Z13: 1 | AA13: 7 | AB13: 11 | AC13: T. White | AD13: 0 | AE13: 0 | AF13: 0 | AG13: 0 | AH13: 11 | AI13: 0 | AJ13: 0 | AK13: 0 | AL13: 0 | AM13: 0
F14: 8 | G14: S. Beardall | H14: 55 | I14: 0
C15: TPCC Team Score | D15: =SUM(H7:H17)+H19 -> 200 | F15: 9 | G15: B. Bazell | H15: 8 | I15: 1
C16: TPCC Team Wickets | D16: =SUM(I7:I17) -> 9 | F16: 10 | G16: C. Rogers | H16: 9 | I16: 1
F17: 11 | G17: T. White | H17: 0 | I17: 0
C18: Opposition Team Score | D18: =SUM(K24:K34)+H36 -> 61
C19: Opposition Team Wickets | D19: =SUM(J24:J34) -> 10 | F19: Batting Extras | H19: 1
C21: TPCC Overs Bowled | D21: =SUM(H24:H34) -> 32
C22: Opposition Overs Bowled | D22: 42 | F22: Bowling
F23: Position | G23: Name | H23: Overs | I23: Maidens | J23: Wickets | K23: Runs
C24: TPCC Captain | D24: S. Beardall | F24: 1 | G24: T. White | H24: 8 | I24: 7 | J24: 8 | K24: 4
F25: 2 | G25: S. Beardall | H25: 2 | I25: 0 | J25: 0 | K25: 17
F26: 3 | G26: J. Rogers | H26: 10 | I26: 2 | J26: 2 | K26: 27
F27: 4 | G27: C. Rogers | H27: 4 | I27: 2 | J27: 0 | K27: 3
F28: 5 | G28: J. Hancock | H28: 5 | I28: 4 | J28: 0 | K28: 2
F29: 6 | G29: J. Hunt | H29: 3 | I29: 2 | J29: 0 | K29: 1
F30: 7
F31: 8
F32: 9
F33: 10
F34: 11
F36: Bowling Extras | H36: 7

Sheet Crossbatters
N2: Date | O2: Opposition | P2: Match Status | Q2: Home/Away | R2: Captain | S2: TPCC Batting First | T2: TPCC Team Score | U2: TPCC Team Wickets | V2: Opposition Team Score | W2: Opposition Team Wickets | X2: TPCC Overs Bowled | Y2: TPCC Overs Faced | Z2: Batting Extras | AA2: Bowling Extras | AB2: Batsmen Position | AC2: Batsmen Name | AD2: Batsmen Runs | AE2: Batsmen Out | AF2: 50 | AG2: 100 | AH2: Bowler Position | AI2: Bowler Name | AJ2: Bowler Overs | AK2: Bowler Maidens | AL2: Bowler Wickets | AM2: Bowler Runs
C3: Match Overview | N3: =$D$5 -> 41111 | O3: =$D$7 -> Crossbatters | P3: =$D$9 -> Loss | Q3: =$D$11 -> Home | R3: =$D$24 -> S. Beardall | S3: =$D$13 -> Second | T3: =$D$15 -> 62 | U3: =$D$16 -> 10 | V3: =$D$18 -> 179 | W3: =$D$19 -> 8 | X3: =$D$21 -> 35 | Y3: =$D$22 -> 22 | Z3: =$H$19 -> 2 | AA3: =$H$36 -> 12 | AB3: =F7 -> 1 | AC3: =G7 -> S. Beardall | AD3: =H7 -> 23 | AE3: =I7 -> 1 | AF3: =(IF(AD3>49,1,0))-AG3 -> 0 | AG3: =IF(AD3>99,1,0) -> 0 | AH3: =F24 -> 1 | AI3: =G24 -> J. Hunt | AJ3: 5 | AK3: 0 | AL3: 3 | AM3: 9
N4: 41111 | O4: Crossbatters | P4: Loss | Q4: Home | R4: =$D$24 -> S. Beardall | S4: Second | T4: 62 | U4: 10 | V4: 179 | W4: 8 | X4: 35 | Y4: 22 | Z4: 2 | AA4: 12 | AB4: =F8 -> 2 | AC4: P. Briffett | AD4: 1 | AE4: 1 | AF4: =(IF(AD4>49,1,0))-AG4 -> 0 | AG4: =IF(AD4>99,1,0) -> 0 | AH4: =F25 -> 2 | AI4: H. De Zulueta | AJ4: 6 | AK4: 0 | AL4: 1 | AM4: 35
C5: Date | D5: 2012-07-21 | F5: Batting | N5: 41111 | O5: Crossbatters | P5: Loss | Q5: Home | R5: S. Beardall | S5: Second | T5: 62 | U5: 10 | V5: 179 | W5: 8 | X5: 35 | Y5: 22 | Z5: 2 | AA5: 12 | AB5: 3 | AC5: Ro. Dickie | AD5: 8 | AE5: 1 | AF5: 0 | AG5: 0 | AH5: 3 | AI5: J. Leefe | AJ5: 8 | AK5: 1 | AL5: 0 | AM5: 29
F6: Position | G6: Name | H6: Runs | I6: Out | N6: 41111 | O6: Crossbatters | P6: Loss | Q6: Home | R6: S. Beardall | S6: Second | T6: 62 | U6: 10 | V6: 179 | W6: 8 | X6: 35 | Y6: 22 | Z6: 2 | AA6: 12 | AB6: 4 | AC6: J. Hunt | AD6: 25 | AE6: 1 | AF6: 0 | AG6: 0 | AH6: 4 | AI6: N. Henry | AJ6: 10 | AK6: 0 | AL6: 2 | AM6: 61
C7: Opposition | D7: Crossbatters | F7: 1 | G7: S. Beardall | H7: 23 | I7: 1 | N7: 41111 | O7: Crossbatters | P7: Loss | Q7: Home | R7: S. Beardall | S7: Second | T7: 62 | U7: 10 | V7: 179 | W7: 8 | X7: 35 | Y7: 22 | Z7: 2 | AA7: 12 | AB7: 5 | AC7: J. Moberly | AD7: 2 | AE7: 1 | AF7: 0 | AG7: 0 | AH7: 5 | AI7: D. Bradman | AJ7: 4 | AK7: 0 | AL7: 2 | AM7: 8
F8: 2 | G8: P. Briffett | H8: 1 | I8: 1 | N8: 41111 | O8: Crossbatters | P8: Loss | Q8: Home | R8: S. Beardall | S8: Second | T8: 62 | U8: 10 | V8: 179 | W8: 8 | X8: 35 | Y8: 22 | Z8: 2 | AA8: 12 | AB8: 6 | AC8: J. Leefe | AD8: 0 | AE8: 0 | AF8: 0 | AG8: 0 | AH8: 6 | AI8: P. Briffett | AJ8: 2 | AK8: 0 | AL8: 0 | AM8: 25
C9: Match Status | D9: Loss | F9: 3 | G9: Ro. Dickie | H9: 8 | I9: 1 | N9: 41111 | O9: Crossbatters | P9: Loss | Q9: Home | R9: S. Beardall | S9: Second | T9: 62 | U9: 10 | V9: 179 | W9: 8 | X9: 35 | Y9: 22 | Z9: 2 | AA9: 12 | AB9: 7 | AC9: P. De Zulueta | AD9: 0 | AE9: 1 | AF9: 0 | AG9: 0 | AH9: 7 | AI9: 0 | AJ9: 0 | AK9: 0 | AL9: 0 | AM9: 0
F10: 4 | G10: J. Hunt | H10: 25 | I10: 1 | N10: 41111 | O10: Crossbatters | P10: Loss | Q10: Home | R10: S. Beardall | S10: Second | T10: 62 | U10: 10 | V10: 179 | W10: 8 | X10: 35 | Y10: 22 | Z10: 2 | AA10: 12 | AB10: 8 | AC10: R. Beardall | AD10: 0 | AE10: 1 | AF10: 0 | AG10: 0 | AH10: 8 | AI10: 0 | AJ10: 0 | AK10: 0 | AL10: 0 | AM10: 0
C11: Home / Away | D11: Home | F11: 5 | G11: J. Moberly | H11: 2 | I11: 1 | N11: 41111 | O11: Crossbatters | P11: Loss | Q11: Home | R11: S. Beardall | S11: Second | T11: 62 | U11: 10 | V11: 179 | W11: 8 | X11: 35 | Y11: 22 | Z11: 2 | AA11: 12 | AB11: 9 | AC11: H. De Zulueta | AD11: 0 | AE11: 1 | AF11: 0 | AG11: 0 | AH11: 9 | AI11: 0 | AJ11: 0 | AK11: 0 | AL11: 0 | AM11: 0
F12: 6 | G12: J. Leefe | H12: 0 | I12: 0 | N12: 41111 | O12: Crossbatters | P12: Loss | Q12: Home | R12: S. Beardall | S12: Second | T12: 62 | U12: 10 | V12: 179 | W12: 8 | X12: 35 | Y12: 22 | Z12: 2 | AA12: 12 | AB12: 10 | AC12: D. Bradman | AD12: 1 | AE12: 1 | AF12: 0 | AG12: 0 | AH12: 10 | AI12: 0 | AJ12: 0 | AK12: 0 | AL12: 0 | AM12: 0
C13: TPCC Batting First | D13: Second | F13: 7 | G13: P. De Zulueta | H13: 0 | I13: 1 | N13: 41111 | O13: Crossbatters | P13: Loss | Q13: Home | R13: S. Beardall | S13: Second | T13: 62 | U13: 10 | V13: 179 | W13: 8 | X13: 35 | Y13: 22 | Z13: 2 | AA13: 12 | AB13: 11 | AC13: N. Henry | AD13: 0 | AE13: 1 | AF13: 0 | AG13: 0 | AH13: 11 | AI13: 0 | AJ13: 0 | AK13: 0 | AL13: 0 | AM13: 0
F14: 8 | G14: R. Beardall | H14: 0 | I14: 1
C15: TPCC Team Score | D15: =SUM(H7:H17)+H19 -> 62 | F15: 9 | G15: H. De Zulueta | H15: 0 | I15: 1
C16: TPCC Team Wickets | D16: =SUM(I7:I17) -> 10 | F16: 10 | G16: D. Bradman | H16: 1 | I16: 1
F17: 11 | G17: N. Henry | H17: 0 | I17: 1
C18: Opposition Team Score | D18: =SUM(K24:K34)+H36 -> 179
C19: Opposition Team Wickets | D19: =SUM(J24:J34) -> 8 | F19: Batting Extras | H19: 2
C21: TPCC Overs Bowled | D21: =SUM(H24:H34) -> 35
C22: Opposition Overs Bowled | D22: 22 | F22: Bowling
F23: Position | G23: Name | H23: Overs | I23: Maidens | J23: Wickets | K23: Runs
C24: TPCC Captain | D24: S. Beardall | F24: 1 | G24: J. Hunt | H24: 5 | I24: 0 | J24: 3 | K24: 9
F25: 2 | G25: H. De Zulueta | H25: 6 | I25: 0 | J25: 1 | K25: 35
F26: 3 | G26: J. Leefe | H26: 8 | I26: 1 | J26: 0 | K26: 29
F27: 4 | G27: N. Henry | H27: 10 | I27: 0 | J27: 2 | K27: 61
F28: 5 | G28: D. Bradman | H28: 4 | I28: 0 | J28: 2 | K28: 8
F29: 6 | G29: P. Briffett | H29: 2 | I29: 0 | J29: 0 | K29: 25
F30: 7
F31: 8
F32: 9
F33: 10
F34: 11
F36: Bowling Extras | H36: 12

Sheet Warborough
N2: Date | O2: Opposition | P2: Match Status | Q2: Home/Away | R2: Captain | S2: TPCC Batting First | T2: TPCC Team Score | U2: TPCC Team Wickets | V2: Opposition Team Score | W2: Opposition Team Wickets | X2: TPCC Overs Bowled | Y2: TPCC Overs Faced | Z2: Batting Extras | AA2: Bowling Extras | AB2: Batsmen Position | AC2: Batsmen Name | AD2: Batsmen Runs | AE2: Batsmen Out | AF2: 50 | AG2: 100 | AH2: Bowler Position | AI2: Bowler Name | AJ2: Bowler Overs | AK2: Bowler Maidens | AL2: Bowler Wickets | AM2: Bowler Runs
C3: Match Overview | N3: =$D$5 -> 41112 | O3: =$D$7 -> Warborough | P3: =$D$9 -> Draw | Q3: =$D$11 -> Home | R3: =$D$24 -> S. Beardall | S3: =$D$13 -> First | T3: =$D$15 -> 248 | U3: =$D$16 -> 6 | V3: =$D$18 -> 110 | W3: =$D$19 -> 4 | X3: =$D$21 -> 38 | Y3: =$D$22 -> 45 | Z3: =$H$19 -> 14 | AA3: =$H$36 -> 5 | AB3: =F7 -> 1 | AC3: =G7 -> C. Beardall | AD3: =H7 -> 96 | AE3: =I7 -> 1 | AF3: =(IF(AD3>49,1,0))-AG3 -> 1 | AG3: =IF(AD3>99,1,0) -> 0 | AH3: =F24 -> 1 | AI3: =G24 -> J. Leefe | AJ3: 8 | AK3: 0 | AL3: 2 | AM3: 31
N4: 41112 | O4: Warborough | P4: Draw | Q4: Home | R4: =$D$24 -> S. Beardall | S4: First | T4: 248 | U4: 6 | V4: 110 | W4: 4 | X4: 38 | Y4: 45 | Z4: 14 | AA4: 5 | AB4: =F8 -> 2 | AC4: J. Rogers | AD4: 8 | AE4: 1 | AF4: =(IF(AD4>49,1,0))-AG4 -> 0 | AG4: =IF(AD4>99,1,0) -> 0 | AH4: =F25 -> 2 | AI4: N. Henry | AJ4: 10 | AK4: 2 | AL4: 0 | AM4: 29
C5: Date | D5: 2012-07-22 | F5: Batting | N5: 41112 | O5: Warborough | P5: Draw | Q5: Home | R5: S. Beardall | S5: First | T5: 248 | U5: 6 | V5: 110 | W5: 4 | X5: 38 | Y5: 45 | Z5: 14 | AA5: 5 | AB5: 3 | AC5: S. Beardall | AD5: 76 | AE5: 1 | AF5: 1 | AG5: 0 | AH5: 3 | AI5: S. Flakelar | AJ5: 8 | AK5: 0 | AL5: 0 | AM5: 14
F6: Position | G6: Name | H6: Runs | I6: Out | N6: 41112 | O6: Warborough | P6: Draw | Q6: Home | R6: S. Beardall | S6: First | T6: 248 | U6: 6 | V6: 110 | W6: 4 | X6: 38 | Y6: 45 | Z6: 14 | AA6: 5 | AB6: 4 | AC6: S. Flakelar | AD6: 19 | AE6: 1 | AF6: 0 | AG6: 0 | AH6: 4 | AI6: C. Rogers | AJ6: 3 | AK6: 1 | AL6: 0 | AM6: 14
C7: Opposition | D7: Warborough | F7: 1 | G7: C. Beardall | H7: 96 | I7: 1 | N7: 41112 | O7: Warborough | P7: Draw | Q7: Home | R7: S. Beardall | S7: First | T7: 248 | U7: 6 | V7: 110 | W7: 4 | X7: 38 | Y7: 45 | Z7: 14 | AA7: 5 | AB7: 5 | AC7: T. Wade | AD7: 16 | AE7: 0 | AF7: 0 | AG7: 0 | AH7: 5 | AI7: J. Rogers | AJ7: 6 | AK7: 1 | AL7: 2 | AM7: 7
F8: 2 | G8: J. Rogers | H8: 8 | I8: 1 | N8: 41112 | O8: Warborough | P8: Draw | Q8: Home | R8: S. Beardall | S8: First | T8: 248 | U8: 6 | V8: 110 | W8: 4 | X8: 38 | Y8: 45 | Z8: 14 | AA8: 5 | AB8: 6 | AC8: J. Moberly | AD8: 13 | AE8: 1 | AF8: 0 | AG8: 0 | AH8: 6 | AI8: S. Beardall | AJ8: 2 | AK8: 1 | AL8: 0 | AM8: 5
C9: Match Status | D9: Draw | F9: 3 | G9: S. Beardall | H9: 76 | I9: 1 | N9: 41112 | O9: Warborough | P9: Draw | Q9: Home | R9: S. Beardall | S9: First | T9: 248 | U9: 6 | V9: 110 | W9: 4 | X9: 38 | Y9: 45 | Z9: 14 | AA9: 5 | AB9: 7 | AC9: C. Rogers | AD9: 3 | AE9: 1 | AF9: 0 | AG9: 0 | AH9: 7 | AI9: T. Greenwood | AJ9: 1 | AK9: 0 | AL9: 0 | AM9: 5
F10: 4 | G10: S. Flakelar | H10: 19 | I10: 1 | N10: 41112 | O10: Warborough | P10: Draw | Q10: Home | R10: S. Beardall | S10: First | T10: 248 | U10: 6 | V10: 110 | W10: 4 | X10: 38 | Y10: 45 | Z10: 14 | AA10: 5 | AB10: 8 | AC10: J. Leefe | AD10: 3 | AE10: 0 | AF10: 0 | AG10: 0 | AH10: 8 | AI10: 0 | AJ10: 0 | AK10: 0 | AL10: 0 | AM10: 0
C11: Home / Away | D11: Home | F11: 5 | G11: T. Wade | H11: 16 | I11: 0 | N11: 41112 | O11: Warborough | P11: Draw | Q11: Home | R11: S. Beardall | S11: First | T11: 248 | U11: 6 | V11: 110 | W11: 4 | X11: 38 | Y11: 45 | Z11: 14 | AA11: 5 | AB11: 9 | AC11: 0 | AD11: 0 | AE11: 0 | AF11: 0 | AG11: 0 | AH11: 9 | AI11: 0 | AJ11: 0 | AK11: 0 | AL11: 0 | AM11: 0
F12: 6 | G12: J. Moberly | H12: 13 | I12: 1 | N12: 41112 | O12: Warborough | P12: Draw | Q12: Home | R12: S. Beardall | S12: First | T12: 248 | U12: 6 | V12: 110 | W12: 4 | X12: 38 | Y12: 45 | Z12: 14 | AA12: 5 | AB12: 10 | AC12: 0 | AD12: 0 | AE12: 0 | AF12: 0 | AG12: 0 | AH12: 10 | AI12: 0 | AJ12: 0 | AK12: 0 | AL12: 0 | AM12: 0
C13: TPCC Batting First | D13: First | F13: 7 | G13: C. Rogers | H13: 3 | I13: 1 | N13: 41112 | O13: Warborough | P13: Draw | Q13: Home | R13: S. Beardall | S13: First | T13: 248 | U13: 6 | V13: 110 | W13: 4 | X13: 38 | Y13: 45 | Z13: 14 | AA13: 5 | AB13: 11 | AC13: 0 | AD13: 0 | AE13: 0 | AF13: 0 | AG13: 0 | AH13: 11 | AI13: 0 | AJ13: 0 | AK13: 0 | AL13: 0 | AM13: 0
F14: 8 | G14: J. Leefe | H14: 3 | I14: 0
C15: TPCC Team Score | D15: =SUM(H7:H17)+H19 -> 248 | F15: 9
C16: TPCC Team Wickets | D16: =SUM(I7:I17) -> 6 | F16: 10
F17: 11
C18: Opposition Team Score | D18: =SUM(K24:K34)+H36 -> 110
C19: Opposition Team Wickets | D19: =SUM(J24:J34) -> 4 | F19: Batting Extras | H19: 14
C21: TPCC Overs Bowled | D21: =SUM(H24:H34) -> 38
C22: Opposition Overs Bowled | D22: 45 | F22: Bowling
F23: Position | G23: Name | H23: Overs | I23: Maidens | J23: Wickets | K23: Runs
C24: TPCC Captain | D24: S. Beardall | F24: 1 | G24: J. Leefe | H24: 8 | I24: 0 | J24: 2 | K24: 31
F25: 2 | G25: N. Henry | H25: 10 | I25: 2 | J25: 0 | K25: 29
F26: 3 | G26: S. Flakelar | H26: 8 | I26: 0 | J26: 0 | K26: 14
F27: 4 | G27: C. Rogers | H27: 3 | I27: 1 | J27: 0 | K27: 14
F28: 5 | G28: J. Rogers | H28: 6 | I28: 1 | J28: 2 | K28: 7
F29: 6 | G29: S. Beardall | H29: 2 | I29: 1 | J29: 0 | K29: 5
F30: 7 | G30: T. Greenwood | H30: 1 | I30: 0 | J30: 0 | K30: 5
F31: 8
F32: 9
F33: 10
F34: 11
F36: Bowling Extras | H36: 5

Sheet Ipsden
N2: Date | O2: Opposition | P2: Match Status | Q2: Home/Away | R2: Captain | S2: TPCC Batting First | T2: TPCC Team Score | U2: TPCC Team Wickets | V2: Opposition Team Score | W2: Opposition Team Wickets | X2: TPCC Overs Bowled | Y2: TPCC Overs Faced | Z2: Batting Extras | AA2: Bowling Extras | AB2: Batsmen Position | AC2: Batsmen Name | AD2: Batsmen Runs | AE2: Batsmen Out | AF2: 50 | AG2: 100 | AH2: Bowler Position | AI2: Bowler Name | AJ2: Bowler Overs | AK2: Bowler Maidens | AL2: Bowler Wickets | AM2: Bowler Runs
C3: Match Overview | N3: =$D$5 -> 41119 | O3: =$D$7 -> Ipsden | P3: =$D$9 -> Win | Q3: =$D$11 -> Home | R3: =$D$24 -> S. Beardall | S3: =$D$13 -> First | T3: =$D$15 -> 180 | U3: =$D$16 -> 3 | V3: =$D$18 -> 178 | W3: =$D$19 -> 4 | X3: =$D$21 -> 30 | Y3: =$D$22 -> 30 | Z3: =$H$19 -> 8 | AA3: =$H$36 -> 4 | AB3: =F7 -> 1 | AC3: =G7 -> C. Beardall | AD3: =H7 -> 26 | AE3: =I7 -> 1 | AF3: =(IF(AD3>49,1,0))-AG3 -> 0 | AG3: =IF(AD3>99,1,0) -> 0 | AH3: =F24 -> 1 | AI3: =G24 -> S. Beardall | AJ3: 6 | AK3: 0 | AL3: 1 | AM3: 18
N4: 41119 | O4: Ipsden | P4: Win | Q4: Home | R4: =$D$24 -> S. Beardall | S4: First | T4: 180 | U4: 3 | V4: 178 | W4: 4 | X4: 30 | Y4: 30 | Z4: 8 | AA4: 4 | AB4: =F8 -> 2 | AC4: J. Rogers | AD4: 24 | AE4: 1 | AF4: =(IF(AD4>49,1,0))-AG4 -> 0 | AG4: =IF(AD4>99,1,0) -> 0 | AH4: =F25 -> 2 | AI4: N. Henry | AJ4: 7 | AK4: 0 | AL4: 1 | AM4: 23
C5: Date | D5: 2012-07-29 | F5: Batting | N5: 41119 | O5: Ipsden | P5: Win | Q5: Home | R5: S. Beardall | S5: First | T5: 180 | U5: 3 | V5: 178 | W5: 4 | X5: 30 | Y5: 30 | Z5: 8 | AA5: 4 | AB5: 3 | AC5: O. Thornton | AD5: 103 | AE5: 0 | AF5: 0 | AG5: 1 | AH5: 3 | AI5: B. Watson | AJ5: 5 | AK5: 2 | AL5: 1 | AM5: 24
F6: Position | G6: Name | H6: Runs | I6: Out | N6: 41119 | O6: Ipsden | P6: Win | Q6: Home | R6: S. Beardall | S6: First | T6: 180 | U6: 3 | V6: 178 | W6: 4 | X6: 30 | Y6: 30 | Z6: 8 | AA6: 4 | AB6: 4 | AC6: B. Watson | AD6: 19 | AE6: 1 | AF6: 0 | AG6: 0 | AH6: 4 | AI6: C. Rogers | AJ6: 3 | AK6: 0 | AL6: 0 | AM6: 30
C7: Opposition | D7: Ipsden | F7: 1 | G7: C. Beardall | H7: 26 | I7: 1 | N7: 41119 | O7: Ipsden | P7: Win | Q7: Home | R7: S. Beardall | S7: First | T7: 180 | U7: 3 | V7: 178 | W7: 4 | X7: 30 | Y7: 30 | Z7: 8 | AA7: 4 | AB7: 5 | AC7: T. Wade | AD7: 0 | AE7: 0 | AF7: 0 | AG7: 0 | AH7: 5 | AI7: J. Rogers | AJ7: 4 | AK7: 0 | AL7: 0 | AM7: 38
F8: 2 | G8: J. Rogers | H8: 24 | I8: 1 | N8: 41119 | O8: Ipsden | P8: Win | Q8: Home | R8: S. Beardall | S8: First | T8: 180 | U8: 3 | V8: 178 | W8: 4 | X8: 30 | Y8: 30 | Z8: 8 | AA8: 4 | AB8: 6 | AC8: 0 | AD8: 0 | AE8: 0 | AF8: 0 | AG8: 0 | AH8: 6 | AI8: C. Henry | AJ8: 2 | AK8: 0 | AL8: 0 | AM8: 25
C9: Match Status | D9: Win | F9: 3 | G9: O. Thornton | H9: 103 | I9: 0 | N9: 41119 | O9: Ipsden | P9: Win | Q9: Home | R9: S. Beardall | S9: First | T9: 180 | U9: 3 | V9: 178 | W9: 4 | X9: 30 | Y9: 30 | Z9: 8 | AA9: 4 | AB9: 7 | AC9: 0 | AD9: 0 | AE9: 0 | AF9: 0 | AG9: 0 | AH9: 7 | AI9: O. Thornton | AJ9: 3 | AK9: 0 | AL9: 1 | AM9: 16
F10: 4 | G10: B. Watson | H10: 19 | I10: 1 | N10: 41119 | O10: Ipsden | P10: Win | Q10: Home | R10: S. Beardall | S10: First | T10: 180 | U10: 3 | V10: 178 | W10: 4 | X10: 30 | Y10: 30 | Z10: 8 | AA10: 4 | AB10: 8 | AC10: 0 | AD10: 0 | AE10: 0 | AF10: 0 | AG10: 0 | AH10: 8 | AI10: 0 | AJ10: 0 | AK10: 0 | AL10: 0 | AM10: 0
C11: Home / Away | D11: Home | F11: 5 | G11: T. Wade | H11: 0 | I11: 0 | N11: 41119 | O11: Ipsden | P11: Win | Q11: Home | R11: S. Beardall | S11: First | T11: 180 | U11: 3 | V11: 178 | W11: 4 | X11: 30 | Y11: 30 | Z11: 8 | AA11: 4 | AB11: 9 | AC11: 0 | AD11: 0 | AE11: 0 | AF11: 0 | AG11: 0 | AH11: 9 | AI11: 0 | AJ11: 0 | AK11: 0 | AL11: 0 | AM11: 0
F12: 6 | N12: 41119 | O12: Ipsden | P12: Win | Q12: Home | R12: S. Beardall | S12: First | T12: 180 | U12: 3 | V12: 178 | W12: 4 | X12: 30 | Y12: 30 | Z12: 8 | AA12: 4 | AB12: 10 | AC12: 0 | AD12: 0 | AE12: 0 | AF12: 0 | AG12: 0 | AH12: 10 | AI12: 0 | AJ12: 0 | AK12: 0 | AL12: 0 | AM12: 0
C13: TPCC Batting First | D13: First | F13: 7 | N13: 41119 | O13: Ipsden | P13: Win | Q13: Home | R13: S. Beardall | S13: First | T13: 180 | U13: 3 | V13: 178 | W13: 4 | X13: 30 | Y13: 30 | Z13: 8 | AA13: 4 | AB13: 11 | AC13: 0 | AD13: 0 | AE13: 0 | AF13: 0 | AG13: 0 | AH13: 11 | AI13: 0 | AJ13: 0 | AK13: 0 | AL13: 0 | AM13: 0
F14: 8
C15: TPCC Team Score | D15: =SUM(H7:H17)+H19 -> 180 | F15: 9
C16: TPCC Team Wickets | D16: =SUM(I7:I17) -> 3 | F16: 10
F17: 11
C18: Opposition Team Score | D18: =SUM(K24:K34)+H36 -> 178
C19: Opposition Team Wickets | D19: =SUM(J24:J34) -> 4 | F19: Batting Extras | H19: 8
C21: TPCC Overs Bowled | D21: =SUM(H24:H34) -> 30
C22: Opposition Overs Bowled | D22: 30 | F22: Bowling
F23: Position | G23: Name | H23: Overs | I23: Maidens | J23: Wickets | K23: Runs
C24: TPCC Captain | D24: S. Beardall | F24: 1 | G24: S. Beardall | H24: 6 | I24: 0 | J24: 1 | K24: 18
F25: 2 | G25: N. Henry | H25: 7 | I25: 0 | J25: 1 | K25: 23
F26: 3 | G26: B. Watson | H26: 5 | I26: 2 | J26: 1 | K26: 24
F27: 4 | G27: C. Rogers | H27: 3 | I27: 0 | J27: 0 | K27: 30
F28: 5 | G28: J. Rogers | H28: 4 | I28: 0 | J28: 0 | K28: 38
F29: 6 | G29: C. Henry | H29: 2 | I29: 0 | J29: 0 | K29: 25
F30: 7 | G30: O. Thornton | H30: 3 | I30: 0 | J30: 1 | K30: 16
F31: 8
F32: 9
F33: 10
F34: 11
F36: Bowling Extras | H36: 4

Sheet Henley
N2: Date | O2: Opposition | P2: Match Status | Q2: Home/Away | R2: Captain | S2: TPCC Batting First | T2: TPCC Team Score | U2: TPCC Team Wickets | V2: Opposition Team Score | W2: Opposition Team Wickets | X2: TPCC Overs Bowled | Y2: TPCC Overs Faced | Z2: Batting Extras | AA2: Bowling Extras | AB2: Batsmen Position | AC2: Batsmen Name | AD2: Batsmen Runs | AE2: Batsmen Out | AF2: 50 | AG2: 100 | AH2: Bowler Position | AI2: Bowler Name | AJ2: Bowler Overs | AK2: Bowler Maidens | AL2: Bowler Wickets | AM2: Bowler Runs
C3: Match Overview | N3: =$D$5 -> 41126 | O3: =$D$7 -> Henley | P3: =$D$9 -> Win | Q3: =$D$11 -> Away | R3: =$D$24 -> S. Beardall | S3: =$D$13 -> First | T3: =$D$15 -> 212 | U3: =$D$16 -> 10 | V3: =$D$18 -> 94 | W3: =$D$19 -> 8 | X3: =$D$21 -> 28 | Y3: =$D$22 -> 40 | Z3: =$H$19 -> 20 | AA3: =$H$36 -> 0 | AB3: =F7 -> 1 | AC3: =G7 -> J. Hunt | AD3: =H7 -> 11 | AE3: =I7 -> 1 | AF3: =(IF(AD3>49,1,0))-AG3 -> 0 | AG3: =IF(AD3>99,1,0) -> 0 | AH3: =F24 -> 1 | AI3: =G24 -> T. White | AJ3: 6 | AK3: 0 | AL3: 2 | AM3: 22
N4: 41126 | O4: Henley | P4: Win | Q4: Away | R4: =$D$24 -> S. Beardall | S4: First | T4: 212 | U4: 10 | V4: 94 | W4: 8 | X4: 28 | Y4: 40 | Z4: 20 | AA4: 0 | AB4: =F8 -> 2 | AC4: J. Moberly | AD4: 30 | AE4: 1 | AF4: =(IF(AD4>49,1,0))-AG4 -> 0 | AG4: =IF(AD4>99,1,0) -> 0 | AH4: =F25 -> 2 | AI4: J. Thornton | AJ4: 7 | AK4: 0 | AL4: 1 | AM4: 32
C5: Date | D5: 2012-08-05 | F5: Batting | N5: 41126 | O5: Henley | P5: Win | Q5: Away | R5: S. Beardall | S5: First | T5: 212 | U5: 10 | V5: 94 | W5: 8 | X5: 28 | Y5: 40 | Z5: 20 | AA5: 0 | AB5: 3 | AC5: O. Thornton | AD5: 1 | AE5: 1 | AF5: 0 | AG5: 0 | AH5: 3 | AI5: J. Hancock | AJ5: 5 | AK5: 0 | AL5: 2 | AM5: 9
F6: Position | G6: Name | H6: Runs | I6: Out | N6: 41126 | O6: Henley | P6: Win | Q6: Away | R6: S. Beardall | S6: First | T6: 212 | U6: 10 | V6: 94 | W6: 8 | X6: 28 | Y6: 40 | Z6: 20 | AA6: 0 | AB6: 4 | AC6: J. Hancock | AD6: 36 | AE6: 1 | AF6: 0 | AG6: 0 | AH6: 4 | AI6: N. Henry | AJ6: 8 | AK6: 0 | AL6: 2 | AM6: 29
C7: Opposition | D7: Henley | F7: 1 | G7: J. Hunt | H7: 11 | I7: 1 | N7: 41126 | O7: Henley | P7: Win | Q7: Away | R7: S. Beardall | S7: First | T7: 212 | U7: 10 | V7: 94 | W7: 8 | X7: 28 | Y7: 40 | Z7: 20 | AA7: 0 | AB7: 5 | AC7: S. Beardall | AD7: 63 | AE7: 1 | AF7: 1 | AG7: 0 | AH7: 5 | AI7: J. Hunt | AJ7: 2 | AK7: 1 | AL7: 1 | AM7: 2
F8: 2 | G8: J. Moberly | H8: 30 | I8: 1 | N8: 41126 | O8: Henley | P8: Win | Q8: Away | R8: S. Beardall | S8: First | T8: 212 | U8: 10 | V8: 94 | W8: 8 | X8: 28 | Y8: 40 | Z8: 20 | AA8: 0 | AB8: 6 | AC8: C. Beardall | AD8: 31 | AE8: 1 | AF8: 0 | AG8: 0 | AH8: 6 | AI8: 0 | AJ8: 0 | AK8: 0 | AL8: 0 | AM8: 0
C9: Match Status | D9: Win | F9: 3 | G9: O. Thornton | H9: 1 | I9: 1 | N9: 41126 | O9: Henley | P9: Win | Q9: Away | R9: S. Beardall | S9: First | T9: 212 | U9: 10 | V9: 94 | W9: 8 | X9: 28 | Y9: 40 | Z9: 20 | AA9: 0 | AB9: 7 | AC9: Ro. Dickie | AD9: 6 | AE9: 1 | AF9: 0 | AG9: 0 | AH9: 7 | AI9: 0 | AJ9: 0 | AK9: 0 | AL9: 0 | AM9: 0
F10: 4 | G10: J. Hancock | H10: 36 | I10: 1 | N10: 41126 | O10: Henley | P10: Win | Q10: Away | R10: S. Beardall | S10: First | T10: 212 | U10: 10 | V10: 94 | W10: 8 | X10: 28 | Y10: 40 | Z10: 20 | AA10: 0 | AB10: 8 | AC10: J. Thornton | AD10: 5 | AE10: 1 | AF10: 0 | AG10: 0 | AH10: 8 | AI10: 0 | AJ10: 0 | AK10: 0 | AL10: 0 | AM10: 0
C11: Home / Away | D11: Away | F11: 5 | G11: S. Beardall | H11: 63 | I11: 1 | N11: 41126 | O11: Henley | P11: Win | Q11: Away | R11: S. Beardall | S11: First | T11: 212 | U11: 10 | V11: 94 | W11: 8 | X11: 28 | Y11: 40 | Z11: 20 | AA11: 0 | AB11: 9 | AC11: S. Halfhead | AD11: 6 | AE11: 1 | AF11: 0 | AG11: 0 | AH11: 9 | AI11: 0 | AJ11: 0 | AK11: 0 | AL11: 0 | AM11: 0
F12: 6 | G12: C. Beardall | H12: 31 | I12: 1 | N12: 41126 | O12: Henley | P12: Win | Q12: Away | R12: S. Beardall | S12: First | T12: 212 | U12: 10 | V12: 94 | W12: 8 | X12: 28 | Y12: 40 | Z12: 20 | AA12: 0 | AB12: 10 | AC12: N. Henry | AD12: 2 | AE12: 1 | AF12: 0 | AG12: 0 | AH12: 10 | AI12: 0 | AJ12: 0 | AK12: 0 | AL12: 0 | AM12: 0
C13: TPCC Batting First | D13: First | F13: 7 | G13: Ro. Dickie | H13: 6 | I13: 1 | N13: 41126 | O13: Henley | P13: Win | Q13: Away | R13: S. Beardall | S13: First | T13: 212 | U13: 10 | V13: 94 | W13: 8 | X13: 28 | Y13: 40 | Z13: 20 | AA13: 0 | AB13: 11 | AC13: T. White | AD13: 1 | AE13: 0 | AF13: 0 | AG13: 0 | AH13: 11 | AI13: 0 | AJ13: 0 | AK13: 0 | AL13: 0 | AM13: 0
F14: 8 | G14: J. Thornton | H14: 5 | I14: 1
C15: TPCC Team Score | D15: =SUM(H7:H17)+H19 -> 212 | F15: 9 | G15: S. Halfhead | H15: 6 | I15: 1
C16: TPCC Team Wickets | D16: =SUM(I7:I17) -> 10 | F16: 10 | G16: N. Henry | H16: 2 | I16: 1
F17: 11 | G17: T. White | H17: 1 | I17: 0
C18: Opposition Team Score | D18: =SUM(K24:K34)+H36 -> 94
C19: Opposition Team Wickets | D19: =SUM(J24:J34) -> 8 | F19: Batting Extras | H19: 20
C21: TPCC Overs Bowled | D21: =SUM(H24:H34) -> 28
C22: Opposition Overs Bowled | D22: 40 | F22: Bowling
F23: Position | G23: Name | H23: Overs | I23: Maidens | J23: Wickets | K23: Runs
C24: TPCC Captain | D24: S. Beardall | F24: 1 | G24: T. White | H24: 6 | I24: 0 | J24: 2 | K24: 22
F25: 2 | G25: J. Thornton | H25: 7 | I25: 0 | J25: 1 | K25: 32
F26: 3 | G26: J. Hancock | H26: 5 | I26: 0 | J26: 2 | K26: 9
F27: 4 | G27: N. Henry | H27: 8 | I27: 0 | J27: 2 | K27: 29
F28: 5 | G28: J. Hunt | H28: 2 | I28: 1 | J28: 1 | K28: 2
F29: 6
F30: 7
F31: 8
F32: 9
F33: 10
F34: 11
F36: Bowling Extras | H36: 0

Sheet West Wycombe
N2: Date | O2: Opposition | P2: Match Status | Q2: Home/Away | R2: Captain | S2: TPCC Batting First | T2: TPCC Team Score | U2: TPCC Team Wickets | V2: Opposition Team Score | W2: Opposition Team Wickets | X2: TPCC Overs Bowled | Y2: TPCC Overs Faced | Z2: Batting Extras | AA2: Bowling Extras | AB2: Batsmen Position | AC2: Batsmen Name | AD2: Batsmen Runs | AE2: Batsmen Out | AF2: 50 | AG2: 100 | AH2: Bowler Position | AI2: Bowler Name | AJ2: Bowler Overs | AK2: Bowler Maidens | AL2: Bowler Wickets | AM2: Bowler Runs
C3: Match Overview | N3: =$D$5 -> 41132 | O3: =$D$7 -> West Wycombe | P3: =$D$9 -> Cancelled (Opposition) | Q3: =$D$11 -> Home | R3: =$D$24 -> 0 | S3: =$D$13 -> 0 | T3: =$D$15 -> 0 | U3: =$D$16 -> 0 | V3: =$D$18 -> 0 | W3: =$D$19 -> 0 | X3: =$D$21 -> 0 | Y3: =$D$22 -> 0 | Z3: =$H$19 -> 0 | AA3: =$H$36 -> 0 | AB3: =F7 -> 1 | AC3: =G7 -> 0 | AD3: =H7 -> 0 | AE3: =I7 -> 0 | AF3: =(IF(AD3>49,1,0))-AG3 -> 0 | AG3: =IF(AD3>99,1,0) -> 0 | AH3: =F24 -> 1 | AI3: =G24 -> 0 | AJ3: 0 | AK3: 0 | AL3: 0 | AM3: 0
N4: 41132 | O4: West Wycombe | P4: Cancelled (Opposition) | Q4: Home | R4: =$D$24 -> 0 | S4: 0 | T4: 0 | U4: 0 | V4: 0 | W4: 0 | X4: 0 | Y4: 0 | Z4: 0 | AA4: 0 | AB4: =F8 -> 2 | AC4: 0 | AD4: 0 | AE4: 0 | AF4: =(IF(AD4>49,1,0))-AG4 -> 0 | AG4: =IF(AD4>99,1,0) -> 0 | AH4: =F25 -> 2 | AI4: 0 | AJ4: 0 | AK4: 0 | AL4: 0 | AM4: 0
C5: Date | D5: 2012-08-11 | F5: Batting | N5: 41132 | O5: West Wycombe | P5: Cancelled (Opposition) | Q5: Home | R5: 0 | S5: 0 | T5: 0 | U5: 0 | V5: 0 | W5: 0 | X5: 0 | Y5: 0 | Z5: 0 | AA5: 0 | AB5: 3 | AC5: 0 | AD5: 0 | AE5: 0 | AF5: 0 | AG5: 0 | AH5: 3 | AI5: 0 | AJ5: 0 | AK5: 0 | AL5: 0 | AM5: 0
F6: Position | G6: Name | H6: Runs | I6: Out | N6: 41132 | O6: West Wycombe | P6: Cancelled (Opposition) | Q6: Home | R6: 0 | S6: 0 | T6: 0 | U6: 0 | V6: 0 | W6: 0 | X6: 0 | Y6: 0 | Z6: 0 | AA6: 0 | AB6: 4 | AC6: 0 | AD6: 0 | AE6: 0 | AF6: 0 | AG6: 0 | AH6: 4 | AI6: 0 | AJ6: 0 | AK6: 0 | AL6: 0 | AM6: 0
C7: Opposition | D7: West Wycombe | F7: 1 | N7: 41132 | O7: West Wycombe | P7: Cancelled (Opposition) | Q7: Home | R7: 0 | S7: 0 | T7: 0 | U7: 0 | V7: 0 | W7: 0 | X7: 0 | Y7: 0 | Z7: 0 | AA7: 0 | AB7: 5 | AC7: 0 | AD7: 0 | AE7: 0 | AF7: 0 | AG7: 0 | AH7: 5 | AI7: 0 | AJ7: 0 | AK7: 0 | AL7: 0 | AM7: 0
F8: 2 | N8: 41132 | O8: West Wycombe | P8: Cancelled (Opposition) | Q8: Home | R8: 0 | S8: 0 | T8: 0 | U8: 0 | V8: 0 | W8: 0 | X8: 0 | Y8: 0 | Z8: 0 | AA8: 0 | AB8: 6 | AC8: 0 | AD8: 0 | AE8: 0 | AF8: 0 | AG8: 0 | AH8: 6 | AI8: 0 | AJ8: 0 | AK8: 0 | AL8: 0 | AM8: 0
C9: Match Status | D9: Cancelled (Opposition) | F9: 3 | N9: 41132 | O9: West Wycombe | P9: Cancelled (Opposition) | Q9: Home | R9: 0 | S9: 0 | T9: 0 | U9: 0 | V9: 0 | W9: 0 | X9: 0 | Y9: 0 | Z9: 0 | AA9: 0 | AB9: 7 | AC9: 0 | AD9: 0 | AE9: 0 | AF9: 0 | AG9: 0 | AH9: 7 | AI9: 0 | AJ9: 0 | AK9: 0 | AL9: 0 | AM9: 0
F10: 4 | N10: 41132 | O10: West Wycombe | P10: Cancelled (Opposition) | Q10: Home | R10: 0 | S10: 0 | T10: 0 | U10: 0 | V10: 0 | W10: 0 | X10: 0 | Y10: 0 | Z10: 0 | AA10: 0 | AB10: 8 | AC10: 0 | AD10: 0 | AE10: 0 | AF10: 0 | AG10: 0 | AH10: 8 | AI10: 0 | AJ10: 0 | AK10: 0 | AL10: 0 | AM10: 0
C11: Home / Away | D11: Home | F11: 5 | N11: 41132 | O11: West Wycombe | P11: Cancelled (Opposition) | Q11: Home | R11: 0 | S11: 0 | T11: 0 | U11: 0 | V11: 0 | W11: 0 | X11: 0 | Y11: 0 | Z11: 0 | AA11: 0 | AB11: 9 | AC11: 0 | AD11: 0 | AE11: 0 | AF11: 0 | AG11: 0 | AH11: 9 | AI11: 0 | AJ11: 0 | AK11: 0 | AL11: 0 | AM11: 0
F12: 6 | N12: 41132 | O12: West Wycombe | P12: Cancelled (Opposition) | Q12: Home | R12: 0 | S12: 0 | T12: 0 | U12: 0 | V12: 0 | W12: 0 | X12: 0 | Y12: 0 | Z12: 0 | AA12: 0 | AB12: 10 | AC12: 0 | AD12: 0 | AE12: 0 | AF12: 0 | AG12: 0 | AH12: 10 | AI12: 0 | AJ12: 0 | AK12: 0 | AL12: 0 | AM12: 0
C13: TPCC Batting First | F13: 7 | N13: 41132 | O13: West Wycombe | P13: Cancelled (Opposition) | Q13: Home | R13: 0 | S13: 0 | T13: 0 | U13: 0 | V13: 0 | W13: 0 | X13: 0 | Y13: 0 | Z13: 0 | AA13: 0 | AB13: 11 | AC13: 0 | AD13: 0 | AE13: 0 | AF13: 0 | AG13: 0 | AH13: 11 | AI13: 0 | AJ13: 0 | AK13: 0 | AL13: 0 | AM13: 0
F14: 8
C15: TPCC Team Score | D15: =SUM(H7:H17)+H19 -> 0 | F15: 9
C16: TPCC Team Wickets | D16: =SUM(I7:I17) -> 0 | F16: 10
F17: 11
C18: Opposition Team Score | D18: =SUM(K24:K34)+H36 -> 0
C19: Opposition Team Wickets | D19: =SUM(J24:J34) -> 0 | F19: Batting Extras
C21: TPCC Overs Bowled | D21: =SUM(H24:H34) -> 0
C22: Opposition Overs Bowled | F22: Bowling
F23: Position | G23: Name | H23: Overs | I23: Maidens | J23: Wickets | K23: Runs
C24: TPCC Captain | F24: 1
F25: 2
F26: 3
F27: 4
F28: 5
F29: 6
F30: 7
F31: 8
F32: 9
F33: 10
F34: 11
F36: Bowling Extras

Sheet Dorchester
N2: Date | O2: Opposition | P2: Match Status | Q2: Home/Away | R2: Captain | S2: TPCC Batting First | T2: TPCC Team Score | U2: TPCC Team Wickets | V2: Opposition Team Score | W2: Opposition Team Wickets | X2: TPCC Overs Bowled | Y2: TPCC Overs Faced | Z2: Batting Extras | AA2: Bowling Extras | AB2: Batsmen Position | AC2: Batsmen Name | AD2: Batsmen Runs | AE2: Batsmen Out | AF2: 50 | AG2: 100 | AH2: Bowler Position | AI2: Bowler Name | AJ2: Bowler Overs | AK2: Bowler Maidens | AL2: Bowler Wickets | AM2: Bowler Runs
C3: Match Overview | N3: =$D$5 -> 41133 | O3: =$D$7 -> Dorchester | P3: =$D$9 -> Win | Q3: =$D$11 -> Home | R3: =$D$24 -> S. Beardall | S3: =$D$13 -> Second | T3: =$D$15 -> 213 | U3: =$D$16 -> 5 | V3: =$D$18 -> 212 | W3: =$D$19 -> 6 | X3: =$D$21 -> 46 | Y3: =$D$22 -> 38 | Z3: =$H$19 -> 5 | AA3: =$H$36 -> 0 | AB3: =F7 -> 1 | AC3: =G7 -> S. Beardall | AD3: =H7 -> 86 | AE3: =I7 -> 1 | AF3: =(IF(AD3>49,1,0))-AG3 -> 1 | AG3: =IF(AD3>99,1,0) -> 0 | AH3: =F24 -> 1 | AI3: =G24 -> J. Thornton | AJ3: 9 | AK3: 3 | AL3: 0 | AM3: 29
N4: 41133 | O4: Dorchester | P4: Win | Q4: Home | R4: =$D$24 -> S. Beardall | S4: Second | T4: 213 | U4: 5 | V4: 212 | W4: 6 | X4: 46 | Y4: 38 | Z4: 5 | AA4: 0 | AB4: =F8 -> 2 | AC4: Ro. Dickie | AD4: 15 | AE4: 1 | AF4: =(IF(AD4>49,1,0))-AG4 -> 0 | AG4: =IF(AD4>99,1,0) -> 0 | AH4: =F25 -> 2 | AI4: N. Henry | AJ4: 14 | AK4: 1 | AL4: 0 | AM4: 68
C5: Date | D5: 2012-08-12 | F5: Batting | N5: 41133 | O5: Dorchester | P5: Win | Q5: Home | R5: S. Beardall | S5: Second | T5: 213 | U5: 5 | V5: 212 | W5: 6 | X5: 46 | Y5: 38 | Z5: 5 | AA5: 0 | AB5: 3 | AC5: N. Phillips | AD5: 1 | AE5: 1 | AF5: 0 | AG5: 0 | AH5: 3 | AI5: J. Crook | AJ5: 7 | AK5: 0 | AL5: 1 | AM5: 49
F6: Position | G6: Name | H6: Runs | I6: Out | N6: 41133 | O6: Dorchester | P6: Win | Q6: Home | R6: S. Beardall | S6: Second | T6: 213 | U6: 5 | V6: 212 | W6: 6 | X6: 46 | Y6: 38 | Z6: 5 | AA6: 0 | AB6: 4 | AC6: P. De Zulueta | AD6: 43 | AE6: 1 | AF6: 0 | AG6: 0 | AH6: 4 | AI6: S. Beardall | AJ6: 4 | AK6: 0 | AL6: 4 | AM6: 22
C7: Opposition | D7: Dorchester | F7: 1 | G7: S. Beardall | H7: 86 | I7: 1 | N7: 41133 | O7: Dorchester | P7: Win | Q7: Home | R7: S. Beardall | S7: Second | T7: 213 | U7: 5 | V7: 212 | W7: 6 | X7: 46 | Y7: 38 | Z7: 5 | AA7: 0 | AB7: 5 | AC7: J. Crook | AD7: 0 | AE7: 1 | AF7: 0 | AG7: 0 | AH7: 5 | AI7: C. Henry | AJ7: 7 | AK7: 3 | AL7: 0 | AM7: 26
F8: 2 | G8: Ro. Dickie | H8: 15 | I8: 1 | N8: 41133 | O8: Dorchester | P8: Win | Q8: Home | R8: S. Beardall | S8: Second | T8: 213 | U8: 5 | V8: 212 | W8: 6 | X8: 46 | Y8: 38 | Z8: 5 | AA8: 0 | AB8: 6 | AC8: J. Thornton | AD8: 51 | AE8: 0 | AF8: 1 | AG8: 0 | AH8: 6 | AI8: Ra. Dickie | AJ8: 5 | AK8: 1 | AL8: 0 | AM8: 18
C9: Match Status | D9: Win | F9: 3 | G9: N. Phillips | H9: 1 | I9: 1 | N9: 41133 | O9: Dorchester | P9: Win | Q9: Home | R9: S. Beardall | S9: Second | T9: 213 | U9: 5 | V9: 212 | W9: 6 | X9: 46 | Y9: 38 | Z9: 5 | AA9: 0 | AB9: 7 | AC9: S. Halfhead | AD9: 12 | AE9: 0 | AF9: 0 | AG9: 0 | AH9: 7 | AI9: Run Out | AJ9: 0 | AK9: 0 | AL9: 1 | AM9: 0
F10: 4 | G10: P. De Zulueta | H10: 43 | I10: 1 | N10: 41133 | O10: Dorchester | P10: Win | Q10: Home | R10: S. Beardall | S10: Second | T10: 213 | U10: 5 | V10: 212 | W10: 6 | X10: 46 | Y10: 38 | Z10: 5 | AA10: 0 | AB10: 8 | AC10: 0 | AD10: 0 | AE10: 0 | AF10: 0 | AG10: 0 | AH10: 8 | AI10: 0 | AJ10: 0 | AK10: 0 | AL10: 0 | AM10: 0
C11: Home / Away | D11: Home | F11: 5 | G11: J. Crook | H11: 0 | I11: 1 | N11: 41133 | O11: Dorchester | P11: Win | Q11: Home | R11: S. Beardall | S11: Second | T11: 213 | U11: 5 | V11: 212 | W11: 6 | X11: 46 | Y11: 38 | Z11: 5 | AA11: 0 | AB11: 9 | AC11: 0 | AD11: 0 | AE11: 0 | AF11: 0 | AG11: 0 | AH11: 9 | AI11: 0 | AJ11: 0 | AK11: 0 | AL11: 0 | AM11: 0
F12: 6 | G12: J. Thornton | H12: 51 | I12: 0 | N12: 41133 | O12: Dorchester | P12: Win | Q12: Home | R12: S. Beardall | S12: Second | T12: 213 | U12: 5 | V12: 212 | W12: 6 | X12: 46 | Y12: 38 | Z12: 5 | AA12: 0 | AB12: 10 | AC12: 0 | AD12: 0 | AE12: 0 | AF12: 0 | AG12: 0 | AH12: 10 | AI12: 0 | AJ12: 0 | AK12: 0 | AL12: 0 | AM12: 0
C13: TPCC Batting First | D13: Second | F13: 7 | G13: S. Halfhead | H13: 12 | I13: 0 | N13: 41133 | O13: Dorchester | P13: Win | Q13: Home | R13: S. Beardall | S13: Second | T13: 213 | U13: 5 | V13: 212 | W13: 6 | X13: 46 | Y13: 38 | Z13: 5 | AA13: 0 | AB13: 11 | AC13: 0 | AD13: 0 | AE13: 0 | AF13: 0 | AG13: 0 | AH13: 11 | AI13: 0 | AJ13: 0 | AK13: 0 | AL13: 0 | AM13: 0
F14: 8
C15: TPCC Team Score | D15: =SUM(H7:H17)+H19 -> 213 | F15: 9
C16: TPCC Team Wickets | D16: =SUM(I7:I17) -> 5 | F16: 10
F17: 11
C18: Opposition Team Score | D18: =SUM(K24:K34)+H36 -> 212
C19: Opposition Team Wickets | D19: =SUM(J24:J34) -> 6 | F19: Batting Extras | H19: 5
C21: TPCC Overs Bowled | D21: =SUM(H24:H34) -> 46
C22: Opposition Overs Bowled | D22: 38 | F22: Bowling
F23: Position | G23: Name | H23: Overs | I23: Maidens | J23: Wickets | K23: Runs
C24: TPCC Captain | D24: S. Beardall | F24: 1 | G24: J. Thornton | H24: 9 | I24: 3 | J24: 0 | K24: 29
F25: 2 | G25: N. Henry | H25: 14 | I25: 1 | J25: 0 | K25: 68
F26: 3 | G26: J. Crook | H26: 7 | I26: 0 | J26: 1 | K26: 49
F27: 4 | G27: S. Beardall | H27: 4 | I27: 0 | J27: 4 | K27: 22
F28: 5 | G28: C. Henry | H28: 7 | I28: 3 | J28: 0 | K28: 26
F29: 6 | G29: Ra. Dickie | H29: 5 | I29: 1 | J29: 0 | K29: 18
F30: 7 | G30: Run Out | H30: 0 | I30: 0 | J30: 1 | K30: 0
F31: 8
F32: 9
F33: 10
F34: 11
F36: Bowling Extras | H36: 0

Sheet Odney
N2: Date | O2: Opposition | P2: Match Status | Q2: Home/Away | R2: Captain | S2: TPCC Batting First | T2: TPCC Team Score | U2: TPCC Team Wickets | V2: Opposition Team Score | W2: Opposition Team Wickets | X2: TPCC Overs Bowled | Y2: TPCC Overs Faced | Z2: Batting Extras | AA2: Bowling Extras | AB2: Batsmen Position | AC2: Batsmen Name | AD2: Batsmen Runs | AE2: Batsmen Out | AF2: 50 | AG2: 100 | AH2: Bowler Position | AI2: Bowler Name | AJ2: Bowler Overs | AK2: Bowler Maidens | AL2: Bowler Wickets | AM2: Bowler Runs
C3: Match Overview | N3: =$D$5 -> 41140 | O3: =$D$7 -> Odney | P3: =$D$9 -> Draw | Q3: =$D$11 -> Home | R3: =$D$24 -> S. Beardall | S3: =$D$13 -> Second | T3: =$D$15 -> 113 | U3: =$D$16 -> 5 | V3: =$D$18 -> 181 | W3: =$D$19 -> 10 | X3: =$D$21 -> 37 | Y3: =$D$22 -> 34 | Z3: =$H$19 -> 17 | AA3: =$H$36 -> 6 | AB3: =F7 -> 1 | AC3: =G7 -> S. Beardall | AD3: =H7 -> 6 | AE3: =I7 -> 1 | AF3: =(IF(AD3>49,1,0))-AG3 -> 0 | AG3: =IF(AD3>99,1,0) -> 0 | AH3: =F24 -> 1 | AI3: =G24 -> J. Leefe | AJ3: 8 | AK3: 0 | AL3: 3 | AM3: 32
N4: 41140 | O4: Odney | P4: Draw | Q4: Home | R4: =$D$24 -> S. Beardall | S4: Second | T4: 113 | U4: 5 | V4: 181 | W4: 10 | X4: 37 | Y4: 34 | Z4: 17 | AA4: 6 | AB4: =F8 -> 2 | AC4: Ro. Dickie | AD4: 6 | AE4: 1 | AF4: =(IF(AD4>49,1,0))-AG4 -> 0 | AG4: =IF(AD4>99,1,0) -> 0 | AH4: =F25 -> 2 | AI4: O. Thornton | AJ4: 5 | AK4: 0 | AL4: 0 | AM4: 15
C5: Date | D5: 2012-08-19 | F5: Batting | N5: 41140 | O5: Odney | P5: Draw | Q5: Home | R5: S. Beardall | S5: Second | T5: 113 | U5: 5 | V5: 181 | W5: 10 | X5: 37 | Y5: 34 | Z5: 17 | AA5: 6 | AB5: 3 | AC5: O. Thornton | AD5: 37 | AE5: 1 | AF5: 0 | AG5: 0 | AH5: 3 | AI5: N. Henry | AJ5: 8 | AK5: 0 | AL5: 1 | AM5: 54
F6: Position | G6: Name | H6: Runs | I6: Out | N6: 41140 | O6: Odney | P6: Draw | Q6: Home | R6: S. Beardall | S6: Second | T6: 113 | U6: 5 | V6: 181 | W6: 10 | X6: 37 | Y6: 34 | Z6: 17 | AA6: 6 | AB6: 4 | AC6: P. Briffett | AD6: 1 | AE6: 1 | AF6: 0 | AG6: 0 | AH6: 4 | AI6: N. Runkel | AJ6: 11 | AK6: 0 | AL6: 6 | AM6: 40
C7: Opposition | D7: Odney | F7: 1 | G7: S. Beardall | H7: 6 | I7: 1 | N7: 41140 | O7: Odney | P7: Draw | Q7: Home | R7: S. Beardall | S7: Second | T7: 113 | U7: 5 | V7: 181 | W7: 10 | X7: 37 | Y7: 34 | Z7: 17 | AA7: 6 | AB7: 5 | AC7: J. Leefe | AD7: 20 | AE7: 0 | AF7: 0 | AG7: 0 | AH7: 5 | AI7: C. Henry | AJ7: 4 | AK7: 0 | AL7: 0 | AM7: 29
F8: 2 | G8: Ro. Dickie | H8: 6 | I8: 1 | N8: 41140 | O8: Odney | P8: Draw | Q8: Home | R8: S. Beardall | S8: Second | T8: 113 | U8: 5 | V8: 181 | W8: 10 | X8: 37 | Y8: 34 | Z8: 17 | AA8: 6 | AB8: 6 | AC8: N. Henry | AD8: 21 | AE8: 1 | AF8: 0 | AG8: 0 | AH8: 6 | AI8: S. Beardall | AJ8: 1 | AK8: 0 | AL8: 0 | AM8: 5
C9: Match Status | D9: Draw | F9: 3 | G9: O. Thornton | H9: 37 | I9: 1 | N9: 41140 | O9: Odney | P9: Draw | Q9: Home | R9: S. Beardall | S9: Second | T9: 113 | U9: 5 | V9: 181 | W9: 10 | X9: 37 | Y9: 34 | Z9: 17 | AA9: 6 | AB9: 7 | AC9: B. Bazell | AD9: 5 | AE9: 0 | AF9: 0 | AG9: 0 | AH9: 7 | AI9: 0 | AJ9: 0 | AK9: 0 | AL9: 0 | AM9: 0
F10: 4 | G10: P. Briffett | H10: 1 | I10: 1 | N10: 41140 | O10: Odney | P10: Draw | Q10: Home | R10: S. Beardall | S10: Second | T10: 113 | U10: 5 | V10: 181 | W10: 10 | X10: 37 | Y10: 34 | Z10: 17 | AA10: 6 | AB10: 8 | AC10: 0 | AD10: 0 | AE10: 0 | AF10: 0 | AG10: 0 | AH10: 8 | AI10: 0 | AJ10: 0 | AK10: 0 | AL10: 0 | AM10: 0
C11: Home / Away | D11: Home | F11: 5 | G11: J. Leefe | H11: 20 | I11: 0 | N11: 41140 | O11: Odney | P11: Draw | Q11: Home | R11: S. Beardall | S11: Second | T11: 113 | U11: 5 | V11: 181 | W11: 10 | X11: 37 | Y11: 34 | Z11: 17 | AA11: 6 | AB11: 9 | AC11: 0 | AD11: 0 | AE11: 0 | AF11: 0 | AG11: 0 | AH11: 9 | AI11: 0 | AJ11: 0 | AK11: 0 | AL11: 0 | AM11: 0
F12: 6 | G12: N. Henry | H12: 21 | I12: 1 | N12: 41140 | O12: Odney | P12: Draw | Q12: Home | R12: S. Beardall | S12: Second | T12: 113 | U12: 5 | V12: 181 | W12: 10 | X12: 37 | Y12: 34 | Z12: 17 | AA12: 6 | AB12: 10 | AC12: 0 | AD12: 0 | AE12: 0 | AF12: 0 | AG12: 0 | AH12: 10 | AI12: 0 | AJ12: 0 | AK12: 0 | AL12: 0 | AM12: 0
C13: TPCC Batting First | D13: Second | F13: 7 | G13: B. Bazell | H13: 5 | I13: 0 | N13: 41140 | O13: Odney | P13: Draw | Q13: Home | R13: S. Beardall | S13: Second | T13: 113 | U13: 5 | V13: 181 | W13: 10 | X13: 37 | Y13: 34 | Z13: 17 | AA13: 6 | AB13: 11 | AC13: 0 | AD13: 0 | AE13: 0 | AF13: 0 | AG13: 0 | AH13: 11 | AI13: 0 | AJ13: 0 | AK13: 0 | AL13: 0 | AM13: 0
F14: 8
C15: TPCC Team Score | D15: =SUM(H7:H17)+H19 -> 113 | F15: 9
C16: TPCC Team Wickets | D16: =SUM(I7:I17) -> 5 | F16: 10
F17: 11
C18: Opposition Team Score | D18: =SUM(K24:K34)+H36 -> 181
C19: Opposition Team Wickets | D19: =SUM(J24:J34) -> 10 | F19: Batting Extras | H19: 17
C21: TPCC Overs Bowled | D21: =SUM(H24:H34) -> 37
C22: Opposition Overs Bowled | D22: 34 | F22: Bowling
F23: Position | G23: Name | H23: Overs | I23: Maidens | J23: Wickets | K23: Runs
C24: TPCC Captain | D24: S. Beardall | F24: 1 | G24: J. Leefe | H24: 8 | I24: 0 | J24: 3 | K24: 32
F25: 2 | G25: O. Thornton | H25: 5 | I25: 0 | J25: 0 | K25: 15
F26: 3 | G26: N. Henry | H26: 8 | I26: 0 | J26: 1 | K26: 54
F27: 4 | G27: N. Runkel | H27: 11 | I27: 0 | J27: 6 | K27: 40
F28: 5 | G28: C. Henry | H28: 4 | I28: 0 | J28: 0 | K28: 29
F29: 6 | G29: S. Beardall | H29: 1 | I29: 0 | J29: 0 | K29: 5
F30: 7
F31: 8
F32: 9
F33: 10
F34: 11
F36: Bowling Extras | H36: 6

Sheet Stonor (2)
N2: Date | O2: Opposition | P2: Match Status | Q2: Home/Away | R2: Captain | S2: TPCC Batting First | T2: TPCC Team Score | U2: TPCC Team Wickets | V2: Opposition Team Score | W2: Opposition Team Wickets | X2: TPCC Overs Bowled | Y2: TPCC Overs Faced | Z2: Batting Extras | AA2: Bowling Extras | AB2: Batsmen Position | AC2: Batsmen Name | AD2: Batsmen Runs | AE2: Batsmen Out | AF2: 50 | AG2: 100 | AH2: Bowler Position | AI2: Bowler Name | AJ2: Bowler Overs | AK2: Bowler Maidens | AL2: Bowler Wickets | AM2: Bowler Runs
C3: Match Overview | N3: =$D$5 -> 41146 | O3: =$D$7 -> Stonor (2) | P3: =$D$9 -> Cancelled (Rain) | Q3: =$D$11 -> Home | R3: =$D$24 -> 0 | S3: =$D$13 -> 0 | T3: =$D$15 -> 0 | U3: =$D$16 -> 0 | V3: =$D$18 -> 0 | W3: =$D$19 -> 0 | X3: =$D$21 -> 0 | Y3: =$D$22 -> 0 | Z3: =$H$19 -> 0 | AA3: =$H$36 -> 0 | AB3: =F7 -> 1 | AC3: =G7 -> 0 | AD3: =H7 -> 0 | AE3: =I7 -> 0 | AF3: =(IF(AD3>49,1,0))-AG3 -> 0 | AG3: =IF(AD3>99,1,0) -> 0 | AH3: =F24 -> 1 | AI3: =G24 -> 0 | AJ3: 0 | AK3: 0 | AL3: 0 | AM3: 0
N4: 41146 | O4: Stonor (2) | P4: Cancelled (Rain) | Q4: Home | R4: =$D$24 -> 0 | S4: 0 | T4: 0 | U4: 0 | V4: 0 | W4: 0 | X4: 0 | Y4: 0 | Z4: 0 | AA4: 0 | AB4: =F8 -> 2 | AC4: 0 | AD4: 0 | AE4: 0 | AF4: =(IF(AD4>49,1,0))-AG4 -> 0 | AG4: =IF(AD4>99,1,0) -> 0 | AH4: =F25 -> 2 | AI4: 0 | AJ4: 0 | AK4: 0 | AL4: 0 | AM4: 0
C5: Date | D5: 2012-08-25 | F5: Batting | N5: 41146 | O5: Stonor (2) | P5: Cancelled (Rain) | Q5: Home | R5: 0 | S5: 0 | T5: 0 | U5: 0 | V5: 0 | W5: 0 | X5: 0 | Y5: 0 | Z5: 0 | AA5: 0 | AB5: 3 | AC5: 0 | AD5: 0 | AE5: 0 | AF5: 0 | AG5: 0 | AH5: 3 | AI5: 0 | AJ5: 0 | AK5: 0 | AL5: 0 | AM5: 0
F6: Position | G6: Name | H6: Runs | I6: Out | N6: 41146 | O6: Stonor (2) | P6: Cancelled (Rain) | Q6: Home | R6: 0 | S6: 0 | T6: 0 | U6: 0 | V6: 0 | W6: 0 | X6: 0 | Y6: 0 | Z6: 0 | AA6: 0 | AB6: 4 | AC6: 0 | AD6: 0 | AE6: 0 | AF6: 0 | AG6: 0 | AH6: 4 | AI6: 0 | AJ6: 0 | AK6: 0 | AL6: 0 | AM6: 0
C7: Opposition | D7: Stonor (2) | F7: 1 | N7: 41146 | O7: Stonor (2) | P7: Cancelled (Rain) | Q7: Home | R7: 0 | S7: 0 | T7: 0 | U7: 0 | V7: 0 | W7: 0 | X7: 0 | Y7: 0 | Z7: 0 | AA7: 0 | AB7: 5 | AC7: 0 | AD7: 0 | AE7: 0 | AF7: 0 | AG7: 0 | AH7: 5 | AI7: 0 | AJ7: 0 | AK7: 0 | AL7: 0 | AM7: 0
F8: 2 | N8: 41146 | O8: Stonor (2) | P8: Cancelled (Rain) | Q8: Home | R8: 0 | S8: 0 | T8: 0 | U8: 0 | V8: 0 | W8: 0 | X8: 0 | Y8: 0 | Z8: 0 | AA8: 0 | AB8: 6 | AC8: 0 | AD8: 0 | AE8: 0 | AF8: 0 | AG8: 0 | AH8: 6 | AI8: 0 | AJ8: 0 | AK8: 0 | AL8: 0 | AM8: 0
C9: Match Status | D9: Cancelled (Rain) | F9: 3 | N9: 41146 | O9: Stonor (2) | P9: Cancelled (Rain) | Q9: Home | R9: 0 | S9: 0 | T9: 0 | U9: 0 | V9: 0 | W9: 0 | X9: 0 | Y9: 0 | Z9: 0 | AA9: 0 | AB9: 7 | AC9: 0 | AD9: 0 | AE9: 0 | AF9: 0 | AG9: 0 | AH9: 7 | AI9: 0 | AJ9: 0 | AK9: 0 | AL9: 0 | AM9: 0
F10: 4 | N10: 41146 | O10: Stonor (2) | P10: Cancelled (Rain) | Q10: Home | R10: 0 | S10: 0 | T10: 0 | U10: 0 | V10: 0 | W10: 0 | X10: 0 | Y10: 0 | Z10: 0 | AA10: 0 | AB10: 8 | AC10: 0 | AD10: 0 | AE10: 0 | AF10: 0 | AG10: 0 | AH10: 8 | AI10: 0 | AJ10: 0 | AK10: 0 | AL10: 0 | AM10: 0
C11: Home / Away | D11: Home | F11: 5 | N11: 41146 | O11: Stonor (2) | P11: Cancelled (Rain) | Q11: Home | R11: 0 | S11: 0 | T11: 0 | U11: 0 | V11: 0 | W11: 0 | X11: 0 | Y11: 0 | Z11: 0 | AA11: 0 | AB11: 9 | AC11: 0 | AD11: 0 | AE11: 0 | AF11: 0 | AG11: 0 | AH11: 9 | AI11: 0 | AJ11: 0 | AK11: 0 | AL11: 0 | AM11: 0
F12: 6 | N12: 41146 | O12: Stonor (2) | P12: Cancelled (Rain) | Q12: Home | R12: 0 | S12: 0 | T12: 0 | U12: 0 | V12: 0 | W12: 0 | X12: 0 | Y12: 0 | Z12: 0 | AA12: 0 | AB12: 10 | AC12: 0 | AD12: 0 | AE12: 0 | AF12: 0 | AG12: 0 | AH12: 10 | AI12: 0 | AJ12: 0 | AK12: 0 | AL12: 0 | AM12: 0
C13: TPCC Batting First | F13: 7 | N13: 41146 | O13: Stonor (2) | P13: Cancelled (Rain) | Q13: Home | R13: 0 | S13: 0 | T13: 0 | U13: 0 | V13: 0 | W13: 0 | X13: 0 | Y13: 0 | Z13: 0 | AA13: 0 | AB13: 11 | AC13: 0 | AD13: 0 | AE13: 0 | AF13: 0 | AG13: 0 | AH13: 11 | AI13: 0 | AJ13: 0 | AK13: 0 | AL13: 0 | AM13: 0
F14: 8
C15: TPCC Team Score | D15: =SUM(H7:H17)+H19 -> 0 | F15: 9
C16: TPCC Team Wickets | D16: =SUM(I7:I17) -> 0 | F16: 10
F17: 11
C18: Opposition Team Score | D18: =SUM(K24:K34)+H36 -> 0
C19: Opposition Team Wickets | D19: =SUM(J24:J34) -> 0 | F19: Batting Extras
C21: TPCC Overs Bowled | D21: =SUM(H24:H34) -> 0
C22: Opposition Overs Bowled | F22: Bowling
F23: Position | G23: Name | H23: Overs | I23: Maidens | J23: Wickets | K23: Runs
C24: TPCC Captain | F24: 1
F25: 2
F26: 3
F27: 4
F28: 5
F29: 6
F30: 7
F31: 8
F32: 9
F33: 10
F34: 11
F36: Bowling Extras

Sheet VP Game
N2: Date | O2: Opposition | P2: Match Status | Q2: Home/Away | R2: Captain | S2: TPCC Batting First | T2: TPCC Team Score | U2: TPCC Team Wickets | V2: Opposition Team Score | W2: Opposition Team Wickets | X2: TPCC Overs Bowled | Y2: TPCC Overs Faced | Z2: Batting Extras | AA2: Bowling Extras | AB2: Batsmen Position | AC2: Batsmen Name | AD2: Batsmen Runs | AE2: Batsmen Out | AF2: 50 | AG2: 100 | AH2: Bowler Position | AI2: Bowler Name | AJ2: Bowler Overs | AK2: Bowler Maidens | AL2: Bowler Wickets | AM2: Bowler Runs
C3: Match Overview | N3: =$D$5 -> 41153 | O3: =$D$7 -> VPs | P3: =$D$9 -> Loss | Q3: =$D$11 -> Away | R3: =$D$24 -> S. Beardall | S3: =$D$13 -> Second | T3: =$D$15 -> 238 | U3: =$D$16 -> 8 | V3: =$D$18 -> 254 | W3: =$D$19 -> 4 | X3: =$D$21 -> 40 | Y3: =$D$22 -> 40 | Z3: =$H$19 -> 26 | AA3: =$H$36 -> 14 | AB3: =F7 -> 1 | AC3: =G7 -> J. Hunt | AD3: =H7 -> 98 | AE3: =I7 -> 1 | AF3: =(IF(AD3>49,1,0))-AG3 -> 1 | AG3: =IF(AD3>99,1,0) -> 0 | AH3: =F24 -> 1 | AI3: =G24 -> T. White | AJ3: 7 | AK3: 1 | AL3: 0 | AM3: 37
N4: 41153 | O4: VPs | P4: Loss | Q4: Away | R4: =$D$24 -> S. Beardall | S4: Second | T4: 238 | U4: 8 | V4: 254 | W4: 4 | X4: 40 | Y4: 40 | Z4: 26 | AA4: 14 | AB4: =F8 -> 2 | AC4: P. Briffett | AD4: 5 | AE4: 1 | AF4: =(IF(AD4>49,1,0))-AG4 -> 0 | AG4: =IF(AD4>99,1,0) -> 0 | AH4: =F25 -> 2 | AI4: H. De Zulueta | AJ4: 5 | AK4: 0 | AL4: 0 | AM4: 30
C5: Date | D5: 2012-09-01 | F5: Batting | N5: 41153 | O5: VPs | P5: Loss | Q5: Away | R5: S. Beardall | S5: Second | T5: 238 | U5: 8 | V5: 254 | W5: 4 | X5: 40 | Y5: 40 | Z5: 26 | AA5: 14 | AB5: 3 | AC5: S. Beardall | AD5: 1 | AE5: 1 | AF5: 0 | AG5: 0 | AH5: 3 | AI5: S. Flakelar | AJ5: 6 | AK5: 0 | AL5: 1 | AM5: 40
F6: Position | G6: Name | H6: Runs | I6: Out | N6: 41153 | O6: VPs | P6: Loss | Q6: Away | R6: S. Beardall | S6: Second | T6: 238 | U6: 8 | V6: 254 | W6: 4 | X6: 40 | Y6: 40 | Z6: 26 | AA6: 14 | AB6: 4 | AC6: T. Wade | AD6: 33 | AE6: 1 | AF6: 0 | AG6: 0 | AH6: 4 | AI6: J. Hunt | AJ6: 6 | AK6: 0 | AL6: 0 | AM6: 20
C7: Opposition | D7: VPs | F7: 1 | G7: J. Hunt | H7: 98 | I7: 1 | N7: 41153 | O7: VPs | P7: Loss | Q7: Away | R7: S. Beardall | S7: Second | T7: 238 | U7: 8 | V7: 254 | W7: 4 | X7: 40 | Y7: 40 | Z7: 26 | AA7: 14 | AB7: 5 | AC7: P. De Zulueta | AD7: 0 | AE7: 1 | AF7: 0 | AG7: 0 | AH7: 5 | AI7: N. Henry | AJ7: 5 | AK7: 0 | AL7: 0 | AM7: 40
F8: 2 | G8: P. Briffett | H8: 5 | I8: 1 | N8: 41153 | O8: VPs | P8: Loss | Q8: Away | R8: S. Beardall | S8: Second | T8: 238 | U8: 8 | V8: 254 | W8: 4 | X8: 40 | Y8: 40 | Z8: 26 | AA8: 14 | AB8: 6 | AC8: J. Hancock | AD8: 11 | AE8: 1 | AF8: 0 | AG8: 0 | AH8: 6 | AI8: J. Hancock | AJ8: 7 | AK8: 0 | AL8: 1 | AM8: 43
C9: Match Status | D9: Loss | F9: 3 | G9: S. Beardall | H9: 1 | I9: 1 | N9: 41153 | O9: VPs | P9: Loss | Q9: Away | R9: S. Beardall | S9: Second | T9: 238 | U9: 8 | V9: 254 | W9: 4 | X9: 40 | Y9: 40 | Z9: 26 | AA9: 14 | AB9: 7 | AC9: S. Flakelar | AD9: 25 | AE9: 0 | AF9: 0 | AG9: 0 | AH9: 7 | AI9: C. Henry | AJ9: 2 | AK9: 0 | AL9: 1 | AM9: 9
F10: 4 | G10: T. Wade | H10: 33 | I10: 1 | N10: 41153 | O10: VPs | P10: Loss | Q10: Away | R10: S. Beardall | S10: Second | T10: 238 | U10: 8 | V10: 254 | W10: 4 | X10: 40 | Y10: 40 | Z10: 26 | AA10: 14 | AB10: 8 | AC10: T. White | AD10: 10 | AE10: 1 | AF10: 0 | AG10: 0 | AH10: 8 | AI10: S. Beardall | AJ10: 2 | AK10: 0 | AL10: 1 | AM10: 21
C11: Home / Away | D11: Away | F11: 5 | G11: P. De Zulueta | H11: 0 | I11: 1 | N11: 41153 | O11: VPs | P11: Loss | Q11: Away | R11: S. Beardall | S11: Second | T11: 238 | U11: 8 | V11: 254 | W11: 4 | X11: 40 | Y11: 40 | Z11: 26 | AA11: 14 | AB11: 9 | AC11: C. Henry | AD11: 1 | AE11: 1 | AF11: 0 | AG11: 0 | AH11: 9 | AI11: 0 | AJ11: 0 | AK11: 0 | AL11: 0 | AM11: 0
F12: 6 | G12: J. Hancock | H12: 11 | I12: 1 | N12: 41153 | O12: VPs | P12: Loss | Q12: Away | R12: S. Beardall | S12: Second | T12: 238 | U12: 8 | V12: 254 | W12: 4 | X12: 40 | Y12: 40 | Z12: 26 | AA12: 14 | AB12: 10 | AC12: H. De Zulueta | AD12: 28 | AE12: 0 | AF12: 0 | AG12: 0 | AH12: 10 | AI12: 0 | AJ12: 0 | AK12: 0 | AL12: 0 | AM12: 0
C13: TPCC Batting First | D13: Second | F13: 7 | G13: S. Flakelar | H13: 25 | I13: 0 | N13: 41153 | O13: VPs | P13: Loss | Q13: Away | R13: S. Beardall | S13: Second | T13: 238 | U13: 8 | V13: 254 | W13: 4 | X13: 40 | Y13: 40 | Z13: 26 | AA13: 14 | AB13: 11 | AC13: 0 | AD13: 0 | AE13: 0 | AF13: 0 | AG13: 0 | AH13: 11 | AI13: 0 | AJ13: 0 | AK13: 0 | AL13: 0 | AM13: 0
F14: 8 | G14: T. White | H14: 10 | I14: 1
C15: TPCC Team Score | D15: =SUM(H7:H17)+H19 -> 238 | F15: 9 | G15: C. Henry | H15: 1 | I15: 1
C16: TPCC Team Wickets | D16: =SUM(I7:I17) -> 8 | F16: 10 | G16: H. De Zulueta | H16: 28 | I16: 0
F17: 11
C18: Opposition Team Score | D18: =SUM(K24:K34)+H36 -> 254
C19: Opposition Team Wickets | D19: =SUM(J24:J34) -> 4 | F19: Batting Extras | H19: 26
C21: TPCC Overs Bowled | D21: =SUM(H24:H34) -> 40
C22: Opposition Overs Bowled | D22: 40 | F22: Bowling
F23: Position | G23: Name | H23: Overs | I23: Maidens | J23: Wickets | K23: Runs
C24: TPCC Captain | D24: S. Beardall | F24: 1 | G24: T. White | H24: 7 | I24: 1 | J24: 0 | K24: 37
F25: 2 | G25: H. De Zulueta | H25: 5 | I25: 0 | J25: 0 | K25: 30
F26: 3 | G26: S. Flakelar | H26: 6 | I26: 0 | J26: 1 | K26: 40
F27: 4 | G27: J. Hunt | H27: 6 | I27: 0 | J27: 0 | K27: 20
F28: 5 | G28: N. Henry | H28: 5 | I28: 0 | J28: 0 | K28: 40
F29: 6 | G29: J. Hancock | H29: 7 | I29: 0 | J29: 1 | K29: 43
F30: 7 | G30: C. Henry | H30: 2 | I30: 0 | J30: 1 | K30: 9
F31: 8 | G31: S. Beardall | H31: 2 | I31: 0 | J31: 1 | K31: 21
F32: 9
F33: 10
F34: 11
F36: Bowling Extras | H36: 14

Sheet Medmenham
N2: Date | O2: Opposition | P2: Match Status | Q2: Home/Away | R2: Captain | S2: TPCC Batting First | T2: TPCC Team Score | U2: TPCC Team Wickets | V2: Opposition Team Score | W2: Opposition Team Wickets | X2: TPCC Overs Bowled | Y2: TPCC Overs Faced | Z2: Batting Extras | AA2: Bowling Extras | AB2: Batsmen Position | AC2: Batsmen Name | AD2: Batsmen Runs | AE2: Batsmen Out | AF2: 50 | AG2: 100 | AH2: Bowler Position | AI2: Bowler Name | AJ2: Bowler Overs | AK2: Bowler Maidens | AL2: Bowler Wickets | AM2: Bowler Runs
C3: Match Overview | N3: =$D$5 -> 41154 | O3: =$D$7 -> Medmenham | P3: =$D$9 -> Cancelled (Turville) | Q3: =$D$11 -> Home | R3: =$D$24 -> 0 | S3: =$D$13 -> 0 | T3: =$D$15 -> 0 | U3: =$D$16 -> 0 | V3: =$D$18 -> 0 | W3: =$D$19 -> 0 | X3: =$D$21 -> 0 | Y3: =$D$22 -> 0 | Z3: =$H$19 -> 0 | AA3: =$H$36 -> 0 | AB3: =F7 -> 1 | AC3: =G7 -> 0 | AD3: =H7 -> 0 | AE3: =I7 -> 0 | AF3: =(IF(AD3>49,1,0))-AG3 -> 0 | AG3: =IF(AD3>99,1,0) -> 0 | AH3: =F24 -> 1 | AI3: =G24 -> 0 | AJ3: 0 | AK3: 0 | AL3: 0 | AM3: 0
N4: 41154 | O4: Medmenham | P4: Cancelled (Turville) | Q4: Home | R4: =$D$24 -> 0 | S4: 0 | T4: 0 | U4: 0 | V4: 0 | W4: 0 | X4: 0 | Y4: 0 | Z4: 0 | AA4: 0 | AB4: =F8 -> 2 | AC4: 0 | AD4: 0 | AE4: 0 | AF4: =(IF(AD4>49,1,0))-AG4 -> 0 | AG4: =IF(AD4>99,1,0) -> 0 | AH4: =F25 -> 2 | AI4: 0 | AJ4: 0 | AK4: 0 | AL4: 0 | AM4: 0
C5: Date | D5: 2012-09-02 | F5: Batting | N5: 41154 | O5: Medmenham | P5: Cancelled (Turville) | Q5: Home | R5: 0 | S5: 0 | T5: 0 | U5: 0 | V5: 0 | W5: 0 | X5: 0 | Y5: 0 | Z5: 0 | AA5: 0 | AB5: 3 | AC5: 0 | AD5: 0 | AE5: 0 | AF5: 0 | AG5: 0 | AH5: 3 | AI5: 0 | AJ5: 0 | AK5: 0 | AL5: 0 | AM5: 0
F6: Position | G6: Name | H6: Runs | I6: Out | N6: 41154 | O6: Medmenham | P6: Cancelled (Turville) | Q6: Home | R6: 0 | S6: 0 | T6: 0 | U6: 0 | V6: 0 | W6: 0 | X6: 0 | Y6: 0 | Z6: 0 | AA6: 0 | AB6: 4 | AC6: 0 | AD6: 0 | AE6: 0 | AF6: 0 | AG6: 0 | AH6: 4 | AI6: 0 | AJ6: 0 | AK6: 0 | AL6: 0 | AM6: 0
C7: Opposition | D7: Medmenham | F7: 1 | N7: 41154 | O7: Medmenham | P7: Cancelled (Turville) | Q7: Home | R7: 0 | S7: 0 | T7: 0 | U7: 0 | V7: 0 | W7: 0 | X7: 0 | Y7: 0 | Z7: 0 | AA7: 0 | AB7: 5 | AC7: 0 | AD7: 0 | AE7: 0 | AF7: 0 | AG7: 0 | AH7: 5 | AI7: 0 | AJ7: 0 | AK7: 0 | AL7: 0 | AM7: 0
F8: 2 | N8: 41154 | O8: Medmenham | P8: Cancelled (Turville) | Q8: Home | R8: 0 | S8: 0 | T8: 0 | U8: 0 | V8: 0 | W8: 0 | X8: 0 | Y8: 0 | Z8: 0 | AA8: 0 | AB8: 6 | AC8: 0 | AD8: 0 | AE8: 0 | AF8: 0 | AG8: 0 | AH8: 6 | AI8: 0 | AJ8: 0 | AK8: 0 | AL8: 0 | AM8: 0
C9: Match Status | D9: Cancelled (Turville) | F9: 3 | N9: 41154 | O9: Medmenham | P9: Cancelled (Turville) | Q9: Home | R9: 0 | S9: 0 | T9: 0 | U9: 0 | V9: 0 | W9: 0 | X9: 0 | Y9: 0 | Z9: 0 | AA9: 0 | AB9: 7 | AC9: 0 | AD9: 0 | AE9: 0 | AF9: 0 | AG9: 0 | AH9: 7 | AI9: 0 | AJ9: 0 | AK9: 0 | AL9: 0 | AM9: 0
F10: 4 | N10: 41154 | O10: Medmenham | P10: Cancelled (Turville) | Q10: Home | R10: 0 | S10: 0 | T10: 0 | U10: 0 | V10: 0 | W10: 0 | X10: 0 | Y10: 0 | Z10: 0 | AA10: 0 | AB10: 8 | AC10: 0 | AD10: 0 | AE10: 0 | AF10: 0 | AG10: 0 | AH10: 8 | AI10: 0 | AJ10: 0 | AK10: 0 | AL10: 0 | AM10: 0
C11: Home / Away | D11: Home | F11: 5 | N11: 41154 | O11: Medmenham | P11: Cancelled (Turville) | Q11: Home | R11: 0 | S11: 0 | T11: 0 | U11: 0 | V11: 0 | W11: 0 | X11: 0 | Y11: 0 | Z11: 0 | AA11: 0 | AB11: 9 | AC11: 0 | AD11: 0 | AE11: 0 | AF11: 0 | AG11: 0 | AH11: 9 | AI11: 0 | AJ11: 0 | AK11: 0 | AL11: 0 | AM11: 0
F12: 6 | N12: 41154 | O12: Medmenham | P12: Cancelled (Turville) | Q12: Home | R12: 0 | S12: 0 | T12: 0 | U12: 0 | V12: 0 | W12: 0 | X12: 0 | Y12: 0 | Z12: 0 | AA12: 0 | AB12: 10 | AC12: 0 | AD12: 0 | AE12: 0 | AF12: 0 | AG12: 0 | AH12: 10 | AI12: 0 | AJ12: 0 | AK12: 0 | AL12: 0 | AM12: 0
C13: TPCC Batting First | F13: 7 | N13: 41154 | O13: Medmenham | P13: Cancelled (Turville) | Q13: Home | R13: 0 | S13: 0 | T13: 0 | U13: 0 | V13: 0 | W13: 0 | X13: 0 | Y13: 0 | Z13: 0 | AA13: 0 | AB13: 11 | AC13: 0 | AD13: 0 | AE13: 0 | AF13: 0 | AG13: 0 | AH13: 11 | AI13: 0 | AJ13: 0 | AK13: 0 | AL13: 0 | AM13: 0
F14: 8
C15: TPCC Team Score | D15: =SUM(H7:H17)+H19 -> 0 | F15: 9
C16: TPCC Team Wickets | D16: =SUM(I7:I17) -> 0 | F16: 10
F17: 11
C18: Opposition Team Score | D18: =SUM(K24:K34)+H36 -> 0
C19: Opposition Team Wickets | D19: =SUM(J24:J34) -> 0 | F19: Batting Extras
C21: TPCC Overs Bowled | D21: =SUM(H24:H34) -> 0
C22: Opposition Overs Bowled | F22: Bowling
F23: Position | G23: Name | H23: Overs | I23: Maidens | J23: Wickets | K23: Runs
C24: TPCC Captain | F24: 1
F25: 2
F26: 3
F27: 4
F28: 5
F29: 6
F30: 7
F31: 8
F32: 9
F33: 10
F34: 11
F36: Bowling Extras

Sheet Wylde Oats
N2: Date | O2: Opposition | P2: Match Status | Q2: Home/Away | R2: Captain | S2: TPCC Batting First | T2: TPCC Team Score | U2: TPCC Team Wickets | V2: Opposition Team Score | W2: Opposition Team Wickets | X2: TPCC Overs Bowled | Y2: TPCC Overs Faced | Z2: Batting Extras | AA2: Bowling Extras | AB2: Batsmen Position | AC2: Batsmen Name | AD2: Batsmen Runs | AE2: Batsmen Out | AF2: 50 | AG2: 100 | AH2: Bowler Position | AI2: Bowler Name | AJ2: Bowler Overs | AK2: Bowler Maidens | AL2: Bowler Wickets | AM2: Bowler Runs
C3: Match Overview | N3: =$D$5 -> 41160 | O3: =$D$7 -> Wylde Oats | P3: =$D$9 -> Draw | Q3: =$D$11 -> Home | R3: =$D$24 -> J. Hancock | S3: =$D$13 -> First | T3: =$D$15 -> 245 | U3: =$D$16 -> 4 | V3: =$D$18 -> 113 | W3: =$D$19 -> 6 | X3: =$D$21 -> 39 | Y3: =$D$22 -> 36 | Z3: =$H$19 -> 25 | AA3: =$H$36 -> 4 | AB3: =F7 -> 1 | AC3: =G7 -> A. Bignell | AD3: =H7 -> 0 | AE3: =I7 -> 1 | AF3: =(IF(AD3>49,1,0))-AG3 -> 0 | AG3: =IF(AD3>99,1,0) -> 0 | AH3: =F24 -> 1 | AI3: =G24 -> O. Thornton | AJ3: 9 | AK3: 2 | AL3: 2 | AM3: 28
N4: 41160 | O4: Wylde Oats | P4: Draw | Q4: Home | R4: =$D$24 -> J. Hancock | S4: First | T4: 245 | U4: 4 | V4: 113 | W4: 6 | X4: 39 | Y4: 36 | Z4: 25 | AA4: 4 | AB4: =F8 -> 2 | AC4: Ro. Dickie | AD4: 9 | AE4: 1 | AF4: =(IF(AD4>49,1,0))-AG4 -> 0 | AG4: =IF(AD4>99,1,0) -> 0 | AH4: =F25 -> 2 | AI4: N. Henry | AJ4: 7 | AK4: 1 | AL4: 2 | AM4: 14
C5: Date | D5: 2012-09-08 | F5: Batting | N5: 41160 | O5: Wylde Oats | P5: Draw | Q5: Home | R5: J. Hancock | S5: First | T5: 245 | U5: 4 | V5: 113 | W5: 6 | X5: 39 | Y5: 36 | Z5: 25 | AA5: 4 | AB5: 3 | AC5: P. Briffett | AD5: 72 | AE5: 1 | AF5: 1 | AG5: 0 | AH5: 3 | AI5: N. Runkel | AJ5: 11 | AK5: 2 | AL5: 2 | AM5: 35
F6: Position | G6: Name | H6: Runs | I6: Out | N6: 41160 | O6: Wylde Oats | P6: Draw | Q6: Home | R6: J. Hancock | S6: First | T6: 245 | U6: 4 | V6: 113 | W6: 6 | X6: 39 | Y6: 36 | Z6: 25 | AA6: 4 | AB6: 4 | AC6: O. Thornton | AD6: 51 | AE6: 1 | AF6: 1 | AG6: 0 | AH6: 4 | AI6: J. Thornton | AJ6: 3 | AK6: 0 | AL6: 0 | AM6: 4
C7: Opposition | D7: Wylde Oats | F7: 1 | G7: A. Bignell | H7: 0 | I7: 1 | N7: 41160 | O7: Wylde Oats | P7: Draw | Q7: Home | R7: J. Hancock | S7: First | T7: 245 | U7: 4 | V7: 113 | W7: 6 | X7: 39 | Y7: 36 | Z7: 25 | AA7: 4 | AB7: 5 | AC7: C. Beardall | AD7: 80 | AE7: 0 | AF7: 1 | AG7: 0 | AH7: 5 | AI7: O. Brett | AJ7: 2 | AK7: 0 | AL7: 0 | AM7: 9
F8: 2 | G8: Ro. Dickie | H8: 9 | I8: 1 | N8: 41160 | O8: Wylde Oats | P8: Draw | Q8: Home | R8: J. Hancock | S8: First | T8: 245 | U8: 4 | V8: 113 | W8: 6 | X8: 39 | Y8: 36 | Z8: 25 | AA8: 4 | AB8: 6 | AC8: J. Thornton | AD8: 8 | AE8: 0 | AF8: 0 | AG8: 0 | AH8: 6 | AI8: A. Bignell | AJ8: 4 | AK8: 0 | AL8: 0 | AM8: 14
C9: Match Status | D9: Draw | F9: 3 | G9: P. Briffett | H9: 72 | I9: 1 | N9: 41160 | O9: Wylde Oats | P9: Draw | Q9: Home | R9: J. Hancock | S9: First | T9: 245 | U9: 4 | V9: 113 | W9: 6 | X9: 39 | Y9: 36 | Z9: 25 | AA9: 4 | AB9: 7 | AC9: 0 | AD9: 0 | AE9: 0 | AF9: 0 | AG9: 0 | AH9: 7 | AI9: J. Hancock | AJ9: 3 | AK9: 1 | AL9: 0 | AM9: 5
F10: 4 | G10: O. Thornton | H10: 51 | I10: 1 | N10: 41160 | O10: Wylde Oats | P10: Draw | Q10: Home | R10: J. Hancock | S10: First | T10: 245 | U10: 4 | V10: 113 | W10: 6 | X10: 39 | Y10: 36 | Z10: 25 | AA10: 4 | AB10: 8 | AC10: 0 | AD10: 0 | AE10: 0 | AF10: 0 | AG10: 0 | AH10: 8 | AI10: 0 | AJ10: 0 | AK10: 0 | AL10: 0 | AM10: 0
C11: Home / Away | D11: Home | F11: 5 | G11: C. Beardall | H11: 80 | I11: 0 | N11: 41160 | O11: Wylde Oats | P11: Draw | Q11: Home | R11: J. Hancock | S11: First | T11: 245 | U11: 4 | V11: 113 | W11: 6 | X11: 39 | Y11: 36 | Z11: 25 | AA11: 4 | AB11: 9 | AC11: 0 | AD11: 0 | AE11: 0 | AF11: 0 | AG11: 0 | AH11: 9 | AI11: 0 | AJ11: 0 | AK11: 0 | AL11: 0 | AM11: 0
F12: 6 | G12: J. Thornton | H12: 8 | I12: 0 | N12: 41160 | O12: Wylde Oats | P12: Draw | Q12: Home | R12: J. Hancock | S12: First | T12: 245 | U12: 4 | V12: 113 | W12: 6 | X12: 39 | Y12: 36 | Z12: 25 | AA12: 4 | AB12: 10 | AC12: 0 | AD12: 0 | AE12: 0 | AF12: 0 | AG12: 0 | AH12: 10 | AI12: 0 | AJ12: 0 | AK12: 0 | AL12: 0 | AM12: 0
C13: TPCC Batting First | D13: First | F13: 7 | N13: 41160 | O13: Wylde Oats | P13: Draw | Q13: Home | R13: J. Hancock | S13: First | T13: 245 | U13: 4 | V13: 113 | W13: 6 | X13: 39 | Y13: 36 | Z13: 25 | AA13: 4 | AB13: 11 | AC13: 0 | AD13: 0 | AE13: 0 | AF13: 0 | AG13: 0 | AH13: 11 | AI13: 0 | AJ13: 0 | AK13: 0 | AL13: 0 | AM13: 0
F14: 8
C15: TPCC Team Score | D15: =SUM(H7:H17)+H19 -> 245 | F15: 9
C16: TPCC Team Wickets | D16: =SUM(I7:I17) -> 4 | F16: 10
F17: 11
C18: Opposition Team Score | D18: =SUM(K24:K34)+H36 -> 113
C19: Opposition Team Wickets | D19: =SUM(J24:J34) -> 6 | F19: Batting Extras | H19: 25
C21: TPCC Overs Bowled | D21: =SUM(H24:H34) -> 39
C22: Opposition Overs Bowled | D22: 36 | F22: Bowling
F23: Position | G23: Name | H23: Overs | I23: Maidens | J23: Wickets | K23: Runs
C24: TPCC Captain | D24: J. Hancock | F24: 1 | G24: O. Thornton | H24: 9 | I24: 2 | J24: 2 | K24: 28
F25: 2 | G25: N. Henry | H25: 7 | I25: 1 | J25: 2 | K25: 14
F26: 3 | G26: N. Runkel | H26: 11 | I26: 2 | J26: 2 | K26: 35
F27: 4 | G27: J. Thornton | H27: 3 | I27: 0 | J27: 0 | K27: 4
F28: 5 | G28: O. Brett | H28: 2 | I28: 0 | J28: 0 | K28: 9
F29: 6 | G29: A. Bignell | H29: 4 | I29: 0 | J29: 0 | K29: 14
F30: 7 | G30: J. Hancock | H30: 3 | I30: 1 | J30: 0 | K30: 5
F31: 8
F32: 9
F33: 10
F34: 11
F36: Bowling Extras | H36: 4

Sheet Middleton Stoney
N2: Date | O2: Opposition | P2: Match Status | Q2: Home/Away | R2: Captain | S2: TPCC Batting First | T2: TPCC Team Score | U2: TPCC Team Wickets | V2: Opposition Team Score | W2: Opposition Team Wickets | X2: TPCC Overs Bowled | Y2: TPCC Overs Faced | Z2: Batting Extras | AA2: Bowling Extras | AB2: Batsmen Position | AC2: Batsmen Name | AD2: Batsmen Runs | AE2: Batsmen Out | AF2: 50 | AG2: 100 | AH2: Bowler Position | AI2: Bowler Name | AJ2: Bowler Overs | AK2: Bowler Maidens | AL2: Bowler Wickets | AM2: Bowler Runs
C3: Match Overview | N3: =$D$5 -> 41161 | O3: =$D$7 -> Middleton Stoney | P3: =$D$9 -> Draw | Q3: =$D$11 -> Home | R3: =$D$24 -> J. Hunt | S3: =$D$13 -> First | T3: =$D$15 -> 210 | U3: =$D$16 -> 8 | V3: =$D$18 -> 131 | W3: =$D$19 -> 8 | X3: =$D$21 -> 38 | Y3: =$D$22 -> 41 | Z3: =$H$19 -> 23 | AA3: =$H$36 -> 3 | AB3: =F7 -> 1 | AC3: =G7 -> O. Thornton | AD3: =H7 -> 72 | AE3: =I7 -> 1 | AF3: =(IF(AD3>49,1,0))-AG3 -> 1 | AG3: =IF(AD3>99,1,0) -> 0 | AH3: =F24 -> 1 | AI3: =G24 -> J. Leefe | AJ3: 8 | AK3: 2 | AL3: 1 | AM3: 27
N4: 41161 | O4: Middleton Stoney | P4: Draw | Q4: Home | R4: =$D$24 -> J. Hunt | S4: First | T4: 210 | U4: 8 | V4: 131 | W4: 8 | X4: 38 | Y4: 41 | Z4: 23 | AA4: 3 | AB4: =F8 -> 2 | AC4: J. Moberly | AD4: 8 | AE4: 1 | AF4: =(IF(AD4>49,1,0))-AG4 -> 0 | AG4: =IF(AD4>99,1,0) -> 0 | AH4: =F25 -> 2 | AI4: T. White | AJ4: 11 | AK4: 3 | AL4: 1 | AM4: 38
C5: Date | D5: 2012-09-09 | F5: Batting | N5: 41161 | O5: Middleton Stoney | P5: Draw | Q5: Home | R5: J. Hunt | S5: First | T5: 210 | U5: 8 | V5: 131 | W5: 8 | X5: 38 | Y5: 41 | Z5: 23 | AA5: 3 | AB5: 3 | AC5: S. Bucknill | AD5: 47 | AE5: 1 | AF5: 0 | AG5: 0 | AH5: 3 | AI5: B. Bucknill | AJ5: 5 | AK5: 1 | AL5: 3 | AM5: 20
F6: Position | G6: Name | H6: Runs | I6: Out | N6: 41161 | O6: Middleton Stoney | P6: Draw | Q6: Home | R6: J. Hunt | S6: First | T6: 210 | U6: 8 | V6: 131 | W6: 8 | X6: 38 | Y6: 41 | Z6: 23 | AA6: 3 | AB6: 4 | AC6: T. Wade | AD6: 10 | AE6: 1 | AF6: 0 | AG6: 0 | AH6: 4 | AI6: N. Henry | AJ6: 3 | AK6: 0 | AL6: 1 | AM6: 19
C7: Opposition | D7: Middleton Stoney | F7: 1 | G7: O. Thornton | H7: 72 | I7: 1 | N7: 41161 | O7: Middleton Stoney | P7: Draw | Q7: Home | R7: J. Hunt | S7: First | T7: 210 | U7: 8 | V7: 131 | W7: 8 | X7: 38 | Y7: 41 | Z7: 23 | AA7: 3 | AB7: 5 | AC7: J. Hunt | AD7: 41 | AE7: 0 | AF7: 0 | AG7: 0 | AH7: 5 | AI7: O. Thornton | AJ7: 4 | AK7: 4 | AL7: 0 | AM7: 0
F8: 2 | G8: J. Moberly | H8: 8 | I8: 1 | N8: 41161 | O8: Middleton Stoney | P8: Draw | Q8: Home | R8: J. Hunt | S8: First | T8: 210 | U8: 8 | V8: 131 | W8: 8 | X8: 38 | Y8: 41 | Z8: 23 | AA8: 3 | AB8: 6 | AC8: C. Beardall | AD8: 1 | AE8: 1 | AF8: 0 | AG8: 0 | AH8: 6 | AI8: C. Beardall | AJ8: 3 | AK8: 2 | AL8: 0 | AM8: 2
C9: Match Status | D9: Draw | F9: 3 | G9: S. Bucknill | H9: 47 | I9: 1 | N9: 41161 | O9: Middleton Stoney | P9: Draw | Q9: Home | R9: J. Hunt | S9: First | T9: 210 | U9: 8 | V9: 131 | W9: 8 | X9: 38 | Y9: 41 | Z9: 23 | AA9: 3 | AB9: 7 | AC9: N. Henry | AD9: 0 | AE9: 1 | AF9: 0 | AG9: 0 | AH9: 7 | AI9: J. Hunt | AJ9: 3 | AK9: 0 | AL9: 1 | AM9: 15
F10: 4 | G10: T. Wade | H10: 10 | I10: 1 | N10: 41161 | O10: Middleton Stoney | P10: Draw | Q10: Home | R10: J. Hunt | S10: First | T10: 210 | U10: 8 | V10: 131 | W10: 8 | X10: 38 | Y10: 41 | Z10: 23 | AA10: 3 | AB10: 8 | AC10: J. Leefe | AD10: 6 | AE10: 1 | AF10: 0 | AG10: 0 | AH10: 8 | AI10: J. Moberly | AJ10: 1 | AK10: 0 | AL10: 1 | AM10: 7
C11: Home / Away | D11: Home | F11: 5 | G11: J. Hunt | H11: 41 | I11: 0 | N11: 41161 | O11: Middleton Stoney | P11: Draw | Q11: Home | R11: J. Hunt | S11: First | T11: 210 | U11: 8 | V11: 131 | W11: 8 | X11: 38 | Y11: 41 | Z11: 23 | AA11: 3 | AB11: 9 | AC11: B. Bucknill | AD11: 1 | AE11: 1 | AF11: 0 | AG11: 0 | AH11: 9 | AI11: 0 | AJ11: 0 | AK11: 0 | AL11: 0 | AM11: 0
F12: 6 | G12: C. Beardall | H12: 1 | I12: 1 | N12: 41161 | O12: Middleton Stoney | P12: Draw | Q12: Home | R12: J. Hunt | S12: First | T12: 210 | U12: 8 | V12: 131 | W12: 8 | X12: 38 | Y12: 41 | Z12: 23 | AA12: 3 | AB12: 10 | AC12: T. White | AD12: 1 | AE12: 0 | AF12: 0 | AG12: 0 | AH12: 10 | AI12: 0 | AJ12: 0 | AK12: 0 | AL12: 0 | AM12: 0
C13: TPCC Batting First | D13: First | F13: 7 | G13: N. Henry | H13: 0 | I13: 1 | N13: 41161 | O13: Middleton Stoney | P13: Draw | Q13: Home | R13: J. Hunt | S13: First | T13: 210 | U13: 8 | V13: 131 | W13: 8 | X13: 38 | Y13: 41 | Z13: 23 | AA13: 3 | AB13: 11 | AC13: 0 | AD13: 0 | AE13: 0 | AF13: 0 | AG13: 0 | AH13: 11 | AI13: 0 | AJ13: 0 | AK13: 0 | AL13: 0 | AM13: 0
F14: 8 | G14: J. Leefe | H14: 6 | I14: 1
C15: TPCC Team Score | D15: =SUM(H7:H17)+H19 -> 210 | F15: 9 | G15: B. Bucknill | H15: 1 | I15: 1
C16: TPCC Team Wickets | D16: =SUM(I7:I17) -> 8 | F16: 10 | G16: T. White | H16: 1 | I16: 0
F17: 11
C18: Opposition Team Score | D18: =SUM(K24:K34)+H36 -> 131
C19: Opposition Team Wickets | D19: =SUM(J24:J34) -> 8 | F19: Batting Extras | H19: 23
C21: TPCC Overs Bowled | D21: =SUM(H24:H34) -> 38
C22: Opposition Overs Bowled | D22: 41 | F22: Bowling
F23: Position | G23: Name | H23: Overs | I23: Maidens | J23: Wickets | K23: Runs
C24: TPCC Captain | D24: J. Hunt | F24: 1 | G24: J. Leefe | H24: 8 | I24: 2 | J24: 1 | K24: 27
F25: 2 | G25: T. White | H25: 11 | I25: 3 | J25: 1 | K25: 38
F26: 3 | G26: B. Bucknill | H26: 5 | I26: 1 | J26: 3 | K26: 20
F27: 4 | G27: N. Henry | H27: 3 | I27: 0 | J27: 1 | K27: 19
F28: 5 | G28: O. Thornton | H28: 4 | I28: 4 | J28: 0 | K28: 0
F29: 6 | G29: C. Beardall | H29: 3 | I29: 2 | J29: 0 | K29: 2
F30: 7 | G30: J. Hunt | H30: 3 | I30: 0 | J30: 1 | K30: 15
F31: 8 | G31: J. Moberly | H31: 1 | I31: 0 | J31: 1 | K31: 7
F32: 9
F33: 10
F34: 11
F36: Bowling Extras | H36: 3

Sheet Harpsden (2)
N2: Date | O2: Opposition | P2: Match Status | Q2: Home/Away | R2: Captain | S2: TPCC Batting First | T2: TPCC Team Score | U2: TPCC Team Wickets | V2: Opposition Team Score | W2: Opposition Team Wickets | X2: TPCC Overs Bowled | Y2: TPCC Overs Faced | Z2: Batting Extras | AA2: Bowling Extras | AB2: Batsmen Position | AC2: Batsmen Name | AD2: Batsmen Runs | AE2: Batsmen Out | AF2: 50 | AG2: 100 | AH2: Bowler Position | AI2: Bowler Name | AJ2: Bowler Overs | AK2: Bowler Maidens | AL2: Bowler Wickets | AM2: Bowler Runs
C3: Match Overview | N3: =$D$5 -> 41167 | O3: =$D$7 -> Harpsden (2) | P3: =$D$9 -> Win | Q3: =$D$11 -> Home | R3: =$D$24 -> J. Hunt | S3: =$D$13 -> Second | T3: =$D$15 -> 135 | U3: =$D$16 -> 6 | V3: =$D$18 -> 133 | W3: =$D$19 -> 10 | X3: =$D$21 -> 40 | Y3: =$D$22 -> 33 | Z3: =$H$19 -> 5 | AA3: =$H$36 -> 6 | AB3: =F7 -> 1 | AC3: =G7 -> J. Leefe | AD3: =H7 -> 0 | AE3: =I7 -> 1 | AF3: =(IF(AD3>49,1,0))-AG3 -> 0 | AG3: =IF(AD3>99,1,0) -> 0 | AH3: =F24 -> 1 | AI3: =G24 -> T. White | AJ3: 6 | AK3: 0 | AL3: 2 | AM3: 27
N4: 41167 | O4: Harpsden (2) | P4: Win | Q4: Home | R4: =$D$24 -> J. Hunt | S4: Second | T4: 135 | U4: 6 | V4: 133 | W4: 10 | X4: 40 | Y4: 33 | Z4: 5 | AA4: 6 | AB4: =F8 -> 2 | AC4: J. Moberly | AD4: 2 | AE4: 1 | AF4: =(IF(AD4>49,1,0))-AG4 -> 0 | AG4: =IF(AD4>99,1,0) -> 0 | AH4: =F25 -> 2 | AI4: P. Girdler | AJ4: 7 | AK4: 2 | AL4: 1 | AM4: 28
C5: Date | D5: 2012-09-15 | F5: Batting | N5: 41167 | O5: Harpsden (2) | P5: Win | Q5: Home | R5: J. Hunt | S5: Second | T5: 135 | U5: 6 | V5: 133 | W5: 10 | X5: 40 | Y5: 33 | Z5: 5 | AA5: 6 | AB5: 3 | AC5: C. Beardall | AD5: 3 | AE5: 1 | AF5: 0 | AG5: 0 | AH5: 3 | AI5: J. Hunt | AJ5: 8 | AK5: 1 | AL5: 5 | AM5: 11
F6: Position | G6: Name | H6: Runs | I6: Out | N6: 41167 | O6: Harpsden (2) | P6: Win | Q6: Home | R6: J. Hunt | S6: Second | T6: 135 | U6: 6 | V6: 133 | W6: 10 | X6: 40 | Y6: 33 | Z6: 5 | AA6: 6 | AB6: 4 | AC6: T. Wade | AD6: 20 | AE6: 1 | AF6: 0 | AG6: 0 | AH6: 4 | AI6: J. Leefe | AJ6: 5 | AK6: 1 | AL6: 0 | AM6: 23
C7: Opposition | D7: Harpsden (2) | F7: 1 | G7: J. Leefe | H7: 0 | I7: 1 | N7: 41167 | O7: Harpsden (2) | P7: Win | Q7: Home | R7: J. Hunt | S7: Second | T7: 135 | U7: 6 | V7: 133 | W7: 10 | X7: 40 | Y7: 33 | Z7: 5 | AA7: 6 | AB7: 5 | AC7: S. Halfhead | AD7: 28 | AE7: 0 | AF7: 0 | AG7: 0 | AH7: 5 | AI7: A. Bignell | AJ7: 7 | AK7: 3 | AL7: 2 | AM7: 16
F8: 2 | G8: J. Moberly | H8: 2 | I8: 1 | N8: 41167 | O8: Harpsden (2) | P8: Win | Q8: Home | R8: J. Hunt | S8: Second | T8: 135 | U8: 6 | V8: 133 | W8: 10 | X8: 40 | Y8: 33 | Z8: 5 | AA8: 6 | AB8: 6 | AC8: J. Hunt | AD8: 6 | AE8: 1 | AF8: 0 | AG8: 0 | AH8: 6 | AI8: J. Hancock | AJ8: 7 | AK8: 2 | AL8: 0 | AM8: 22
C9: Match Status | D9: Win | F9: 3 | G9: C. Beardall | H9: 3 | I9: 1 | N9: 41167 | O9: Harpsden (2) | P9: Win | Q9: Home | R9: J. Hunt | S9: Second | T9: 135 | U9: 6 | V9: 133 | W9: 10 | X9: 40 | Y9: 33 | Z9: 5 | AA9: 6 | AB9: 7 | AC9: J. Hancock | AD9: 52 | AE9: 1 | AF9: 1 | AG9: 0 | AH9: 7 | AI9: 0 | AJ9: 0 | AK9: 0 | AL9: 0 | AM9: 0
F10: 4 | G10: T. Wade | H10: 20 | I10: 1 | N10: 41167 | O10: Harpsden (2) | P10: Win | Q10: Home | R10: J. Hunt | S10: Second | T10: 135 | U10: 6 | V10: 133 | W10: 10 | X10: 40 | Y10: 33 | Z10: 5 | AA10: 6 | AB10: 8 | AC10: A. Bignell | AD10: 19 | AE10: 0 | AF10: 0 | AG10: 0 | AH10: 8 | AI10: 0 | AJ10: 0 | AK10: 0 | AL10: 0 | AM10: 0
C11: Home / Away | D11: Home | F11: 5 | G11: S. Halfhead | H11: 28 | I11: 0 | N11: 41167 | O11: Harpsden (2) | P11: Win | Q11: Home | R11: J. Hunt | S11: Second | T11: 135 | U11: 6 | V11: 133 | W11: 10 | X11: 40 | Y11: 33 | Z11: 5 | AA11: 6 | AB11: 9 | AC11: 0 | AD11: 0 | AE11: 0 | AF11: 0 | AG11: 0 | AH11: 9 | AI11: 0 | AJ11: 0 | AK11: 0 | AL11: 0 | AM11: 0
F12: 6 | G12: J. Hunt | H12: 6 | I12: 1 | N12: 41167 | O12: Harpsden (2) | P12: Win | Q12: Home | R12: J. Hunt | S12: Second | T12: 135 | U12: 6 | V12: 133 | W12: 10 | X12: 40 | Y12: 33 | Z12: 5 | AA12: 6 | AB12: 10 | AC12: 0 | AD12: 0 | AE12: 0 | AF12: 0 | AG12: 0 | AH12: 10 | AI12: 0 | AJ12: 0 | AK12: 0 | AL12: 0 | AM12: 0
C13: TPCC Batting First | D13: Second | F13: 7 | G13: J. Hancock | H13: 52 | I13: 1 | N13: 41167 | O13: Harpsden (2) | P13: Win | Q13: Home | R13: J. Hunt | S13: Second | T13: 135 | U13: 6 | V13: 133 | W13: 10 | X13: 40 | Y13: 33 | Z13: 5 | AA13: 6 | AB13: 11 | AC13: 0 | AD13: 0 | AE13: 0 | AF13: 0 | AG13: 0 | AH13: 11 | AI13: 0 | AJ13: 0 | AK13: 0 | AL13: 0 | AM13: 0
F14: 8 | G14: A. Bignell | H14: 19 | I14: 0
C15: TPCC Team Score | D15: =SUM(H7:H17)+H19 -> 135 | F15: 9
C16: TPCC Team Wickets | D16: =SUM(I7:I17) -> 6 | F16: 10
F17: 11
C18: Opposition Team Score | D18: =SUM(K24:K34)+H36 -> 133
C19: Opposition Team Wickets | D19: =SUM(J24:J34) -> 10 | F19: Batting Extras | H19: 5
C21: TPCC Overs Bowled | D21: =SUM(H24:H34) -> 40
C22: Opposition Overs Bowled | D22: 33 | F22: Bowling
F23: Position | G23: Name | H23: Overs | I23: Maidens | J23: Wickets | K23: Runs
C24: TPCC Captain | D24: J. Hunt | F24: 1 | G24: T. White | H24: 6 | I24: 0 | J24: 2 | K24: 27
F25: 2 | G25: P. Girdler | H25: 7 | I25: 2 | J25: 1 | K25: 28
F26: 3 | G26: J. Hunt | H26: 8 | I26: 1 | J26: 5 | K26: 11
F27: 4 | G27: J. Leefe | H27: 5 | I27: 1 | J27: 0 | K27: 23
F28: 5 | G28: A. Bignell | H28: 7 | I28: 3 | J28: 2 | K28: 16
F29: 6 | G29: J. Hancock | H29: 7 | I29: 2 | J29: 0 | K29: 22
F30: 7
F31: 8
F32: 9
F33: 10
F34: 11
F36: Bowling Extras | H36: 6

Sheet Checkendon (2)
N2: Date | O2: Opposition | P2: Match Status | Q2: Home/Away | R2: Captain | S2: TPCC Batting First | T2: TPCC Team Score | U2: TPCC Team Wickets | V2: Opposition Team Score | W2: Opposition Team Wickets | X2: TPCC Overs Bowled | Y2: TPCC Overs Faced | Z2: Batting Extras | AA2: Bowling Extras | AB2: Batsmen Position | AC2: Batsmen Name | AD2: Batsmen Runs | AE2: Batsmen Out | AF2: 50 | AG2: 100 | AH2: Bowler Position | AI2: Bowler Name | AJ2: Bowler Overs | AK2: Bowler Maidens | AL2: Bowler Wickets | AM2: Bowler Runs
C3: Match Overview | N3: =$D$5 -> 41174 | O3: =$D$7 -> Checkendon (2) | P3: =$D$9 -> Loss | Q3: =$D$11 -> Away | R3: =$D$24 -> J. Hancock | S3: =$D$13 -> Second | T3: =$D$15 -> 89 | U3: =$D$16 -> 10 | V3: =$D$18 -> 174 | W3: =$D$19 -> 10 | X3: =$D$21 -> 46 | Y3: =$D$22 -> 28 | Z3: =$H$19 -> 11 | AA3: =$H$36 -> 12 | AB3: =F7 -> 1 | AC3: =G7 -> P. Briffett | AD3: =H7 -> 0 | AE3: =I7 -> 1 | AF3: =(IF(AD3>49,1,0))-AG3 -> 0 | AG3: =IF(AD3>99,1,0) -> 0 | AH3: =F24 -> 1 | AI3: =G24 -> K. Haig | AJ3: 10 | AK3: 1 | AL3: 1 | AM3: 23
N4: 41174 | O4: Checkendon (2) | P4: Loss | Q4: Away | R4: =$D$24 -> J. Hancock | S4: Second | T4: 89 | U4: 10 | V4: 174 | W4: 10 | X4: 46 | Y4: 28 | Z4: 11 | AA4: 12 | AB4: =F8 -> 2 | AC4: J. Moberly | AD4: 4 | AE4: 1 | AF4: =(IF(AD4>49,1,0))-AG4 -> 0 | AG4: =IF(AD4>99,1,0) -> 0 | AH4: =F25 -> 2 | AI4: J. Hunt | AJ4: 14 | AK4: 2 | AL4: 4 | AM4: 36
C5: Date | D5: 2012-09-22 | F5: Batting | N5: 41174 | O5: Checkendon (2) | P5: Loss | Q5: Away | R5: J. Hancock | S5: Second | T5: 89 | U5: 10 | V5: 174 | W5: 10 | X5: 46 | Y5: 28 | Z5: 11 | AA5: 12 | AB5: 3 | AC5: R. Hunt | AD5: 15 | AE5: 1 | AF5: 0 | AG5: 0 | AH5: 3 | AI5: C. Beardall | AJ5: 5 | AK5: 0 | AL5: 1 | AM5: 28
F6: Position | G6: Name | H6: Runs | I6: Out | N6: 41174 | O6: Checkendon (2) | P6: Loss | Q6: Away | R6: J. Hancock | S6: Second | T6: 89 | U6: 10 | V6: 174 | W6: 10 | X6: 46 | Y6: 28 | Z6: 11 | AA6: 12 | AB6: 4 | AC6: C. Beardall | AD6: 19 | AE6: 1 | AF6: 0 | AG6: 0 | AH6: 4 | AI6: J. Moberly | AJ6: 7 | AK6: 1 | AL6: 1 | AM6: 43
C7: Opposition | D7: Checkendon (2) | F7: 1 | G7: P. Briffett | H7: 0 | I7: 1 | N7: 41174 | O7: Checkendon (2) | P7: Loss | Q7: Away | R7: J. Hancock | S7: Second | T7: 89 | U7: 10 | V7: 174 | W7: 10 | X7: 46 | Y7: 28 | Z7: 11 | AA7: 12 | AB7: 5 | AC7: T. Wade | AD7: 12 | AE7: 1 | AF7: 0 | AG7: 0 | AH7: 5 | AI7: J. Hancock | AJ7: 6 | AK7: 1 | AL7: 2 | AM7: 16
F8: 2 | G8: J. Moberly | H8: 4 | I8: 1 | N8: 41174 | O8: Checkendon (2) | P8: Loss | Q8: Away | R8: J. Hancock | S8: Second | T8: 89 | U8: 10 | V8: 174 | W8: 10 | X8: 46 | Y8: 28 | Z8: 11 | AA8: 12 | AB8: 6 | AC8: V. Haig | AD8: 11 | AE8: 1 | AF8: 0 | AG8: 0 | AH8: 6 | AI8: P. Briffett | AJ8: 4 | AK8: 0 | AL8: 1 | AM8: 16
C9: Match Status | D9: Loss | F9: 3 | G9: R. Hunt | H9: 15 | I9: 1 | N9: 41174 | O9: Checkendon (2) | P9: Loss | Q9: Away | R9: J. Hancock | S9: Second | T9: 89 | U9: 10 | V9: 174 | W9: 10 | X9: 46 | Y9: 28 | Z9: 11 | AA9: 12 | AB9: 7 | AC9: J. Hunt | AD9: 3 | AE9: 1 | AF9: 0 | AG9: 0 | AH9: 7 | AI9: 0 | AJ9: 0 | AK9: 0 | AL9: 0 | AM9: 0
F10: 4 | G10: C. Beardall | H10: 19 | I10: 1 | N10: 41174 | O10: Checkendon (2) | P10: Loss | Q10: Away | R10: J. Hancock | S10: Second | T10: 89 | U10: 10 | V10: 174 | W10: 10 | X10: 46 | Y10: 28 | Z10: 11 | AA10: 12 | AB10: 8 | AC10: P. Sheriff | AD10: 12 | AE10: 1 | AF10: 0 | AG10: 0 | AH10: 8 | AI10: 0 | AJ10: 0 | AK10: 0 | AL10: 0 | AM10: 0
C11: Home / Away | D11: Away | F11: 5 | G11: T. Wade | H11: 12 | I11: 1 | N11: 41174 | O11: Checkendon (2) | P11: Loss | Q11: Away | R11: J. Hancock | S11: Second | T11: 89 | U11: 10 | V11: 174 | W11: 10 | X11: 46 | Y11: 28 | Z11: 11 | AA11: 12 | AB11: 9 | AC11: J. Hancock | AD11: 1 | AE11: 1 | AF11: 0 | AG11: 0 | AH11: 9 | AI11: 0 | AJ11: 0 | AK11: 0 | AL11: 0 | AM11: 0
F12: 6 | G12: V. Haig | H12: 11 | I12: 1 | N12: 41174 | O12: Checkendon (2) | P12: Loss | Q12: Away | R12: J. Hancock | S12: Second | T12: 89 | U12: 10 | V12: 174 | W12: 10 | X12: 46 | Y12: 28 | Z12: 11 | AA12: 12 | AB12: 10 | AC12: C. Wellbelove | AD12: 0 | AE12: 1 | AF12: 0 | AG12: 0 | AH12: 10 | AI12: 0 | AJ12: 0 | AK12: 0 | AL12: 0 | AM12: 0
C13: TPCC Batting First | D13: Second | F13: 7 | G13: J. Hunt | H13: 3 | I13: 1 | N13: 41174 | O13: Checkendon (2) | P13: Loss | Q13: Away | R13: J. Hancock | S13: Second | T13: 89 | U13: 10 | V13: 174 | W13: 10 | X13: 46 | Y13: 28 | Z13: 11 | AA13: 12 | AB13: 11 | AC13: T. Greenwood | AD13: 1 | AE13: 0 | AF13: 0 | AG13: 0 | AH13: 11 | AI13: 0 | AJ13: 0 | AK13: 0 | AL13: 0 | AM13: 0
F14: 8 | G14: P. Sheriff | H14: 12 | I14: 1
C15: TPCC Team Score | D15: =SUM(H7:H17)+H19 -> 89 | F15: 9 | G15: J. Hancock | H15: 1 | I15: 1
C16: TPCC Team Wickets | D16: =SUM(I7:I17) -> 10 | F16: 10 | G16: C. Wellbelove | H16: 0 | I16: 1
F17: 11 | G17: T. Greenwood | H17: 1 | I17: 0
C18: Opposition Team Score | D18: =SUM(K24:K34)+H36 -> 174
C19: Opposition Team Wickets | D19: =SUM(J24:J34) -> 10 | F19: Batting Extras | H19: 11
C21: TPCC Overs Bowled | D21: =SUM(H24:H34) -> 46
C22: Opposition Overs Bowled | D22: 28 | F22: Bowling
F23: Position | G23: Name | H23: Overs | I23: Maidens | J23: Wickets | K23: Runs
C24: TPCC Captain | D24: J. Hancock | F24: 1 | G24: K. Haig | H24: 10 | I24: 1 | J24: 1 | K24: 23
F25: 2 | G25: J. Hunt | H25: 14 | I25: 2 | J25: 4 | K25: 36
F26: 3 | G26: C. Beardall | H26: 5 | I26: 0 | J26: 1 | K26: 28
F27: 4 | G27: J. Moberly | H27: 7 | I27: 1 | J27: 1 | K27: 43
F28: 5 | G28: J. Hancock | H28: 6 | I28: 1 | J28: 2 | K28: 16
F29: 6 | G29: P. Briffett | H29: 4 | I29: 0 | J29: 1 | K29: 16
F30: 7
F31: 8
F32: 9
F33: 10
F34: 11
F36: Bowling Extras | H36: 12

Sheet Greys Green (2)
N2: Date | O2: Opposition | P2: Match Status | Q2: Home/Away | R2: Captain | S2: TPCC Batting First | T2: TPCC Team Score | U2: TPCC Team Wickets | V2: Opposition Team Score | W2: Opposition Team Wickets | X2: TPCC Overs Bowled | Y2: TPCC Overs Faced | Z2: Batting Extras | AA2: Bowling Extras | AB2: Batsmen Position | AC2: Batsmen Name | AD2: Batsmen Runs | AE2: Batsmen Out | AF2: 50 | AG2: 100 | AH2: Bowler Position | AI2: Bowler Name | AJ2: Bowler Overs | AK2: Bowler Maidens | AL2: Bowler Wickets | AM2: Bowler Runs
C3: Match Overview | N3: =$D$5 -> 41181 | O3: =$D$7 -> Greys Green (2) | P3: =$D$9 -> Win | Q3: =$D$11 -> Away | R3: =$D$24 -> S. Beardall | S3: =$D$13 -> Second | T3: =$D$15 -> 190 | U3: =$D$16 -> 6 | V3: =$D$18 -> 185 | W3: =$D$19 -> 7 | X3: =$D$21 -> 50 | Y3: =$D$22 -> 37 | Z3: =$H$19 -> 4 | AA3: =$H$36 -> 13 | AB3: =F7 -> 1 | AC3: =G7 -> J. Moberly | AD3: =H7 -> 27 | AE3: =I7 -> 1 | AF3: =(IF(AD3>49,1,0))-AG3 -> 0 | AG3: =IF(AD3>99,1,0) -> 0 | AH3: =F24 -> 1 | AI3: =G24 -> T. White | AJ3: 10 | AK3: 2 | AL3: 0 | AM3: 28
N4: 41181 | O4: Greys Green (2) | P4: Win | Q4: Away | R4: =$D$24 -> S. Beardall | S4: Second | T4: 190 | U4: 6 | V4: 185 | W4: 7 | X4: 50 | Y4: 37 | Z4: 4 | AA4: 13 | AB4: =F8 -> 2 | AC4: P. Briffett | AD4: 5 | AE4: 1 | AF4: =(IF(AD4>49,1,0))-AG4 -> 0 | AG4: =IF(AD4>99,1,0) -> 0 | AH4: =F25 -> 2 | AI4: A. Bignell | AJ4: 11 | AK4: 5 | AL4: 0 | AM4: 23
C5: Date | D5: 2012-09-29 | F5: Batting | N5: 41181 | O5: Greys Green (2) | P5: Win | Q5: Away | R5: S. Beardall | S5: Second | T5: 190 | U5: 6 | V5: 185 | W5: 7 | X5: 50 | Y5: 37 | Z5: 4 | AA5: 13 | AB5: 3 | AC5: C. Beardall | AD5: 20 | AE5: 1 | AF5: 0 | AG5: 0 | AH5: 3 | AI5: J. Hunt | AJ5: 6 | AK5: 2 | AL5: 0 | AM5: 9
F6: Position | G6: Name | H6: Runs | I6: Out | N6: 41181 | O6: Greys Green (2) | P6: Win | Q6: Away | R6: S. Beardall | S6: Second | T6: 190 | U6: 6 | V6: 185 | W6: 7 | X6: 50 | Y6: 37 | Z6: 4 | AA6: 13 | AB6: 4 | AC6: J. Hunt | AD6: 27 | AE6: 1 | AF6: 0 | AG6: 0 | AH6: 4 | AI6: S. Beardall | AJ6: 7 | AK6: 1 | AL6: 1 | AM6: 24
C7: Opposition | D7: Greys Green (2) | F7: 1 | G7: J. Moberly | H7: 27 | I7: 1 | N7: 41181 | O7: Greys Green (2) | P7: Win | Q7: Away | R7: S. Beardall | S7: Second | T7: 190 | U7: 6 | V7: 185 | W7: 7 | X7: 50 | Y7: 37 | Z7: 4 | AA7: 13 | AB7: 5 | AC7: T. Wade | AD7: 1 | AE7: 1 | AF7: 0 | AG7: 0 | AH7: 5 | AI7: N. Runkel | AJ7: 10 | AK7: 1 | AL7: 2 | AM7: 45
F8: 2 | G8: P. Briffett | H8: 5 | I8: 1 | N8: 41181 | O8: Greys Green (2) | P8: Win | Q8: Away | R8: S. Beardall | S8: Second | T8: 190 | U8: 6 | V8: 185 | W8: 7 | X8: 50 | Y8: 37 | Z8: 4 | AA8: 13 | AB8: 6 | AC8: S. Beardall | AD8: 74 | AE8: 0 | AF8: 1 | AG8: 0 | AH8: 6 | AI8: Ro. Dickie | AJ8: 2 | AK8: 0 | AL8: 0 | AM8: 29
C9: Match Status | D9: Win | F9: 3 | G9: C. Beardall | H9: 20 | I9: 1 | N9: 41181 | O9: Greys Green (2) | P9: Win | Q9: Away | R9: S. Beardall | S9: Second | T9: 190 | U9: 6 | V9: 185 | W9: 7 | X9: 50 | Y9: 37 | Z9: 4 | AA9: 13 | AB9: 7 | AC9: Ro. Dickie | AD9: 0 | AE9: 1 | AF9: 0 | AG9: 0 | AH9: 7 | AI9: C. Beardall | AJ9: 4 | AK9: 0 | AL9: 3 | AM9: 14
F10: 4 | G10: J. Hunt | H10: 27 | I10: 1 | N10: 41181 | O10: Greys Green (2) | P10: Win | Q10: Away | R10: S. Beardall | S10: Second | T10: 190 | U10: 6 | V10: 185 | W10: 7 | X10: 50 | Y10: 37 | Z10: 4 | AA10: 13 | AB10: 8 | AC10: A. Bignell | AD10: 32 | AE10: 0 | AF10: 0 | AG10: 0 | AH10: 8 | AI10: Run Out | AJ10: 0 | AK10: 0 | AL10: 1 | AM10: 0
C11: Home / Away | D11: Away | F11: 5 | G11: T. Wade | H11: 1 | I11: 1 | N11: 41181 | O11: Greys Green (2) | P11: Win | Q11: Away | R11: S. Beardall | S11: Second | T11: 190 | U11: 6 | V11: 185 | W11: 7 | X11: 50 | Y11: 37 | Z11: 4 | AA11: 13 | AB11: 9 | AC11: 0 | AD11: 0 | AE11: 0 | AF11: 0 | AG11: 0 | AH11: 9 | AI11: 0 | AJ11: 0 | AK11: 0 | AL11: 0 | AM11: 0
F12: 6 | G12: S. Beardall | H12: 74 | I12: 0 | N12: 41181 | O12: Greys Green (2) | P12: Win | Q12: Away | R12: S. Beardall | S12: Second | T12: 190 | U12: 6 | V12: 185 | W12: 7 | X12: 50 | Y12: 37 | Z12: 4 | AA12: 13 | AB12: 10 | AC12: 0 | AD12: 0 | AE12: 0 | AF12: 0 | AG12: 0 | AH12: 10 | AI12: 0 | AJ12: 0 | AK12: 0 | AL12: 0 | AM12: 0
C13: TPCC Batting First | D13: Second | F13: 7 | G13: Ro. Dickie | H13: 0 | I13: 1 | N13: 41181 | O13: Greys Green (2) | P13: Win | Q13: Away | R13: S. Beardall | S13: Second | T13: 190 | U13: 6 | V13: 185 | W13: 7 | X13: 50 | Y13: 37 | Z13: 4 | AA13: 13 | AB13: 11 | AC13: 0 | AD13: 0 | AE13: 0 | AF13: 0 | AG13: 0 | AH13: 11 | AI13: 0 | AJ13: 0 | AK13: 0 | AL13: 0 | AM13: 0
F14: 8 | G14: A. Bignell | H14: 32 | I14: 0
C15: TPCC Team Score | D15: =SUM(H7:H17)+H19 -> 190 | F15: 9
C16: TPCC Team Wickets | D16: =SUM(I7:I17) -> 6 | F16: 10
F17: 11
C18: Opposition Team Score | D18: =SUM(K24:K34)+H36 -> 185
C19: Opposition Team Wickets | D19: =SUM(J24:J34) -> 7 | F19: Batting Extras | H19: 4
C21: TPCC Overs Bowled | D21: =SUM(H24:H34) -> 50
C22: Opposition Overs Bowled | D22: 37 | F22: Bowling
F23: Position | G23: Name | H23: Overs | I23: Maidens | J23: Wickets | K23: Runs
C24: TPCC Captain | D24: S. Beardall | F24: 1 | G24: T. White | H24: 10 | I24: 2 | J24: 0 | K24: 28
F25: 2 | G25: A. Bignell | H25: 11 | I25: 5 | J25: 0 | K25: 23
F26: 3 | G26: J. Hunt | H26: 6 | I26: 2 | J26: 0 | K26: 9
F27: 4 | G27: S. Beardall | H27: 7 | I27: 1 | J27: 1 | K27: 24
F28: 5 | G28: N. Runkel | H28: 10 | I28: 1 | J28: 2 | K28: 45
F29: 6 | G29: Ro. Dickie | H29: 2 | I29: 0 | J29: 0 | K29: 29
F30: 7 | G30: C. Beardall | H30: 4 | I30: 0 | J30: 3 | K30: 14
F31: 8 | G31: Run Out | H31: 0 | I31: 0 | J31: 1 | K31: 0
F32: 9
F33: 10
F34: 11
F36: Bowling Extras | H36: 13

Sheet Historic Results
A3: 2011 | B3: 2011 | C3: Win | D3: 7
B4: 2011 | C4: Draw | D4: 7
B5: 2011 | C5: Loss | D5: 10
B6: 2011 | C6: Abandoned | D6: 9
A8: 2010 | B8: 2010 | C8: Win | D8: 11
B9: 2010 | C9: Draw | D9: 6
B10: 2010 | C10: Loss | D10: 8
B11: 2010 | C11: Abandoned | D11: 13
A13: 2009 | B13: 2009 | C13: Win | D13: 9
B14: 2009 | C14: Draw | D14: 6
B15: 2009 | C15: Loss | D15: 14
B16: 2009 | C16: Abandoned | D16: 6
